Workbook

Sheet Лист1
A1: дата | B1: 1 | C1: 2 | D1: 3 | E1: 4 | F1: 5 | G1: 6 | H1: 7 | I1: 8 | J1: 9 | K1: 10 | L1: 11 | M1: 12 | N1: 13 | O1: 14 | P1: 15 | Q1: 16 | R1: 17 | S1: 18 | T1: 19 | U1: 20 | V1: 21 | W1: 22 | X1: 23 | Y1: 24 | Z1: 25 | AA1: 26 | AB1: 27 | AC1: 28 | AD1: 29 | AE1: 30 | AF1: 31
A2: номенклатура
A3: Плита "Экстрол" 30-1180.580.50/8 (Ч), м3 | B3: 100 | E3: 100 | H3: 100 | K3: 100 | N3: 100 | Q3: 100 | T3: 100 | W3: 100 | Z3: 100 | AC3: 100
A4: Плита "Экстрол" 35-1180.580.50/8 (Ч) Г4, м3 | B4: 100 | E4: 100 | H4: 100 | K4: 100 | N4: 100 | Q4: 100 | T4: 100 | W4: 100 | Z4: 100 | AC4: 100
A5: Плита "Экстрол" 45-1180.580.50/8 (Ч), м3 | C5: 200 | F5: 200 | I5: 200 | L5: 200 | O5: 200 | R5: 200 | U5: 200 | X5: 200 | AA5: 200 | AD5: 200
A6: Плита "Экстрол" 40-1180.580.50/8 (Ч) Г4, м3 | C6: 300 | F6: 300 | I6: 300 | L6: 300 | O6: 300 | R6: 300 | U6: 300 | X6: 300 | AA6: 300 | AD6: 300
A7: Плита "Экстрол Малахит" 1180.580.50/8 (Ч), м3 | D7: 400 | G7: 400 | J7: 400 | M7: 400 | P7: 400 | S7: 400 | V7: 400 | Y7: 400 | AB7: 400 | AE7: 400 | AF7: 400

Sheet Лист2
D1: дата | E1: Агломерат + вторичка | F1: ПСМ | G1: Антипирен + концентрат | H1: Тальк (порошк) | I1: Тальк | J1: ПСВ-601 | K1: Стабилизатор | L1: Краситель | M1: СО2 | N1: Изобу-тан | O1: Фреон | P1: Этанол | Q1: Диметиловый эфир (ДМЭ) ГАЗ | R1: Фракция изопентановая | S1: Зеленая 1160 | T1: Малахит | U1: Зел 1210 | V1: Прозр 1230 | W1: Прозр 1800 | X1: Стрейч | Y1: Скотч | Z1: Изделия пенополистирольные ПСБ-С-35 (подложки) | AA1: Этикетки самоклеящиеся
E2: кг/м3 | F2: кг/м3 | G2: кг/м3 | H2: кг/м3 | K2: кг/м3 | L2: кг/м3 | M2: кг/м3 | N2: кг/м3 | O2: кг/м3 | P2: кг/м3 | Q2: кг/м3 | R2: кг/м3 | S2: рул/м3 | X2: рул/м3 | Y2: рул/м3 | Z2: шт/м3 | AA2: шт/м3
D3: 1 | E3: =(Лист1!B3*(VLOOKUP(Лист1!A3,Лист3!$A:$P,16,0))) -> 540 | F3: =(Лист1!B3*(VLOOKUP(Лист1!A3,Лист3!A:Q,17,0))) -> 2180 | G3: =(Лист1!B3*(VLOOKUP(Лист1!A3,Лист3!A:R,18,0))) -> 10 | H3: =(Лист1!B3*(VLOOKUP(Лист1!A3,Лист3!$A:$S,19,0))) -> 7 | I3: =(Лист1!B3*(VLOOKUP(Лист1!A3,Лист3!A:T,20,0))) -> 0 | J3: =(Лист1!B3*(VLOOKUP(Лист1!A3,Лист3!$A:$U,21,0))) -> 0 | K3: =(Лист1!B3*(VLOOKUP(Лист1!A3,Лист3!$A:$V,22,0))) -> 0 | L3: =(Лист1!B3*(VLOOKUP(Лист1!A3,Лист3!$A:$W,23,0))) -> 2 | M3: =(Лист1!B3*(VLOOKUP(Лист1!A3,Лист3!$A:$X,24,0))) -> 90 | N3: =(Лист1!B3*(VLOOKUP(Лист1!A3,Лист3!$A:$Y,25,0))) -> 50 | O3: =(Лист1!B3*(VLOOKUP(Лист1!A3,Лист3!$A:$Z,26,0))) -> 0 | P3: =(Лист1!B3*(VLOOKUP(Лист1!A3,Лист3!$A:$AA,27,0))) -> 89 | Q3: =(Лист1!B3*(VLOOKUP(Лист1!A3,Лист3!$A:$AB,28,0))) -> 0 | R3: =(Лист1!B3*(VLOOKUP(Лист1!A3,Лист3!$A:$AC,29,0))) -> 10 | S3: =(Лист1!B3*(VLOOKUP(Лист1!A3,Лист3!$A:$AD,30,0))) -> 0.6 | T3: =(Лист1!B3*(VLOOKUP(Лист1!A3,Лист3!$A:$AE,31,0))) -> 0 | U3: =(Лист1!B3*(VLOOKUP(Лист1!A3,Лист3!$A:$AF,32,0))) -> 0 | V3: =(Лист1!B3*(VLOOKUP(Лист1!A3,Лист3!$A:$AG,33,0))) -> 0 | W3: =(Лист1!B3*(VLOOKUP(Лист1!A3,Лист3!$A:$AH,34,0))) -> 0 | X3: =(Лист1!B3*(VLOOKUP(Лист1!A3,Лист3!$A:$AI,35,0))) -> 1.6 | Y3: =(Лист1!B3*(VLOOKUP(Лист1!A3,Лист3!$A:$AJ,36,0))) -> 0 | Z3: =(Лист1!B3*(VLOOKUP(Лист1!A3,Лист3!$A:$AK,37,0))) -> 0.25 | AA3: =(Лист1!B3*(VLOOKUP(Лист1!A3,Лист3!$A:$AL,38,0))) -> 1.5
D4: 1 | E4: =(Лист1!B4*(VLOOKUP(Лист1!A4,Лист3!$A:$P,16,0))) -> 610 | F4: =(Лист1!B4*(VLOOKUP(Лист1!A4,Лист3!A:Q,17,0))) -> 2040 | G4: =(Лист1!B4*(VLOOKUP(Лист1!A4,Лист3!A:R,18,0))) -> 15 | H4: =(Лист1!B4*(VLOOKUP(Лист1!A4,Лист3!$A:$S,19,0))) -> 12 | I4: =(Лист1!B4*(VLOOKUP(Лист1!A4,Лист3!A:T,20,0))) -> 0 | J4: =(Лист1!B4*(VLOOKUP(Лист1!A4,Лист3!$A:$U,21,0))) -> 7 | K4: =(Лист1!B4*(VLOOKUP(Лист1!A4,Лист3!$A:$V,22,0))) -> 0 | L4: =(Лист1!B4*(VLOOKUP(Лист1!A4,Лист3!$A:$W,23,0))) -> 3 | M4: =(Лист1!B4*(VLOOKUP(Лист1!A4,Лист3!$A:$X,24,0))) -> 120 | N4: =(Лист1!B4*(VLOOKUP(Лист1!A4,Лист3!$A:$Y,25,0))) -> 60 | O4: =(Лист1!B4*(VLOOKUP(Лист1!A4,Лист3!$A:$Z,26,0))) -> 0 | P4: =(Лист1!B4*(VLOOKUP(Лист1!A4,Лист3!$A:$AA,27,0))) -> 80 | Q4: =(Лист1!B4*(VLOOKUP(Лист1!A4,Лист3!$A:$AB,28,0))) -> 0 | R4: =(Лист1!B4*(VLOOKUP(Лист1!A4,Лист3!$A:$AC,29,0))) -> 10 | S4: =(Лист1!B4*(VLOOKUP(Лист1!A4,Лист3!$A:$AD,30,0))) -> 0.6 | T4: =(Лист1!B4*(VLOOKUP(Лист1!A4,Лист3!$A:$AE,31,0))) -> 0 | U4: =(Лист1!B4*(VLOOKUP(Лист1!A4,Лист3!$A:$AF,32,0))) -> 0 | V4: =(Лист1!B4*(VLOOKUP(Лист1!A4,Лист3!$A:$AG,33,0))) -> 0 | W4: =(Лист1!B4*(VLOOKUP(Лист1!A4,Лист3!$A:$AH,34,0))) -> 0 | X4: =(Лист1!B4*(VLOOKUP(Лист1!A4,Лист3!$A:$AI,35,0))) -> 1.6 | Y4: =(Лист1!B4*(VLOOKUP(Лист1!A4,Лист3!$A:$AJ,36,0))) -> 0 | Z4: =(Лист1!B4*(VLOOKUP(Лист1!A4,Лист3!$A:$AK,37,0))) -> 0.25 | AA4: =(Лист1!B4*(VLOOKUP(Лист1!A4,Лист3!$A:$AL,38,0))) -> 4.7
D5: 1 | E5: =(Лист1!B5*(VLOOKUP(Лист1!A5,Лист3!$A:$P,16,0))) -> 0 | F5: =(Лист1!B5*(VLOOKUP(Лист1!A5,Лист3!A:Q,17,0))) -> 0 | G5: =(Лист1!B5*(VLOOKUP(Лист1!A5,Лист3!A:R,18,0))) -> 0 | H5: =(Лист1!B5*(VLOOKUP(Лист1!A5,Лист3!$A:$S,19,0))) -> 0 | I5: =(Лист1!B5*(VLOOKUP(Лист1!A5,Лист3!A:T,20,0))) -> 0 | J5: =(Лист1!B5*(VLOOKUP(Лист1!A5,Лист3!$A:$U,21,0))) -> 0 | K5: =(Лист1!B5*(VLOOKUP(Лист1!A5,Лист3!$A:$V,22,0))) -> 0 | L5: =(Лист1!B5*(VLOOKUP(Лист1!A5,Лист3!$A:$W,23,0))) -> 0 | M5: =(Лист1!B5*(VLOOKUP(Лист1!A5,Лист3!$A:$X,24,0))) -> 0 | N5: =(Лист1!B5*(VLOOKUP(Лист1!A5,Лист3!$A:$Y,25,0))) -> 0 | O5: =(Лист1!B5*(VLOOKUP(Лист1!A5,Лист3!$A:$Z,26,0))) -> 0 | P5: =(Лист1!B5*(VLOOKUP(Лист1!A5,Лист3!$A:$AA,27,0))) -> 0 | Q5: =(Лист1!B5*(VLOOKUP(Лист1!A5,Лист3!$A:$AB,28,0))) -> 0 | R5: =(Лист1!B5*(VLOOKUP(Лист1!A5,Лист3!$A:$AC,29,0))) -> 0 | S5: =(Лист1!B5*(VLOOKUP(Лист1!A5,Лист3!$A:$AD,30,0))) -> 0 | T5: =(Лист1!B5*(VLOOKUP(Лист1!A5,Лист3!$A:$AE,31,0))) -> 0 | U5: =(Лист1!B5*(VLOOKUP(Лист1!A5,Лист3!$A:$AF,32,0))) -> 0 | V5: =(Лист1!B5*(VLOOKUP(Лист1!A5,Лист3!$A:$AG,33,0))) -> 0 | W5: =(Лист1!B5*(VLOOKUP(Лист1!A5,Лист3!$A:$AH,34,0))) -> 0 | X5: =(Лист1!B5*(VLOOKUP(Лист1!A5,Лист3!$A:$AI,35,0))) -> 0 | Y5: =(Лист1!B5*(VLOOKUP(Лист1!A5,Лист3!$A:$AJ,36,0))) -> 0 | Z5: =(Лист1!B5*(VLOOKUP(Лист1!A5,Лист3!$A:$AK,37,0))) -> 0 | AA5: =(Лист1!B5*(VLOOKUP(Лист1!A5,Лист3!$A:$AL,38,0))) -> 0
D6: 1 | E6: =(Лист1!B6*(VLOOKUP(Лист1!A6,Лист3!$A:$P,16,0))) -> 0 | F6: =(Лист1!B6*(VLOOKUP(Лист1!A6,Лист3!A:Q,17,0))) -> 0 | G6: =(Лист1!B6*(VLOOKUP(Лист1!A6,Лист3!A:R,18,0))) -> 0 | H6: =(Лист1!B6*(VLOOKUP(Лист1!A6,Лист3!$A:$S,19,0))) -> 0 | I6: =(Лист1!B6*(VLOOKUP(Лист1!A6,Лист3!A:T,20,0))) -> 0 | J6: =(Лист1!B6*(VLOOKUP(Лист1!A6,Лист3!$A:$U,21,0))) -> 0 | K6: =(Лист1!B6*(VLOOKUP(Лист1!A6,Лист3!$A:$V,22,0))) -> 0 | L6: =(Лист1!B6*(VLOOKUP(Лист1!A6,Лист3!$A:$W,23,0))) -> 0 | M6: =(Лист1!B6*(VLOOKUP(Лист1!A6,Лист3!$A:$X,24,0))) -> 0 | N6: =(Лист1!B6*(VLOOKUP(Лист1!A6,Лист3!$A:$Y,25,0))) -> 0 | O6: =(Лист1!B6*(VLOOKUP(Лист1!A6,Лист3!$A:$Z,26,0))) -> 0 | P6: =(Лист1!B6*(VLOOKUP(Лист1!A6,Лист3!$A:$AA,27,0))) -> 0 | Q6: =(Лист1!B6*(VLOOKUP(Лист1!A6,Лист3!$A:$AB,28,0))) -> 0 | R6: =(Лист1!B6*(VLOOKUP(Лист1!A6,Лист3!$A:$AC,29,0))) -> 0 | S6: =(Лист1!B6*(VLOOKUP(Лист1!A6,Лист3!$A:$AD,30,0))) -> 0 | T6: =(Лист1!B6*(VLOOKUP(Лист1!A6,Лист3!$A:$AE,31,0))) -> 0 | U6: =(Лист1!B6*(VLOOKUP(Лист1!A6,Лист3!$A:$AF,32,0))) -> 0 | V6: =(Лист1!B6*(VLOOKUP(Лист1!A6,Лист3!$A:$AG,33,0))) -> 0 | W6: =(Лист1!B6*(VLOOKUP(Лист1!A6,Лист3!$A:$AH,34,0))) -> 0 | X6: =(Лист1!B6*(VLOOKUP(Лист1!A6,Лист3!$A:$AI,35,0))) -> 0 | Y6: =(Лист1!B6*(VLOOKUP(Лист1!A6,Лист3!$A:$AJ,36,0))) -> 0 | Z6: =(Лист1!B6*(VLOOKUP(Лист1!A6,Лист3!$A:$AK,37,0))) -> 0 | AA6: =(Лист1!B6*(VLOOKUP(Лист1!A6,Лист3!$A:$AL,38,0))) -> 0
C7: =IFERROR(INDEX(Лист1!$A$3:$A$10,SMALL(IF(ISNUMBER(INDEX(Лист1!$B$3:$AF$10,,MATCH(Лист2!$D7,Лист1!$B$1:$AF$1,0))),ROW(Лист1!$A$3:$A$10)-2),COUNTIF($D$7:D7,D7))),"") -> Плита "Экстрол" 30-1180.580.50/8 (Ч), м3 | D7: =INT((ROW(A1)-1)/4+1) -> 1 | E7: =IFERROR(SUMPRODUCT(Лист1!$B$3:$AF$10*(Лист1!$B$1:$AF$1=Лист2!$D7)*(Лист2!$C7=Лист1!$A$3:$A$10))*INDEX(Лист3!$B$7:$AQ$96,MATCH(Лист2!$C7,Лист3!$A$7:$A$96,0),MATCH(Лист2!E$1&E$2,Лист3!$B$4:$AQ$4&Лист3!$B$5:$AQ$5,0)),0) -> 540 | F7: =IFERROR(SUMPRODUCT(Лист1!$B$3:$AF$10*(Лист1!$B$1:$AF$1=Лист2!$D7)*(Лист2!$C7=Лист1!$A$3:$A$10))*INDEX(Лист3!$B$7:$AQ$96,MATCH(Лист2!$C7,Лист3!$A$7:$A$96,0),MATCH(Лист2!F$1&F$2,Лист3!$B$4:$AQ$4&Лист3!$B$5:$AQ$5,0)),0) -> 2180 | G7: =IFERROR(SUMPRODUCT(Лист1!$B$3:$AF$10*(Лист1!$B$1:$AF$1=Лист2!$D7)*(Лист2!$C7=Лист1!$A$3:$A$10))*INDEX(Лист3!$B$7:$AQ$96,MATCH(Лист2!$C7,Лист3!$A$7:$A$96,0),MATCH(Лист2!G$1&G$2,Лист3!$B$4:$AQ$4&Лист3!$B$5:$AQ$5,0)),0) -> 10 | H7: =IFERROR(SUMPRODUCT(Лист1!$B$3:$AF$10*(Лист1!$B$1:$AF$1=Лист2!$D7)*(Лист2!$C7=Лист1!$A$3:$A$10))*INDEX(Лист3!$B$7:$AQ$96,MATCH(Лист2!$C7,Лист3!$A$7:$A$96,0),MATCH(Лист2!H$1&H$2,Лист3!$B$4:$AQ$4&Лист3!$B$5:$AQ$5,0)),0) -> 7 | I7: =IFERROR(SUMPRODUCT(Лист1!$B$3:$AF$10*(Лист1!$B$1:$AF$1=Лист2!$D7)*(Лист2!$C7=Лист1!$A$3:$A$10))*INDEX(Лист3!$B$7:$AQ$96,MATCH(Лист2!$C7,Лист3!$A$7:$A$96,0),MATCH(Лист2!I$1&I$2,Лист3!$B$4:$AQ$4&Лист3!$B$5:$AQ$5,0)),0) -> 0 | J7: =IFERROR(SUMPRODUCT(Лист1!$B$3:$AF$10*(Лист1!$B$1:$AF$1=Лист2!$D7)*(Лист2!$C7=Лист1!$A$3:$A$10))*INDEX(Лист3!$B$7:$AQ$96,MATCH(Лист2!$C7,Лист3!$A$7:$A$96,0),MATCH(Лист2!J$1&J$2,Лист3!$B$4:$AQ$4&Лист3!$B$5:$AQ$5,0)),0) -> 2 | K7: =IFERROR(SUMPRODUCT(Лист1!$B$3:$AF$10*(Лист1!$B$1:$AF$1=Лист2!$D7)*(Лист2!$C7=Лист1!$A$3:$A$10))*INDEX(Лист3!$B$7:$AQ$96,MATCH(Лист2!$C7,Лист3!$A$7:$A$96,0),MATCH(Лист2!K$1&K$2,Лист3!$B$4:$AQ$4&Лист3!$B$5:$AQ$5,0)),0) -> 0 | L7: =IFERROR(SUMPRODUCT(Лист1!$B$3:$AF$10*(Лист1!$B$1:$AF$1=Лист2!$D7)*(Лист2!$C7=Лист1!$A$3:$A$10))*INDEX(Лист3!$B$7:$AQ$96,MATCH(Лист2!$C7,Лист3!$A$7:$A$96,0),MATCH(Лист2!L$1&L$2,Лист3!$B$4:$AQ$4&Лист3!$B$5:$AQ$5,0)),0) -> 2 | M7: =IFERROR(SUMPRODUCT(Лист1!$B$3:$AF$10*(Лист1!$B$1:$AF$1=Лист2!$D7)*(Лист2!$C7=Лист1!$A$3:$A$10))*INDEX(Лист3!$B$7:$AQ$96,MATCH(Лист2!$C7,Лист3!$A$7:$A$96,0),MATCH(Лист2!M$1&M$2,Лист3!$B$4:$AQ$4&Лист3!$B$5:$AQ$5,0)),0) -> 90 | N7: =IFERROR(SUMPRODUCT(Лист1!$B$3:$AF$10*(Лист1!$B$1:$AF$1=Лист2!$D7)*(Лист2!$C7=Лист1!$A$3:$A$10))*INDEX(Лист3!$B$7:$AQ$96,MATCH(Лист2!$C7,Лист3!$A$7:$A$96,0),MATCH(Лист2!N$1&N$2,Лист3!$B$4:$AQ$4&Лист3!$B$5:$AQ$5,0)),0) -> 50 | O7: =IFERROR(SUMPRODUCT(Лист1!$B$3:$AF$10*(Лист1!$B$1:$AF$1=Лист2!$D7)*(Лист2!$C7=Лист1!$A$3:$A$10))*INDEX(Лист3!$B$7:$AQ$96,MATCH(Лист2!$C7,Лист3!$A$7:$A$96,0),MATCH(Лист2!O$1&O$2,Лист3!$B$4:$AQ$4&Лист3!$B$5:$AQ$5,0)),0) -> 0 | P7: =IFERROR(SUMPRODUCT(Лист1!$B$3:$AF$10*(Лист1!$B$1:$AF$1=Лист2!$D7)*(Лист2!$C7=Лист1!$A$3:$A$10))*INDEX(Лист3!$B$7:$AQ$96,MATCH(Лист2!$C7,Лист3!$A$7:$A$96,0),MATCH(Лист2!P$1&P$2,Лист3!$B$4:$AQ$4&Лист3!$B$5:$AQ$5,0)),0) -> 89 | Q7: =IFERROR(SUMPRODUCT(Лист1!$B$3:$AF$10*(Лист1!$B$1:$AF$1=Лист2!$D7)*(Лист2!$C7=Лист1!$A$3:$A$10))*INDEX(Лист3!$B$7:$AQ$96,MATCH(Лист2!$C7,Лист3!$A$7:$A$96,0),MATCH(Лист2!Q$1&Q$2,Лист3!$B$4:$AQ$4&Лист3!$B$5:$AQ$5,0)),0) -> 0 | R7: =IFERROR(SUMPRODUCT(Лист1!$B$3:$AF$10*(Лист1!$B$1:$AF$1=Лист2!$D7)*(Лист2!$C7=Лист1!$A$3:$A$10))*INDEX(Лист3!$B$7:$AQ$96,MATCH(Лист2!$C7,Лист3!$A$7:$A$96,0),MATCH(Лист2!R$1&R$2,Лист3!$B$4:$AQ$4&Лист3!$B$5:$AQ$5,0)),0) -> 10 | S7: =IFERROR(SUMPRODUCT(Лист1!$B$3:$AF$10*(Лист1!$B$1:$AF$1=Лист2!$D7)*(Лист2!$C7=Лист1!$A$3:$A$10))*INDEX(Лист3!$B$7:$AQ$96,MATCH(Лист2!$C7,Лист3!$A$7:$A$96,0),MATCH(Лист2!S$1&S$2,Лист3!$B$4:$AQ$4&Лист3!$B$5:$AQ$5,0)),0) -> 0.6 | T7: =IFERROR(SUMPRODUCT(Лист1!$B$3:$AF$10*(Лист1!$B$1:$AF$1=Лист2!$D7)*(Лист2!$C7=Лист1!$A$3:$A$10))*INDEX(Лист3!$B$7:$AQ$96,MATCH(Лист2!$C7,Лист3!$A$7:$A$96,0),MATCH(Лист2!T$1&T$2,Лист3!$B$4:$AQ$4&Лист3!$B$5:$AQ$5,0)),0) -> 0 | U7: =IFERROR(SUMPRODUCT(Лист1!$B$3:$AF$10*(Лист1!$B$1:$AF$1=Лист2!$D7)*(Лист2!$C7=Лист1!$A$3:$A$10))*INDEX(Лист3!$B$7:$AQ$96,MATCH(Лист2!$C7,Лист3!$A$7:$A$96,0),MATCH(Лист2!U$1&U$2,Лист3!$B$4:$AQ$4&Лист3!$B$5:$AQ$5,0)),0) -> 0 | V7: =IFERROR(SUMPRODUCT(Лист1!$B$3:$AF$10*(Лист1!$B$1:$AF$1=Лист2!$D7)*(Лист2!$C7=Лист1!$A$3:$A$10))*INDEX(Лист3!$B$7:$AQ$96,MATCH(Лист2!$C7,Лист3!$A$7:$A$96,0),MATCH(Лист2!V$1&V$2,Лист3!$B$4:$AQ$4&Лист3!$B$5:$AQ$5,0)),0) -> 0 | W7: =IFERROR(SUMPRODUCT(Лист1!$B$3:$AF$10*(Лист1!$B$1:$AF$1=Лист2!$D7)*(Лист2!$C7=Лист1!$A$3:$A$10))*INDEX(Лист3!$B$7:$AQ$96,MATCH(Лист2!$C7,Лист3!$A$7:$A$96,0),MATCH(Лист2!W$1&W$2,Лист3!$B$4:$AQ$4&Лист3!$B$5:$AQ$5,0)),0) -> 0 | X7: =IFERROR(SUMPRODUCT(Лист1!$B$3:$AF$10*(Лист1!$B$1:$AF$1=Лист2!$D7)*(Лист2!$C7=Лист1!$A$3:$A$10))*INDEX(Лист3!$B$7:$AQ$96,MATCH(Лист2!$C7,Лист3!$A$7:$A$96,0),MATCH(Лист2!X$1&X$2,Лист3!$B$4:$AQ$4&Лист3!$B$5:$AQ$5,0)),0) -> 1.6 | Y7: =IFERROR(SUMPRODUCT(Лист1!$B$3:$AF$10*(Лист1!$B$1:$AF$1=Лист2!$D7)*(Лист2!$C7=Лист1!$A$3:$A$10))*INDEX(Лист3!$B$7:$AQ$96,MATCH(Лист2!$C7,Лист3!$A$7:$A$96,0),MATCH(Лист2!Y$1&Y$2,Лист3!$B$4:$AQ$4&Лист3!$B$5:$AQ$5,0)),0) -> 0 | Z7: =IFERROR(SUMPRODUCT(Лист1!$B$3:$AF$10*(Лист1!$B$1:$AF$1=Лист2!$D7)*(Лист2!$C7=Лист1!$A$3:$A$10))*INDEX(Лист3!$B$7:$AQ$96,MATCH(Лист2!$C7,Лист3!$A$7:$A$96,0),MATCH(Лист2!Z$1&Z$2,Лист3!$B$4:$AQ$4&Лист3!$B$5:$AQ$5,0)),0) -> 0.25 | AA7: =IFERROR(SUMPRODUCT(Лист1!$B$3:$AF$10*(Лист1!$B$1:$AF$1=Лист2!$D7)*(Лист2!$C7=Лист1!$A$3:$A$10))*INDEX(Лист3!$B$7:$AQ$96,MATCH(Лист2!$C7,Лист3!$A$7:$A$96,0),MATCH(Лист2!AA$1&AA$2,Лист3!$B$4:$AQ$4&Лист3!$B$5:$AQ$5,0)),0) -> 1.5
C8: =IFERROR(INDEX(Лист1!$A$3:$A$10,SMALL(IF(ISNUMBER(INDEX(Лист1!$B$3:$AF$10,,MATCH(Лист2!$D8,Лист1!$B$1:$AF$1,0))),ROW(Лист1!$A$3:$A$10)-2),COUNTIF($D$7:D8,D8))),"") -> Плита "Экстрол" 35-1180.580.50/8 (Ч) Г4, м3 | D8: =INT((ROW(A2)-1)/4+1) -> 1 | E8: =IFERROR(SUMPRODUCT(Лист1!$B$3:$AF$10*(Лист1!$B$1:$AF$1=Лист2!$D8)*(Лист2!$C8=Лист1!$A$3:$A$10))*INDEX(Лист3!$B$7:$AQ$96,MATCH(Лист2!$C8,Лист3!$A$7:$A$96,0),MATCH(Лист2!E$1&E$2,Лист3!$B$4:$AQ$4&Лист3!$B$5:$AQ$5,0)),0) -> 610 | F8: =IFERROR(SUMPRODUCT(Лист1!$B$3:$AF$10*(Лист1!$B$1:$AF$1=Лист2!$D8)*(Лист2!$C8=Лист1!$A$3:$A$10))*INDEX(Лист3!$B$7:$AQ$96,MATCH(Лист2!$C8,Лист3!$A$7:$A$96,0),MATCH(Лист2!F$1&F$2,Лист3!$B$4:$AQ$4&Лист3!$B$5:$AQ$5,0)),0) -> 2040 | G8: =IFERROR(SUMPRODUCT(Лист1!$B$3:$AF$10*(Лист1!$B$1:$AF$1=Лист2!$D8)*(Лист2!$C8=Лист1!$A$3:$A$10))*INDEX(Лист3!$B$7:$AQ$96,MATCH(Лист2!$C8,Лист3!$A$7:$A$96,0),MATCH(Лист2!G$1&G$2,Лист3!$B$4:$AQ$4&Лист3!$B$5:$AQ$5,0)),0) -> 15 | H8: =IFERROR(SUMPRODUCT(Лист1!$B$3:$AF$10*(Лист1!$B$1:$AF$1=Лист2!$D8)*(Лист2!$C8=Лист1!$A$3:$A$10))*INDEX(Лист3!$B$7:$AQ$96,MATCH(Лист2!$C8,Лист3!$A$7:$A$96,0),MATCH(Лист2!H$1&H$2,Лист3!$B$4:$AQ$4&Лист3!$B$5:$AQ$5,0)),0) -> 12 | I8: =IFERROR(SUMPRODUCT(Лист1!$B$3:$AF$10*(Лист1!$B$1:$AF$1=Лист2!$D8)*(Лист2!$C8=Лист1!$A$3:$A$10))*INDEX(Лист3!$B$7:$AQ$96,MATCH(Лист2!$C8,Лист3!$A$7:$A$96,0),MATCH(Лист2!I$1&I$2,Лист3!$B$4:$AQ$4&Лист3!$B$5:$AQ$5,0)),0) -> 0 | J8: =IFERROR(SUMPRODUCT(Лист1!$B$3:$AF$10*(Лист1!$B$1:$AF$1=Лист2!$D8)*(Лист2!$C8=Лист1!$A$3:$A$10))*INDEX(Лист3!$B$7:$AQ$96,MATCH(Лист2!$C8,Лист3!$A$7:$A$96,0),MATCH(Лист2!J$1&J$2,Лист3!$B$4:$AQ$4&Лист3!$B$5:$AQ$5,0)),0) -> 2 | K8: =IFERROR(SUMPRODUCT(Лист1!$B$3:$AF$10*(Лист1!$B$1:$AF$1=Лист2!$D8)*(Лист2!$C8=Лист1!$A$3:$A$10))*INDEX(Лист3!$B$7:$AQ$96,MATCH(Лист2!$C8,Лист3!$A$7:$A$96,0),MATCH(Лист2!K$1&K$2,Лист3!$B$4:$AQ$4&Лист3!$B$5:$AQ$5,0)),0) -> 0 | L8: =IFERROR(SUMPRODUCT(Лист1!$B$3:$AF$10*(Лист1!$B$1:$AF$1=Лист2!$D8)*(Лист2!$C8=Лист1!$A$3:$A$10))*INDEX(Лист3!$B$7:$AQ$96,MATCH(Лист2!$C8,Лист3!$A$7:$A$96,0),MATCH(Лист2!L$1&L$2,Лист3!$B$4:$AQ$4&Лист3!$B$5:$AQ$5,0)),0) -> 3 | M8: =IFERROR(SUMPRODUCT(Лист1!$B$3:$AF$10*(Лист1!$B$1:$AF$1=Лист2!$D8)*(Лист2!$C8=Лист1!$A$3:$A$10))*INDEX(Лист3!$B$7:$AQ$96,MATCH(Лист2!$C8,Лист3!$A$7:$A$96,0),MATCH(Лист2!M$1&M$2,Лист3!$B$4:$AQ$4&Лист3!$B$5:$AQ$5,0)),0) -> 120 | N8: =IFERROR(SUMPRODUCT(Лист1!$B$3:$AF$10*(Лист1!$B$1:$AF$1=Лист2!$D8)*(Лист2!$C8=Лист1!$A$3:$A$10))*INDEX(Лист3!$B$7:$AQ$96,MATCH(Лист2!$C8,Лист3!$A$7:$A$96,0),MATCH(Лист2!N$1&N$2,Лист3!$B$4:$AQ$4&Лист3!$B$5:$AQ$5,0)),0) -> 60 | O8: =IFERROR(SUMPRODUCT(Лист1!$B$3:$AF$10*(Лист1!$B$1:$AF$1=Лист2!$D8)*(Лист2!$C8=Лист1!$A$3:$A$10))*INDEX(Лист3!$B$7:$AQ$96,MATCH(Лист2!$C8,Лист3!$A$7:$A$96,0),MATCH(Лист2!O$1&O$2,Лист3!$B$4:$AQ$4&Лист3!$B$5:$AQ$5,0)),0) -> 0 | P8: =IFERROR(SUMPRODUCT(Лист1!$B$3:$AF$10*(Лист1!$B$1:$AF$1=Лист2!$D8)*(Лист2!$C8=Лист1!$A$3:$A$10))*INDEX(Лист3!$B$7:$AQ$96,MATCH(Лист2!$C8,Лист3!$A$7:$A$96,0),MATCH(Лист2!P$1&P$2,Лист3!$B$4:$AQ$4&Лист3!$B$5:$AQ$5,0)),0) -> 80 | Q8: =IFERROR(SUMPRODUCT(Лист1!$B$3:$AF$10*(Лист1!$B$1:$AF$1=Лист2!$D8)*(Лист2!$C8=Лист1!$A$3:$A$10))*INDEX(Лист3!$B$7:$AQ$96,MATCH(Лист2!$C8,Лист3!$A$7:$A$96,0),MATCH(Лист2!Q$1&Q$2,Лист3!$B$4:$AQ$4&Лист3!$B$5:$AQ$5,0)),0) -> 0 | R8: =IFERROR(SUMPRODUCT(Лист1!$B$3:$AF$10*(Лист1!$B$1:$AF$1=Лист2!$D8)*(Лист2!$C8=Лист1!$A$3:$A$10))*INDEX(Лист3!$B$7:$AQ$96,MATCH(Лист2!$C8,Лист3!$A$7:$A$96,0),MATCH(Лист2!R$1&R$2,Лист3!$B$4:$AQ$4&Лист3!$B$5:$AQ$5,0)),0) -> 10 | S8: =IFERROR(SUMPRODUCT(Лист1!$B$3:$AF$10*(Лист1!$B$1:$AF$1=Лист2!$D8)*(Лист2!$C8=Лист1!$A$3:$A$10))*INDEX(Лист3!$B$7:$AQ$96,MATCH(Лист2!$C8,Лист3!$A$7:$A$96,0),MATCH(Лист2!S$1&S$2,Лист3!$B$4:$AQ$4&Лист3!$B$5:$AQ$5,0)),0) -> 0.6 | T8: =IFERROR(SUMPRODUCT(Лист1!$B$3:$AF$10*(Лист1!$B$1:$AF$1=Лист2!$D8)*(Лист2!$C8=Лист1!$A$3:$A$10))*INDEX(Лист3!$B$7:$AQ$96,MATCH(Лист2!$C8,Лист3!$A$7:$A$96,0),MATCH(Лист2!T$1&T$2,Лист3!$B$4:$AQ$4&Лист3!$B$5:$AQ$5,0)),0) -> 0 | U8: =IFERROR(SUMPRODUCT(Лист1!$B$3:$AF$10*(Лист1!$B$1:$AF$1=Лист2!$D8)*(Лист2!$C8=Лист1!$A$3:$A$10))*INDEX(Лист3!$B$7:$AQ$96,MATCH(Лист2!$C8,Лист3!$A$7:$A$96,0),MATCH(Лист2!U$1&U$2,Лист3!$B$4:$AQ$4&Лист3!$B$5:$AQ$5,0)),0) -> 0 | V8: =IFERROR(SUMPRODUCT(Лист1!$B$3:$AF$10*(Лист1!$B$1:$AF$1=Лист2!$D8)*(Лист2!$C8=Лист1!$A$3:$A$10))*INDEX(Лист3!$B$7:$AQ$96,MATCH(Лист2!$C8,Лист3!$A$7:$A$96,0),MATCH(Лист2!V$1&V$2,Лист3!$B$4:$AQ$4&Лист3!$B$5:$AQ$5,0)),0) -> 0 | W8: =IFERROR(SUMPRODUCT(Лист1!$B$3:$AF$10*(Лист1!$B$1:$AF$1=Лист2!$D8)*(Лист2!$C8=Лист1!$A$3:$A$10))*INDEX(Лист3!$B$7:$AQ$96,MATCH(Лист2!$C8,Лист3!$A$7:$A$96,0),MATCH(Лист2!W$1&W$2,Лист3!$B$4:$AQ$4&Лист3!$B$5:$AQ$5,0)),0) -> 0 | X8: =IFERROR(SUMPRODUCT(Лист1!$B$3:$AF$10*(Лист1!$B$1:$AF$1=Лист2!$D8)*(Лист2!$C8=Лист1!$A$3:$A$10))*INDEX(Лист3!$B$7:$AQ$96,MATCH(Лист2!$C8,Лист3!$A$7:$A$96,0),MATCH(Лист2!X$1&X$2,Лист3!$B$4:$AQ$4&Лист3!$B$5:$AQ$5,0)),0) -> 1.6 | Y8: =IFERROR(SUMPRODUCT(Лист1!$B$3:$AF$10*(Лист1!$B$1:$AF$1=Лист2!$D8)*(Лист2!$C8=Лист1!$A$3:$A$10))*INDEX(Лист3!$B$7:$AQ$96,MATCH(Лист2!$C8,Лист3!$A$7:$A$96,0),MATCH(Лист2!Y$1&Y$2,Лист3!$B$4:$AQ$4&Лист3!$B$5:$AQ$5,0)),0) -> 0 | Z8: =IFERROR(SUMPRODUCT(Лист1!$B$3:$AF$10*(Лист1!$B$1:$AF$1=Лист2!$D8)*(Лист2!$C8=Лист1!$A$3:$A$10))*INDEX(Лист3!$B$7:$AQ$96,MATCH(Лист2!$C8,Лист3!$A$7:$A$96,0),MATCH(Лист2!Z$1&Z$2,Лист3!$B$4:$AQ$4&Лист3!$B$5:$AQ$5,0)),0) -> 0.25 | AA8: =IFERROR(SUMPRODUCT(Лист1!$B$3:$AF$10*(Лист1!$B$1:$AF$1=Лист2!$D8)*(Лист2!$C8=Лист1!$A$3:$A$10))*INDEX(Лист3!$B$7:$AQ$96,MATCH(Лист2!$C8,Лист3!$A$7:$A$96,0),MATCH(Лист2!AA$1&AA$2,Лист3!$B$4:$AQ$4&Лист3!$B$5:$AQ$5,0)),0) -> 4.7
C9: =IFERROR(INDEX(Лист1!$A$3:$A$10,SMALL(IF(ISNUMBER(INDEX(Лист1!$B$3:$AF$10,,MATCH(Лист2!$D9,Лист1!$B$1:$AF$1,0))),ROW(Лист1!$A$3:$A$10)-2),COUNTIF($D$7:D9,D9))),"") ->  | D9: 1 | E9: =IFERROR(SUMPRODUCT(Лист1!$B$3:$AF$10*(Лист1!$B$1:$AF$1=Лист2!$D9)*(Лист2!$C9=Лист1!$A$3:$A$10))*INDEX(Лист3!$B$7:$AQ$96,MATCH(Лист2!$C9,Лист3!$A$7:$A$96,0),MATCH(Лист2!E$1&E$2,Лист3!$B$4:$AQ$4&Лист3!$B$5:$AQ$5,0)),0) -> 0 | F9: =IFERROR(SUMPRODUCT(Лист1!$B$3:$AF$10*(Лист1!$B$1:$AF$1=Лист2!$D9)*(Лист2!$C9=Лист1!$A$3:$A$10))*INDEX(Лист3!$B$7:$AQ$96,MATCH(Лист2!$C9,Лист3!$A$7:$A$96,0),MATCH(Лист2!F$1&F$2,Лист3!$B$4:$AQ$4&Лист3!$B$5:$AQ$5,0)),0) -> 0 | G9: =IFERROR(SUMPRODUCT(Лист1!$B$3:$AF$10*(Лист1!$B$1:$AF$1=Лист2!$D9)*(Лист2!$C9=Лист1!$A$3:$A$10))*INDEX(Лист3!$B$7:$AQ$96,MATCH(Лист2!$C9,Лист3!$A$7:$A$96,0),MATCH(Лист2!G$1&G$2,Лист3!$B$4:$AQ$4&Лист3!$B$5:$AQ$5,0)),0) -> 0 | H9: =IFERROR(SUMPRODUCT(Лист1!$B$3:$AF$10*(Лист1!$B$1:$AF$1=Лист2!$D9)*(Лист2!$C9=Лист1!$A$3:$A$10))*INDEX(Лист3!$B$7:$AQ$96,MATCH(Лист2!$C9,Лист3!$A$7:$A$96,0),MATCH(Лист2!H$1&H$2,Лист3!$B$4:$AQ$4&Лист3!$B$5:$AQ$5,0)),0) -> 0 | I9: =IFERROR(SUMPRODUCT(Лист1!$B$3:$AF$10*(Лист1!$B$1:$AF$1=Лист2!$D9)*(Лист2!$C9=Лист1!$A$3:$A$10))*INDEX(Лист3!$B$7:$AQ$96,MATCH(Лист2!$C9,Лист3!$A$7:$A$96,0),MATCH(Лист2!I$1&I$2,Лист3!$B$4:$AQ$4&Лист3!$B$5:$AQ$5,0)),0) -> 0 | J9: =IFERROR(SUMPRODUCT(Лист1!$B$3:$AF$10*(Лист1!$B$1:$AF$1=Лист2!$D9)*(Лист2!$C9=Лист1!$A$3:$A$10))*INDEX(Лист3!$B$7:$AQ$96,MATCH(Лист2!$C9,Лист3!$A$7:$A$96,0),MATCH(Лист2!J$1&J$2,Лист3!$B$4:$AQ$4&Лист3!$B$5:$AQ$5,0)),0) -> 0 | K9: =IFERROR(SUMPRODUCT(Лист1!$B$3:$AF$10*(Лист1!$B$1:$AF$1=Лист2!$D9)*(Лист2!$C9=Лист1!$A$3:$A$10))*INDEX(Лист3!$B$7:$AQ$96,MATCH(Лист2!$C9,Лист3!$A$7:$A$96,0),MATCH(Лист2!K$1&K$2,Лист3!$B$4:$AQ$4&Лист3!$B$5:$AQ$5,0)),0) -> 0 | L9: =IFERROR(SUMPRODUCT(Лист1!$B$3:$AF$10*(Лист1!$B$1:$AF$1=Лист2!$D9)*(Лист2!$C9=Лист1!$A$3:$A$10))*INDEX(Лист3!$B$7:$AQ$96,MATCH(Лист2!$C9,Лист3!$A$7:$A$96,0),MATCH(Лист2!L$1&L$2,Лист3!$B$4:$AQ$4&Лист3!$B$5:$AQ$5,0)),0) -> 0 | M9: =IFERROR(SUMPRODUCT(Лист1!$B$3:$AF$10*(Лист1!$B$1:$AF$1=Лист2!$D9)*(Лист2!$C9=Лист1!$A$3:$A$10))*INDEX(Лист3!$B$7:$AQ$96,MATCH(Лист2!$C9,Лист3!$A$7:$A$96,0),MATCH(Лист2!M$1&M$2,Лист3!$B$4:$AQ$4&Лист3!$B$5:$AQ$5,0)),0) -> 0 | N9: =IFERROR(SUMPRODUCT(Лист1!$B$3:$AF$10*(Лист1!$B$1:$AF$1=Лист2!$D9)*(Лист2!$C9=Лист1!$A$3:$A$10))*INDEX(Лист3!$B$7:$AQ$96,MATCH(Лист2!$C9,Лист3!$A$7:$A$96,0),MATCH(Лист2!N$1&N$2,Лист3!$B$4:$AQ$4&Лист3!$B$5:$AQ$5,0)),0) -> 0 | O9: =IFERROR(SUMPRODUCT(Лист1!$B$3:$AF$10*(Лист1!$B$1:$AF$1=Лист2!$D9)*(Лист2!$C9=Лист1!$A$3:$A$10))*INDEX(Лист3!$B$7:$AQ$96,MATCH(Лист2!$C9,Лист3!$A$7:$A$96,0),MATCH(Лист2!O$1&O$2,Лист3!$B$4:$AQ$4&Лист3!$B$5:$AQ$5,0)),0) -> 0 | P9: =IFERROR(SUMPRODUCT(Лист1!$B$3:$AF$10*(Лист1!$B$1:$AF$1=Лист2!$D9)*(Лист2!$C9=Лист1!$A$3:$A$10))*INDEX(Лист3!$B$7:$AQ$96,MATCH(Лист2!$C9,Лист3!$A$7:$A$96,0),MATCH(Лист2!P$1&P$2,Лист3!$B$4:$AQ$4&Лист3!$B$5:$AQ$5,0)),0) -> 0 | Q9: =IFERROR(SUMPRODUCT(Лист1!$B$3:$AF$10*(Лист1!$B$1:$AF$1=Лист2!$D9)*(Лист2!$C9=Лист1!$A$3:$A$10))*INDEX(Лист3!$B$7:$AQ$96,MATCH(Лист2!$C9,Лист3!$A$7:$A$96,0),MATCH(Лист2!Q$1&Q$2,Лист3!$B$4:$AQ$4&Лист3!$B$5:$AQ$5,0)),0) -> 0 | R9: =IFERROR(SUMPRODUCT(Лист1!$B$3:$AF$10*(Лист1!$B$1:$AF$1=Лист2!$D9)*(Лист2!$C9=Лист1!$A$3:$A$10))*INDEX(Лист3!$B$7:$AQ$96,MATCH(Лист2!$C9,Лист3!$A$7:$A$96,0),MATCH(Лист2!R$1&R$2,Лист3!$B$4:$AQ$4&Лист3!$B$5:$AQ$5,0)),0) -> 0 | S9: =IFERROR(SUMPRODUCT(Лист1!$B$3:$AF$10*(Лист1!$B$1:$AF$1=Лист2!$D9)*(Лист2!$C9=Лист1!$A$3:$A$10))*INDEX(Лист3!$B$7:$AQ$96,MATCH(Лист2!$C9,Лист3!$A$7:$A$96,0),MATCH(Лист2!S$1&S$2,Лист3!$B$4:$AQ$4&Лист3!$B$5:$AQ$5,0)),0) -> 0 | T9: =IFERROR(SUMPRODUCT(Лист1!$B$3:$AF$10*(Лист1!$B$1:$AF$1=Лист2!$D9)*(Лист2!$C9=Лист1!$A$3:$A$10))*INDEX(Лист3!$B$7:$AQ$96,MATCH(Лист2!$C9,Лист3!$A$7:$A$96,0),MATCH(Лист2!T$1&T$2,Лист3!$B$4:$AQ$4&Лист3!$B$5:$AQ$5,0)),0) -> 0 | U9: =IFERROR(SUMPRODUCT(Лист1!$B$3:$AF$10*(Лист1!$B$1:$AF$1=Лист2!$D9)*(Лист2!$C9=Лист1!$A$3:$A$10))*INDEX(Лист3!$B$7:$AQ$96,MATCH(Лист2!$C9,Лист3!$A$7:$A$96,0),MATCH(Лист2!U$1&U$2,Лист3!$B$4:$AQ$4&Лист3!$B$5:$AQ$5,0)),0) -> 0 | V9: =IFERROR(SUMPRODUCT(Лист1!$B$3:$AF$10*(Лист1!$B$1:$AF$1=Лист2!$D9)*(Лист2!$C9=Лист1!$A$3:$A$10))*INDEX(Лист3!$B$7:$AQ$96,MATCH(Лист2!$C9,Лист3!$A$7:$A$96,0),MATCH(Лист2!V$1&V$2,Лист3!$B$4:$AQ$4&Лист3!$B$5:$AQ$5,0)),0) -> 0 | W9: =IFERROR(SUMPRODUCT(Лист1!$B$3:$AF$10*(Лист1!$B$1:$AF$1=Лист2!$D9)*(Лист2!$C9=Лист1!$A$3:$A$10))*INDEX(Лист3!$B$7:$AQ$96,MATCH(Лист2!$C9,Лист3!$A$7:$A$96,0),MATCH(Лист2!W$1&W$2,Лист3!$B$4:$AQ$4&Лист3!$B$5:$AQ$5,0)),0) -> 0 | X9: =IFERROR(SUMPRODUCT(Лист1!$B$3:$AF$10*(Лист1!$B$1:$AF$1=Лист2!$D9)*(Лист2!$C9=Лист1!$A$3:$A$10))*INDEX(Лист3!$B$7:$AQ$96,MATCH(Лист2!$C9,Лист3!$A$7:$A$96,0),MATCH(Лист2!X$1&X$2,Лист3!$B$4:$AQ$4&Лист3!$B$5:$AQ$5,0)),0) -> 0 | Y9: =IFERROR(SUMPRODUCT(Лист1!$B$3:$AF$10*(Лист1!$B$1:$AF$1=Лист2!$D9)*(Лист2!$C9=Лист1!$A$3:$A$10))*INDEX(Лист3!$B$7:$AQ$96,MATCH(Лист2!$C9,Лист3!$A$7:$A$96,0),MATCH(Лист2!Y$1&Y$2,Лист3!$B$4:$AQ$4&Лист3!$B$5:$AQ$5,0)),0) -> 0 | Z9: =IFERROR(SUMPRODUCT(Лист1!$B$3:$AF$10*(Лист1!$B$1:$AF$1=Лист2!$D9)*(Лист2!$C9=Лист1!$A$3:$A$10))*INDEX(Лист3!$B$7:$AQ$96,MATCH(Лист2!$C9,Лист3!$A$7:$A$96,0),MATCH(Лист2!Z$1&Z$2,Лист3!$B$4:$AQ$4&Лист3!$B$5:$AQ$5,0)),0) -> 0 | AA9: =IFERROR(SUMPRODUCT(Лист1!$B$3:$AF$10*(Лист1!$B$1:$AF$1=Лист2!$D9)*(Лист2!$C9=Лист1!$A$3:$A$10))*INDEX(Лист3!$B$7:$AQ$96,MATCH(Лист2!$C9,Лист3!$A$7:$A$96,0),MATCH(Лист2!AA$1&AA$2,Лист3!$B$4:$AQ$4&Лист3!$B$5:$AQ$5,0)),0) -> 0
C10: =IFERROR(INDEX(Лист1!$A$3:$A$10,SMALL(IF(ISNUMBER(INDEX(Лист1!$B$3:$AF$10,,MATCH(Лист2!$D10,Лист1!$B$1:$AF$1,0))),ROW(Лист1!$A$3:$A$10)-2),COUNTIF($D$7:D10,D10))),"") ->  | D10: 1 | E10: =IFERROR(SUMPRODUCT(Лист1!$B$3:$AF$10*(Лист1!$B$1:$AF$1=Лист2!$D10)*(Лист2!$C10=Лист1!$A$3:$A$10))*INDEX(Лист3!$B$7:$AQ$96,MATCH(Лист2!$C10,Лист3!$A$7:$A$96,0),MATCH(Лист2!E$1&E$2,Лист3!$B$4:$AQ$4&Лист3!$B$5:$AQ$5,0)),0) -> 0 | F10: =IFERROR(SUMPRODUCT(Лист1!$B$3:$AF$10*(Лист1!$B$1:$AF$1=Лист2!$D10)*(Лист2!$C10=Лист1!$A$3:$A$10))*INDEX(Лист3!$B$7:$AQ$96,MATCH(Лист2!$C10,Лист3!$A$7:$A$96,0),MATCH(Лист2!F$1&F$2,Лист3!$B$4:$AQ$4&Лист3!$B$5:$AQ$5,0)),0) -> 0 | G10: =IFERROR(SUMPRODUCT(Лист1!$B$3:$AF$10*(Лист1!$B$1:$AF$1=Лист2!$D10)*(Лист2!$C10=Лист1!$A$3:$A$10))*INDEX(Лист3!$B$7:$AQ$96,MATCH(Лист2!$C10,Лист3!$A$7:$A$96,0),MATCH(Лист2!G$1&G$2,Лист3!$B$4:$AQ$4&Лист3!$B$5:$AQ$5,0)),0) -> 0 | H10: =IFERROR(SUMPRODUCT(Лист1!$B$3:$AF$10*(Лист1!$B$1:$AF$1=Лист2!$D10)*(Лист2!$C10=Лист1!$A$3:$A$10))*INDEX(Лист3!$B$7:$AQ$96,MATCH(Лист2!$C10,Лист3!$A$7:$A$96,0),MATCH(Лист2!H$1&H$2,Лист3!$B$4:$AQ$4&Лист3!$B$5:$AQ$5,0)),0) -> 0 | I10: =IFERROR(SUMPRODUCT(Лист1!$B$3:$AF$10*(Лист1!$B$1:$AF$1=Лист2!$D10)*(Лист2!$C10=Лист1!$A$3:$A$10))*INDEX(Лист3!$B$7:$AQ$96,MATCH(Лист2!$C10,Лист3!$A$7:$A$96,0),MATCH(Лист2!I$1&I$2,Лист3!$B$4:$AQ$4&Лист3!$B$5:$AQ$5,0)),0) -> 0 | J10: =IFERROR(SUMPRODUCT(Лист1!$B$3:$AF$10*(Лист1!$B$1:$AF$1=Лист2!$D10)*(Лист2!$C10=Лист1!$A$3:$A$10))*INDEX(Лист3!$B$7:$AQ$96,MATCH(Лист2!$C10,Лист3!$A$7:$A$96,0),MATCH(Лист2!J$1&J$2,Лист3!$B$4:$AQ$4&Лист3!$B$5:$AQ$5,0)),0) -> 0 | K10: =IFERROR(SUMPRODUCT(Лист1!$B$3:$AF$10*(Лист1!$B$1:$AF$1=Лист2!$D10)*(Лист2!$C10=Лист1!$A$3:$A$10))*INDEX(Лист3!$B$7:$AQ$96,MATCH(Лист2!$C10,Лист3!$A$7:$A$96,0),MATCH(Лист2!K$1&K$2,Лист3!$B$4:$AQ$4&Лист3!$B$5:$AQ$5,0)),0) -> 0 | L10: =IFERROR(SUMPRODUCT(Лист1!$B$3:$AF$10*(Лист1!$B$1:$AF$1=Лист2!$D10)*(Лист2!$C10=Лист1!$A$3:$A$10))*INDEX(Лист3!$B$7:$AQ$96,MATCH(Лист2!$C10,Лист3!$A$7:$A$96,0),MATCH(Лист2!L$1&L$2,Лист3!$B$4:$AQ$4&Лист3!$B$5:$AQ$5,0)),0) -> 0 | M10: =IFERROR(SUMPRODUCT(Лист1!$B$3:$AF$10*(Лист1!$B$1:$AF$1=Лист2!$D10)*(Лист2!$C10=Лист1!$A$3:$A$10))*INDEX(Лист3!$B$7:$AQ$96,MATCH(Лист2!$C10,Лист3!$A$7:$A$96,0),MATCH(Лист2!M$1&M$2,Лист3!$B$4:$AQ$4&Лист3!$B$5:$AQ$5,0)),0) -> 0 | N10: =IFERROR(SUMPRODUCT(Лист1!$B$3:$AF$10*(Лист1!$B$1:$AF$1=Лист2!$D10)*(Лист2!$C10=Лист1!$A$3:$A$10))*INDEX(Лист3!$B$7:$AQ$96,MATCH(Лист2!$C10,Лист3!$A$7:$A$96,0),MATCH(Лист2!N$1&N$2,Лист3!$B$4:$AQ$4&Лист3!$B$5:$AQ$5,0)),0) -> 0 | O10: =IFERROR(SUMPRODUCT(Лист1!$B$3:$AF$10*(Лист1!$B$1:$AF$1=Лист2!$D10)*(Лист2!$C10=Лист1!$A$3:$A$10))*INDEX(Лист3!$B$7:$AQ$96,MATCH(Лист2!$C10,Лист3!$A$7:$A$96,0),MATCH(Лист2!O$1&O$2,Лист3!$B$4:$AQ$4&Лист3!$B$5:$AQ$5,0)),0) -> 0 | P10: =IFERROR(SUMPRODUCT(Лист1!$B$3:$AF$10*(Лист1!$B$1:$AF$1=Лист2!$D10)*(Лист2!$C10=Лист1!$A$3:$A$10))*INDEX(Лист3!$B$7:$AQ$96,MATCH(Лист2!$C10,Лист3!$A$7:$A$96,0),MATCH(Лист2!P$1&P$2,Лист3!$B$4:$AQ$4&Лист3!$B$5:$AQ$5,0)),0) -> 0 | Q10: =IFERROR(SUMPRODUCT(Лист1!$B$3:$AF$10*(Лист1!$B$1:$AF$1=Лист2!$D10)*(Лист2!$C10=Лист1!$A$3:$A$10))*INDEX(Лист3!$B$7:$AQ$96,MATCH(Лист2!$C10,Лист3!$A$7:$A$96,0),MATCH(Лист2!Q$1&Q$2,Лист3!$B$4:$AQ$4&Лист3!$B$5:$AQ$5,0)),0) -> 0 | R10: =IFERROR(SUMPRODUCT(Лист1!$B$3:$AF$10*(Лист1!$B$1:$AF$1=Лист2!$D10)*(Лист2!$C10=Лист1!$A$3:$A$10))*INDEX(Лист3!$B$7:$AQ$96,MATCH(Лист2!$C10,Лист3!$A$7:$A$96,0),MATCH(Лист2!R$1&R$2,Лист3!$B$4:$AQ$4&Лист3!$B$5:$AQ$5,0)),0) -> 0 | S10: =IFERROR(SUMPRODUCT(Лист1!$B$3:$AF$10*(Лист1!$B$1:$AF$1=Лист2!$D10)*(Лист2!$C10=Лист1!$A$3:$A$10))*INDEX(Лист3!$B$7:$AQ$96,MATCH(Лист2!$C10,Лист3!$A$7:$A$96,0),MATCH(Лист2!S$1&S$2,Лист3!$B$4:$AQ$4&Лист3!$B$5:$AQ$5,0)),0) -> 0 | T10: =IFERROR(SUMPRODUCT(Лист1!$B$3:$AF$10*(Лист1!$B$1:$AF$1=Лист2!$D10)*(Лист2!$C10=Лист1!$A$3:$A$10))*INDEX(Лист3!$B$7:$AQ$96,MATCH(Лист2!$C10,Лист3!$A$7:$A$96,0),MATCH(Лист2!T$1&T$2,Лист3!$B$4:$AQ$4&Лист3!$B$5:$AQ$5,0)),0) -> 0 | U10: =IFERROR(SUMPRODUCT(Лист1!$B$3:$AF$10*(Лист1!$B$1:$AF$1=Лист2!$D10)*(Лист2!$C10=Лист1!$A$3:$A$10))*INDEX(Лист3!$B$7:$AQ$96,MATCH(Лист2!$C10,Лист3!$A$7:$A$96,0),MATCH(Лист2!U$1&U$2,Лист3!$B$4:$AQ$4&Лист3!$B$5:$AQ$5,0)),0) -> 0 | V10: =IFERROR(SUMPRODUCT(Лист1!$B$3:$AF$10*(Лист1!$B$1:$AF$1=Лист2!$D10)*(Лист2!$C10=Лист1!$A$3:$A$10))*INDEX(Лист3!$B$7:$AQ$96,MATCH(Лист2!$C10,Лист3!$A$7:$A$96,0),MATCH(Лист2!V$1&V$2,Лист3!$B$4:$AQ$4&Лист3!$B$5:$AQ$5,0)),0) -> 0 | W10: =IFERROR(SUMPRODUCT(Лист1!$B$3:$AF$10*(Лист1!$B$1:$AF$1=Лист2!$D10)*(Лист2!$C10=Лист1!$A$3:$A$10))*INDEX(Лист3!$B$7:$AQ$96,MATCH(Лист2!$C10,Лист3!$A$7:$A$96,0),MATCH(Лист2!W$1&W$2,Лист3!$B$4:$AQ$4&Лист3!$B$5:$AQ$5,0)),0) -> 0 | X10: =IFERROR(SUMPRODUCT(Лист1!$B$3:$AF$10*(Лист1!$B$1:$AF$1=Лист2!$D10)*(Лист2!$C10=Лист1!$A$3:$A$10))*INDEX(Лист3!$B$7:$AQ$96,MATCH(Лист2!$C10,Лист3!$A$7:$A$96,0),MATCH(Лист2!X$1&X$2,Лист3!$B$4:$AQ$4&Лист3!$B$5:$AQ$5,0)),0) -> 0 | Y10: =IFERROR(SUMPRODUCT(Лист1!$B$3:$AF$10*(Лист1!$B$1:$AF$1=Лист2!$D10)*(Лист2!$C10=Лист1!$A$3:$A$10))*INDEX(Лист3!$B$7:$AQ$96,MATCH(Лист2!$C10,Лист3!$A$7:$A$96,0),MATCH(Лист2!Y$1&Y$2,Лист3!$B$4:$AQ$4&Лист3!$B$5:$AQ$5,0)),0) -> 0 | Z10: =IFERROR(SUMPRODUCT(Лист1!$B$3:$AF$10*(Лист1!$B$1:$AF$1=Лист2!$D10)*(Лист2!$C10=Лист1!$A$3:$A$10))*INDEX(Лист3!$B$7:$AQ$96,MATCH(Лист2!$C10,Лист3!$A$7:$A$96,0),MATCH(Лист2!Z$1&Z$2,Лист3!$B$4:$AQ$4&Лист3!$B$5:$AQ$5,0)),0) -> 0 | AA10: =IFERROR(SUMPRODUCT(Лист1!$B$3:$AF$10*(Лист1!$B$1:$AF$1=Лист2!$D10)*(Лист2!$C10=Лист1!$A$3:$A$10))*INDEX(Лист3!$B$7:$AQ$96,MATCH(Лист2!$C10,Лист3!$A$7:$A$96,0),MATCH(Лист2!AA$1&AA$2,Лист3!$B$4:$AQ$4&Лист3!$B$5:$AQ$5,0)),0) -> 0
C11: =IFERROR(INDEX(Лист1!$A$3:$A$10,SMALL(IF(ISNUMBER(INDEX(Лист1!$B$3:$AF$10,,MATCH(Лист2!$D11,Лист1!$B$1:$AF$1,0))),ROW(Лист1!$A$3:$A$10)-2),COUNTIF($D$7:D11,D11))),"") -> Плита "Экстрол" 45-1180.580.50/8 (Ч), м3 | D11: 2 | E11: =IFERROR(SUMPRODUCT(Лист1!$B$3:$AF$10*(Лист1!$B$1:$AF$1=Лист2!$D11)*(Лист2!$C11=Лист1!$A$3:$A$10))*INDEX(Лист3!$B$7:$AQ$96,MATCH(Лист2!$C11,Лист3!$A$7:$A$96,0),MATCH(Лист2!E$1&E$2,Лист3!$B$4:$AQ$4&Лист3!$B$5:$AQ$5,0)),0) -> 2040 | F11: =IFERROR(SUMPRODUCT(Лист1!$B$3:$AF$10*(Лист1!$B$1:$AF$1=Лист2!$D11)*(Лист2!$C11=Лист1!$A$3:$A$10))*INDEX(Лист3!$B$7:$AQ$96,MATCH(Лист2!$C11,Лист3!$A$7:$A$96,0),MATCH(Лист2!F$1&F$2,Лист3!$B$4:$AQ$4&Лист3!$B$5:$AQ$5,0)),0) -> 4880 | G11: =IFERROR(SUMPRODUCT(Лист1!$B$3:$AF$10*(Лист1!$B$1:$AF$1=Лист2!$D11)*(Лист2!$C11=Лист1!$A$3:$A$10))*INDEX(Лист3!$B$7:$AQ$96,MATCH(Лист2!$C11,Лист3!$A$7:$A$96,0),MATCH(Лист2!G$1&G$2,Лист3!$B$4:$AQ$4&Лист3!$B$5:$AQ$5,0)),0) -> 0 | H11: =IFERROR(SUMPRODUCT(Лист1!$B$3:$AF$10*(Лист1!$B$1:$AF$1=Лист2!$D11)*(Лист2!$C11=Лист1!$A$3:$A$10))*INDEX(Лист3!$B$7:$AQ$96,MATCH(Лист2!$C11,Лист3!$A$7:$A$96,0),MATCH(Лист2!H$1&H$2,Лист3!$B$4:$AQ$4&Лист3!$B$5:$AQ$5,0)),0) -> 52 | I11: =IFERROR(SUMPRODUCT(Лист1!$B$3:$AF$10*(Лист1!$B$1:$AF$1=Лист2!$D11)*(Лист2!$C11=Лист1!$A$3:$A$10))*INDEX(Лист3!$B$7:$AQ$96,MATCH(Лист2!$C11,Лист3!$A$7:$A$96,0),MATCH(Лист2!I$1&I$2,Лист3!$B$4:$AQ$4&Лист3!$B$5:$AQ$5,0)),0) -> 0 | J11: =IFERROR(SUMPRODUCT(Лист1!$B$3:$AF$10*(Лист1!$B$1:$AF$1=Лист2!$D11)*(Лист2!$C11=Лист1!$A$3:$A$10))*INDEX(Лист3!$B$7:$AQ$96,MATCH(Лист2!$C11,Лист3!$A$7:$A$96,0),MATCH(Лист2!J$1&J$2,Лист3!$B$4:$AQ$4&Лист3!$B$5:$AQ$5,0)),0) -> 4 | K11: =IFERROR(SUMPRODUCT(Лист1!$B$3:$AF$10*(Лист1!$B$1:$AF$1=Лист2!$D11)*(Лист2!$C11=Лист1!$A$3:$A$10))*INDEX(Лист3!$B$7:$AQ$96,MATCH(Лист2!$C11,Лист3!$A$7:$A$96,0),MATCH(Лист2!K$1&K$2,Лист3!$B$4:$AQ$4&Лист3!$B$5:$AQ$5,0)),0) -> 0 | L11: =IFERROR(SUMPRODUCT(Лист1!$B$3:$AF$10*(Лист1!$B$1:$AF$1=Лист2!$D11)*(Лист2!$C11=Лист1!$A$3:$A$10))*INDEX(Лист3!$B$7:$AQ$96,MATCH(Лист2!$C11,Лист3!$A$7:$A$96,0),MATCH(Лист2!L$1&L$2,Лист3!$B$4:$AQ$4&Лист3!$B$5:$AQ$5,0)),0) -> 6 | M11: =IFERROR(SUMPRODUCT(Лист1!$B$3:$AF$10*(Лист1!$B$1:$AF$1=Лист2!$D11)*(Лист2!$C11=Лист1!$A$3:$A$10))*INDEX(Лист3!$B$7:$AQ$96,MATCH(Лист2!$C11,Лист3!$A$7:$A$96,0),MATCH(Лист2!M$1&M$2,Лист3!$B$4:$AQ$4&Лист3!$B$5:$AQ$5,0)),0) -> 320 | N11: =IFERROR(SUMPRODUCT(Лист1!$B$3:$AF$10*(Лист1!$B$1:$AF$1=Лист2!$D11)*(Лист2!$C11=Лист1!$A$3:$A$10))*INDEX(Лист3!$B$7:$AQ$96,MATCH(Лист2!$C11,Лист3!$A$7:$A$96,0),MATCH(Лист2!N$1&N$2,Лист3!$B$4:$AQ$4&Лист3!$B$5:$AQ$5,0)),0) -> 80 | O11: =IFERROR(SUMPRODUCT(Лист1!$B$3:$AF$10*(Лист1!$B$1:$AF$1=Лист2!$D11)*(Лист2!$C11=Лист1!$A$3:$A$10))*INDEX(Лист3!$B$7:$AQ$96,MATCH(Лист2!$C11,Лист3!$A$7:$A$96,0),MATCH(Лист2!O$1&O$2,Лист3!$B$4:$AQ$4&Лист3!$B$5:$AQ$5,0)),0) -> 0 | P11: =IFERROR(SUMPRODUCT(Лист1!$B$3:$AF$10*(Лист1!$B$1:$AF$1=Лист2!$D11)*(Лист2!$C11=Лист1!$A$3:$A$10))*INDEX(Лист3!$B$7:$AQ$96,MATCH(Лист2!$C11,Лист3!$A$7:$A$96,0),MATCH(Лист2!P$1&P$2,Лист3!$B$4:$AQ$4&Лист3!$B$5:$AQ$5,0)),0) -> 180 | Q11: =IFERROR(SUMPRODUCT(Лист1!$B$3:$AF$10*(Лист1!$B$1:$AF$1=Лист2!$D11)*(Лист2!$C11=Лист1!$A$3:$A$10))*INDEX(Лист3!$B$7:$AQ$96,MATCH(Лист2!$C11,Лист3!$A$7:$A$96,0),MATCH(Лист2!Q$1&Q$2,Лист3!$B$4:$AQ$4&Лист3!$B$5:$AQ$5,0)),0) -> 0 | R11: =IFERROR(SUMPRODUCT(Лист1!$B$3:$AF$10*(Лист1!$B$1:$AF$1=Лист2!$D11)*(Лист2!$C11=Лист1!$A$3:$A$10))*INDEX(Лист3!$B$7:$AQ$96,MATCH(Лист2!$C11,Лист3!$A$7:$A$96,0),MATCH(Лист2!R$1&R$2,Лист3!$B$4:$AQ$4&Лист3!$B$5:$AQ$5,0)),0) -> 20 | S11: =IFERROR(SUMPRODUCT(Лист1!$B$3:$AF$10*(Лист1!$B$1:$AF$1=Лист2!$D11)*(Лист2!$C11=Лист1!$A$3:$A$10))*INDEX(Лист3!$B$7:$AQ$96,MATCH(Лист2!$C11,Лист3!$A$7:$A$96,0),MATCH(Лист2!S$1&S$2,Лист3!$B$4:$AQ$4&Лист3!$B$5:$AQ$5,0)),0) -> 1.2 | T11: =IFERROR(SUMPRODUCT(Лист1!$B$3:$AF$10*(Лист1!$B$1:$AF$1=Лист2!$D11)*(Лист2!$C11=Лист1!$A$3:$A$10))*INDEX(Лист3!$B$7:$AQ$96,MATCH(Лист2!$C11,Лист3!$A$7:$A$96,0),MATCH(Лист2!T$1&T$2,Лист3!$B$4:$AQ$4&Лист3!$B$5:$AQ$5,0)),0) -> 0 | U11: =IFERROR(SUMPRODUCT(Лист1!$B$3:$AF$10*(Лист1!$B$1:$AF$1=Лист2!$D11)*(Лист2!$C11=Лист1!$A$3:$A$10))*INDEX(Лист3!$B$7:$AQ$96,MATCH(Лист2!$C11,Лист3!$A$7:$A$96,0),MATCH(Лист2!U$1&U$2,Лист3!$B$4:$AQ$4&Лист3!$B$5:$AQ$5,0)),0) -> 0 | V11: =IFERROR(SUMPRODUCT(Лист1!$B$3:$AF$10*(Лист1!$B$1:$AF$1=Лист2!$D11)*(Лист2!$C11=Лист1!$A$3:$A$10))*INDEX(Лист3!$B$7:$AQ$96,MATCH(Лист2!$C11,Лист3!$A$7:$A$96,0),MATCH(Лист2!V$1&V$2,Лист3!$B$4:$AQ$4&Лист3!$B$5:$AQ$5,0)),0) -> 0 | W11: =IFERROR(SUMPRODUCT(Лист1!$B$3:$AF$10*(Лист1!$B$1:$AF$1=Лист2!$D11)*(Лист2!$C11=Лист1!$A$3:$A$10))*INDEX(Лист3!$B$7:$AQ$96,MATCH(Лист2!$C11,Лист3!$A$7:$A$96,0),MATCH(Лист2!W$1&W$2,Лист3!$B$4:$AQ$4&Лист3!$B$5:$AQ$5,0)),0) -> 0 | X11: =IFERROR(SUMPRODUCT(Лист1!$B$3:$AF$10*(Лист1!$B$1:$AF$1=Лист2!$D11)*(Лист2!$C11=Лист1!$A$3:$A$10))*INDEX(Лист3!$B$7:$AQ$96,MATCH(Лист2!$C11,Лист3!$A$7:$A$96,0),MATCH(Лист2!X$1&X$2,Лист3!$B$4:$AQ$4&Лист3!$B$5:$AQ$5,0)),0) -> 3.2 | Y11: =IFERROR(SUMPRODUCT(Лист1!$B$3:$AF$10*(Лист1!$B$1:$AF$1=Лист2!$D11)*(Лист2!$C11=Лист1!$A$3:$A$10))*INDEX(Лист3!$B$7:$AQ$96,MATCH(Лист2!$C11,Лист3!$A$7:$A$96,0),MATCH(Лист2!Y$1&Y$2,Лист3!$B$4:$AQ$4&Лист3!$B$5:$AQ$5,0)),0) -> 0 | Z11: =IFERROR(SUMPRODUCT(Лист1!$B$3:$AF$10*(Лист1!$B$1:$AF$1=Лист2!$D11)*(Лист2!$C11=Лист1!$A$3:$A$10))*INDEX(Лист3!$B$7:$AQ$96,MATCH(Лист2!$C11,Лист3!$A$7:$A$96,0),MATCH(Лист2!Z$1&Z$2,Лист3!$B$4:$AQ$4&Лист3!$B$5:$AQ$5,0)),0) -> 0.5 | AA11: =IFERROR(SUMPRODUCT(Лист1!$B$3:$AF$10*(Лист1!$B$1:$AF$1=Лист2!$D11)*(Лист2!$C11=Лист1!$A$3:$A$10))*INDEX(Лист3!$B$7:$AQ$96,MATCH(Лист2!$C11,Лист3!$A$7:$A$96,0),MATCH(Лист2!AA$1&AA$2,Лист3!$B$4:$AQ$4&Лист3!$B$5:$AQ$5,0)),0) -> 9.4
C12: =IFERROR(INDEX(Лист1!$A$3:$A$10,SMALL(IF(ISNUMBER(INDEX(Лист1!$B$3:$AF$10,,MATCH(Лист2!$D12,Лист1!$B$1:$AF$1,0))),ROW(Лист1!$A$3:$A$10)-2),COUNTIF($D$7:D12,D12))),"") -> Плита "Экстрол" 40-1180.580.50/8 (Ч) Г4, м3 | D12: 2 | E12: =IFERROR(SUMPRODUCT(Лист1!$B$3:$AF$10*(Лист1!$B$1:$AF$1=Лист2!$D12)*(Лист2!$C12=Лист1!$A$3:$A$10))*INDEX(Лист3!$B$7:$AQ$96,MATCH(Лист2!$C12,Лист3!$A$7:$A$96,0),MATCH(Лист2!E$1&E$2,Лист3!$B$4:$AQ$4&Лист3!$B$5:$AQ$5,0)),0) -> 2160 | F12: =IFERROR(SUMPRODUCT(Лист1!$B$3:$AF$10*(Лист1!$B$1:$AF$1=Лист2!$D12)*(Лист2!$C12=Лист1!$A$3:$A$10))*INDEX(Лист3!$B$7:$AQ$96,MATCH(Лист2!$C12,Лист3!$A$7:$A$96,0),MATCH(Лист2!F$1&F$2,Лист3!$B$4:$AQ$4&Лист3!$B$5:$AQ$5,0)),0) -> 6420 | G12: =IFERROR(SUMPRODUCT(Лист1!$B$3:$AF$10*(Лист1!$B$1:$AF$1=Лист2!$D12)*(Лист2!$C12=Лист1!$A$3:$A$10))*INDEX(Лист3!$B$7:$AQ$96,MATCH(Лист2!$C12,Лист3!$A$7:$A$96,0),MATCH(Лист2!G$1&G$2,Лист3!$B$4:$AQ$4&Лист3!$B$5:$AQ$5,0)),0) -> 0.03402286336 | H12: =IFERROR(SUMPRODUCT(Лист1!$B$3:$AF$10*(Лист1!$B$1:$AF$1=Лист2!$D12)*(Лист2!$C12=Лист1!$A$3:$A$10))*INDEX(Лист3!$B$7:$AQ$96,MATCH(Лист2!$C12,Лист3!$A$7:$A$96,0),MATCH(Лист2!H$1&H$2,Лист3!$B$4:$AQ$4&Лист3!$B$5:$AQ$5,0)),0) -> 41.76 | I12: =IFERROR(SUMPRODUCT(Лист1!$B$3:$AF$10*(Лист1!$B$1:$AF$1=Лист2!$D12)*(Лист2!$C12=Лист1!$A$3:$A$10))*INDEX(Лист3!$B$7:$AQ$96,MATCH(Лист2!$C12,Лист3!$A$7:$A$96,0),MATCH(Лист2!I$1&I$2,Лист3!$B$4:$AQ$4&Лист3!$B$5:$AQ$5,0)),0) -> 0 | J12: =IFERROR(SUMPRODUCT(Лист1!$B$3:$AF$10*(Лист1!$B$1:$AF$1=Лист2!$D12)*(Лист2!$C12=Лист1!$A$3:$A$10))*INDEX(Лист3!$B$7:$AQ$96,MATCH(Лист2!$C12,Лист3!$A$7:$A$96,0),MATCH(Лист2!J$1&J$2,Лист3!$B$4:$AQ$4&Лист3!$B$5:$AQ$5,0)),0) -> 0 | K12: =IFERROR(SUMPRODUCT(Лист1!$B$3:$AF$10*(Лист1!$B$1:$AF$1=Лист2!$D12)*(Лист2!$C12=Лист1!$A$3:$A$10))*INDEX(Лист3!$B$7:$AQ$96,MATCH(Лист2!$C12,Лист3!$A$7:$A$96,0),MATCH(Лист2!K$1&K$2,Лист3!$B$4:$AQ$4&Лист3!$B$5:$AQ$5,0)),0) -> 0 | L12: =IFERROR(SUMPRODUCT(Лист1!$B$3:$AF$10*(Лист1!$B$1:$AF$1=Лист2!$D12)*(Лист2!$C12=Лист1!$A$3:$A$10))*INDEX(Лист3!$B$7:$AQ$96,MATCH(Лист2!$C12,Лист3!$A$7:$A$96,0),MATCH(Лист2!L$1&L$2,Лист3!$B$4:$AQ$4&Лист3!$B$5:$AQ$5,0)),0) -> 9 | M12: =IFERROR(SUMPRODUCT(Лист1!$B$3:$AF$10*(Лист1!$B$1:$AF$1=Лист2!$D12)*(Лист2!$C12=Лист1!$A$3:$A$10))*INDEX(Лист3!$B$7:$AQ$96,MATCH(Лист2!$C12,Лист3!$A$7:$A$96,0),MATCH(Лист2!M$1&M$2,Лист3!$B$4:$AQ$4&Лист3!$B$5:$AQ$5,0)),0) -> 343.5 | N12: =IFERROR(SUMPRODUCT(Лист1!$B$3:$AF$10*(Лист1!$B$1:$AF$1=Лист2!$D12)*(Лист2!$C12=Лист1!$A$3:$A$10))*INDEX(Лист3!$B$7:$AQ$96,MATCH(Лист2!$C12,Лист3!$A$7:$A$96,0),MATCH(Лист2!N$1&N$2,Лист3!$B$4:$AQ$4&Лист3!$B$5:$AQ$5,0)),0) -> 114 | O12: =IFERROR(SUMPRODUCT(Лист1!$B$3:$AF$10*(Лист1!$B$1:$AF$1=Лист2!$D12)*(Лист2!$C12=Лист1!$A$3:$A$10))*INDEX(Лист3!$B$7:$AQ$96,MATCH(Лист2!$C12,Лист3!$A$7:$A$96,0),MATCH(Лист2!O$1&O$2,Лист3!$B$4:$AQ$4&Лист3!$B$5:$AQ$5,0)),0) -> 0 | P12: =IFERROR(SUMPRODUCT(Лист1!$B$3:$AF$10*(Лист1!$B$1:$AF$1=Лист2!$D12)*(Лист2!$C12=Лист1!$A$3:$A$10))*INDEX(Лист3!$B$7:$AQ$96,MATCH(Лист2!$C12,Лист3!$A$7:$A$96,0),MATCH(Лист2!P$1&P$2,Лист3!$B$4:$AQ$4&Лист3!$B$5:$AQ$5,0)),0) -> 276 | Q12: =IFERROR(SUMPRODUCT(Лист1!$B$3:$AF$10*(Лист1!$B$1:$AF$1=Лист2!$D12)*(Лист2!$C12=Лист1!$A$3:$A$10))*INDEX(Лист3!$B$7:$AQ$96,MATCH(Лист2!$C12,Лист3!$A$7:$A$96,0),MATCH(Лист2!Q$1&Q$2,Лист3!$B$4:$AQ$4&Лист3!$B$5:$AQ$5,0)),0) -> 0 | R12: =IFERROR(SUMPRODUCT(Лист1!$B$3:$AF$10*(Лист1!$B$1:$AF$1=Лист2!$D12)*(Лист2!$C12=Лист1!$A$3:$A$10))*INDEX(Лист3!$B$7:$AQ$96,MATCH(Лист2!$C12,Лист3!$A$7:$A$96,0),MATCH(Лист2!R$1&R$2,Лист3!$B$4:$AQ$4&Лист3!$B$5:$AQ$5,0)),0) -> 30 | S12: =IFERROR(SUMPRODUCT(Лист1!$B$3:$AF$10*(Лист1!$B$1:$AF$1=Лист2!$D12)*(Лист2!$C12=Лист1!$A$3:$A$10))*INDEX(Лист3!$B$7:$AQ$96,MATCH(Лист2!$C12,Лист3!$A$7:$A$96,0),MATCH(Лист2!S$1&S$2,Лист3!$B$4:$AQ$4&Лист3!$B$5:$AQ$5,0)),0) -> 1.8 | T12: =IFERROR(SUMPRODUCT(Лист1!$B$3:$AF$10*(Лист1!$B$1:$AF$1=Лист2!$D12)*(Лист2!$C12=Лист1!$A$3:$A$10))*INDEX(Лист3!$B$7:$AQ$96,MATCH(Лист2!$C12,Лист3!$A$7:$A$96,0),MATCH(Лист2!T$1&T$2,Лист3!$B$4:$AQ$4&Лист3!$B$5:$AQ$5,0)),0) -> 0 | U12: =IFERROR(SUMPRODUCT(Лист1!$B$3:$AF$10*(Лист1!$B$1:$AF$1=Лист2!$D12)*(Лист2!$C12=Лист1!$A$3:$A$10))*INDEX(Лист3!$B$7:$AQ$96,MATCH(Лист2!$C12,Лист3!$A$7:$A$96,0),MATCH(Лист2!U$1&U$2,Лист3!$B$4:$AQ$4&Лист3!$B$5:$AQ$5,0)),0) -> 0 | V12: =IFERROR(SUMPRODUCT(Лист1!$B$3:$AF$10*(Лист1!$B$1:$AF$1=Лист2!$D12)*(Лист2!$C12=Лист1!$A$3:$A$10))*INDEX(Лист3!$B$7:$AQ$96,MATCH(Лист2!$C12,Лист3!$A$7:$A$96,0),MATCH(Лист2!V$1&V$2,Лист3!$B$4:$AQ$4&Лист3!$B$5:$AQ$5,0)),0) -> 0 | W12: =IFERROR(SUMPRODUCT(Лист1!$B$3:$AF$10*(Лист1!$B$1:$AF$1=Лист2!$D12)*(Лист2!$C12=Лист1!$A$3:$A$10))*INDEX(Лист3!$B$7:$AQ$96,MATCH(Лист2!$C12,Лист3!$A$7:$A$96,0),MATCH(Лист2!W$1&W$2,Лист3!$B$4:$AQ$4&Лист3!$B$5:$AQ$5,0)),0) -> 0 | X12: =IFERROR(SUMPRODUCT(Лист1!$B$3:$AF$10*(Лист1!$B$1:$AF$1=Лист2!$D12)*(Лист2!$C12=Лист1!$A$3:$A$10))*INDEX(Лист3!$B$7:$AQ$96,MATCH(Лист2!$C12,Лист3!$A$7:$A$96,0),MATCH(Лист2!X$1&X$2,Лист3!$B$4:$AQ$4&Лист3!$B$5:$AQ$5,0)),0) -> 4.8 | Y12: =IFERROR(SUMPRODUCT(Лист1!$B$3:$AF$10*(Лист1!$B$1:$AF$1=Лист2!$D12)*(Лист2!$C12=Лист1!$A$3:$A$10))*INDEX(Лист3!$B$7:$AQ$96,MATCH(Лист2!$C12,Лист3!$A$7:$A$96,0),MATCH(Лист2!Y$1&Y$2,Лист3!$B$4:$AQ$4&Лист3!$B$5:$AQ$5,0)),0) -> 0 | Z12: =IFERROR(SUMPRODUCT(Лист1!$B$3:$AF$10*(Лист1!$B$1:$AF$1=Лист2!$D12)*(Лист2!$C12=Лист1!$A$3:$A$10))*INDEX(Лист3!$B$7:$AQ$96,MATCH(Лист2!$C12,Лист3!$A$7:$A$96,0),MATCH(Лист2!Z$1&Z$2,Лист3!$B$4:$AQ$4&Лист3!$B$5:$AQ$5,0)),0) -> 0.75 | AA12: =IFERROR(SUMPRODUCT(Лист1!$B$3:$AF$10*(Лист1!$B$1:$AF$1=Лист2!$D12)*(Лист2!$C12=Лист1!$A$3:$A$10))*INDEX(Лист3!$B$7:$AQ$96,MATCH(Лист2!$C12,Лист3!$A$7:$A$96,0),MATCH(Лист2!AA$1&AA$2,Лист3!$B$4:$AQ$4&Лист3!$B$5:$AQ$5,0)),0) -> 14.1
C13: =IFERROR(INDEX(Лист1!$A$3:$A$10,SMALL(IF(ISNUMBER(INDEX(Лист1!$B$3:$AF$10,,MATCH(Лист2!$D13,Лист1!$B$1:$AF$1,0))),ROW(Лист1!$A$3:$A$10)-2),COUNTIF($D$7:D13,D13))),"") ->  | D13: 2 | E13: =IFERROR(SUMPRODUCT(Лист1!$B$3:$AF$10*(Лист1!$B$1:$AF$1=Лист2!$D13)*(Лист2!$C13=Лист1!$A$3:$A$10))*INDEX(Лист3!$B$7:$AQ$96,MATCH(Лист2!$C13,Лист3!$A$7:$A$96,0),MATCH(Лист2!E$1&E$2,Лист3!$B$4:$AQ$4&Лист3!$B$5:$AQ$5,0)),0) -> 0 | F13: =IFERROR(SUMPRODUCT(Лист1!$B$3:$AF$10*(Лист1!$B$1:$AF$1=Лист2!$D13)*(Лист2!$C13=Лист1!$A$3:$A$10))*INDEX(Лист3!$B$7:$AQ$96,MATCH(Лист2!$C13,Лист3!$A$7:$A$96,0),MATCH(Лист2!F$1&F$2,Лист3!$B$4:$AQ$4&Лист3!$B$5:$AQ$5,0)),0) -> 0 | G13: =IFERROR(SUMPRODUCT(Лист1!$B$3:$AF$10*(Лист1!$B$1:$AF$1=Лист2!$D13)*(Лист2!$C13=Лист1!$A$3:$A$10))*INDEX(Лист3!$B$7:$AQ$96,MATCH(Лист2!$C13,Лист3!$A$7:$A$96,0),MATCH(Лист2!G$1&G$2,Лист3!$B$4:$AQ$4&Лист3!$B$5:$AQ$5,0)),0) -> 0 | H13: =IFERROR(SUMPRODUCT(Лист1!$B$3:$AF$10*(Лист1!$B$1:$AF$1=Лист2!$D13)*(Лист2!$C13=Лист1!$A$3:$A$10))*INDEX(Лист3!$B$7:$AQ$96,MATCH(Лист2!$C13,Лист3!$A$7:$A$96,0),MATCH(Лист2!H$1&H$2,Лист3!$B$4:$AQ$4&Лист3!$B$5:$AQ$5,0)),0) -> 0 | I13: =IFERROR(SUMPRODUCT(Лист1!$B$3:$AF$10*(Лист1!$B$1:$AF$1=Лист2!$D13)*(Лист2!$C13=Лист1!$A$3:$A$10))*INDEX(Лист3!$B$7:$AQ$96,MATCH(Лист2!$C13,Лист3!$A$7:$A$96,0),MATCH(Лист2!I$1&I$2,Лист3!$B$4:$AQ$4&Лист3!$B$5:$AQ$5,0)),0) -> 0 | J13: =IFERROR(SUMPRODUCT(Лист1!$B$3:$AF$10*(Лист1!$B$1:$AF$1=Лист2!$D13)*(Лист2!$C13=Лист1!$A$3:$A$10))*INDEX(Лист3!$B$7:$AQ$96,MATCH(Лист2!$C13,Лист3!$A$7:$A$96,0),MATCH(Лист2!J$1&J$2,Лист3!$B$4:$AQ$4&Лист3!$B$5:$AQ$5,0)),0) -> 0 | K13: =IFERROR(SUMPRODUCT(Лист1!$B$3:$AF$10*(Лист1!$B$1:$AF$1=Лист2!$D13)*(Лист2!$C13=Лист1!$A$3:$A$10))*INDEX(Лист3!$B$7:$AQ$96,MATCH(Лист2!$C13,Лист3!$A$7:$A$96,0),MATCH(Лист2!K$1&K$2,Лист3!$B$4:$AQ$4&Лист3!$B$5:$AQ$5,0)),0) -> 0 | L13: =IFERROR(SUMPRODUCT(Лист1!$B$3:$AF$10*(Лист1!$B$1:$AF$1=Лист2!$D13)*(Лист2!$C13=Лист1!$A$3:$A$10))*INDEX(Лист3!$B$7:$AQ$96,MATCH(Лист2!$C13,Лист3!$A$7:$A$96,0),MATCH(Лист2!L$1&L$2,Лист3!$B$4:$AQ$4&Лист3!$B$5:$AQ$5,0)),0) -> 0 | M13: =IFERROR(SUMPRODUCT(Лист1!$B$3:$AF$10*(Лист1!$B$1:$AF$1=Лист2!$D13)*(Лист2!$C13=Лист1!$A$3:$A$10))*INDEX(Лист3!$B$7:$AQ$96,MATCH(Лист2!$C13,Лист3!$A$7:$A$96,0),MATCH(Лист2!M$1&M$2,Лист3!$B$4:$AQ$4&Лист3!$B$5:$AQ$5,0)),0) -> 0 | N13: =IFERROR(SUMPRODUCT(Лист1!$B$3:$AF$10*(Лист1!$B$1:$AF$1=Лист2!$D13)*(Лист2!$C13=Лист1!$A$3:$A$10))*INDEX(Лист3!$B$7:$AQ$96,MATCH(Лист2!$C13,Лист3!$A$7:$A$96,0),MATCH(Лист2!N$1&N$2,Лист3!$B$4:$AQ$4&Лист3!$B$5:$AQ$5,0)),0) -> 0 | O13: =IFERROR(SUMPRODUCT(Лист1!$B$3:$AF$10*(Лист1!$B$1:$AF$1=Лист2!$D13)*(Лист2!$C13=Лист1!$A$3:$A$10))*INDEX(Лист3!$B$7:$AQ$96,MATCH(Лист2!$C13,Лист3!$A$7:$A$96,0),MATCH(Лист2!O$1&O$2,Лист3!$B$4:$AQ$4&Лист3!$B$5:$AQ$5,0)),0) -> 0 | P13: =IFERROR(SUMPRODUCT(Лист1!$B$3:$AF$10*(Лист1!$B$1:$AF$1=Лист2!$D13)*(Лист2!$C13=Лист1!$A$3:$A$10))*INDEX(Лист3!$B$7:$AQ$96,MATCH(Лист2!$C13,Лист3!$A$7:$A$96,0),MATCH(Лист2!P$1&P$2,Лист3!$B$4:$AQ$4&Лист3!$B$5:$AQ$5,0)),0) -> 0 | Q13: =IFERROR(SUMPRODUCT(Лист1!$B$3:$AF$10*(Лист1!$B$1:$AF$1=Лист2!$D13)*(Лист2!$C13=Лист1!$A$3:$A$10))*INDEX(Лист3!$B$7:$AQ$96,MATCH(Лист2!$C13,Лист3!$A$7:$A$96,0),MATCH(Лист2!Q$1&Q$2,Лист3!$B$4:$AQ$4&Лист3!$B$5:$AQ$5,0)),0) -> 0 | R13: =IFERROR(SUMPRODUCT(Лист1!$B$3:$AF$10*(Лист1!$B$1:$AF$1=Лист2!$D13)*(Лист2!$C13=Лист1!$A$3:$A$10))*INDEX(Лист3!$B$7:$AQ$96,MATCH(Лист2!$C13,Лист3!$A$7:$A$96,0),MATCH(Лист2!R$1&R$2,Лист3!$B$4:$AQ$4&Лист3!$B$5:$AQ$5,0)),0) -> 0 | S13: =IFERROR(SUMPRODUCT(Лист1!$B$3:$AF$10*(Лист1!$B$1:$AF$1=Лист2!$D13)*(Лист2!$C13=Лист1!$A$3:$A$10))*INDEX(Лист3!$B$7:$AQ$96,MATCH(Лист2!$C13,Лист3!$A$7:$A$96,0),MATCH(Лист2!S$1&S$2,Лист3!$B$4:$AQ$4&Лист3!$B$5:$AQ$5,0)),0) -> 0 | T13: =IFERROR(SUMPRODUCT(Лист1!$B$3:$AF$10*(Лист1!$B$1:$AF$1=Лист2!$D13)*(Лист2!$C13=Лист1!$A$3:$A$10))*INDEX(Лист3!$B$7:$AQ$96,MATCH(Лист2!$C13,Лист3!$A$7:$A$96,0),MATCH(Лист2!T$1&T$2,Лист3!$B$4:$AQ$4&Лист3!$B$5:$AQ$5,0)),0) -> 0 | U13: =IFERROR(SUMPRODUCT(Лист1!$B$3:$AF$10*(Лист1!$B$1:$AF$1=Лист2!$D13)*(Лист2!$C13=Лист1!$A$3:$A$10))*INDEX(Лист3!$B$7:$AQ$96,MATCH(Лист2!$C13,Лист3!$A$7:$A$96,0),MATCH(Лист2!U$1&U$2,Лист3!$B$4:$AQ$4&Лист3!$B$5:$AQ$5,0)),0) -> 0 | V13: =IFERROR(SUMPRODUCT(Лист1!$B$3:$AF$10*(Лист1!$B$1:$AF$1=Лист2!$D13)*(Лист2!$C13=Лист1!$A$3:$A$10))*INDEX(Лист3!$B$7:$AQ$96,MATCH(Лист2!$C13,Лист3!$A$7:$A$96,0),MATCH(Лист2!V$1&V$2,Лист3!$B$4:$AQ$4&Лист3!$B$5:$AQ$5,0)),0) -> 0 | W13: =IFERROR(SUMPRODUCT(Лист1!$B$3:$AF$10*(Лист1!$B$1:$AF$1=Лист2!$D13)*(Лист2!$C13=Лист1!$A$3:$A$10))*INDEX(Лист3!$B$7:$AQ$96,MATCH(Лист2!$C13,Лист3!$A$7:$A$96,0),MATCH(Лист2!W$1&W$2,Лист3!$B$4:$AQ$4&Лист3!$B$5:$AQ$5,0)),0) -> 0 | X13: =IFERROR(SUMPRODUCT(Лист1!$B$3:$AF$10*(Лист1!$B$1:$AF$1=Лист2!$D13)*(Лист2!$C13=Лист1!$A$3:$A$10))*INDEX(Лист3!$B$7:$AQ$96,MATCH(Лист2!$C13,Лист3!$A$7:$A$96,0),MATCH(Лист2!X$1&X$2,Лист3!$B$4:$AQ$4&Лист3!$B$5:$AQ$5,0)),0) -> 0 | Y13: =IFERROR(SUMPRODUCT(Лист1!$B$3:$AF$10*(Лист1!$B$1:$AF$1=Лист2!$D13)*(Лист2!$C13=Лист1!$A$3:$A$10))*INDEX(Лист3!$B$7:$AQ$96,MATCH(Лист2!$C13,Лист3!$A$7:$A$96,0),MATCH(Лист2!Y$1&Y$2,Лист3!$B$4:$AQ$4&Лист3!$B$5:$AQ$5,0)),0) -> 0 | Z13: =IFERROR(SUMPRODUCT(Лист1!$B$3:$AF$10*(Лист1!$B$1:$AF$1=Лист2!$D13)*(Лист2!$C13=Лист1!$A$3:$A$10))*INDEX(Лист3!$B$7:$AQ$96,MATCH(Лист2!$C13,Лист3!$A$7:$A$96,0),MATCH(Лист2!Z$1&Z$2,Лист3!$B$4:$AQ$4&Лист3!$B$5:$AQ$5,0)),0) -> 0 | AA13: =IFERROR(SUMPRODUCT(Лист1!$B$3:$AF$10*(Лист1!$B$1:$AF$1=Лист2!$D13)*(Лист2!$C13=Лист1!$A$3:$A$10))*INDEX(Лист3!$B$7:$AQ$96,MATCH(Лист2!$C13,Лист3!$A$7:$A$96,0),MATCH(Лист2!AA$1&AA$2,Лист3!$B$4:$AQ$4&Лист3!$B$5:$AQ$5,0)),0) -> 0
C14: =IFERROR(INDEX(Лист1!$A$3:$A$10,SMALL(IF(ISNUMBER(INDEX(Лист1!$B$3:$AF$10,,MATCH(Лист2!$D14,Лист1!$B$1:$AF$1,0))),ROW(Лист1!$A$3:$A$10)-2),COUNTIF($D$7:D14,D14))),"") ->  | D14: 2 | E14: =IFERROR(SUMPRODUCT(Лист1!$B$3:$AF$10*(Лист1!$B$1:$AF$1=Лист2!$D14)*(Лист2!$C14=Лист1!$A$3:$A$10))*INDEX(Лист3!$B$7:$AQ$96,MATCH(Лист2!$C14,Лист3!$A$7:$A$96,0),MATCH(Лист2!E$1&E$2,Лист3!$B$4:$AQ$4&Лист3!$B$5:$AQ$5,0)),0) -> 0 | F14: =IFERROR(SUMPRODUCT(Лист1!$B$3:$AF$10*(Лист1!$B$1:$AF$1=Лист2!$D14)*(Лист2!$C14=Лист1!$A$3:$A$10))*INDEX(Лист3!$B$7:$AQ$96,MATCH(Лист2!$C14,Лист3!$A$7:$A$96,0),MATCH(Лист2!F$1&F$2,Лист3!$B$4:$AQ$4&Лист3!$B$5:$AQ$5,0)),0) -> 0 | G14: =IFERROR(SUMPRODUCT(Лист1!$B$3:$AF$10*(Лист1!$B$1:$AF$1=Лист2!$D14)*(Лист2!$C14=Лист1!$A$3:$A$10))*INDEX(Лист3!$B$7:$AQ$96,MATCH(Лист2!$C14,Лист3!$A$7:$A$96,0),MATCH(Лист2!G$1&G$2,Лист3!$B$4:$AQ$4&Лист3!$B$5:$AQ$5,0)),0) -> 0 | H14: =IFERROR(SUMPRODUCT(Лист1!$B$3:$AF$10*(Лист1!$B$1:$AF$1=Лист2!$D14)*(Лист2!$C14=Лист1!$A$3:$A$10))*INDEX(Лист3!$B$7:$AQ$96,MATCH(Лист2!$C14,Лист3!$A$7:$A$96,0),MATCH(Лист2!H$1&H$2,Лист3!$B$4:$AQ$4&Лист3!$B$5:$AQ$5,0)),0) -> 0 | I14: =IFERROR(SUMPRODUCT(Лист1!$B$3:$AF$10*(Лист1!$B$1:$AF$1=Лист2!$D14)*(Лист2!$C14=Лист1!$A$3:$A$10))*INDEX(Лист3!$B$7:$AQ$96,MATCH(Лист2!$C14,Лист3!$A$7:$A$96,0),MATCH(Лист2!I$1&I$2,Лист3!$B$4:$AQ$4&Лист3!$B$5:$AQ$5,0)),0) -> 0 | J14: =IFERROR(SUMPRODUCT(Лист1!$B$3:$AF$10*(Лист1!$B$1:$AF$1=Лист2!$D14)*(Лист2!$C14=Лист1!$A$3:$A$10))*INDEX(Лист3!$B$7:$AQ$96,MATCH(Лист2!$C14,Лист3!$A$7:$A$96,0),MATCH(Лист2!J$1&J$2,Лист3!$B$4:$AQ$4&Лист3!$B$5:$AQ$5,0)),0) -> 0 | K14: =IFERROR(SUMPRODUCT(Лист1!$B$3:$AF$10*(Лист1!$B$1:$AF$1=Лист2!$D14)*(Лист2!$C14=Лист1!$A$3:$A$10))*INDEX(Лист3!$B$7:$AQ$96,MATCH(Лист2!$C14,Лист3!$A$7:$A$96,0),MATCH(Лист2!K$1&K$2,Лист3!$B$4:$AQ$4&Лист3!$B$5:$AQ$5,0)),0) -> 0 | L14: =IFERROR(SUMPRODUCT(Лист1!$B$3:$AF$10*(Лист1!$B$1:$AF$1=Лист2!$D14)*(Лист2!$C14=Лист1!$A$3:$A$10))*INDEX(Лист3!$B$7:$AQ$96,MATCH(Лист2!$C14,Лист3!$A$7:$A$96,0),MATCH(Лист2!L$1&L$2,Лист3!$B$4:$AQ$4&Лист3!$B$5:$AQ$5,0)),0) -> 0 | M14: =IFERROR(SUMPRODUCT(Лист1!$B$3:$AF$10*(Лист1!$B$1:$AF$1=Лист2!$D14)*(Лист2!$C14=Лист1!$A$3:$A$10))*INDEX(Лист3!$B$7:$AQ$96,MATCH(Лист2!$C14,Лист3!$A$7:$A$96,0),MATCH(Лист2!M$1&M$2,Лист3!$B$4:$AQ$4&Лист3!$B$5:$AQ$5,0)),0) -> 0 | N14: =IFERROR(SUMPRODUCT(Лист1!$B$3:$AF$10*(Лист1!$B$1:$AF$1=Лист2!$D14)*(Лист2!$C14=Лист1!$A$3:$A$10))*INDEX(Лист3!$B$7:$AQ$96,MATCH(Лист2!$C14,Лист3!$A$7:$A$96,0),MATCH(Лист2!N$1&N$2,Лист3!$B$4:$AQ$4&Лист3!$B$5:$AQ$5,0)),0) -> 0 | O14: =IFERROR(SUMPRODUCT(Лист1!$B$3:$AF$10*(Лист1!$B$1:$AF$1=Лист2!$D14)*(Лист2!$C14=Лист1!$A$3:$A$10))*INDEX(Лист3!$B$7:$AQ$96,MATCH(Лист2!$C14,Лист3!$A$7:$A$96,0),MATCH(Лист2!O$1&O$2,Лист3!$B$4:$AQ$4&Лист3!$B$5:$AQ$5,0)),0) -> 0 | P14: =IFERROR(SUMPRODUCT(Лист1!$B$3:$AF$10*(Лист1!$B$1:$AF$1=Лист2!$D14)*(Лист2!$C14=Лист1!$A$3:$A$10))*INDEX(Лист3!$B$7:$AQ$96,MATCH(Лист2!$C14,Лист3!$A$7:$A$96,0),MATCH(Лист2!P$1&P$2,Лист3!$B$4:$AQ$4&Лист3!$B$5:$AQ$5,0)),0) -> 0 | Q14: =IFERROR(SUMPRODUCT(Лист1!$B$3:$AF$10*(Лист1!$B$1:$AF$1=Лист2!$D14)*(Лист2!$C14=Лист1!$A$3:$A$10))*INDEX(Лист3!$B$7:$AQ$96,MATCH(Лист2!$C14,Лист3!$A$7:$A$96,0),MATCH(Лист2!Q$1&Q$2,Лист3!$B$4:$AQ$4&Лист3!$B$5:$AQ$5,0)),0) -> 0 | R14: =IFERROR(SUMPRODUCT(Лист1!$B$3:$AF$10*(Лист1!$B$1:$AF$1=Лист2!$D14)*(Лист2!$C14=Лист1!$A$3:$A$10))*INDEX(Лист3!$B$7:$AQ$96,MATCH(Лист2!$C14,Лист3!$A$7:$A$96,0),MATCH(Лист2!R$1&R$2,Лист3!$B$4:$AQ$4&Лист3!$B$5:$AQ$5,0)),0) -> 0 | S14: =IFERROR(SUMPRODUCT(Лист1!$B$3:$AF$10*(Лист1!$B$1:$AF$1=Лист2!$D14)*(Лист2!$C14=Лист1!$A$3:$A$10))*INDEX(Лист3!$B$7:$AQ$96,MATCH(Лист2!$C14,Лист3!$A$7:$A$96,0),MATCH(Лист2!S$1&S$2,Лист3!$B$4:$AQ$4&Лист3!$B$5:$AQ$5,0)),0) -> 0 | T14: =IFERROR(SUMPRODUCT(Лист1!$B$3:$AF$10*(Лист1!$B$1:$AF$1=Лист2!$D14)*(Лист2!$C14=Лист1!$A$3:$A$10))*INDEX(Лист3!$B$7:$AQ$96,MATCH(Лист2!$C14,Лист3!$A$7:$A$96,0),MATCH(Лист2!T$1&T$2,Лист3!$B$4:$AQ$4&Лист3!$B$5:$AQ$5,0)),0) -> 0 | U14: =IFERROR(SUMPRODUCT(Лист1!$B$3:$AF$10*(Лист1!$B$1:$AF$1=Лист2!$D14)*(Лист2!$C14=Лист1!$A$3:$A$10))*INDEX(Лист3!$B$7:$AQ$96,MATCH(Лист2!$C14,Лист3!$A$7:$A$96,0),MATCH(Лист2!U$1&U$2,Лист3!$B$4:$AQ$4&Лист3!$B$5:$AQ$5,0)),0) -> 0 | V14: =IFERROR(SUMPRODUCT(Лист1!$B$3:$AF$10*(Лист1!$B$1:$AF$1=Лист2!$D14)*(Лист2!$C14=Лист1!$A$3:$A$10))*INDEX(Лист3!$B$7:$AQ$96,MATCH(Лист2!$C14,Лист3!$A$7:$A$96,0),MATCH(Лист2!V$1&V$2,Лист3!$B$4:$AQ$4&Лист3!$B$5:$AQ$5,0)),0) -> 0 | W14: =IFERROR(SUMPRODUCT(Лист1!$B$3:$AF$10*(Лист1!$B$1:$AF$1=Лист2!$D14)*(Лист2!$C14=Лист1!$A$3:$A$10))*INDEX(Лист3!$B$7:$AQ$96,MATCH(Лист2!$C14,Лист3!$A$7:$A$96,0),MATCH(Лист2!W$1&W$2,Лист3!$B$4:$AQ$4&Лист3!$B$5:$AQ$5,0)),0) -> 0 | X14: =IFERROR(SUMPRODUCT(Лист1!$B$3:$AF$10*(Лист1!$B$1:$AF$1=Лист2!$D14)*(Лист2!$C14=Лист1!$A$3:$A$10))*INDEX(Лист3!$B$7:$AQ$96,MATCH(Лист2!$C14,Лист3!$A$7:$A$96,0),MATCH(Лист2!X$1&X$2,Лист3!$B$4:$AQ$4&Лист3!$B$5:$AQ$5,0)),0) -> 0 | Y14: =IFERROR(SUMPRODUCT(Лист1!$B$3:$AF$10*(Лист1!$B$1:$AF$1=Лист2!$D14)*(Лист2!$C14=Лист1!$A$3:$A$10))*INDEX(Лист3!$B$7:$AQ$96,MATCH(Лист2!$C14,Лист3!$A$7:$A$96,0),MATCH(Лист2!Y$1&Y$2,Лист3!$B$4:$AQ$4&Лист3!$B$5:$AQ$5,0)),0) -> 0 | Z14: =IFERROR(SUMPRODUCT(Лист1!$B$3:$AF$10*(Лист1!$B$1:$AF$1=Лист2!$D14)*(Лист2!$C14=Лист1!$A$3:$A$10))*INDEX(Лист3!$B$7:$AQ$96,MATCH(Лист2!$C14,Лист3!$A$7:$A$96,0),MATCH(Лист2!Z$1&Z$2,Лист3!$B$4:$AQ$4&Лист3!$B$5:$AQ$5,0)),0) -> 0 | AA14: =IFERROR(SUMPRODUCT(Лист1!$B$3:$AF$10*(Лист1!$B$1:$AF$1=Лист2!$D14)*(Лист2!$C14=Лист1!$A$3:$A$10))*INDEX(Лист3!$B$7:$AQ$96,MATCH(Лист2!$C14,Лист3!$A$7:$A$96,0),MATCH(Лист2!AA$1&AA$2,Лист3!$B$4:$AQ$4&Лист3!$B$5:$AQ$5,0)),0) -> 0
C15: =IFERROR(INDEX(Лист1!$A$3:$A$10,SMALL(IF(ISNUMBER(INDEX(Лист1!$B$3:$AF$10,,MATCH(Лист2!$D15,Лист1!$B$1:$AF$1,0))),ROW(Лист1!$A$3:$A$10)-2),COUNTIF($D$7:D15,D15))),"") -> Плита "Экстрол Малахит" 1180.580.50/8 (Ч), м3 | D15: 3 | E15: =IFERROR(SUMPRODUCT(Лист1!$B$3:$AF$10*(Лист1!$B$1:$AF$1=Лист2!$D15)*(Лист2!$C15=Лист1!$A$3:$A$10))*INDEX(Лист3!$B$7:$AQ$96,MATCH(Лист2!$C15,Лист3!$A$7:$A$96,0),MATCH(Лист2!E$1&E$2,Лист3!$B$4:$AQ$4&Лист3!$B$5:$AQ$5,0)),0) -> 2160 | F15: =IFERROR(SUMPRODUCT(Лист1!$B$3:$AF$10*(Лист1!$B$1:$AF$1=Лист2!$D15)*(Лист2!$C15=Лист1!$A$3:$A$10))*INDEX(Лист3!$B$7:$AQ$96,MATCH(Лист2!$C15,Лист3!$A$7:$A$96,0),MATCH(Лист2!F$1&F$2,Лист3!$B$4:$AQ$4&Лист3!$B$5:$AQ$5,0)),0) -> 8320 | G15: =IFERROR(SUMPRODUCT(Лист1!$B$3:$AF$10*(Лист1!$B$1:$AF$1=Лист2!$D15)*(Лист2!$C15=Лист1!$A$3:$A$10))*INDEX(Лист3!$B$7:$AQ$96,MATCH(Лист2!$C15,Лист3!$A$7:$A$96,0),MATCH(Лист2!G$1&G$2,Лист3!$B$4:$AQ$4&Лист3!$B$5:$AQ$5,0)),0) -> 0 | H15: =IFERROR(SUMPRODUCT(Лист1!$B$3:$AF$10*(Лист1!$B$1:$AF$1=Лист2!$D15)*(Лист2!$C15=Лист1!$A$3:$A$10))*INDEX(Лист3!$B$7:$AQ$96,MATCH(Лист2!$C15,Лист3!$A$7:$A$96,0),MATCH(Лист2!H$1&H$2,Лист3!$B$4:$AQ$4&Лист3!$B$5:$AQ$5,0)),0) -> 60 | I15: =IFERROR(SUMPRODUCT(Лист1!$B$3:$AF$10*(Лист1!$B$1:$AF$1=Лист2!$D15)*(Лист2!$C15=Лист1!$A$3:$A$10))*INDEX(Лист3!$B$7:$AQ$96,MATCH(Лист2!$C15,Лист3!$A$7:$A$96,0),MATCH(Лист2!I$1&I$2,Лист3!$B$4:$AQ$4&Лист3!$B$5:$AQ$5,0)),0) -> 0 | J15: =IFERROR(SUMPRODUCT(Лист1!$B$3:$AF$10*(Лист1!$B$1:$AF$1=Лист2!$D15)*(Лист2!$C15=Лист1!$A$3:$A$10))*INDEX(Лист3!$B$7:$AQ$96,MATCH(Лист2!$C15,Лист3!$A$7:$A$96,0),MATCH(Лист2!J$1&J$2,Лист3!$B$4:$AQ$4&Лист3!$B$5:$AQ$5,0)),0) -> 8 | K15: =IFERROR(SUMPRODUCT(Лист1!$B$3:$AF$10*(Лист1!$B$1:$AF$1=Лист2!$D15)*(Лист2!$C15=Лист1!$A$3:$A$10))*INDEX(Лист3!$B$7:$AQ$96,MATCH(Лист2!$C15,Лист3!$A$7:$A$96,0),MATCH(Лист2!K$1&K$2,Лист3!$B$4:$AQ$4&Лист3!$B$5:$AQ$5,0)),0) -> 0 | L15: =IFERROR(SUMPRODUCT(Лист1!$B$3:$AF$10*(Лист1!$B$1:$AF$1=Лист2!$D15)*(Лист2!$C15=Лист1!$A$3:$A$10))*INDEX(Лист3!$B$7:$AQ$96,MATCH(Лист2!$C15,Лист3!$A$7:$A$96,0),MATCH(Лист2!L$1&L$2,Лист3!$B$4:$AQ$4&Лист3!$B$5:$AQ$5,0)),0) -> 13.2 | M15: =IFERROR(SUMPRODUCT(Лист1!$B$3:$AF$10*(Лист1!$B$1:$AF$1=Лист2!$D15)*(Лист2!$C15=Лист1!$A$3:$A$10))*INDEX(Лист3!$B$7:$AQ$96,MATCH(Лист2!$C15,Лист3!$A$7:$A$96,0),MATCH(Лист2!M$1&M$2,Лист3!$B$4:$AQ$4&Лист3!$B$5:$AQ$5,0)),0) -> 360 | N15: =IFERROR(SUMPRODUCT(Лист1!$B$3:$AF$10*(Лист1!$B$1:$AF$1=Лист2!$D15)*(Лист2!$C15=Лист1!$A$3:$A$10))*INDEX(Лист3!$B$7:$AQ$96,MATCH(Лист2!$C15,Лист3!$A$7:$A$96,0),MATCH(Лист2!N$1&N$2,Лист3!$B$4:$AQ$4&Лист3!$B$5:$AQ$5,0)),0) -> 200 | O15: =IFERROR(SUMPRODUCT(Лист1!$B$3:$AF$10*(Лист1!$B$1:$AF$1=Лист2!$D15)*(Лист2!$C15=Лист1!$A$3:$A$10))*INDEX(Лист3!$B$7:$AQ$96,MATCH(Лист2!$C15,Лист3!$A$7:$A$96,0),MATCH(Лист2!O$1&O$2,Лист3!$B$4:$AQ$4&Лист3!$B$5:$AQ$5,0)),0) -> 0 | P15: =IFERROR(SUMPRODUCT(Лист1!$B$3:$AF$10*(Лист1!$B$1:$AF$1=Лист2!$D15)*(Лист2!$C15=Лист1!$A$3:$A$10))*INDEX(Лист3!$B$7:$AQ$96,MATCH(Лист2!$C15,Лист3!$A$7:$A$96,0),MATCH(Лист2!P$1&P$2,Лист3!$B$4:$AQ$4&Лист3!$B$5:$AQ$5,0)),0) -> 240 | Q15: =IFERROR(SUMPRODUCT(Лист1!$B$3:$AF$10*(Лист1!$B$1:$AF$1=Лист2!$D15)*(Лист2!$C15=Лист1!$A$3:$A$10))*INDEX(Лист3!$B$7:$AQ$96,MATCH(Лист2!$C15,Лист3!$A$7:$A$96,0),MATCH(Лист2!Q$1&Q$2,Лист3!$B$4:$AQ$4&Лист3!$B$5:$AQ$5,0)),0) -> 0 | R15: =IFERROR(SUMPRODUCT(Лист1!$B$3:$AF$10*(Лист1!$B$1:$AF$1=Лист2!$D15)*(Лист2!$C15=Лист1!$A$3:$A$10))*INDEX(Лист3!$B$7:$AQ$96,MATCH(Лист2!$C15,Лист3!$A$7:$A$96,0),MATCH(Лист2!R$1&R$2,Лист3!$B$4:$AQ$4&Лист3!$B$5:$AQ$5,0)),0) -> 192 | S15: =IFERROR(SUMPRODUCT(Лист1!$B$3:$AF$10*(Лист1!$B$1:$AF$1=Лист2!$D15)*(Лист2!$C15=Лист1!$A$3:$A$10))*INDEX(Лист3!$B$7:$AQ$96,MATCH(Лист2!$C15,Лист3!$A$7:$A$96,0),MATCH(Лист2!S$1&S$2,Лист3!$B$4:$AQ$4&Лист3!$B$5:$AQ$5,0)),0) -> 0 | T15: =IFERROR(SUMPRODUCT(Лист1!$B$3:$AF$10*(Лист1!$B$1:$AF$1=Лист2!$D15)*(Лист2!$C15=Лист1!$A$3:$A$10))*INDEX(Лист3!$B$7:$AQ$96,MATCH(Лист2!$C15,Лист3!$A$7:$A$96,0),MATCH(Лист2!T$1&T$2,Лист3!$B$4:$AQ$4&Лист3!$B$5:$AQ$5,0)),0) -> 2 | U15: =IFERROR(SUMPRODUCT(Лист1!$B$3:$AF$10*(Лист1!$B$1:$AF$1=Лист2!$D15)*(Лист2!$C15=Лист1!$A$3:$A$10))*INDEX(Лист3!$B$7:$AQ$96,MATCH(Лист2!$C15,Лист3!$A$7:$A$96,0),MATCH(Лист2!U$1&U$2,Лист3!$B$4:$AQ$4&Лист3!$B$5:$AQ$5,0)),0) -> 0 | V15: =IFERROR(SUMPRODUCT(Лист1!$B$3:$AF$10*(Лист1!$B$1:$AF$1=Лист2!$D15)*(Лист2!$C15=Лист1!$A$3:$A$10))*INDEX(Лист3!$B$7:$AQ$96,MATCH(Лист2!$C15,Лист3!$A$7:$A$96,0),MATCH(Лист2!V$1&V$2,Лист3!$B$4:$AQ$4&Лист3!$B$5:$AQ$5,0)),0) -> 0 | W15: =IFERROR(SUMPRODUCT(Лист1!$B$3:$AF$10*(Лист1!$B$1:$AF$1=Лист2!$D15)*(Лист2!$C15=Лист1!$A$3:$A$10))*INDEX(Лист3!$B$7:$AQ$96,MATCH(Лист2!$C15,Лист3!$A$7:$A$96,0),MATCH(Лист2!W$1&W$2,Лист3!$B$4:$AQ$4&Лист3!$B$5:$AQ$5,0)),0) -> 0 | X15: =IFERROR(SUMPRODUCT(Лист1!$B$3:$AF$10*(Лист1!$B$1:$AF$1=Лист2!$D15)*(Лист2!$C15=Лист1!$A$3:$A$10))*INDEX(Лист3!$B$7:$AQ$96,MATCH(Лист2!$C15,Лист3!$A$7:$A$96,0),MATCH(Лист2!X$1&X$2,Лист3!$B$4:$AQ$4&Лист3!$B$5:$AQ$5,0)),0) -> 6.8 | Y15: =IFERROR(SUMPRODUCT(Лист1!$B$3:$AF$10*(Лист1!$B$1:$AF$1=Лист2!$D15)*(Лист2!$C15=Лист1!$A$3:$A$10))*INDEX(Лист3!$B$7:$AQ$96,MATCH(Лист2!$C15,Лист3!$A$7:$A$96,0),MATCH(Лист2!Y$1&Y$2,Лист3!$B$4:$AQ$4&Лист3!$B$5:$AQ$5,0)),0) -> 0 | Z15: =IFERROR(SUMPRODUCT(Лист1!$B$3:$AF$10*(Лист1!$B$1:$AF$1=Лист2!$D15)*(Лист2!$C15=Лист1!$A$3:$A$10))*INDEX(Лист3!$B$7:$AQ$96,MATCH(Лист2!$C15,Лист3!$A$7:$A$96,0),MATCH(Лист2!Z$1&Z$2,Лист3!$B$4:$AQ$4&Лист3!$B$5:$AQ$5,0)),0) -> 1 | AA15: =IFERROR(SUMPRODUCT(Лист1!$B$3:$AF$10*(Лист1!$B$1:$AF$1=Лист2!$D15)*(Лист2!$C15=Лист1!$A$3:$A$10))*INDEX(Лист3!$B$7:$AQ$96,MATCH(Лист2!$C15,Лист3!$A$7:$A$96,0),MATCH(Лист2!AA$1&AA$2,Лист3!$B$4:$AQ$4&Лист3!$B$5:$AQ$5,0)),0) -> 18.8
C16: =IFERROR(INDEX(Лист1!$A$3:$A$10,SMALL(IF(ISNUMBER(INDEX(Лист1!$B$3:$AF$10,,MATCH(Лист2!$D16,Лист1!$B$1:$AF$1,0))),ROW(Лист1!$A$3:$A$10)-2),COUNTIF($D$7:D16,D16))),"") ->  | D16: 3 | E16: =IFERROR(SUMPRODUCT(Лист1!$B$3:$AF$10*(Лист1!$B$1:$AF$1=Лист2!$D16)*(Лист2!$C16=Лист1!$A$3:$A$10))*INDEX(Лист3!$B$7:$AQ$96,MATCH(Лист2!$C16,Лист3!$A$7:$A$96,0),MATCH(Лист2!E$1&E$2,Лист3!$B$4:$AQ$4&Лист3!$B$5:$AQ$5,0)),0) -> 0 | F16: =IFERROR(SUMPRODUCT(Лист1!$B$3:$AF$10*(Лист1!$B$1:$AF$1=Лист2!$D16)*(Лист2!$C16=Лист1!$A$3:$A$10))*INDEX(Лист3!$B$7:$AQ$96,MATCH(Лист2!$C16,Лист3!$A$7:$A$96,0),MATCH(Лист2!F$1&F$2,Лист3!$B$4:$AQ$4&Лист3!$B$5:$AQ$5,0)),0) -> 0 | G16: =IFERROR(SUMPRODUCT(Лист1!$B$3:$AF$10*(Лист1!$B$1:$AF$1=Лист2!$D16)*(Лист2!$C16=Лист1!$A$3:$A$10))*INDEX(Лист3!$B$7:$AQ$96,MATCH(Лист2!$C16,Лист3!$A$7:$A$96,0),MATCH(Лист2!G$1&G$2,Лист3!$B$4:$AQ$4&Лист3!$B$5:$AQ$5,0)),0) -> 0 | H16: =IFERROR(SUMPRODUCT(Лист1!$B$3:$AF$10*(Лист1!$B$1:$AF$1=Лист2!$D16)*(Лист2!$C16=Лист1!$A$3:$A$10))*INDEX(Лист3!$B$7:$AQ$96,MATCH(Лист2!$C16,Лист3!$A$7:$A$96,0),MATCH(Лист2!H$1&H$2,Лист3!$B$4:$AQ$4&Лист3!$B$5:$AQ$5,0)),0) -> 0 | I16: =IFERROR(SUMPRODUCT(Лист1!$B$3:$AF$10*(Лист1!$B$1:$AF$1=Лист2!$D16)*(Лист2!$C16=Лист1!$A$3:$A$10))*INDEX(Лист3!$B$7:$AQ$96,MATCH(Лист2!$C16,Лист3!$A$7:$A$96,0),MATCH(Лист2!I$1&I$2,Лист3!$B$4:$AQ$4&Лист3!$B$5:$AQ$5,0)),0) -> 0 | J16: =IFERROR(SUMPRODUCT(Лист1!$B$3:$AF$10*(Лист1!$B$1:$AF$1=Лист2!$D16)*(Лист2!$C16=Лист1!$A$3:$A$10))*INDEX(Лист3!$B$7:$AQ$96,MATCH(Лист2!$C16,Лист3!$A$7:$A$96,0),MATCH(Лист2!J$1&J$2,Лист3!$B$4:$AQ$4&Лист3!$B$5:$AQ$5,0)),0) -> 0 | K16: =IFERROR(SUMPRODUCT(Лист1!$B$3:$AF$10*(Лист1!$B$1:$AF$1=Лист2!$D16)*(Лист2!$C16=Лист1!$A$3:$A$10))*INDEX(Лист3!$B$7:$AQ$96,MATCH(Лист2!$C16,Лист3!$A$7:$A$96,0),MATCH(Лист2!K$1&K$2,Лист3!$B$4:$AQ$4&Лист3!$B$5:$AQ$5,0)),0) -> 0 | L16: =IFERROR(SUMPRODUCT(Лист1!$B$3:$AF$10*(Лист1!$B$1:$AF$1=Лист2!$D16)*(Лист2!$C16=Лист1!$A$3:$A$10))*INDEX(Лист3!$B$7:$AQ$96,MATCH(Лист2!$C16,Лист3!$A$7:$A$96,0),MATCH(Лист2!L$1&L$2,Лист3!$B$4:$AQ$4&Лист3!$B$5:$AQ$5,0)),0) -> 0 | M16: =IFERROR(SUMPRODUCT(Лист1!$B$3:$AF$10*(Лист1!$B$1:$AF$1=Лист2!$D16)*(Лист2!$C16=Лист1!$A$3:$A$10))*INDEX(Лист3!$B$7:$AQ$96,MATCH(Лист2!$C16,Лист3!$A$7:$A$96,0),MATCH(Лист2!M$1&M$2,Лист3!$B$4:$AQ$4&Лист3!$B$5:$AQ$5,0)),0) -> 0 | N16: =IFERROR(SUMPRODUCT(Лист1!$B$3:$AF$10*(Лист1!$B$1:$AF$1=Лист2!$D16)*(Лист2!$C16=Лист1!$A$3:$A$10))*INDEX(Лист3!$B$7:$AQ$96,MATCH(Лист2!$C16,Лист3!$A$7:$A$96,0),MATCH(Лист2!N$1&N$2,Лист3!$B$4:$AQ$4&Лист3!$B$5:$AQ$5,0)),0) -> 0 | O16: =IFERROR(SUMPRODUCT(Лист1!$B$3:$AF$10*(Лист1!$B$1:$AF$1=Лист2!$D16)*(Лист2!$C16=Лист1!$A$3:$A$10))*INDEX(Лист3!$B$7:$AQ$96,MATCH(Лист2!$C16,Лист3!$A$7:$A$96,0),MATCH(Лист2!O$1&O$2,Лист3!$B$4:$AQ$4&Лист3!$B$5:$AQ$5,0)),0) -> 0 | P16: =IFERROR(SUMPRODUCT(Лист1!$B$3:$AF$10*(Лист1!$B$1:$AF$1=Лист2!$D16)*(Лист2!$C16=Лист1!$A$3:$A$10))*INDEX(Лист3!$B$7:$AQ$96,MATCH(Лист2!$C16,Лист3!$A$7:$A$96,0),MATCH(Лист2!P$1&P$2,Лист3!$B$4:$AQ$4&Лист3!$B$5:$AQ$5,0)),0) -> 0 | Q16: =IFERROR(SUMPRODUCT(Лист1!$B$3:$AF$10*(Лист1!$B$1:$AF$1=Лист2!$D16)*(Лист2!$C16=Лист1!$A$3:$A$10))*INDEX(Лист3!$B$7:$AQ$96,MATCH(Лист2!$C16,Лист3!$A$7:$A$96,0),MATCH(Лист2!Q$1&Q$2,Лист3!$B$4:$AQ$4&Лист3!$B$5:$AQ$5,0)),0) -> 0 | R16: =IFERROR(SUMPRODUCT(Лист1!$B$3:$AF$10*(Лист1!$B$1:$AF$1=Лист2!$D16)*(Лист2!$C16=Лист1!$A$3:$A$10))*INDEX(Лист3!$B$7:$AQ$96,MATCH(Лист2!$C16,Лист3!$A$7:$A$96,0),MATCH(Лист2!R$1&R$2,Лист3!$B$4:$AQ$4&Лист3!$B$5:$AQ$5,0)),0) -> 0 | S16: =IFERROR(SUMPRODUCT(Лист1!$B$3:$AF$10*(Лист1!$B$1:$AF$1=Лист2!$D16)*(Лист2!$C16=Лист1!$A$3:$A$10))*INDEX(Лист3!$B$7:$AQ$96,MATCH(Лист2!$C16,Лист3!$A$7:$A$96,0),MATCH(Лист2!S$1&S$2,Лист3!$B$4:$AQ$4&Лист3!$B$5:$AQ$5,0)),0) -> 0 | T16: =IFERROR(SUMPRODUCT(Лист1!$B$3:$AF$10*(Лист1!$B$1:$AF$1=Лист2!$D16)*(Лист2!$C16=Лист1!$A$3:$A$10))*INDEX(Лист3!$B$7:$AQ$96,MATCH(Лист2!$C16,Лист3!$A$7:$A$96,0),MATCH(Лист2!T$1&T$2,Лист3!$B$4:$AQ$4&Лист3!$B$5:$AQ$5,0)),0) -> 0 | U16: =IFERROR(SUMPRODUCT(Лист1!$B$3:$AF$10*(Лист1!$B$1:$AF$1=Лист2!$D16)*(Лист2!$C16=Лист1!$A$3:$A$10))*INDEX(Лист3!$B$7:$AQ$96,MATCH(Лист2!$C16,Лист3!$A$7:$A$96,0),MATCH(Лист2!U$1&U$2,Лист3!$B$4:$AQ$4&Лист3!$B$5:$AQ$5,0)),0) -> 0 | V16: =IFERROR(SUMPRODUCT(Лист1!$B$3:$AF$10*(Лист1!$B$1:$AF$1=Лист2!$D16)*(Лист2!$C16=Лист1!$A$3:$A$10))*INDEX(Лист3!$B$7:$AQ$96,MATCH(Лист2!$C16,Лист3!$A$7:$A$96,0),MATCH(Лист2!V$1&V$2,Лист3!$B$4:$AQ$4&Лист3!$B$5:$AQ$5,0)),0) -> 0 | W16: =IFERROR(SUMPRODUCT(Лист1!$B$3:$AF$10*(Лист1!$B$1:$AF$1=Лист2!$D16)*(Лист2!$C16=Лист1!$A$3:$A$10))*INDEX(Лист3!$B$7:$AQ$96,MATCH(Лист2!$C16,Лист3!$A$7:$A$96,0),MATCH(Лист2!W$1&W$2,Лист3!$B$4:$AQ$4&Лист3!$B$5:$AQ$5,0)),0) -> 0 | X16: =IFERROR(SUMPRODUCT(Лист1!$B$3:$AF$10*(Лист1!$B$1:$AF$1=Лист2!$D16)*(Лист2!$C16=Лист1!$A$3:$A$10))*INDEX(Лист3!$B$7:$AQ$96,MATCH(Лист2!$C16,Лист3!$A$7:$A$96,0),MATCH(Лист2!X$1&X$2,Лист3!$B$4:$AQ$4&Лист3!$B$5:$AQ$5,0)),0) -> 0 | Y16: =IFERROR(SUMPRODUCT(Лист1!$B$3:$AF$10*(Лист1!$B$1:$AF$1=Лист2!$D16)*(Лист2!$C16=Лист1!$A$3:$A$10))*INDEX(Лист3!$B$7:$AQ$96,MATCH(Лист2!$C16,Лист3!$A$7:$A$96,0),MATCH(Лист2!Y$1&Y$2,Лист3!$B$4:$AQ$4&Лист3!$B$5:$AQ$5,0)),0) -> 0 | Z16: =IFERROR(SUMPRODUCT(Лист1!$B$3:$AF$10*(Лист1!$B$1:$AF$1=Лист2!$D16)*(Лист2!$C16=Лист1!$A$3:$A$10))*INDEX(Лист3!$B$7:$AQ$96,MATCH(Лист2!$C16,Лист3!$A$7:$A$96,0),MATCH(Лист2!Z$1&Z$2,Лист3!$B$4:$AQ$4&Лист3!$B$5:$AQ$5,0)),0) -> 0 | AA16: =IFERROR(SUMPRODUCT(Лист1!$B$3:$AF$10*(Лист1!$B$1:$AF$1=Лист2!$D16)*(Лист2!$C16=Лист1!$A$3:$A$10))*INDEX(Лист3!$B$7:$AQ$96,MATCH(Лист2!$C16,Лист3!$A$7:$A$96,0),MATCH(Лист2!AA$1&AA$2,Лист3!$B$4:$AQ$4&Лист3!$B$5:$AQ$5,0)),0) -> 0
C17: =IFERROR(INDEX(Лист1!$A$3:$A$10,SMALL(IF(ISNUMBER(INDEX(Лист1!$B$3:$AF$10,,MATCH(Лист2!$D17,Лист1!$B$1:$AF$1,0))),ROW(Лист1!$A$3:$A$10)-2),COUNTIF($D$7:D17,D17))),"") ->  | D17: 3 | E17: =IFERROR(SUMPRODUCT(Лист1!$B$3:$AF$10*(Лист1!$B$1:$AF$1=Лист2!$D17)*(Лист2!$C17=Лист1!$A$3:$A$10))*INDEX(Лист3!$B$7:$AQ$96,MATCH(Лист2!$C17,Лист3!$A$7:$A$96,0),MATCH(Лист2!E$1&E$2,Лист3!$B$4:$AQ$4&Лист3!$B$5:$AQ$5,0)),0) -> 0 | F17: =IFERROR(SUMPRODUCT(Лист1!$B$3:$AF$10*(Лист1!$B$1:$AF$1=Лист2!$D17)*(Лист2!$C17=Лист1!$A$3:$A$10))*INDEX(Лист3!$B$7:$AQ$96,MATCH(Лист2!$C17,Лист3!$A$7:$A$96,0),MATCH(Лист2!F$1&F$2,Лист3!$B$4:$AQ$4&Лист3!$B$5:$AQ$5,0)),0) -> 0 | G17: =IFERROR(SUMPRODUCT(Лист1!$B$3:$AF$10*(Лист1!$B$1:$AF$1=Лист2!$D17)*(Лист2!$C17=Лист1!$A$3:$A$10))*INDEX(Лист3!$B$7:$AQ$96,MATCH(Лист2!$C17,Лист3!$A$7:$A$96,0),MATCH(Лист2!G$1&G$2,Лист3!$B$4:$AQ$4&Лист3!$B$5:$AQ$5,0)),0) -> 0 | H17: =IFERROR(SUMPRODUCT(Лист1!$B$3:$AF$10*(Лист1!$B$1:$AF$1=Лист2!$D17)*(Лист2!$C17=Лист1!$A$3:$A$10))*INDEX(Лист3!$B$7:$AQ$96,MATCH(Лист2!$C17,Лист3!$A$7:$A$96,0),MATCH(Лист2!H$1&H$2,Лист3!$B$4:$AQ$4&Лист3!$B$5:$AQ$5,0)),0) -> 0 | I17: =IFERROR(SUMPRODUCT(Лист1!$B$3:$AF$10*(Лист1!$B$1:$AF$1=Лист2!$D17)*(Лист2!$C17=Лист1!$A$3:$A$10))*INDEX(Лист3!$B$7:$AQ$96,MATCH(Лист2!$C17,Лист3!$A$7:$A$96,0),MATCH(Лист2!I$1&I$2,Лист3!$B$4:$AQ$4&Лист3!$B$5:$AQ$5,0)),0) -> 0 | J17: =IFERROR(SUMPRODUCT(Лист1!$B$3:$AF$10*(Лист1!$B$1:$AF$1=Лист2!$D17)*(Лист2!$C17=Лист1!$A$3:$A$10))*INDEX(Лист3!$B$7:$AQ$96,MATCH(Лист2!$C17,Лист3!$A$7:$A$96,0),MATCH(Лист2!J$1&J$2,Лист3!$B$4:$AQ$4&Лист3!$B$5:$AQ$5,0)),0) -> 0 | K17: =IFERROR(SUMPRODUCT(Лист1!$B$3:$AF$10*(Лист1!$B$1:$AF$1=Лист2!$D17)*(Лист2!$C17=Лист1!$A$3:$A$10))*INDEX(Лист3!$B$7:$AQ$96,MATCH(Лист2!$C17,Лист3!$A$7:$A$96,0),MATCH(Лист2!K$1&K$2,Лист3!$B$4:$AQ$4&Лист3!$B$5:$AQ$5,0)),0) -> 0 | L17: =IFERROR(SUMPRODUCT(Лист1!$B$3:$AF$10*(Лист1!$B$1:$AF$1=Лист2!$D17)*(Лист2!$C17=Лист1!$A$3:$A$10))*INDEX(Лист3!$B$7:$AQ$96,MATCH(Лист2!$C17,Лист3!$A$7:$A$96,0),MATCH(Лист2!L$1&L$2,Лист3!$B$4:$AQ$4&Лист3!$B$5:$AQ$5,0)),0) -> 0 | M17: =IFERROR(SUMPRODUCT(Лист1!$B$3:$AF$10*(Лист1!$B$1:$AF$1=Лист2!$D17)*(Лист2!$C17=Лист1!$A$3:$A$10))*INDEX(Лист3!$B$7:$AQ$96,MATCH(Лист2!$C17,Лист3!$A$7:$A$96,0),MATCH(Лист2!M$1&M$2,Лист3!$B$4:$AQ$4&Лист3!$B$5:$AQ$5,0)),0) -> 0 | N17: =IFERROR(SUMPRODUCT(Лист1!$B$3:$AF$10*(Лист1!$B$1:$AF$1=Лист2!$D17)*(Лист2!$C17=Лист1!$A$3:$A$10))*INDEX(Лист3!$B$7:$AQ$96,MATCH(Лист2!$C17,Лист3!$A$7:$A$96,0),MATCH(Лист2!N$1&N$2,Лист3!$B$4:$AQ$4&Лист3!$B$5:$AQ$5,0)),0) -> 0 | O17: =IFERROR(SUMPRODUCT(Лист1!$B$3:$AF$10*(Лист1!$B$1:$AF$1=Лист2!$D17)*(Лист2!$C17=Лист1!$A$3:$A$10))*INDEX(Лист3!$B$7:$AQ$96,MATCH(Лист2!$C17,Лист3!$A$7:$A$96,0),MATCH(Лист2!O$1&O$2,Лист3!$B$4:$AQ$4&Лист3!$B$5:$AQ$5,0)),0) -> 0 | P17: =IFERROR(SUMPRODUCT(Лист1!$B$3:$AF$10*(Лист1!$B$1:$AF$1=Лист2!$D17)*(Лист2!$C17=Лист1!$A$3:$A$10))*INDEX(Лист3!$B$7:$AQ$96,MATCH(Лист2!$C17,Лист3!$A$7:$A$96,0),MATCH(Лист2!P$1&P$2,Лист3!$B$4:$AQ$4&Лист3!$B$5:$AQ$5,0)),0) -> 0 | Q17: =IFERROR(SUMPRODUCT(Лист1!$B$3:$AF$10*(Лист1!$B$1:$AF$1=Лист2!$D17)*(Лист2!$C17=Лист1!$A$3:$A$10))*INDEX(Лист3!$B$7:$AQ$96,MATCH(Лист2!$C17,Лист3!$A$7:$A$96,0),MATCH(Лист2!Q$1&Q$2,Лист3!$B$4:$AQ$4&Лист3!$B$5:$AQ$5,0)),0) -> 0 | R17: =IFERROR(SUMPRODUCT(Лист1!$B$3:$AF$10*(Лист1!$B$1:$AF$1=Лист2!$D17)*(Лист2!$C17=Лист1!$A$3:$A$10))*INDEX(Лист3!$B$7:$AQ$96,MATCH(Лист2!$C17,Лист3!$A$7:$A$96,0),MATCH(Лист2!R$1&R$2,Лист3!$B$4:$AQ$4&Лист3!$B$5:$AQ$5,0)),0) -> 0 | S17: =IFERROR(SUMPRODUCT(Лист1!$B$3:$AF$10*(Лист1!$B$1:$AF$1=Лист2!$D17)*(Лист2!$C17=Лист1!$A$3:$A$10))*INDEX(Лист3!$B$7:$AQ$96,MATCH(Лист2!$C17,Лист3!$A$7:$A$96,0),MATCH(Лист2!S$1&S$2,Лист3!$B$4:$AQ$4&Лист3!$B$5:$AQ$5,0)),0) -> 0 | T17: =IFERROR(SUMPRODUCT(Лист1!$B$3:$AF$10*(Лист1!$B$1:$AF$1=Лист2!$D17)*(Лист2!$C17=Лист1!$A$3:$A$10))*INDEX(Лист3!$B$7:$AQ$96,MATCH(Лист2!$C17,Лист3!$A$7:$A$96,0),MATCH(Лист2!T$1&T$2,Лист3!$B$4:$AQ$4&Лист3!$B$5:$AQ$5,0)),0) -> 0 | U17: =IFERROR(SUMPRODUCT(Лист1!$B$3:$AF$10*(Лист1!$B$1:$AF$1=Лист2!$D17)*(Лист2!$C17=Лист1!$A$3:$A$10))*INDEX(Лист3!$B$7:$AQ$96,MATCH(Лист2!$C17,Лист3!$A$7:$A$96,0),MATCH(Лист2!U$1&U$2,Лист3!$B$4:$AQ$4&Лист3!$B$5:$AQ$5,0)),0) -> 0 | V17: =IFERROR(SUMPRODUCT(Лист1!$B$3:$AF$10*(Лист1!$B$1:$AF$1=Лист2!$D17)*(Лист2!$C17=Лист1!$A$3:$A$10))*INDEX(Лист3!$B$7:$AQ$96,MATCH(Лист2!$C17,Лист3!$A$7:$A$96,0),MATCH(Лист2!V$1&V$2,Лист3!$B$4:$AQ$4&Лист3!$B$5:$AQ$5,0)),0) -> 0 | W17: =IFERROR(SUMPRODUCT(Лист1!$B$3:$AF$10*(Лист1!$B$1:$AF$1=Лист2!$D17)*(Лист2!$C17=Лист1!$A$3:$A$10))*INDEX(Лист3!$B$7:$AQ$96,MATCH(Лист2!$C17,Лист3!$A$7:$A$96,0),MATCH(Лист2!W$1&W$2,Лист3!$B$4:$AQ$4&Лист3!$B$5:$AQ$5,0)),0) -> 0 | X17: =IFERROR(SUMPRODUCT(Лист1!$B$3:$AF$10*(Лист1!$B$1:$AF$1=Лист2!$D17)*(Лист2!$C17=Лист1!$A$3:$A$10))*INDEX(Лист3!$B$7:$AQ$96,MATCH(Лист2!$C17,Лист3!$A$7:$A$96,0),MATCH(Лист2!X$1&X$2,Лист3!$B$4:$AQ$4&Лист3!$B$5:$AQ$5,0)),0) -> 0 | Y17: =IFERROR(SUMPRODUCT(Лист1!$B$3:$AF$10*(Лист1!$B$1:$AF$1=Лист2!$D17)*(Лист2!$C17=Лист1!$A$3:$A$10))*INDEX(Лист3!$B$7:$AQ$96,MATCH(Лист2!$C17,Лист3!$A$7:$A$96,0),MATCH(Лист2!Y$1&Y$2,Лист3!$B$4:$AQ$4&Лист3!$B$5:$AQ$5,0)),0) -> 0 | Z17: =IFERROR(SUMPRODUCT(Лист1!$B$3:$AF$10*(Лист1!$B$1:$AF$1=Лист2!$D17)*(Лист2!$C17=Лист1!$A$3:$A$10))*INDEX(Лист3!$B$7:$AQ$96,MATCH(Лист2!$C17,Лист3!$A$7:$A$96,0),MATCH(Лист2!Z$1&Z$2,Лист3!$B$4:$AQ$4&Лист3!$B$5:$AQ$5,0)),0) -> 0 | AA17: =IFERROR(SUMPRODUCT(Лист1!$B$3:$AF$10*(Лист1!$B$1:$AF$1=Лист2!$D17)*(Лист2!$C17=Лист1!$A$3:$A$10))*INDEX(Лист3!$B$7:$AQ$96,MATCH(Лист2!$C17,Лист3!$A$7:$A$96,0),MATCH(Лист2!AA$1&AA$2,Лист3!$B$4:$AQ$4&Лист3!$B$5:$AQ$5,0)),0) -> 0
C18: =IFERROR(INDEX(Лист1!$A$3:$A$10,SMALL(IF(ISNUMBER(INDEX(Лист1!$B$3:$AF$10,,MATCH(Лист2!$D18,Лист1!$B$1:$AF$1,0))),ROW(Лист1!$A$3:$A$10)-2),COUNTIF($D$7:D18,D18))),"") ->  | D18: 3 | E18: =IFERROR(SUMPRODUCT(Лист1!$B$3:$AF$10*(Лист1!$B$1:$AF$1=Лист2!$D18)*(Лист2!$C18=Лист1!$A$3:$A$10))*INDEX(Лист3!$B$7:$AQ$96,MATCH(Лист2!$C18,Лист3!$A$7:$A$96,0),MATCH(Лист2!E$1&E$2,Лист3!$B$4:$AQ$4&Лист3!$B$5:$AQ$5,0)),0) -> 0 | F18: =IFERROR(SUMPRODUCT(Лист1!$B$3:$AF$10*(Лист1!$B$1:$AF$1=Лист2!$D18)*(Лист2!$C18=Лист1!$A$3:$A$10))*INDEX(Лист3!$B$7:$AQ$96,MATCH(Лист2!$C18,Лист3!$A$7:$A$96,0),MATCH(Лист2!F$1&F$2,Лист3!$B$4:$AQ$4&Лист3!$B$5:$AQ$5,0)),0) -> 0 | G18: =IFERROR(SUMPRODUCT(Лист1!$B$3:$AF$10*(Лист1!$B$1:$AF$1=Лист2!$D18)*(Лист2!$C18=Лист1!$A$3:$A$10))*INDEX(Лист3!$B$7:$AQ$96,MATCH(Лист2!$C18,Лист3!$A$7:$A$96,0),MATCH(Лист2!G$1&G$2,Лист3!$B$4:$AQ$4&Лист3!$B$5:$AQ$5,0)),0) -> 0 | H18: =IFERROR(SUMPRODUCT(Лист1!$B$3:$AF$10*(Лист1!$B$1:$AF$1=Лист2!$D18)*(Лист2!$C18=Лист1!$A$3:$A$10))*INDEX(Лист3!$B$7:$AQ$96,MATCH(Лист2!$C18,Лист3!$A$7:$A$96,0),MATCH(Лист2!H$1&H$2,Лист3!$B$4:$AQ$4&Лист3!$B$5:$AQ$5,0)),0) -> 0 | I18: =IFERROR(SUMPRODUCT(Лист1!$B$3:$AF$10*(Лист1!$B$1:$AF$1=Лист2!$D18)*(Лист2!$C18=Лист1!$A$3:$A$10))*INDEX(Лист3!$B$7:$AQ$96,MATCH(Лист2!$C18,Лист3!$A$7:$A$96,0),MATCH(Лист2!I$1&I$2,Лист3!$B$4:$AQ$4&Лист3!$B$5:$AQ$5,0)),0) -> 0 | J18: =IFERROR(SUMPRODUCT(Лист1!$B$3:$AF$10*(Лист1!$B$1:$AF$1=Лист2!$D18)*(Лист2!$C18=Лист1!$A$3:$A$10))*INDEX(Лист3!$B$7:$AQ$96,MATCH(Лист2!$C18,Лист3!$A$7:$A$96,0),MATCH(Лист2!J$1&J$2,Лист3!$B$4:$AQ$4&Лист3!$B$5:$AQ$5,0)),0) -> 0 | K18: =IFERROR(SUMPRODUCT(Лист1!$B$3:$AF$10*(Лист1!$B$1:$AF$1=Лист2!$D18)*(Лист2!$C18=Лист1!$A$3:$A$10))*INDEX(Лист3!$B$7:$AQ$96,MATCH(Лист2!$C18,Лист3!$A$7:$A$96,0),MATCH(Лист2!K$1&K$2,Лист3!$B$4:$AQ$4&Лист3!$B$5:$AQ$5,0)),0) -> 0 | L18: =IFERROR(SUMPRODUCT(Лист1!$B$3:$AF$10*(Лист1!$B$1:$AF$1=Лист2!$D18)*(Лист2!$C18=Лист1!$A$3:$A$10))*INDEX(Лист3!$B$7:$AQ$96,MATCH(Лист2!$C18,Лист3!$A$7:$A$96,0),MATCH(Лист2!L$1&L$2,Лист3!$B$4:$AQ$4&Лист3!$B$5:$AQ$5,0)),0) -> 0 | M18: =IFERROR(SUMPRODUCT(Лист1!$B$3:$AF$10*(Лист1!$B$1:$AF$1=Лист2!$D18)*(Лист2!$C18=Лист1!$A$3:$A$10))*INDEX(Лист3!$B$7:$AQ$96,MATCH(Лист2!$C18,Лист3!$A$7:$A$96,0),MATCH(Лист2!M$1&M$2,Лист3!$B$4:$AQ$4&Лист3!$B$5:$AQ$5,0)),0) -> 0 | N18: =IFERROR(SUMPRODUCT(Лист1!$B$3:$AF$10*(Лист1!$B$1:$AF$1=Лист2!$D18)*(Лист2!$C18=Лист1!$A$3:$A$10))*INDEX(Лист3!$B$7:$AQ$96,MATCH(Лист2!$C18,Лист3!$A$7:$A$96,0),MATCH(Лист2!N$1&N$2,Лист3!$B$4:$AQ$4&Лист3!$B$5:$AQ$5,0)),0) -> 0 | O18: =IFERROR(SUMPRODUCT(Лист1!$B$3:$AF$10*(Лист1!$B$1:$AF$1=Лист2!$D18)*(Лист2!$C18=Лист1!$A$3:$A$10))*INDEX(Лист3!$B$7:$AQ$96,MATCH(Лист2!$C18,Лист3!$A$7:$A$96,0),MATCH(Лист2!O$1&O$2,Лист3!$B$4:$AQ$4&Лист3!$B$5:$AQ$5,0)),0) -> 0 | P18: =IFERROR(SUMPRODUCT(Лист1!$B$3:$AF$10*(Лист1!$B$1:$AF$1=Лист2!$D18)*(Лист2!$C18=Лист1!$A$3:$A$10))*INDEX(Лист3!$B$7:$AQ$96,MATCH(Лист2!$C18,Лист3!$A$7:$A$96,0),MATCH(Лист2!P$1&P$2,Лист3!$B$4:$AQ$4&Лист3!$B$5:$AQ$5,0)),0) -> 0 | Q18: =IFERROR(SUMPRODUCT(Лист1!$B$3:$AF$10*(Лист1!$B$1:$AF$1=Лист2!$D18)*(Лист2!$C18=Лист1!$A$3:$A$10))*INDEX(Лист3!$B$7:$AQ$96,MATCH(Лист2!$C18,Лист3!$A$7:$A$96,0),MATCH(Лист2!Q$1&Q$2,Лист3!$B$4:$AQ$4&Лист3!$B$5:$AQ$5,0)),0) -> 0 | R18: =IFERROR(SUMPRODUCT(Лист1!$B$3:$AF$10*(Лист1!$B$1:$AF$1=Лист2!$D18)*(Лист2!$C18=Лист1!$A$3:$A$10))*INDEX(Лист3!$B$7:$AQ$96,MATCH(Лист2!$C18,Лист3!$A$7:$A$96,0),MATCH(Лист2!R$1&R$2,Лист3!$B$4:$AQ$4&Лист3!$B$5:$AQ$5,0)),0) -> 0 | S18: =IFERROR(SUMPRODUCT(Лист1!$B$3:$AF$10*(Лист1!$B$1:$AF$1=Лист2!$D18)*(Лист2!$C18=Лист1!$A$3:$A$10))*INDEX(Лист3!$B$7:$AQ$96,MATCH(Лист2!$C18,Лист3!$A$7:$A$96,0),MATCH(Лист2!S$1&S$2,Лист3!$B$4:$AQ$4&Лист3!$B$5:$AQ$5,0)),0) -> 0 | T18: =IFERROR(SUMPRODUCT(Лист1!$B$3:$AF$10*(Лист1!$B$1:$AF$1=Лист2!$D18)*(Лист2!$C18=Лист1!$A$3:$A$10))*INDEX(Лист3!$B$7:$AQ$96,MATCH(Лист2!$C18,Лист3!$A$7:$A$96,0),MATCH(Лист2!T$1&T$2,Лист3!$B$4:$AQ$4&Лист3!$B$5:$AQ$5,0)),0) -> 0 | U18: =IFERROR(SUMPRODUCT(Лист1!$B$3:$AF$10*(Лист1!$B$1:$AF$1=Лист2!$D18)*(Лист2!$C18=Лист1!$A$3:$A$10))*INDEX(Лист3!$B$7:$AQ$96,MATCH(Лист2!$C18,Лист3!$A$7:$A$96,0),MATCH(Лист2!U$1&U$2,Лист3!$B$4:$AQ$4&Лист3!$B$5:$AQ$5,0)),0) -> 0 | V18: =IFERROR(SUMPRODUCT(Лист1!$B$3:$AF$10*(Лист1!$B$1:$AF$1=Лист2!$D18)*(Лист2!$C18=Лист1!$A$3:$A$10))*INDEX(Лист3!$B$7:$AQ$96,MATCH(Лист2!$C18,Лист3!$A$7:$A$96,0),MATCH(Лист2!V$1&V$2,Лист3!$B$4:$AQ$4&Лист3!$B$5:$AQ$5,0)),0) -> 0 | W18: =IFERROR(SUMPRODUCT(Лист1!$B$3:$AF$10*(Лист1!$B$1:$AF$1=Лист2!$D18)*(Лист2!$C18=Лист1!$A$3:$A$10))*INDEX(Лист3!$B$7:$AQ$96,MATCH(Лист2!$C18,Лист3!$A$7:$A$96,0),MATCH(Лист2!W$1&W$2,Лист3!$B$4:$AQ$4&Лист3!$B$5:$AQ$5,0)),0) -> 0 | X18: =IFERROR(SUMPRODUCT(Лист1!$B$3:$AF$10*(Лист1!$B$1:$AF$1=Лист2!$D18)*(Лист2!$C18=Лист1!$A$3:$A$10))*INDEX(Лист3!$B$7:$AQ$96,MATCH(Лист2!$C18,Лист3!$A$7:$A$96,0),MATCH(Лист2!X$1&X$2,Лист3!$B$4:$AQ$4&Лист3!$B$5:$AQ$5,0)),0) -> 0 | Y18: =IFERROR(SUMPRODUCT(Лист1!$B$3:$AF$10*(Лист1!$B$1:$AF$1=Лист2!$D18)*(Лист2!$C18=Лист1!$A$3:$A$10))*INDEX(Лист3!$B$7:$AQ$96,MATCH(Лист2!$C18,Лист3!$A$7:$A$96,0),MATCH(Лист2!Y$1&Y$2,Лист3!$B$4:$AQ$4&Лист3!$B$5:$AQ$5,0)),0) -> 0 | Z18: =IFERROR(SUMPRODUCT(Лист1!$B$3:$AF$10*(Лист1!$B$1:$AF$1=Лист2!$D18)*(Лист2!$C18=Лист1!$A$3:$A$10))*INDEX(Лист3!$B$7:$AQ$96,MATCH(Лист2!$C18,Лист3!$A$7:$A$96,0),MATCH(Лист2!Z$1&Z$2,Лист3!$B$4:$AQ$4&Лист3!$B$5:$AQ$5,0)),0) -> 0 | AA18: =IFERROR(SUMPRODUCT(Лист1!$B$3:$AF$10*(Лист1!$B$1:$AF$1=Лист2!$D18)*(Лист2!$C18=Лист1!$A$3:$A$10))*INDEX(Лист3!$B$7:$AQ$96,MATCH(Лист2!$C18,Лист3!$A$7:$A$96,0),MATCH(Лист2!AA$1&AA$2,Лист3!$B$4:$AQ$4&Лист3!$B$5:$AQ$5,0)),0) -> 0
C19: =IFERROR(INDEX(Лист1!$A$3:$A$10,SMALL(IF(ISNUMBER(INDEX(Лист1!$B$3:$AF$10,,MATCH(Лист2!$D19,Лист1!$B$1:$AF$1,0))),ROW(Лист1!$A$3:$A$10)-2),COUNTIF($D$7:D19,D19))),"") -> Плита "Экстрол" 30-1180.580.50/8 (Ч), м3 | D19: 4 | E19: =IFERROR(SUMPRODUCT(Лист1!$B$3:$AF$10*(Лист1!$B$1:$AF$1=Лист2!$D19)*(Лист2!$C19=Лист1!$A$3:$A$10))*INDEX(Лист3!$B$7:$AQ$96,MATCH(Лист2!$C19,Лист3!$A$7:$A$96,0),MATCH(Лист2!E$1&E$2,Лист3!$B$4:$AQ$4&Лист3!$B$5:$AQ$5,0)),0) -> 540 | F19: =IFERROR(SUMPRODUCT(Лист1!$B$3:$AF$10*(Лист1!$B$1:$AF$1=Лист2!$D19)*(Лист2!$C19=Лист1!$A$3:$A$10))*INDEX(Лист3!$B$7:$AQ$96,MATCH(Лист2!$C19,Лист3!$A$7:$A$96,0),MATCH(Лист2!F$1&F$2,Лист3!$B$4:$AQ$4&Лист3!$B$5:$AQ$5,0)),0) -> 2180 | G19: =IFERROR(SUMPRODUCT(Лист1!$B$3:$AF$10*(Лист1!$B$1:$AF$1=Лист2!$D19)*(Лист2!$C19=Лист1!$A$3:$A$10))*INDEX(Лист3!$B$7:$AQ$96,MATCH(Лист2!$C19,Лист3!$A$7:$A$96,0),MATCH(Лист2!G$1&G$2,Лист3!$B$4:$AQ$4&Лист3!$B$5:$AQ$5,0)),0) -> 10 | H19: =IFERROR(SUMPRODUCT(Лист1!$B$3:$AF$10*(Лист1!$B$1:$AF$1=Лист2!$D19)*(Лист2!$C19=Лист1!$A$3:$A$10))*INDEX(Лист3!$B$7:$AQ$96,MATCH(Лист2!$C19,Лист3!$A$7:$A$96,0),MATCH(Лист2!H$1&H$2,Лист3!$B$4:$AQ$4&Лист3!$B$5:$AQ$5,0)),0) -> 7 | I19: =IFERROR(SUMPRODUCT(Лист1!$B$3:$AF$10*(Лист1!$B$1:$AF$1=Лист2!$D19)*(Лист2!$C19=Лист1!$A$3:$A$10))*INDEX(Лист3!$B$7:$AQ$96,MATCH(Лист2!$C19,Лист3!$A$7:$A$96,0),MATCH(Лист2!I$1&I$2,Лист3!$B$4:$AQ$4&Лист3!$B$5:$AQ$5,0)),0) -> 0 | J19: =IFERROR(SUMPRODUCT(Лист1!$B$3:$AF$10*(Лист1!$B$1:$AF$1=Лист2!$D19)*(Лист2!$C19=Лист1!$A$3:$A$10))*INDEX(Лист3!$B$7:$AQ$96,MATCH(Лист2!$C19,Лист3!$A$7:$A$96,0),MATCH(Лист2!J$1&J$2,Лист3!$B$4:$AQ$4&Лист3!$B$5:$AQ$5,0)),0) -> 2 | K19: =IFERROR(SUMPRODUCT(Лист1!$B$3:$AF$10*(Лист1!$B$1:$AF$1=Лист2!$D19)*(Лист2!$C19=Лист1!$A$3:$A$10))*INDEX(Лист3!$B$7:$AQ$96,MATCH(Лист2!$C19,Лист3!$A$7:$A$96,0),MATCH(Лист2!K$1&K$2,Лист3!$B$4:$AQ$4&Лист3!$B$5:$AQ$5,0)),0) -> 0 | L19: =IFERROR(SUMPRODUCT(Лист1!$B$3:$AF$10*(Лист1!$B$1:$AF$1=Лист2!$D19)*(Лист2!$C19=Лист1!$A$3:$A$10))*INDEX(Лист3!$B$7:$AQ$96,MATCH(Лист2!$C19,Лист3!$A$7:$A$96,0),MATCH(Лист2!L$1&L$2,Лист3!$B$4:$AQ$4&Лист3!$B$5:$AQ$5,0)),0) -> 2 | M19: =IFERROR(SUMPRODUCT(Лист1!$B$3:$AF$10*(Лист1!$B$1:$AF$1=Лист2!$D19)*(Лист2!$C19=Лист1!$A$3:$A$10))*INDEX(Лист3!$B$7:$AQ$96,MATCH(Лист2!$C19,Лист3!$A$7:$A$96,0),MATCH(Лист2!M$1&M$2,Лист3!$B$4:$AQ$4&Лист3!$B$5:$AQ$5,0)),0) -> 90 | N19: =IFERROR(SUMPRODUCT(Лист1!$B$3:$AF$10*(Лист1!$B$1:$AF$1=Лист2!$D19)*(Лист2!$C19=Лист1!$A$3:$A$10))*INDEX(Лист3!$B$7:$AQ$96,MATCH(Лист2!$C19,Лист3!$A$7:$A$96,0),MATCH(Лист2!N$1&N$2,Лист3!$B$4:$AQ$4&Лист3!$B$5:$AQ$5,0)),0) -> 50 | O19: =IFERROR(SUMPRODUCT(Лист1!$B$3:$AF$10*(Лист1!$B$1:$AF$1=Лист2!$D19)*(Лист2!$C19=Лист1!$A$3:$A$10))*INDEX(Лист3!$B$7:$AQ$96,MATCH(Лист2!$C19,Лист3!$A$7:$A$96,0),MATCH(Лист2!O$1&O$2,Лист3!$B$4:$AQ$4&Лист3!$B$5:$AQ$5,0)),0) -> 0 | P19: =IFERROR(SUMPRODUCT(Лист1!$B$3:$AF$10*(Лист1!$B$1:$AF$1=Лист2!$D19)*(Лист2!$C19=Лист1!$A$3:$A$10))*INDEX(Лист3!$B$7:$AQ$96,MATCH(Лист2!$C19,Лист3!$A$7:$A$96,0),MATCH(Лист2!P$1&P$2,Лист3!$B$4:$AQ$4&Лист3!$B$5:$AQ$5,0)),0) -> 89 | Q19: =IFERROR(SUMPRODUCT(Лист1!$B$3:$AF$10*(Лист1!$B$1:$AF$1=Лист2!$D19)*(Лист2!$C19=Лист1!$A$3:$A$10))*INDEX(Лист3!$B$7:$AQ$96,MATCH(Лист2!$C19,Лист3!$A$7:$A$96,0),MATCH(Лист2!Q$1&Q$2,Лист3!$B$4:$AQ$4&Лист3!$B$5:$AQ$5,0)),0) -> 0 | R19: =IFERROR(SUMPRODUCT(Лист1!$B$3:$AF$10*(Лист1!$B$1:$AF$1=Лист2!$D19)*(Лист2!$C19=Лист1!$A$3:$A$10))*INDEX(Лист3!$B$7:$AQ$96,MATCH(Лист2!$C19,Лист3!$A$7:$A$96,0),MATCH(Лист2!R$1&R$2,Лист3!$B$4:$AQ$4&Лист3!$B$5:$AQ$5,0)),0) -> 10 | S19: =IFERROR(SUMPRODUCT(Лист1!$B$3:$AF$10*(Лист1!$B$1:$AF$1=Лист2!$D19)*(Лист2!$C19=Лист1!$A$3:$A$10))*INDEX(Лист3!$B$7:$AQ$96,MATCH(Лист2!$C19,Лист3!$A$7:$A$96,0),MATCH(Лист2!S$1&S$2,Лист3!$B$4:$AQ$4&Лист3!$B$5:$AQ$5,0)),0) -> 0.6 | T19: =IFERROR(SUMPRODUCT(Лист1!$B$3:$AF$10*(Лист1!$B$1:$AF$1=Лист2!$D19)*(Лист2!$C19=Лист1!$A$3:$A$10))*INDEX(Лист3!$B$7:$AQ$96,MATCH(Лист2!$C19,Лист3!$A$7:$A$96,0),MATCH(Лист2!T$1&T$2,Лист3!$B$4:$AQ$4&Лист3!$B$5:$AQ$5,0)),0) -> 0 | U19: =IFERROR(SUMPRODUCT(Лист1!$B$3:$AF$10*(Лист1!$B$1:$AF$1=Лист2!$D19)*(Лист2!$C19=Лист1!$A$3:$A$10))*INDEX(Лист3!$B$7:$AQ$96,MATCH(Лист2!$C19,Лист3!$A$7:$A$96,0),MATCH(Лист2!U$1&U$2,Лист3!$B$4:$AQ$4&Лист3!$B$5:$AQ$5,0)),0) -> 0 | V19: =IFERROR(SUMPRODUCT(Лист1!$B$3:$AF$10*(Лист1!$B$1:$AF$1=Лист2!$D19)*(Лист2!$C19=Лист1!$A$3:$A$10))*INDEX(Лист3!$B$7:$AQ$96,MATCH(Лист2!$C19,Лист3!$A$7:$A$96,0),MATCH(Лист2!V$1&V$2,Лист3!$B$4:$AQ$4&Лист3!$B$5:$AQ$5,0)),0) -> 0 | W19: =IFERROR(SUMPRODUCT(Лист1!$B$3:$AF$10*(Лист1!$B$1:$AF$1=Лист2!$D19)*(Лист2!$C19=Лист1!$A$3:$A$10))*INDEX(Лист3!$B$7:$AQ$96,MATCH(Лист2!$C19,Лист3!$A$7:$A$96,0),MATCH(Лист2!W$1&W$2,Лист3!$B$4:$AQ$4&Лист3!$B$5:$AQ$5,0)),0) -> 0 | X19: =IFERROR(SUMPRODUCT(Лист1!$B$3:$AF$10*(Лист1!$B$1:$AF$1=Лист2!$D19)*(Лист2!$C19=Лист1!$A$3:$A$10))*INDEX(Лист3!$B$7:$AQ$96,MATCH(Лист2!$C19,Лист3!$A$7:$A$96,0),MATCH(Лист2!X$1&X$2,Лист3!$B$4:$AQ$4&Лист3!$B$5:$AQ$5,0)),0) -> 1.6 | Y19: =IFERROR(SUMPRODUCT(Лист1!$B$3:$AF$10*(Лист1!$B$1:$AF$1=Лист2!$D19)*(Лист2!$C19=Лист1!$A$3:$A$10))*INDEX(Лист3!$B$7:$AQ$96,MATCH(Лист2!$C19,Лист3!$A$7:$A$96,0),MATCH(Лист2!Y$1&Y$2,Лист3!$B$4:$AQ$4&Лист3!$B$5:$AQ$5,0)),0) -> 0 | Z19: =IFERROR(SUMPRODUCT(Лист1!$B$3:$AF$10*(Лист1!$B$1:$AF$1=Лист2!$D19)*(Лист2!$C19=Лист1!$A$3:$A$10))*INDEX(Лист3!$B$7:$AQ$96,MATCH(Лист2!$C19,Лист3!$A$7:$A$96,0),MATCH(Лист2!Z$1&Z$2,Лист3!$B$4:$AQ$4&Лист3!$B$5:$AQ$5,0)),0) -> 0.25 | AA19: =IFERROR(SUMPRODUCT(Лист1!$B$3:$AF$10*(Лист1!$B$1:$AF$1=Лист2!$D19)*(Лист2!$C19=Лист1!$A$3:$A$10))*INDEX(Лист3!$B$7:$AQ$96,MATCH(Лист2!$C19,Лист3!$A$7:$A$96,0),MATCH(Лист2!AA$1&AA$2,Лист3!$B$4:$AQ$4&Лист3!$B$5:$AQ$5,0)),0) -> 1.5
C20: =IFERROR(INDEX(Лист1!$A$3:$A$10,SMALL(IF(ISNUMBER(INDEX(Лист1!$B$3:$AF$10,,MATCH(Лист2!$D20,Лист1!$B$1:$AF$1,0))),ROW(Лист1!$A$3:$A$10)-2),COUNTIF($D$7:D20,D20))),"") -> Плита "Экстрол" 35-1180.580.50/8 (Ч) Г4, м3 | D20: 4 | E20: =IFERROR(SUMPRODUCT(Лист1!$B$3:$AF$10*(Лист1!$B$1:$AF$1=Лист2!$D20)*(Лист2!$C20=Лист1!$A$3:$A$10))*INDEX(Лист3!$B$7:$AQ$96,MATCH(Лист2!$C20,Лист3!$A$7:$A$96,0),MATCH(Лист2!E$1&E$2,Лист3!$B$4:$AQ$4&Лист3!$B$5:$AQ$5,0)),0) -> 610 | F20: =IFERROR(SUMPRODUCT(Лист1!$B$3:$AF$10*(Лист1!$B$1:$AF$1=Лист2!$D20)*(Лист2!$C20=Лист1!$A$3:$A$10))*INDEX(Лист3!$B$7:$AQ$96,MATCH(Лист2!$C20,Лист3!$A$7:$A$96,0),MATCH(Лист2!F$1&F$2,Лист3!$B$4:$AQ$4&Лист3!$B$5:$AQ$5,0)),0) -> 2040 | G20: =IFERROR(SUMPRODUCT(Лист1!$B$3:$AF$10*(Лист1!$B$1:$AF$1=Лист2!$D20)*(Лист2!$C20=Лист1!$A$3:$A$10))*INDEX(Лист3!$B$7:$AQ$96,MATCH(Лист2!$C20,Лист3!$A$7:$A$96,0),MATCH(Лист2!G$1&G$2,Лист3!$B$4:$AQ$4&Лист3!$B$5:$AQ$5,0)),0) -> 15 | H20: =IFERROR(SUMPRODUCT(Лист1!$B$3:$AF$10*(Лист1!$B$1:$AF$1=Лист2!$D20)*(Лист2!$C20=Лист1!$A$3:$A$10))*INDEX(Лист3!$B$7:$AQ$96,MATCH(Лист2!$C20,Лист3!$A$7:$A$96,0),MATCH(Лист2!H$1&H$2,Лист3!$B$4:$AQ$4&Лист3!$B$5:$AQ$5,0)),0) -> 12 | I20: =IFERROR(SUMPRODUCT(Лист1!$B$3:$AF$10*(Лист1!$B$1:$AF$1=Лист2!$D20)*(Лист2!$C20=Лист1!$A$3:$A$10))*INDEX(Лист3!$B$7:$AQ$96,MATCH(Лист2!$C20,Лист3!$A$7:$A$96,0),MATCH(Лист2!I$1&I$2,Лист3!$B$4:$AQ$4&Лист3!$B$5:$AQ$5,0)),0) -> 0 | J20: =IFERROR(SUMPRODUCT(Лист1!$B$3:$AF$10*(Лист1!$B$1:$AF$1=Лист2!$D20)*(Лист2!$C20=Лист1!$A$3:$A$10))*INDEX(Лист3!$B$7:$AQ$96,MATCH(Лист2!$C20,Лист3!$A$7:$A$96,0),MATCH(Лист2!J$1&J$2,Лист3!$B$4:$AQ$4&Лист3!$B$5:$AQ$5,0)),0) -> 2 | K20: =IFERROR(SUMPRODUCT(Лист1!$B$3:$AF$10*(Лист1!$B$1:$AF$1=Лист2!$D20)*(Лист2!$C20=Лист1!$A$3:$A$10))*INDEX(Лист3!$B$7:$AQ$96,MATCH(Лист2!$C20,Лист3!$A$7:$A$96,0),MATCH(Лист2!K$1&K$2,Лист3!$B$4:$AQ$4&Лист3!$B$5:$AQ$5,0)),0) -> 0 | L20: =IFERROR(SUMPRODUCT(Лист1!$B$3:$AF$10*(Лист1!$B$1:$AF$1=Лист2!$D20)*(Лист2!$C20=Лист1!$A$3:$A$10))*INDEX(Лист3!$B$7:$AQ$96,MATCH(Лист2!$C20,Лист3!$A$7:$A$96,0),MATCH(Лист2!L$1&L$2,Лист3!$B$4:$AQ$4&Лист3!$B$5:$AQ$5,0)),0) -> 3 | M20: =IFERROR(SUMPRODUCT(Лист1!$B$3:$AF$10*(Лист1!$B$1:$AF$1=Лист2!$D20)*(Лист2!$C20=Лист1!$A$3:$A$10))*INDEX(Лист3!$B$7:$AQ$96,MATCH(Лист2!$C20,Лист3!$A$7:$A$96,0),MATCH(Лист2!M$1&M$2,Лист3!$B$4:$AQ$4&Лист3!$B$5:$AQ$5,0)),0) -> 120 | N20: =IFERROR(SUMPRODUCT(Лист1!$B$3:$AF$10*(Лист1!$B$1:$AF$1=Лист2!$D20)*(Лист2!$C20=Лист1!$A$3:$A$10))*INDEX(Лист3!$B$7:$AQ$96,MATCH(Лист2!$C20,Лист3!$A$7:$A$96,0),MATCH(Лист2!N$1&N$2,Лист3!$B$4:$AQ$4&Лист3!$B$5:$AQ$5,0)),0) -> 60 | O20: =IFERROR(SUMPRODUCT(Лист1!$B$3:$AF$10*(Лист1!$B$1:$AF$1=Лист2!$D20)*(Лист2!$C20=Лист1!$A$3:$A$10))*INDEX(Лист3!$B$7:$AQ$96,MATCH(Лист2!$C20,Лист3!$A$7:$A$96,0),MATCH(Лист2!O$1&O$2,Лист3!$B$4:$AQ$4&Лист3!$B$5:$AQ$5,0)),0) -> 0 | P20: =IFERROR(SUMPRODUCT(Лист1!$B$3:$AF$10*(Лист1!$B$1:$AF$1=Лист2!$D20)*(Лист2!$C20=Лист1!$A$3:$A$10))*INDEX(Лист3!$B$7:$AQ$96,MATCH(Лист2!$C20,Лист3!$A$7:$A$96,0),MATCH(Лист2!P$1&P$2,Лист3!$B$4:$AQ$4&Лист3!$B$5:$AQ$5,0)),0) -> 80 | Q20: =IFERROR(SUMPRODUCT(Лист1!$B$3:$AF$10*(Лист1!$B$1:$AF$1=Лист2!$D20)*(Лист2!$C20=Лист1!$A$3:$A$10))*INDEX(Лист3!$B$7:$AQ$96,MATCH(Лист2!$C20,Лист3!$A$7:$A$96,0),MATCH(Лист2!Q$1&Q$2,Лист3!$B$4:$AQ$4&Лист3!$B$5:$AQ$5,0)),0) -> 0 | R20: =IFERROR(SUMPRODUCT(Лист1!$B$3:$AF$10*(Лист1!$B$1:$AF$1=Лист2!$D20)*(Лист2!$C20=Лист1!$A$3:$A$10))*INDEX(Лист3!$B$7:$AQ$96,MATCH(Лист2!$C20,Лист3!$A$7:$A$96,0),MATCH(Лист2!R$1&R$2,Лист3!$B$4:$AQ$4&Лист3!$B$5:$AQ$5,0)),0) -> 10 | S20: =IFERROR(SUMPRODUCT(Лист1!$B$3:$AF$10*(Лист1!$B$1:$AF$1=Лист2!$D20)*(Лист2!$C20=Лист1!$A$3:$A$10))*INDEX(Лист3!$B$7:$AQ$96,MATCH(Лист2!$C20,Лист3!$A$7:$A$96,0),MATCH(Лист2!S$1&S$2,Лист3!$B$4:$AQ$4&Лист3!$B$5:$AQ$5,0)),0) -> 0.6 | T20: =IFERROR(SUMPRODUCT(Лист1!$B$3:$AF$10*(Лист1!$B$1:$AF$1=Лист2!$D20)*(Лист2!$C20=Лист1!$A$3:$A$10))*INDEX(Лист3!$B$7:$AQ$96,MATCH(Лист2!$C20,Лист3!$A$7:$A$96,0),MATCH(Лист2!T$1&T$2,Лист3!$B$4:$AQ$4&Лист3!$B$5:$AQ$5,0)),0) -> 0 | U20: =IFERROR(SUMPRODUCT(Лист1!$B$3:$AF$10*(Лист1!$B$1:$AF$1=Лист2!$D20)*(Лист2!$C20=Лист1!$A$3:$A$10))*INDEX(Лист3!$B$7:$AQ$96,MATCH(Лист2!$C20,Лист3!$A$7:$A$96,0),MATCH(Лист2!U$1&U$2,Лист3!$B$4:$AQ$4&Лист3!$B$5:$AQ$5,0)),0) -> 0 | V20: =IFERROR(SUMPRODUCT(Лист1!$B$3:$AF$10*(Лист1!$B$1:$AF$1=Лист2!$D20)*(Лист2!$C20=Лист1!$A$3:$A$10))*INDEX(Лист3!$B$7:$AQ$96,MATCH(Лист2!$C20,Лист3!$A$7:$A$96,0),MATCH(Лист2!V$1&V$2,Лист3!$B$4:$AQ$4&Лист3!$B$5:$AQ$5,0)),0) -> 0 | W20: =IFERROR(SUMPRODUCT(Лист1!$B$3:$AF$10*(Лист1!$B$1:$AF$1=Лист2!$D20)*(Лист2!$C20=Лист1!$A$3:$A$10))*INDEX(Лист3!$B$7:$AQ$96,MATCH(Лист2!$C20,Лист3!$A$7:$A$96,0),MATCH(Лист2!W$1&W$2,Лист3!$B$4:$AQ$4&Лист3!$B$5:$AQ$5,0)),0) -> 0 | X20: =IFERROR(SUMPRODUCT(Лист1!$B$3:$AF$10*(Лист1!$B$1:$AF$1=Лист2!$D20)*(Лист2!$C20=Лист1!$A$3:$A$10))*INDEX(Лист3!$B$7:$AQ$96,MATCH(Лист2!$C20,Лист3!$A$7:$A$96,0),MATCH(Лист2!X$1&X$2,Лист3!$B$4:$AQ$4&Лист3!$B$5:$AQ$5,0)),0) -> 1.6 | Y20: =IFERROR(SUMPRODUCT(Лист1!$B$3:$AF$10*(Лист1!$B$1:$AF$1=Лист2!$D20)*(Лист2!$C20=Лист1!$A$3:$A$10))*INDEX(Лист3!$B$7:$AQ$96,MATCH(Лист2!$C20,Лист3!$A$7:$A$96,0),MATCH(Лист2!Y$1&Y$2,Лист3!$B$4:$AQ$4&Лист3!$B$5:$AQ$5,0)),0) -> 0 | Z20: =IFERROR(SUMPRODUCT(Лист1!$B$3:$AF$10*(Лист1!$B$1:$AF$1=Лист2!$D20)*(Лист2!$C20=Лист1!$A$3:$A$10))*INDEX(Лист3!$B$7:$AQ$96,MATCH(Лист2!$C20,Лист3!$A$7:$A$96,0),MATCH(Лист2!Z$1&Z$2,Лист3!$B$4:$AQ$4&Лист3!$B$5:$AQ$5,0)),0) -> 0.25 | AA20: =IFERROR(SUMPRODUCT(Лист1!$B$3:$AF$10*(Лист1!$B$1:$AF$1=Лист2!$D20)*(Лист2!$C20=Лист1!$A$3:$A$10))*INDEX(Лист3!$B$7:$AQ$96,MATCH(Лист2!$C20,Лист3!$A$7:$A$96,0),MATCH(Лист2!AA$1&AA$2,Лист3!$B$4:$AQ$4&Лист3!$B$5:$AQ$5,0)),0) -> 4.7
C21: =IFERROR(INDEX(Лист1!$A$3:$A$10,SMALL(IF(ISNUMBER(INDEX(Лист1!$B$3:$AF$10,,MATCH(Лист2!$D21,Лист1!$B$1:$AF$1,0))),ROW(Лист1!$A$3:$A$10)-2),COUNTIF($D$7:D21,D21))),"") ->  | D21: 4 | E21: =IFERROR(SUMPRODUCT(Лист1!$B$3:$AF$10*(Лист1!$B$1:$AF$1=Лист2!$D21)*(Лист2!$C21=Лист1!$A$3:$A$10))*INDEX(Лист3!$B$7:$AQ$96,MATCH(Лист2!$C21,Лист3!$A$7:$A$96,0),MATCH(Лист2!E$1&E$2,Лист3!$B$4:$AQ$4&Лист3!$B$5:$AQ$5,0)),0) -> 0 | F21: =IFERROR(SUMPRODUCT(Лист1!$B$3:$AF$10*(Лист1!$B$1:$AF$1=Лист2!$D21)*(Лист2!$C21=Лист1!$A$3:$A$10))*INDEX(Лист3!$B$7:$AQ$96,MATCH(Лист2!$C21,Лист3!$A$7:$A$96,0),MATCH(Лист2!F$1&F$2,Лист3!$B$4:$AQ$4&Лист3!$B$5:$AQ$5,0)),0) -> 0 | G21: =IFERROR(SUMPRODUCT(Лист1!$B$3:$AF$10*(Лист1!$B$1:$AF$1=Лист2!$D21)*(Лист2!$C21=Лист1!$A$3:$A$10))*INDEX(Лист3!$B$7:$AQ$96,MATCH(Лист2!$C21,Лист3!$A$7:$A$96,0),MATCH(Лист2!G$1&G$2,Лист3!$B$4:$AQ$4&Лист3!$B$5:$AQ$5,0)),0) -> 0 | H21: =IFERROR(SUMPRODUCT(Лист1!$B$3:$AF$10*(Лист1!$B$1:$AF$1=Лист2!$D21)*(Лист2!$C21=Лист1!$A$3:$A$10))*INDEX(Лист3!$B$7:$AQ$96,MATCH(Лист2!$C21,Лист3!$A$7:$A$96,0),MATCH(Лист2!H$1&H$2,Лист3!$B$4:$AQ$4&Лист3!$B$5:$AQ$5,0)),0) -> 0 | I21: =IFERROR(SUMPRODUCT(Лист1!$B$3:$AF$10*(Лист1!$B$1:$AF$1=Лист2!$D21)*(Лист2!$C21=Лист1!$A$3:$A$10))*INDEX(Лист3!$B$7:$AQ$96,MATCH(Лист2!$C21,Лист3!$A$7:$A$96,0),MATCH(Лист2!I$1&I$2,Лист3!$B$4:$AQ$4&Лист3!$B$5:$AQ$5,0)),0) -> 0 | J21: =IFERROR(SUMPRODUCT(Лист1!$B$3:$AF$10*(Лист1!$B$1:$AF$1=Лист2!$D21)*(Лист2!$C21=Лист1!$A$3:$A$10))*INDEX(Лист3!$B$7:$AQ$96,MATCH(Лист2!$C21,Лист3!$A$7:$A$96,0),MATCH(Лист2!J$1&J$2,Лист3!$B$4:$AQ$4&Лист3!$B$5:$AQ$5,0)),0) -> 0 | K21: =IFERROR(SUMPRODUCT(Лист1!$B$3:$AF$10*(Лист1!$B$1:$AF$1=Лист2!$D21)*(Лист2!$C21=Лист1!$A$3:$A$10))*INDEX(Лист3!$B$7:$AQ$96,MATCH(Лист2!$C21,Лист3!$A$7:$A$96,0),MATCH(Лист2!K$1&K$2,Лист3!$B$4:$AQ$4&Лист3!$B$5:$AQ$5,0)),0) -> 0 | L21: =IFERROR(SUMPRODUCT(Лист1!$B$3:$AF$10*(Лист1!$B$1:$AF$1=Лист2!$D21)*(Лист2!$C21=Лист1!$A$3:$A$10))*INDEX(Лист3!$B$7:$AQ$96,MATCH(Лист2!$C21,Лист3!$A$7:$A$96,0),MATCH(Лист2!L$1&L$2,Лист3!$B$4:$AQ$4&Лист3!$B$5:$AQ$5,0)),0) -> 0 | M21: =IFERROR(SUMPRODUCT(Лист1!$B$3:$AF$10*(Лист1!$B$1:$AF$1=Лист2!$D21)*(Лист2!$C21=Лист1!$A$3:$A$10))*INDEX(Лист3!$B$7:$AQ$96,MATCH(Лист2!$C21,Лист3!$A$7:$A$96,0),MATCH(Лист2!M$1&M$2,Лист3!$B$4:$AQ$4&Лист3!$B$5:$AQ$5,0)),0) -> 0 | N21: =IFERROR(SUMPRODUCT(Лист1!$B$3:$AF$10*(Лист1!$B$1:$AF$1=Лист2!$D21)*(Лист2!$C21=Лист1!$A$3:$A$10))*INDEX(Лист3!$B$7:$AQ$96,MATCH(Лист2!$C21,Лист3!$A$7:$A$96,0),MATCH(Лист2!N$1&N$2,Лист3!$B$4:$AQ$4&Лист3!$B$5:$AQ$5,0)),0) -> 0 | O21: =IFERROR(SUMPRODUCT(Лист1!$B$3:$AF$10*(Лист1!$B$1:$AF$1=Лист2!$D21)*(Лист2!$C21=Лист1!$A$3:$A$10))*INDEX(Лист3!$B$7:$AQ$96,MATCH(Лист2!$C21,Лист3!$A$7:$A$96,0),MATCH(Лист2!O$1&O$2,Лист3!$B$4:$AQ$4&Лист3!$B$5:$AQ$5,0)),0) -> 0 | P21: =IFERROR(SUMPRODUCT(Лист1!$B$3:$AF$10*(Лист1!$B$1:$AF$1=Лист2!$D21)*(Лист2!$C21=Лист1!$A$3:$A$10))*INDEX(Лист3!$B$7:$AQ$96,MATCH(Лист2!$C21,Лист3!$A$7:$A$96,0),MATCH(Лист2!P$1&P$2,Лист3!$B$4:$AQ$4&Лист3!$B$5:$AQ$5,0)),0) -> 0 | Q21: =IFERROR(SUMPRODUCT(Лист1!$B$3:$AF$10*(Лист1!$B$1:$AF$1=Лист2!$D21)*(Лист2!$C21=Лист1!$A$3:$A$10))*INDEX(Лист3!$B$7:$AQ$96,MATCH(Лист2!$C21,Лист3!$A$7:$A$96,0),MATCH(Лист2!Q$1&Q$2,Лист3!$B$4:$AQ$4&Лист3!$B$5:$AQ$5,0)),0) -> 0 | R21: =IFERROR(SUMPRODUCT(Лист1!$B$3:$AF$10*(Лист1!$B$1:$AF$1=Лист2!$D21)*(Лист2!$C21=Лист1!$A$3:$A$10))*INDEX(Лист3!$B$7:$AQ$96,MATCH(Лист2!$C21,Лист3!$A$7:$A$96,0),MATCH(Лист2!R$1&R$2,Лист3!$B$4:$AQ$4&Лист3!$B$5:$AQ$5,0)),0) -> 0 | S21: =IFERROR(SUMPRODUCT(Лист1!$B$3:$AF$10*(Лист1!$B$1:$AF$1=Лист2!$D21)*(Лист2!$C21=Лист1!$A$3:$A$10))*INDEX(Лист3!$B$7:$AQ$96,MATCH(Лист2!$C21,Лист3!$A$7:$A$96,0),MATCH(Лист2!S$1&S$2,Лист3!$B$4:$AQ$4&Лист3!$B$5:$AQ$5,0)),0) -> 0 | T21: =IFERROR(SUMPRODUCT(Лист1!$B$3:$AF$10*(Лист1!$B$1:$AF$1=Лист2!$D21)*(Лист2!$C21=Лист1!$A$3:$A$10))*INDEX(Лист3!$B$7:$AQ$96,MATCH(Лист2!$C21,Лист3!$A$7:$A$96,0),MATCH(Лист2!T$1&T$2,Лист3!$B$4:$AQ$4&Лист3!$B$5:$AQ$5,0)),0) -> 0 | U21: =IFERROR(SUMPRODUCT(Лист1!$B$3:$AF$10*(Лист1!$B$1:$AF$1=Лист2!$D21)*(Лист2!$C21=Лист1!$A$3:$A$10))*INDEX(Лист3!$B$7:$AQ$96,MATCH(Лист2!$C21,Лист3!$A$7:$A$96,0),MATCH(Лист2!U$1&U$2,Лист3!$B$4:$AQ$4&Лист3!$B$5:$AQ$5,0)),0) -> 0 | V21: =IFERROR(SUMPRODUCT(Лист1!$B$3:$AF$10*(Лист1!$B$1:$AF$1=Лист2!$D21)*(Лист2!$C21=Лист1!$A$3:$A$10))*INDEX(Лист3!$B$7:$AQ$96,MATCH(Лист2!$C21,Лист3!$A$7:$A$96,0),MATCH(Лист2!V$1&V$2,Лист3!$B$4:$AQ$4&Лист3!$B$5:$AQ$5,0)),0) -> 0 | W21: =IFERROR(SUMPRODUCT(Лист1!$B$3:$AF$10*(Лист1!$B$1:$AF$1=Лист2!$D21)*(Лист2!$C21=Лист1!$A$3:$A$10))*INDEX(Лист3!$B$7:$AQ$96,MATCH(Лист2!$C21,Лист3!$A$7:$A$96,0),MATCH(Лист2!W$1&W$2,Лист3!$B$4:$AQ$4&Лист3!$B$5:$AQ$5,0)),0) -> 0 | X21: =IFERROR(SUMPRODUCT(Лист1!$B$3:$AF$10*(Лист1!$B$1:$AF$1=Лист2!$D21)*(Лист2!$C21=Лист1!$A$3:$A$10))*INDEX(Лист3!$B$7:$AQ$96,MATCH(Лист2!$C21,Лист3!$A$7:$A$96,0),MATCH(Лист2!X$1&X$2,Лист3!$B$4:$AQ$4&Лист3!$B$5:$AQ$5,0)),0) -> 0 | Y21: =IFERROR(SUMPRODUCT(Лист1!$B$3:$AF$10*(Лист1!$B$1:$AF$1=Лист2!$D21)*(Лист2!$C21=Лист1!$A$3:$A$10))*INDEX(Лист3!$B$7:$AQ$96,MATCH(Лист2!$C21,Лист3!$A$7:$A$96,0),MATCH(Лист2!Y$1&Y$2,Лист3!$B$4:$AQ$4&Лист3!$B$5:$AQ$5,0)),0) -> 0 | Z21: =IFERROR(SUMPRODUCT(Лист1!$B$3:$AF$10*(Лист1!$B$1:$AF$1=Лист2!$D21)*(Лист2!$C21=Лист1!$A$3:$A$10))*INDEX(Лист3!$B$7:$AQ$96,MATCH(Лист2!$C21,Лист3!$A$7:$A$96,0),MATCH(Лист2!Z$1&Z$2,Лист3!$B$4:$AQ$4&Лист3!$B$5:$AQ$5,0)),0) -> 0 | AA21: =IFERROR(SUMPRODUCT(Лист1!$B$3:$AF$10*(Лист1!$B$1:$AF$1=Лист2!$D21)*(Лист2!$C21=Лист1!$A$3:$A$10))*INDEX(Лист3!$B$7:$AQ$96,MATCH(Лист2!$C21,Лист3!$A$7:$A$96,0),MATCH(Лист2!AA$1&AA$2,Лист3!$B$4:$AQ$4&Лист3!$B$5:$AQ$5,0)),0) -> 0
C22: =IFERROR(INDEX(Лист1!$A$3:$A$10,SMALL(IF(ISNUMBER(INDEX(Лист1!$B$3:$AF$10,,MATCH(Лист2!$D22,Лист1!$B$1:$AF$1,0))),ROW(Лист1!$A$3:$A$10)-2),COUNTIF($D$7:D22,D22))),"") ->  | D22: 4 | E22: =IFERROR(SUMPRODUCT(Лист1!$B$3:$AF$10*(Лист1!$B$1:$AF$1=Лист2!$D22)*(Лист2!$C22=Лист1!$A$3:$A$10))*INDEX(Лист3!$B$7:$AQ$96,MATCH(Лист2!$C22,Лист3!$A$7:$A$96,0),MATCH(Лист2!E$1&E$2,Лист3!$B$4:$AQ$4&Лист3!$B$5:$AQ$5,0)),0) -> 0 | F22: =IFERROR(SUMPRODUCT(Лист1!$B$3:$AF$10*(Лист1!$B$1:$AF$1=Лист2!$D22)*(Лист2!$C22=Лист1!$A$3:$A$10))*INDEX(Лист3!$B$7:$AQ$96,MATCH(Лист2!$C22,Лист3!$A$7:$A$96,0),MATCH(Лист2!F$1&F$2,Лист3!$B$4:$AQ$4&Лист3!$B$5:$AQ$5,0)),0) -> 0 | G22: =IFERROR(SUMPRODUCT(Лист1!$B$3:$AF$10*(Лист1!$B$1:$AF$1=Лист2!$D22)*(Лист2!$C22=Лист1!$A$3:$A$10))*INDEX(Лист3!$B$7:$AQ$96,MATCH(Лист2!$C22,Лист3!$A$7:$A$96,0),MATCH(Лист2!G$1&G$2,Лист3!$B$4:$AQ$4&Лист3!$B$5:$AQ$5,0)),0) -> 0 | H22: =IFERROR(SUMPRODUCT(Лист1!$B$3:$AF$10*(Лист1!$B$1:$AF$1=Лист2!$D22)*(Лист2!$C22=Лист1!$A$3:$A$10))*INDEX(Лист3!$B$7:$AQ$96,MATCH(Лист2!$C22,Лист3!$A$7:$A$96,0),MATCH(Лист2!H$1&H$2,Лист3!$B$4:$AQ$4&Лист3!$B$5:$AQ$5,0)),0) -> 0 | I22: =IFERROR(SUMPRODUCT(Лист1!$B$3:$AF$10*(Лист1!$B$1:$AF$1=Лист2!$D22)*(Лист2!$C22=Лист1!$A$3:$A$10))*INDEX(Лист3!$B$7:$AQ$96,MATCH(Лист2!$C22,Лист3!$A$7:$A$96,0),MATCH(Лист2!I$1&I$2,Лист3!$B$4:$AQ$4&Лист3!$B$5:$AQ$5,0)),0) -> 0 | J22: =IFERROR(SUMPRODUCT(Лист1!$B$3:$AF$10*(Лист1!$B$1:$AF$1=Лист2!$D22)*(Лист2!$C22=Лист1!$A$3:$A$10))*INDEX(Лист3!$B$7:$AQ$96,MATCH(Лист2!$C22,Лист3!$A$7:$A$96,0),MATCH(Лист2!J$1&J$2,Лист3!$B$4:$AQ$4&Лист3!$B$5:$AQ$5,0)),0) -> 0 | K22: =IFERROR(SUMPRODUCT(Лист1!$B$3:$AF$10*(Лист1!$B$1:$AF$1=Лист2!$D22)*(Лист2!$C22=Лист1!$A$3:$A$10))*INDEX(Лист3!$B$7:$AQ$96,MATCH(Лист2!$C22,Лист3!$A$7:$A$96,0),MATCH(Лист2!K$1&K$2,Лист3!$B$4:$AQ$4&Лист3!$B$5:$AQ$5,0)),0) -> 0 | L22: =IFERROR(SUMPRODUCT(Лист1!$B$3:$AF$10*(Лист1!$B$1:$AF$1=Лист2!$D22)*(Лист2!$C22=Лист1!$A$3:$A$10))*INDEX(Лист3!$B$7:$AQ$96,MATCH(Лист2!$C22,Лист3!$A$7:$A$96,0),MATCH(Лист2!L$1&L$2,Лист3!$B$4:$AQ$4&Лист3!$B$5:$AQ$5,0)),0) -> 0 | M22: =IFERROR(SUMPRODUCT(Лист1!$B$3:$AF$10*(Лист1!$B$1:$AF$1=Лист2!$D22)*(Лист2!$C22=Лист1!$A$3:$A$10))*INDEX(Лист3!$B$7:$AQ$96,MATCH(Лист2!$C22,Лист3!$A$7:$A$96,0),MATCH(Лист2!M$1&M$2,Лист3!$B$4:$AQ$4&Лист3!$B$5:$AQ$5,0)),0) -> 0 | N22: =IFERROR(SUMPRODUCT(Лист1!$B$3:$AF$10*(Лист1!$B$1:$AF$1=Лист2!$D22)*(Лист2!$C22=Лист1!$A$3:$A$10))*INDEX(Лист3!$B$7:$AQ$96,MATCH(Лист2!$C22,Лист3!$A$7:$A$96,0),MATCH(Лист2!N$1&N$2,Лист3!$B$4:$AQ$4&Лист3!$B$5:$AQ$5,0)),0) -> 0 | O22: =IFERROR(SUMPRODUCT(Лист1!$B$3:$AF$10*(Лист1!$B$1:$AF$1=Лист2!$D22)*(Лист2!$C22=Лист1!$A$3:$A$10))*INDEX(Лист3!$B$7:$AQ$96,MATCH(Лист2!$C22,Лист3!$A$7:$A$96,0),MATCH(Лист2!O$1&O$2,Лист3!$B$4:$AQ$4&Лист3!$B$5:$AQ$5,0)),0) -> 0 | P22: =IFERROR(SUMPRODUCT(Лист1!$B$3:$AF$10*(Лист1!$B$1:$AF$1=Лист2!$D22)*(Лист2!$C22=Лист1!$A$3:$A$10))*INDEX(Лист3!$B$7:$AQ$96,MATCH(Лист2!$C22,Лист3!$A$7:$A$96,0),MATCH(Лист2!P$1&P$2,Лист3!$B$4:$AQ$4&Лист3!$B$5:$AQ$5,0)),0) -> 0 | Q22: =IFERROR(SUMPRODUCT(Лист1!$B$3:$AF$10*(Лист1!$B$1:$AF$1=Лист2!$D22)*(Лист2!$C22=Лист1!$A$3:$A$10))*INDEX(Лист3!$B$7:$AQ$96,MATCH(Лист2!$C22,Лист3!$A$7:$A$96,0),MATCH(Лист2!Q$1&Q$2,Лист3!$B$4:$AQ$4&Лист3!$B$5:$AQ$5,0)),0) -> 0 | R22: =IFERROR(SUMPRODUCT(Лист1!$B$3:$AF$10*(Лист1!$B$1:$AF$1=Лист2!$D22)*(Лист2!$C22=Лист1!$A$3:$A$10))*INDEX(Лист3!$B$7:$AQ$96,MATCH(Лист2!$C22,Лист3!$A$7:$A$96,0),MATCH(Лист2!R$1&R$2,Лист3!$B$4:$AQ$4&Лист3!$B$5:$AQ$5,0)),0) -> 0 | S22: =IFERROR(SUMPRODUCT(Лист1!$B$3:$AF$10*(Лист1!$B$1:$AF$1=Лист2!$D22)*(Лист2!$C22=Лист1!$A$3:$A$10))*INDEX(Лист3!$B$7:$AQ$96,MATCH(Лист2!$C22,Лист3!$A$7:$A$96,0),MATCH(Лист2!S$1&S$2,Лист3!$B$4:$AQ$4&Лист3!$B$5:$AQ$5,0)),0) -> 0 | T22: =IFERROR(SUMPRODUCT(Лист1!$B$3:$AF$10*(Лист1!$B$1:$AF$1=Лист2!$D22)*(Лист2!$C22=Лист1!$A$3:$A$10))*INDEX(Лист3!$B$7:$AQ$96,MATCH(Лист2!$C22,Лист3!$A$7:$A$96,0),MATCH(Лист2!T$1&T$2,Лист3!$B$4:$AQ$4&Лист3!$B$5:$AQ$5,0)),0) -> 0 | U22: =IFERROR(SUMPRODUCT(Лист1!$B$3:$AF$10*(Лист1!$B$1:$AF$1=Лист2!$D22)*(Лист2!$C22=Лист1!$A$3:$A$10))*INDEX(Лист3!$B$7:$AQ$96,MATCH(Лист2!$C22,Лист3!$A$7:$A$96,0),MATCH(Лист2!U$1&U$2,Лист3!$B$4:$AQ$4&Лист3!$B$5:$AQ$5,0)),0) -> 0 | V22: =IFERROR(SUMPRODUCT(Лист1!$B$3:$AF$10*(Лист1!$B$1:$AF$1=Лист2!$D22)*(Лист2!$C22=Лист1!$A$3:$A$10))*INDEX(Лист3!$B$7:$AQ$96,MATCH(Лист2!$C22,Лист3!$A$7:$A$96,0),MATCH(Лист2!V$1&V$2,Лист3!$B$4:$AQ$4&Лист3!$B$5:$AQ$5,0)),0) -> 0 | W22: =IFERROR(SUMPRODUCT(Лист1!$B$3:$AF$10*(Лист1!$B$1:$AF$1=Лист2!$D22)*(Лист2!$C22=Лист1!$A$3:$A$10))*INDEX(Лист3!$B$7:$AQ$96,MATCH(Лист2!$C22,Лист3!$A$7:$A$96,0),MATCH(Лист2!W$1&W$2,Лист3!$B$4:$AQ$4&Лист3!$B$5:$AQ$5,0)),0) -> 0 | X22: =IFERROR(SUMPRODUCT(Лист1!$B$3:$AF$10*(Лист1!$B$1:$AF$1=Лист2!$D22)*(Лист2!$C22=Лист1!$A$3:$A$10))*INDEX(Лист3!$B$7:$AQ$96,MATCH(Лист2!$C22,Лист3!$A$7:$A$96,0),MATCH(Лист2!X$1&X$2,Лист3!$B$4:$AQ$4&Лист3!$B$5:$AQ$5,0)),0) -> 0 | Y22: =IFERROR(SUMPRODUCT(Лист1!$B$3:$AF$10*(Лист1!$B$1:$AF$1=Лист2!$D22)*(Лист2!$C22=Лист1!$A$3:$A$10))*INDEX(Лист3!$B$7:$AQ$96,MATCH(Лист2!$C22,Лист3!$A$7:$A$96,0),MATCH(Лист2!Y$1&Y$2,Лист3!$B$4:$AQ$4&Лист3!$B$5:$AQ$5,0)),0) -> 0 | Z22: =IFERROR(SUMPRODUCT(Лист1!$B$3:$AF$10*(Лист1!$B$1:$AF$1=Лист2!$D22)*(Лист2!$C22=Лист1!$A$3:$A$10))*INDEX(Лист3!$B$7:$AQ$96,MATCH(Лист2!$C22,Лист3!$A$7:$A$96,0),MATCH(Лист2!Z$1&Z$2,Лист3!$B$4:$AQ$4&Лист3!$B$5:$AQ$5,0)),0) -> 0 | AA22: =IFERROR(SUMPRODUCT(Лист1!$B$3:$AF$10*(Лист1!$B$1:$AF$1=Лист2!$D22)*(Лист2!$C22=Лист1!$A$3:$A$10))*INDEX(Лист3!$B$7:$AQ$96,MATCH(Лист2!$C22,Лист3!$A$7:$A$96,0),MATCH(Лист2!AA$1&AA$2,Лист3!$B$4:$AQ$4&Лист3!$B$5:$AQ$5,0)),0) -> 0
C23: =IFERROR(INDEX(Лист1!$A$3:$A$10,SMALL(IF(ISNUMBER(INDEX(Лист1!$B$3:$AF$10,,MATCH(Лист2!$D23,Лист1!$B$1:$AF$1,0))),ROW(Лист1!$A$3:$A$10)-2),COUNTIF($D$7:D23,D23))),"") -> Плита "Экстрол" 45-1180.580.50/8 (Ч), м3 | D23: 5 | E23: =IFERROR(SUMPRODUCT(Лист1!$B$3:$AF$10*(Лист1!$B$1:$AF$1=Лист2!$D23)*(Лист2!$C23=Лист1!$A$3:$A$10))*INDEX(Лист3!$B$7:$AQ$96,MATCH(Лист2!$C23,Лист3!$A$7:$A$96,0),MATCH(Лист2!E$1&E$2,Лист3!$B$4:$AQ$4&Лист3!$B$5:$AQ$5,0)),0) -> 2040 | F23: =IFERROR(SUMPRODUCT(Лист1!$B$3:$AF$10*(Лист1!$B$1:$AF$1=Лист2!$D23)*(Лист2!$C23=Лист1!$A$3:$A$10))*INDEX(Лист3!$B$7:$AQ$96,MATCH(Лист2!$C23,Лист3!$A$7:$A$96,0),MATCH(Лист2!F$1&F$2,Лист3!$B$4:$AQ$4&Лист3!$B$5:$AQ$5,0)),0) -> 4880 | G23: =IFERROR(SUMPRODUCT(Лист1!$B$3:$AF$10*(Лист1!$B$1:$AF$1=Лист2!$D23)*(Лист2!$C23=Лист1!$A$3:$A$10))*INDEX(Лист3!$B$7:$AQ$96,MATCH(Лист2!$C23,Лист3!$A$7:$A$96,0),MATCH(Лист2!G$1&G$2,Лист3!$B$4:$AQ$4&Лист3!$B$5:$AQ$5,0)),0) -> 0 | H23: =IFERROR(SUMPRODUCT(Лист1!$B$3:$AF$10*(Лист1!$B$1:$AF$1=Лист2!$D23)*(Лист2!$C23=Лист1!$A$3:$A$10))*INDEX(Лист3!$B$7:$AQ$96,MATCH(Лист2!$C23,Лист3!$A$7:$A$96,0),MATCH(Лист2!H$1&H$2,Лист3!$B$4:$AQ$4&Лист3!$B$5:$AQ$5,0)),0) -> 52 | I23: =IFERROR(SUMPRODUCT(Лист1!$B$3:$AF$10*(Лист1!$B$1:$AF$1=Лист2!$D23)*(Лист2!$C23=Лист1!$A$3:$A$10))*INDEX(Лист3!$B$7:$AQ$96,MATCH(Лист2!$C23,Лист3!$A$7:$A$96,0),MATCH(Лист2!I$1&I$2,Лист3!$B$4:$AQ$4&Лист3!$B$5:$AQ$5,0)),0) -> 0 | J23: =IFERROR(SUMPRODUCT(Лист1!$B$3:$AF$10*(Лист1!$B$1:$AF$1=Лист2!$D23)*(Лист2!$C23=Лист1!$A$3:$A$10))*INDEX(Лист3!$B$7:$AQ$96,MATCH(Лист2!$C23,Лист3!$A$7:$A$96,0),MATCH(Лист2!J$1&J$2,Лист3!$B$4:$AQ$4&Лист3!$B$5:$AQ$5,0)),0) -> 4 | K23: =IFERROR(SUMPRODUCT(Лист1!$B$3:$AF$10*(Лист1!$B$1:$AF$1=Лист2!$D23)*(Лист2!$C23=Лист1!$A$3:$A$10))*INDEX(Лист3!$B$7:$AQ$96,MATCH(Лист2!$C23,Лист3!$A$7:$A$96,0),MATCH(Лист2!K$1&K$2,Лист3!$B$4:$AQ$4&Лист3!$B$5:$AQ$5,0)),0) -> 0 | L23: =IFERROR(SUMPRODUCT(Лист1!$B$3:$AF$10*(Лист1!$B$1:$AF$1=Лист2!$D23)*(Лист2!$C23=Лист1!$A$3:$A$10))*INDEX(Лист3!$B$7:$AQ$96,MATCH(Лист2!$C23,Лист3!$A$7:$A$96,0),MATCH(Лист2!L$1&L$2,Лист3!$B$4:$AQ$4&Лист3!$B$5:$AQ$5,0)),0) -> 6 | M23: =IFERROR(SUMPRODUCT(Лист1!$B$3:$AF$10*(Лист1!$B$1:$AF$1=Лист2!$D23)*(Лист2!$C23=Лист1!$A$3:$A$10))*INDEX(Лист3!$B$7:$AQ$96,MATCH(Лист2!$C23,Лист3!$A$7:$A$96,0),MATCH(Лист2!M$1&M$2,Лист3!$B$4:$AQ$4&Лист3!$B$5:$AQ$5,0)),0) -> 320 | N23: =IFERROR(SUMPRODUCT(Лист1!$B$3:$AF$10*(Лист1!$B$1:$AF$1=Лист2!$D23)*(Лист2!$C23=Лист1!$A$3:$A$10))*INDEX(Лист3!$B$7:$AQ$96,MATCH(Лист2!$C23,Лист3!$A$7:$A$96,0),MATCH(Лист2!N$1&N$2,Лист3!$B$4:$AQ$4&Лист3!$B$5:$AQ$5,0)),0) -> 80 | O23: =IFERROR(SUMPRODUCT(Лист1!$B$3:$AF$10*(Лист1!$B$1:$AF$1=Лист2!$D23)*(Лист2!$C23=Лист1!$A$3:$A$10))*INDEX(Лист3!$B$7:$AQ$96,MATCH(Лист2!$C23,Лист3!$A$7:$A$96,0),MATCH(Лист2!O$1&O$2,Лист3!$B$4:$AQ$4&Лист3!$B$5:$AQ$5,0)),0) -> 0 | P23: =IFERROR(SUMPRODUCT(Лист1!$B$3:$AF$10*(Лист1!$B$1:$AF$1=Лист2!$D23)*(Лист2!$C23=Лист1!$A$3:$A$10))*INDEX(Лист3!$B$7:$AQ$96,MATCH(Лист2!$C23,Лист3!$A$7:$A$96,0),MATCH(Лист2!P$1&P$2,Лист3!$B$4:$AQ$4&Лист3!$B$5:$AQ$5,0)),0) -> 180 | Q23: =IFERROR(SUMPRODUCT(Лист1!$B$3:$AF$10*(Лист1!$B$1:$AF$1=Лист2!$D23)*(Лист2!$C23=Лист1!$A$3:$A$10))*INDEX(Лист3!$B$7:$AQ$96,MATCH(Лист2!$C23,Лист3!$A$7:$A$96,0),MATCH(Лист2!Q$1&Q$2,Лист3!$B$4:$AQ$4&Лист3!$B$5:$AQ$5,0)),0) -> 0 | R23: =IFERROR(SUMPRODUCT(Лист1!$B$3:$AF$10*(Лист1!$B$1:$AF$1=Лист2!$D23)*(Лист2!$C23=Лист1!$A$3:$A$10))*INDEX(Лист3!$B$7:$AQ$96,MATCH(Лист2!$C23,Лист3!$A$7:$A$96,0),MATCH(Лист2!R$1&R$2,Лист3!$B$4:$AQ$4&Лист3!$B$5:$AQ$5,0)),0) -> 20 | S23: =IFERROR(SUMPRODUCT(Лист1!$B$3:$AF$10*(Лист1!$B$1:$AF$1=Лист2!$D23)*(Лист2!$C23=Лист1!$A$3:$A$10))*INDEX(Лист3!$B$7:$AQ$96,MATCH(Лист2!$C23,Лист3!$A$7:$A$96,0),MATCH(Лист2!S$1&S$2,Лист3!$B$4:$AQ$4&Лист3!$B$5:$AQ$5,0)),0) -> 1.2 | T23: =IFERROR(SUMPRODUCT(Лист1!$B$3:$AF$10*(Лист1!$B$1:$AF$1=Лист2!$D23)*(Лист2!$C23=Лист1!$A$3:$A$10))*INDEX(Лист3!$B$7:$AQ$96,MATCH(Лист2!$C23,Лист3!$A$7:$A$96,0),MATCH(Лист2!T$1&T$2,Лист3!$B$4:$AQ$4&Лист3!$B$5:$AQ$5,0)),0) -> 0 | U23: =IFERROR(SUMPRODUCT(Лист1!$B$3:$AF$10*(Лист1!$B$1:$AF$1=Лист2!$D23)*(Лист2!$C23=Лист1!$A$3:$A$10))*INDEX(Лист3!$B$7:$AQ$96,MATCH(Лист2!$C23,Лист3!$A$7:$A$96,0),MATCH(Лист2!U$1&U$2,Лист3!$B$4:$AQ$4&Лист3!$B$5:$AQ$5,0)),0) -> 0 | V23: =IFERROR(SUMPRODUCT(Лист1!$B$3:$AF$10*(Лист1!$B$1:$AF$1=Лист2!$D23)*(Лист2!$C23=Лист1!$A$3:$A$10))*INDEX(Лист3!$B$7:$AQ$96,MATCH(Лист2!$C23,Лист3!$A$7:$A$96,0),MATCH(Лист2!V$1&V$2,Лист3!$B$4:$AQ$4&Лист3!$B$5:$AQ$5,0)),0) -> 0 | W23: =IFERROR(SUMPRODUCT(Лист1!$B$3:$AF$10*(Лист1!$B$1:$AF$1=Лист2!$D23)*(Лист2!$C23=Лист1!$A$3:$A$10))*INDEX(Лист3!$B$7:$AQ$96,MATCH(Лист2!$C23,Лист3!$A$7:$A$96,0),MATCH(Лист2!W$1&W$2,Лист3!$B$4:$AQ$4&Лист3!$B$5:$AQ$5,0)),0) -> 0 | X23: =IFERROR(SUMPRODUCT(Лист1!$B$3:$AF$10*(Лист1!$B$1:$AF$1=Лист2!$D23)*(Лист2!$C23=Лист1!$A$3:$A$10))*INDEX(Лист3!$B$7:$AQ$96,MATCH(Лист2!$C23,Лист3!$A$7:$A$96,0),MATCH(Лист2!X$1&X$2,Лист3!$B$4:$AQ$4&Лист3!$B$5:$AQ$5,0)),0) -> 3.2 | Y23: =IFERROR(SUMPRODUCT(Лист1!$B$3:$AF$10*(Лист1!$B$1:$AF$1=Лист2!$D23)*(Лист2!$C23=Лист1!$A$3:$A$10))*INDEX(Лист3!$B$7:$AQ$96,MATCH(Лист2!$C23,Лист3!$A$7:$A$96,0),MATCH(Лист2!Y$1&Y$2,Лист3!$B$4:$AQ$4&Лист3!$B$5:$AQ$5,0)),0) -> 0 | Z23: =IFERROR(SUMPRODUCT(Лист1!$B$3:$AF$10*(Лист1!$B$1:$AF$1=Лист2!$D23)*(Лист2!$C23=Лист1!$A$3:$A$10))*INDEX(Лист3!$B$7:$AQ$96,MATCH(Лист2!$C23,Лист3!$A$7:$A$96,0),MATCH(Лист2!Z$1&Z$2,Лист3!$B$4:$AQ$4&Лист3!$B$5:$AQ$5,0)),0) -> 0.5 | AA23: =IFERROR(SUMPRODUCT(Лист1!$B$3:$AF$10*(Лист1!$B$1:$AF$1=Лист2!$D23)*(Лист2!$C23=Лист1!$A$3:$A$10))*INDEX(Лист3!$B$7:$AQ$96,MATCH(Лист2!$C23,Лист3!$A$7:$A$96,0),MATCH(Лист2!AA$1&AA$2,Лист3!$B$4:$AQ$4&Лист3!$B$5:$AQ$5,0)),0) -> 9.4
C24: =IFERROR(INDEX(Лист1!$A$3:$A$10,SMALL(IF(ISNUMBER(INDEX(Лист1!$B$3:$AF$10,,MATCH(Лист2!$D24,Лист1!$B$1:$AF$1,0))),ROW(Лист1!$A$3:$A$10)-2),COUNTIF($D$7:D24,D24))),"") -> Плита "Экстрол" 40-1180.580.50/8 (Ч) Г4, м3 | D24: 5 | E24: =IFERROR(SUMPRODUCT(Лист1!$B$3:$AF$10*(Лист1!$B$1:$AF$1=Лист2!$D24)*(Лист2!$C24=Лист1!$A$3:$A$10))*INDEX(Лист3!$B$7:$AQ$96,MATCH(Лист2!$C24,Лист3!$A$7:$A$96,0),MATCH(Лист2!E$1&E$2,Лист3!$B$4:$AQ$4&Лист3!$B$5:$AQ$5,0)),0) -> 2160 | F24: =IFERROR(SUMPRODUCT(Лист1!$B$3:$AF$10*(Лист1!$B$1:$AF$1=Лист2!$D24)*(Лист2!$C24=Лист1!$A$3:$A$10))*INDEX(Лист3!$B$7:$AQ$96,MATCH(Лист2!$C24,Лист3!$A$7:$A$96,0),MATCH(Лист2!F$1&F$2,Лист3!$B$4:$AQ$4&Лист3!$B$5:$AQ$5,0)),0) -> 6420 | G24: =IFERROR(SUMPRODUCT(Лист1!$B$3:$AF$10*(Лист1!$B$1:$AF$1=Лист2!$D24)*(Лист2!$C24=Лист1!$A$3:$A$10))*INDEX(Лист3!$B$7:$AQ$96,MATCH(Лист2!$C24,Лист3!$A$7:$A$96,0),MATCH(Лист2!G$1&G$2,Лист3!$B$4:$AQ$4&Лист3!$B$5:$AQ$5,0)),0) -> 0.03402286336 | H24: =IFERROR(SUMPRODUCT(Лист1!$B$3:$AF$10*(Лист1!$B$1:$AF$1=Лист2!$D24)*(Лист2!$C24=Лист1!$A$3:$A$10))*INDEX(Лист3!$B$7:$AQ$96,MATCH(Лист2!$C24,Лист3!$A$7:$A$96,0),MATCH(Лист2!H$1&H$2,Лист3!$B$4:$AQ$4&Лист3!$B$5:$AQ$5,0)),0) -> 41.76 | I24: =IFERROR(SUMPRODUCT(Лист1!$B$3:$AF$10*(Лист1!$B$1:$AF$1=Лист2!$D24)*(Лист2!$C24=Лист1!$A$3:$A$10))*INDEX(Лист3!$B$7:$AQ$96,MATCH(Лист2!$C24,Лист3!$A$7:$A$96,0),MATCH(Лист2!I$1&I$2,Лист3!$B$4:$AQ$4&Лист3!$B$5:$AQ$5,0)),0) -> 0 | J24: =IFERROR(SUMPRODUCT(Лист1!$B$3:$AF$10*(Лист1!$B$1:$AF$1=Лист2!$D24)*(Лист2!$C24=Лист1!$A$3:$A$10))*INDEX(Лист3!$B$7:$AQ$96,MATCH(Лист2!$C24,Лист3!$A$7:$A$96,0),MATCH(Лист2!J$1&J$2,Лист3!$B$4:$AQ$4&Лист3!$B$5:$AQ$5,0)),0) -> 0 | K24: =IFERROR(SUMPRODUCT(Лист1!$B$3:$AF$10*(Лист1!$B$1:$AF$1=Лист2!$D24)*(Лист2!$C24=Лист1!$A$3:$A$10))*INDEX(Лист3!$B$7:$AQ$96,MATCH(Лист2!$C24,Лист3!$A$7:$A$96,0),MATCH(Лист2!K$1&K$2,Лист3!$B$4:$AQ$4&Лист3!$B$5:$AQ$5,0)),0) -> 0 | L24: =IFERROR(SUMPRODUCT(Лист1!$B$3:$AF$10*(Лист1!$B$1:$AF$1=Лист2!$D24)*(Лист2!$C24=Лист1!$A$3:$A$10))*INDEX(Лист3!$B$7:$AQ$96,MATCH(Лист2!$C24,Лист3!$A$7:$A$96,0),MATCH(Лист2!L$1&L$2,Лист3!$B$4:$AQ$4&Лист3!$B$5:$AQ$5,0)),0) -> 9 | M24: =IFERROR(SUMPRODUCT(Лист1!$B$3:$AF$10*(Лист1!$B$1:$AF$1=Лист2!$D24)*(Лист2!$C24=Лист1!$A$3:$A$10))*INDEX(Лист3!$B$7:$AQ$96,MATCH(Лист2!$C24,Лист3!$A$7:$A$96,0),MATCH(Лист2!M$1&M$2,Лист3!$B$4:$AQ$4&Лист3!$B$5:$AQ$5,0)),0) -> 343.5 | N24: =IFERROR(SUMPRODUCT(Лист1!$B$3:$AF$10*(Лист1!$B$1:$AF$1=Лист2!$D24)*(Лист2!$C24=Лист1!$A$3:$A$10))*INDEX(Лист3!$B$7:$AQ$96,MATCH(Лист2!$C24,Лист3!$A$7:$A$96,0),MATCH(Лист2!N$1&N$2,Лист3!$B$4:$AQ$4&Лист3!$B$5:$AQ$5,0)),0) -> 114 | O24: =IFERROR(SUMPRODUCT(Лист1!$B$3:$AF$10*(Лист1!$B$1:$AF$1=Лист2!$D24)*(Лист2!$C24=Лист1!$A$3:$A$10))*INDEX(Лист3!$B$7:$AQ$96,MATCH(Лист2!$C24,Лист3!$A$7:$A$96,0),MATCH(Лист2!O$1&O$2,Лист3!$B$4:$AQ$4&Лист3!$B$5:$AQ$5,0)),0) -> 0 | P24: =IFERROR(SUMPRODUCT(Лист1!$B$3:$AF$10*(Лист1!$B$1:$AF$1=Лист2!$D24)*(Лист2!$C24=Лист1!$A$3:$A$10))*INDEX(Лист3!$B$7:$AQ$96,MATCH(Лист2!$C24,Лист3!$A$7:$A$96,0),MATCH(Лист2!P$1&P$2,Лист3!$B$4:$AQ$4&Лист3!$B$5:$AQ$5,0)),0) -> 276 | Q24: =IFERROR(SUMPRODUCT(Лист1!$B$3:$AF$10*(Лист1!$B$1:$AF$1=Лист2!$D24)*(Лист2!$C24=Лист1!$A$3:$A$10))*INDEX(Лист3!$B$7:$AQ$96,MATCH(Лист2!$C24,Лист3!$A$7:$A$96,0),MATCH(Лист2!Q$1&Q$2,Лист3!$B$4:$AQ$4&Лист3!$B$5:$AQ$5,0)),0) -> 0 | R24: =IFERROR(SUMPRODUCT(Лист1!$B$3:$AF$10*(Лист1!$B$1:$AF$1=Лист2!$D24)*(Лист2!$C24=Лист1!$A$3:$A$10))*INDEX(Лист3!$B$7:$AQ$96,MATCH(Лист2!$C24,Лист3!$A$7:$A$96,0),MATCH(Лист2!R$1&R$2,Лист3!$B$4:$AQ$4&Лист3!$B$5:$AQ$5,0)),0) -> 30 | S24: =IFERROR(SUMPRODUCT(Лист1!$B$3:$AF$10*(Лист1!$B$1:$AF$1=Лист2!$D24)*(Лист2!$C24=Лист1!$A$3:$A$10))*INDEX(Лист3!$B$7:$AQ$96,MATCH(Лист2!$C24,Лист3!$A$7:$A$96,0),MATCH(Лист2!S$1&S$2,Лист3!$B$4:$AQ$4&Лист3!$B$5:$AQ$5,0)),0) -> 1.8 | T24: =IFERROR(SUMPRODUCT(Лист1!$B$3:$AF$10*(Лист1!$B$1:$AF$1=Лист2!$D24)*(Лист2!$C24=Лист1!$A$3:$A$10))*INDEX(Лист3!$B$7:$AQ$96,MATCH(Лист2!$C24,Лист3!$A$7:$A$96,0),MATCH(Лист2!T$1&T$2,Лист3!$B$4:$AQ$4&Лист3!$B$5:$AQ$5,0)),0) -> 0 | U24: =IFERROR(SUMPRODUCT(Лист1!$B$3:$AF$10*(Лист1!$B$1:$AF$1=Лист2!$D24)*(Лист2!$C24=Лист1!$A$3:$A$10))*INDEX(Лист3!$B$7:$AQ$96,MATCH(Лист2!$C24,Лист3!$A$7:$A$96,0),MATCH(Лист2!U$1&U$2,Лист3!$B$4:$AQ$4&Лист3!$B$5:$AQ$5,0)),0) -> 0 | V24: =IFERROR(SUMPRODUCT(Лист1!$B$3:$AF$10*(Лист1!$B$1:$AF$1=Лист2!$D24)*(Лист2!$C24=Лист1!$A$3:$A$10))*INDEX(Лист3!$B$7:$AQ$96,MATCH(Лист2!$C24,Лист3!$A$7:$A$96,0),MATCH(Лист2!V$1&V$2,Лист3!$B$4:$AQ$4&Лист3!$B$5:$AQ$5,0)),0) -> 0 | W24: =IFERROR(SUMPRODUCT(Лист1!$B$3:$AF$10*(Лист1!$B$1:$AF$1=Лист2!$D24)*(Лист2!$C24=Лист1!$A$3:$A$10))*INDEX(Лист3!$B$7:$AQ$96,MATCH(Лист2!$C24,Лист3!$A$7:$A$96,0),MATCH(Лист2!W$1&W$2,Лист3!$B$4:$AQ$4&Лист3!$B$5:$AQ$5,0)),0) -> 0 | X24: =IFERROR(SUMPRODUCT(Лист1!$B$3:$AF$10*(Лист1!$B$1:$AF$1=Лист2!$D24)*(Лист2!$C24=Лист1!$A$3:$A$10))*INDEX(Лист3!$B$7:$AQ$96,MATCH(Лист2!$C24,Лист3!$A$7:$A$96,0),MATCH(Лист2!X$1&X$2,Лист3!$B$4:$AQ$4&Лист3!$B$5:$AQ$5,0)),0) -> 4.8 | Y24: =IFERROR(SUMPRODUCT(Лист1!$B$3:$AF$10*(Лист1!$B$1:$AF$1=Лист2!$D24)*(Лист2!$C24=Лист1!$A$3:$A$10))*INDEX(Лист3!$B$7:$AQ$96,MATCH(Лист2!$C24,Лист3!$A$7:$A$96,0),MATCH(Лист2!Y$1&Y$2,Лист3!$B$4:$AQ$4&Лист3!$B$5:$AQ$5,0)),0) -> 0 | Z24: =IFERROR(SUMPRODUCT(Лист1!$B$3:$AF$10*(Лист1!$B$1:$AF$1=Лист2!$D24)*(Лист2!$C24=Лист1!$A$3:$A$10))*INDEX(Лист3!$B$7:$AQ$96,MATCH(Лист2!$C24,Лист3!$A$7:$A$96,0),MATCH(Лист2!Z$1&Z$2,Лист3!$B$4:$AQ$4&Лист3!$B$5:$AQ$5,0)),0) -> 0.75 | AA24: =IFERROR(SUMPRODUCT(Лист1!$B$3:$AF$10*(Лист1!$B$1:$AF$1=Лист2!$D24)*(Лист2!$C24=Лист1!$A$3:$A$10))*INDEX(Лист3!$B$7:$AQ$96,MATCH(Лист2!$C24,Лист3!$A$7:$A$96,0),MATCH(Лист2!AA$1&AA$2,Лист3!$B$4:$AQ$4&Лист3!$B$5:$AQ$5,0)),0) -> 14.1
C25: =IFERROR(INDEX(Лист1!$A$3:$A$10,SMALL(IF(ISNUMBER(INDEX(Лист1!$B$3:$AF$10,,MATCH(Лист2!$D25,Лист1!$B$1:$AF$1,0))),ROW(Лист1!$A$3:$A$10)-2),COUNTIF($D$7:D25,D25))),"") ->  | D25: 5 | E25: =IFERROR(SUMPRODUCT(Лист1!$B$3:$AF$10*(Лист1!$B$1:$AF$1=Лист2!$D25)*(Лист2!$C25=Лист1!$A$3:$A$10))*INDEX(Лист3!$B$7:$AQ$96,MATCH(Лист2!$C25,Лист3!$A$7:$A$96,0),MATCH(Лист2!E$1&E$2,Лист3!$B$4:$AQ$4&Лист3!$B$5:$AQ$5,0)),0) -> 0 | F25: =IFERROR(SUMPRODUCT(Лист1!$B$3:$AF$10*(Лист1!$B$1:$AF$1=Лист2!$D25)*(Лист2!$C25=Лист1!$A$3:$A$10))*INDEX(Лист3!$B$7:$AQ$96,MATCH(Лист2!$C25,Лист3!$A$7:$A$96,0),MATCH(Лист2!F$1&F$2,Лист3!$B$4:$AQ$4&Лист3!$B$5:$AQ$5,0)),0) -> 0 | G25: =IFERROR(SUMPRODUCT(Лист1!$B$3:$AF$10*(Лист1!$B$1:$AF$1=Лист2!$D25)*(Лист2!$C25=Лист1!$A$3:$A$10))*INDEX(Лист3!$B$7:$AQ$96,MATCH(Лист2!$C25,Лист3!$A$7:$A$96,0),MATCH(Лист2!G$1&G$2,Лист3!$B$4:$AQ$4&Лист3!$B$5:$AQ$5,0)),0) -> 0 | H25: =IFERROR(SUMPRODUCT(Лист1!$B$3:$AF$10*(Лист1!$B$1:$AF$1=Лист2!$D25)*(Лист2!$C25=Лист1!$A$3:$A$10))*INDEX(Лист3!$B$7:$AQ$96,MATCH(Лист2!$C25,Лист3!$A$7:$A$96,0),MATCH(Лист2!H$1&H$2,Лист3!$B$4:$AQ$4&Лист3!$B$5:$AQ$5,0)),0) -> 0 | I25: =IFERROR(SUMPRODUCT(Лист1!$B$3:$AF$10*(Лист1!$B$1:$AF$1=Лист2!$D25)*(Лист2!$C25=Лист1!$A$3:$A$10))*INDEX(Лист3!$B$7:$AQ$96,MATCH(Лист2!$C25,Лист3!$A$7:$A$96,0),MATCH(Лист2!I$1&I$2,Лист3!$B$4:$AQ$4&Лист3!$B$5:$AQ$5,0)),0) -> 0 | J25: =IFERROR(SUMPRODUCT(Лист1!$B$3:$AF$10*(Лист1!$B$1:$AF$1=Лист2!$D25)*(Лист2!$C25=Лист1!$A$3:$A$10))*INDEX(Лист3!$B$7:$AQ$96,MATCH(Лист2!$C25,Лист3!$A$7:$A$96,0),MATCH(Лист2!J$1&J$2,Лист3!$B$4:$AQ$4&Лист3!$B$5:$AQ$5,0)),0) -> 0 | K25: =IFERROR(SUMPRODUCT(Лист1!$B$3:$AF$10*(Лист1!$B$1:$AF$1=Лист2!$D25)*(Лист2!$C25=Лист1!$A$3:$A$10))*INDEX(Лист3!$B$7:$AQ$96,MATCH(Лист2!$C25,Лист3!$A$7:$A$96,0),MATCH(Лист2!K$1&K$2,Лист3!$B$4:$AQ$4&Лист3!$B$5:$AQ$5,0)),0) -> 0 | L25: =IFERROR(SUMPRODUCT(Лист1!$B$3:$AF$10*(Лист1!$B$1:$AF$1=Лист2!$D25)*(Лист2!$C25=Лист1!$A$3:$A$10))*INDEX(Лист3!$B$7:$AQ$96,MATCH(Лист2!$C25,Лист3!$A$7:$A$96,0),MATCH(Лист2!L$1&L$2,Лист3!$B$4:$AQ$4&Лист3!$B$5:$AQ$5,0)),0) -> 0 | M25: =IFERROR(SUMPRODUCT(Лист1!$B$3:$AF$10*(Лист1!$B$1:$AF$1=Лист2!$D25)*(Лист2!$C25=Лист1!$A$3:$A$10))*INDEX(Лист3!$B$7:$AQ$96,MATCH(Лист2!$C25,Лист3!$A$7:$A$96,0),MATCH(Лист2!M$1&M$2,Лист3!$B$4:$AQ$4&Лист3!$B$5:$AQ$5,0)),0) -> 0 | N25: =IFERROR(SUMPRODUCT(Лист1!$B$3:$AF$10*(Лист1!$B$1:$AF$1=Лист2!$D25)*(Лист2!$C25=Лист1!$A$3:$A$10))*INDEX(Лист3!$B$7:$AQ$96,MATCH(Лист2!$C25,Лист3!$A$7:$A$96,0),MATCH(Лист2!N$1&N$2,Лист3!$B$4:$AQ$4&Лист3!$B$5:$AQ$5,0)),0) -> 0 | O25: =IFERROR(SUMPRODUCT(Лист1!$B$3:$AF$10*(Лист1!$B$1:$AF$1=Лист2!$D25)*(Лист2!$C25=Лист1!$A$3:$A$10))*INDEX(Лист3!$B$7:$AQ$96,MATCH(Лист2!$C25,Лист3!$A$7:$A$96,0),MATCH(Лист2!O$1&O$2,Лист3!$B$4:$AQ$4&Лист3!$B$5:$AQ$5,0)),0) -> 0 | P25: =IFERROR(SUMPRODUCT(Лист1!$B$3:$AF$10*(Лист1!$B$1:$AF$1=Лист2!$D25)*(Лист2!$C25=Лист1!$A$3:$A$10))*INDEX(Лист3!$B$7:$AQ$96,MATCH(Лист2!$C25,Лист3!$A$7:$A$96,0),MATCH(Лист2!P$1&P$2,Лист3!$B$4:$AQ$4&Лист3!$B$5:$AQ$5,0)),0) -> 0 | Q25: =IFERROR(SUMPRODUCT(Лист1!$B$3:$AF$10*(Лист1!$B$1:$AF$1=Лист2!$D25)*(Лист2!$C25=Лист1!$A$3:$A$10))*INDEX(Лист3!$B$7:$AQ$96,MATCH(Лист2!$C25,Лист3!$A$7:$A$96,0),MATCH(Лист2!Q$1&Q$2,Лист3!$B$4:$AQ$4&Лист3!$B$5:$AQ$5,0)),0) -> 0 | R25: =IFERROR(SUMPRODUCT(Лист1!$B$3:$AF$10*(Лист1!$B$1:$AF$1=Лист2!$D25)*(Лист2!$C25=Лист1!$A$3:$A$10))*INDEX(Лист3!$B$7:$AQ$96,MATCH(Лист2!$C25,Лист3!$A$7:$A$96,0),MATCH(Лист2!R$1&R$2,Лист3!$B$4:$AQ$4&Лист3!$B$5:$AQ$5,0)),0) -> 0 | S25: =IFERROR(SUMPRODUCT(Лист1!$B$3:$AF$10*(Лист1!$B$1:$AF$1=Лист2!$D25)*(Лист2!$C25=Лист1!$A$3:$A$10))*INDEX(Лист3!$B$7:$AQ$96,MATCH(Лист2!$C25,Лист3!$A$7:$A$96,0),MATCH(Лист2!S$1&S$2,Лист3!$B$4:$AQ$4&Лист3!$B$5:$AQ$5,0)),0) -> 0 | T25: =IFERROR(SUMPRODUCT(Лист1!$B$3:$AF$10*(Лист1!$B$1:$AF$1=Лист2!$D25)*(Лист2!$C25=Лист1!$A$3:$A$10))*INDEX(Лист3!$B$7:$AQ$96,MATCH(Лист2!$C25,Лист3!$A$7:$A$96,0),MATCH(Лист2!T$1&T$2,Лист3!$B$4:$AQ$4&Лист3!$B$5:$AQ$5,0)),0) -> 0 | U25: =IFERROR(SUMPRODUCT(Лист1!$B$3:$AF$10*(Лист1!$B$1:$AF$1=Лист2!$D25)*(Лист2!$C25=Лист1!$A$3:$A$10))*INDEX(Лист3!$B$7:$AQ$96,MATCH(Лист2!$C25,Лист3!$A$7:$A$96,0),MATCH(Лист2!U$1&U$2,Лист3!$B$4:$AQ$4&Лист3!$B$5:$AQ$5,0)),0) -> 0 | V25: =IFERROR(SUMPRODUCT(Лист1!$B$3:$AF$10*(Лист1!$B$1:$AF$1=Лист2!$D25)*(Лист2!$C25=Лист1!$A$3:$A$10))*INDEX(Лист3!$B$7:$AQ$96,MATCH(Лист2!$C25,Лист3!$A$7:$A$96,0),MATCH(Лист2!V$1&V$2,Лист3!$B$4:$AQ$4&Лист3!$B$5:$AQ$5,0)),0) -> 0 | W25: =IFERROR(SUMPRODUCT(Лист1!$B$3:$AF$10*(Лист1!$B$1:$AF$1=Лист2!$D25)*(Лист2!$C25=Лист1!$A$3:$A$10))*INDEX(Лист3!$B$7:$AQ$96,MATCH(Лист2!$C25,Лист3!$A$7:$A$96,0),MATCH(Лист2!W$1&W$2,Лист3!$B$4:$AQ$4&Лист3!$B$5:$AQ$5,0)),0) -> 0 | X25: =IFERROR(SUMPRODUCT(Лист1!$B$3:$AF$10*(Лист1!$B$1:$AF$1=Лист2!$D25)*(Лист2!$C25=Лист1!$A$3:$A$10))*INDEX(Лист3!$B$7:$AQ$96,MATCH(Лист2!$C25,Лист3!$A$7:$A$96,0),MATCH(Лист2!X$1&X$2,Лист3!$B$4:$AQ$4&Лист3!$B$5:$AQ$5,0)),0) -> 0 | Y25: =IFERROR(SUMPRODUCT(Лист1!$B$3:$AF$10*(Лист1!$B$1:$AF$1=Лист2!$D25)*(Лист2!$C25=Лист1!$A$3:$A$10))*INDEX(Лист3!$B$7:$AQ$96,MATCH(Лист2!$C25,Лист3!$A$7:$A$96,0),MATCH(Лист2!Y$1&Y$2,Лист3!$B$4:$AQ$4&Лист3!$B$5:$AQ$5,0)),0) -> 0 | Z25: =IFERROR(SUMPRODUCT(Лист1!$B$3:$AF$10*(Лист1!$B$1:$AF$1=Лист2!$D25)*(Лист2!$C25=Лист1!$A$3:$A$10))*INDEX(Лист3!$B$7:$AQ$96,MATCH(Лист2!$C25,Лист3!$A$7:$A$96,0),MATCH(Лист2!Z$1&Z$2,Лист3!$B$4:$AQ$4&Лист3!$B$5:$AQ$5,0)),0) -> 0 | AA25: =IFERROR(SUMPRODUCT(Лист1!$B$3:$AF$10*(Лист1!$B$1:$AF$1=Лист2!$D25)*(Лист2!$C25=Лист1!$A$3:$A$10))*INDEX(Лист3!$B$7:$AQ$96,MATCH(Лист2!$C25,Лист3!$A$7:$A$96,0),MATCH(Лист2!AA$1&AA$2,Лист3!$B$4:$AQ$4&Лист3!$B$5:$AQ$5,0)),0) -> 0
C26: =IFERROR(INDEX(Лист1!$A$3:$A$10,SMALL(IF(ISNUMBER(INDEX(Лист1!$B$3:$AF$10,,MATCH(Лист2!$D26,Лист1!$B$1:$AF$1,0))),ROW(Лист1!$A$3:$A$10)-2),COUNTIF($D$7:D26,D26))),"") ->  | D26: 5 | E26: =IFERROR(SUMPRODUCT(Лист1!$B$3:$AF$10*(Лист1!$B$1:$AF$1=Лист2!$D26)*(Лист2!$C26=Лист1!$A$3:$A$10))*INDEX(Лист3!$B$7:$AQ$96,MATCH(Лист2!$C26,Лист3!$A$7:$A$96,0),MATCH(Лист2!E$1&E$2,Лист3!$B$4:$AQ$4&Лист3!$B$5:$AQ$5,0)),0) -> 0 | F26: =IFERROR(SUMPRODUCT(Лист1!$B$3:$AF$10*(Лист1!$B$1:$AF$1=Лист2!$D26)*(Лист2!$C26=Лист1!$A$3:$A$10))*INDEX(Лист3!$B$7:$AQ$96,MATCH(Лист2!$C26,Лист3!$A$7:$A$96,0),MATCH(Лист2!F$1&F$2,Лист3!$B$4:$AQ$4&Лист3!$B$5:$AQ$5,0)),0) -> 0 | G26: =IFERROR(SUMPRODUCT(Лист1!$B$3:$AF$10*(Лист1!$B$1:$AF$1=Лист2!$D26)*(Лист2!$C26=Лист1!$A$3:$A$10))*INDEX(Лист3!$B$7:$AQ$96,MATCH(Лист2!$C26,Лист3!$A$7:$A$96,0),MATCH(Лист2!G$1&G$2,Лист3!$B$4:$AQ$4&Лист3!$B$5:$AQ$5,0)),0) -> 0 | H26: =IFERROR(SUMPRODUCT(Лист1!$B$3:$AF$10*(Лист1!$B$1:$AF$1=Лист2!$D26)*(Лист2!$C26=Лист1!$A$3:$A$10))*INDEX(Лист3!$B$7:$AQ$96,MATCH(Лист2!$C26,Лист3!$A$7:$A$96,0),MATCH(Лист2!H$1&H$2,Лист3!$B$4:$AQ$4&Лист3!$B$5:$AQ$5,0)),0) -> 0 | I26: =IFERROR(SUMPRODUCT(Лист1!$B$3:$AF$10*(Лист1!$B$1:$AF$1=Лист2!$D26)*(Лист2!$C26=Лист1!$A$3:$A$10))*INDEX(Лист3!$B$7:$AQ$96,MATCH(Лист2!$C26,Лист3!$A$7:$A$96,0),MATCH(Лист2!I$1&I$2,Лист3!$B$4:$AQ$4&Лист3!$B$5:$AQ$5,0)),0) -> 0 | J26: =IFERROR(SUMPRODUCT(Лист1!$B$3:$AF$10*(Лист1!$B$1:$AF$1=Лист2!$D26)*(Лист2!$C26=Лист1!$A$3:$A$10))*INDEX(Лист3!$B$7:$AQ$96,MATCH(Лист2!$C26,Лист3!$A$7:$A$96,0),MATCH(Лист2!J$1&J$2,Лист3!$B$4:$AQ$4&Лист3!$B$5:$AQ$5,0)),0) -> 0 | K26: =IFERROR(SUMPRODUCT(Лист1!$B$3:$AF$10*(Лист1!$B$1:$AF$1=Лист2!$D26)*(Лист2!$C26=Лист1!$A$3:$A$10))*INDEX(Лист3!$B$7:$AQ$96,MATCH(Лист2!$C26,Лист3!$A$7:$A$96,0),MATCH(Лист2!K$1&K$2,Лист3!$B$4:$AQ$4&Лист3!$B$5:$AQ$5,0)),0) -> 0 | L26: =IFERROR(SUMPRODUCT(Лист1!$B$3:$AF$10*(Лист1!$B$1:$AF$1=Лист2!$D26)*(Лист2!$C26=Лист1!$A$3:$A$10))*INDEX(Лист3!$B$7:$AQ$96,MATCH(Лист2!$C26,Лист3!$A$7:$A$96,0),MATCH(Лист2!L$1&L$2,Лист3!$B$4:$AQ$4&Лист3!$B$5:$AQ$5,0)),0) -> 0 | M26: =IFERROR(SUMPRODUCT(Лист1!$B$3:$AF$10*(Лист1!$B$1:$AF$1=Лист2!$D26)*(Лист2!$C26=Лист1!$A$3:$A$10))*INDEX(Лист3!$B$7:$AQ$96,MATCH(Лист2!$C26,Лист3!$A$7:$A$96,0),MATCH(Лист2!M$1&M$2,Лист3!$B$4:$AQ$4&Лист3!$B$5:$AQ$5,0)),0) -> 0 | N26: =IFERROR(SUMPRODUCT(Лист1!$B$3:$AF$10*(Лист1!$B$1:$AF$1=Лист2!$D26)*(Лист2!$C26=Лист1!$A$3:$A$10))*INDEX(Лист3!$B$7:$AQ$96,MATCH(Лист2!$C26,Лист3!$A$7:$A$96,0),MATCH(Лист2!N$1&N$2,Лист3!$B$4:$AQ$4&Лист3!$B$5:$AQ$5,0)),0) -> 0 | O26: =IFERROR(SUMPRODUCT(Лист1!$B$3:$AF$10*(Лист1!$B$1:$AF$1=Лист2!$D26)*(Лист2!$C26=Лист1!$A$3:$A$10))*INDEX(Лист3!$B$7:$AQ$96,MATCH(Лист2!$C26,Лист3!$A$7:$A$96,0),MATCH(Лист2!O$1&O$2,Лист3!$B$4:$AQ$4&Лист3!$B$5:$AQ$5,0)),0) -> 0 | P26: =IFERROR(SUMPRODUCT(Лист1!$B$3:$AF$10*(Лист1!$B$1:$AF$1=Лист2!$D26)*(Лист2!$C26=Лист1!$A$3:$A$10))*INDEX(Лист3!$B$7:$AQ$96,MATCH(Лист2!$C26,Лист3!$A$7:$A$96,0),MATCH(Лист2!P$1&P$2,Лист3!$B$4:$AQ$4&Лист3!$B$5:$AQ$5,0)),0) -> 0 | Q26: =IFERROR(SUMPRODUCT(Лист1!$B$3:$AF$10*(Лист1!$B$1:$AF$1=Лист2!$D26)*(Лист2!$C26=Лист1!$A$3:$A$10))*INDEX(Лист3!$B$7:$AQ$96,MATCH(Лист2!$C26,Лист3!$A$7:$A$96,0),MATCH(Лист2!Q$1&Q$2,Лист3!$B$4:$AQ$4&Лист3!$B$5:$AQ$5,0)),0) -> 0 | R26: =IFERROR(SUMPRODUCT(Лист1!$B$3:$AF$10*(Лист1!$B$1:$AF$1=Лист2!$D26)*(Лист2!$C26=Лист1!$A$3:$A$10))*INDEX(Лист3!$B$7:$AQ$96,MATCH(Лист2!$C26,Лист3!$A$7:$A$96,0),MATCH(Лист2!R$1&R$2,Лист3!$B$4:$AQ$4&Лист3!$B$5:$AQ$5,0)),0) -> 0 | S26: =IFERROR(SUMPRODUCT(Лист1!$B$3:$AF$10*(Лист1!$B$1:$AF$1=Лист2!$D26)*(Лист2!$C26=Лист1!$A$3:$A$10))*INDEX(Лист3!$B$7:$AQ$96,MATCH(Лист2!$C26,Лист3!$A$7:$A$96,0),MATCH(Лист2!S$1&S$2,Лист3!$B$4:$AQ$4&Лист3!$B$5:$AQ$5,0)),0) -> 0 | T26: =IFERROR(SUMPRODUCT(Лист1!$B$3:$AF$10*(Лист1!$B$1:$AF$1=Лист2!$D26)*(Лист2!$C26=Лист1!$A$3:$A$10))*INDEX(Лист3!$B$7:$AQ$96,MATCH(Лист2!$C26,Лист3!$A$7:$A$96,0),MATCH(Лист2!T$1&T$2,Лист3!$B$4:$AQ$4&Лист3!$B$5:$AQ$5,0)),0) -> 0 | U26: =IFERROR(SUMPRODUCT(Лист1!$B$3:$AF$10*(Лист1!$B$1:$AF$1=Лист2!$D26)*(Лист2!$C26=Лист1!$A$3:$A$10))*INDEX(Лист3!$B$7:$AQ$96,MATCH(Лист2!$C26,Лист3!$A$7:$A$96,0),MATCH(Лист2!U$1&U$2,Лист3!$B$4:$AQ$4&Лист3!$B$5:$AQ$5,0)),0) -> 0 | V26: =IFERROR(SUMPRODUCT(Лист1!$B$3:$AF$10*(Лист1!$B$1:$AF$1=Лист2!$D26)*(Лист2!$C26=Лист1!$A$3:$A$10))*INDEX(Лист3!$B$7:$AQ$96,MATCH(Лист2!$C26,Лист3!$A$7:$A$96,0),MATCH(Лист2!V$1&V$2,Лист3!$B$4:$AQ$4&Лист3!$B$5:$AQ$5,0)),0) -> 0 | W26: =IFERROR(SUMPRODUCT(Лист1!$B$3:$AF$10*(Лист1!$B$1:$AF$1=Лист2!$D26)*(Лист2!$C26=Лист1!$A$3:$A$10))*INDEX(Лист3!$B$7:$AQ$96,MATCH(Лист2!$C26,Лист3!$A$7:$A$96,0),MATCH(Лист2!W$1&W$2,Лист3!$B$4:$AQ$4&Лист3!$B$5:$AQ$5,0)),0) -> 0 | X26: =IFERROR(SUMPRODUCT(Лист1!$B$3:$AF$10*(Лист1!$B$1:$AF$1=Лист2!$D26)*(Лист2!$C26=Лист1!$A$3:$A$10))*INDEX(Лист3!$B$7:$AQ$96,MATCH(Лист2!$C26,Лист3!$A$7:$A$96,0),MATCH(Лист2!X$1&X$2,Лист3!$B$4:$AQ$4&Лист3!$B$5:$AQ$5,0)),0) -> 0 | Y26: =IFERROR(SUMPRODUCT(Лист1!$B$3:$AF$10*(Лист1!$B$1:$AF$1=Лист2!$D26)*(Лист2!$C26=Лист1!$A$3:$A$10))*INDEX(Лист3!$B$7:$AQ$96,MATCH(Лист2!$C26,Лист3!$A$7:$A$96,0),MATCH(Лист2!Y$1&Y$2,Лист3!$B$4:$AQ$4&Лист3!$B$5:$AQ$5,0)),0) -> 0 | Z26: =IFERROR(SUMPRODUCT(Лист1!$B$3:$AF$10*(Лист1!$B$1:$AF$1=Лист2!$D26)*(Лист2!$C26=Лист1!$A$3:$A$10))*INDEX(Лист3!$B$7:$AQ$96,MATCH(Лист2!$C26,Лист3!$A$7:$A$96,0),MATCH(Лист2!Z$1&Z$2,Лист3!$B$4:$AQ$4&Лист3!$B$5:$AQ$5,0)),0) -> 0 | AA26: =IFERROR(SUMPRODUCT(Лист1!$B$3:$AF$10*(Лист1!$B$1:$AF$1=Лист2!$D26)*(Лист2!$C26=Лист1!$A$3:$A$10))*INDEX(Лист3!$B$7:$AQ$96,MATCH(Лист2!$C26,Лист3!$A$7:$A$96,0),MATCH(Лист2!AA$1&AA$2,Лист3!$B$4:$AQ$4&Лист3!$B$5:$AQ$5,0)),0) -> 0
C27: =IFERROR(INDEX(Лист1!$A$3:$A$10,SMALL(IF(ISNUMBER(INDEX(Лист1!$B$3:$AF$10,,MATCH(Лист2!$D27,Лист1!$B$1:$AF$1,0))),ROW(Лист1!$A$3:$A$10)-2),COUNTIF($D$7:D27,D27))),"") -> Плита "Экстрол Малахит" 1180.580.50/8 (Ч), м3 | D27: 6 | E27: =IFERROR(SUMPRODUCT(Лист1!$B$3:$AF$10*(Лист1!$B$1:$AF$1=Лист2!$D27)*(Лист2!$C27=Лист1!$A$3:$A$10))*INDEX(Лист3!$B$7:$AQ$96,MATCH(Лист2!$C27,Лист3!$A$7:$A$96,0),MATCH(Лист2!E$1&E$2,Лист3!$B$4:$AQ$4&Лист3!$B$5:$AQ$5,0)),0) -> 2160 | F27: =IFERROR(SUMPRODUCT(Лист1!$B$3:$AF$10*(Лист1!$B$1:$AF$1=Лист2!$D27)*(Лист2!$C27=Лист1!$A$3:$A$10))*INDEX(Лист3!$B$7:$AQ$96,MATCH(Лист2!$C27,Лист3!$A$7:$A$96,0),MATCH(Лист2!F$1&F$2,Лист3!$B$4:$AQ$4&Лист3!$B$5:$AQ$5,0)),0) -> 8320 | G27: =IFERROR(SUMPRODUCT(Лист1!$B$3:$AF$10*(Лист1!$B$1:$AF$1=Лист2!$D27)*(Лист2!$C27=Лист1!$A$3:$A$10))*INDEX(Лист3!$B$7:$AQ$96,MATCH(Лист2!$C27,Лист3!$A$7:$A$96,0),MATCH(Лист2!G$1&G$2,Лист3!$B$4:$AQ$4&Лист3!$B$5:$AQ$5,0)),0) -> 0 | H27: =IFERROR(SUMPRODUCT(Лист1!$B$3:$AF$10*(Лист1!$B$1:$AF$1=Лист2!$D27)*(Лист2!$C27=Лист1!$A$3:$A$10))*INDEX(Лист3!$B$7:$AQ$96,MATCH(Лист2!$C27,Лист3!$A$7:$A$96,0),MATCH(Лист2!H$1&H$2,Лист3!$B$4:$AQ$4&Лист3!$B$5:$AQ$5,0)),0) -> 60 | I27: =IFERROR(SUMPRODUCT(Лист1!$B$3:$AF$10*(Лист1!$B$1:$AF$1=Лист2!$D27)*(Лист2!$C27=Лист1!$A$3:$A$10))*INDEX(Лист3!$B$7:$AQ$96,MATCH(Лист2!$C27,Лист3!$A$7:$A$96,0),MATCH(Лист2!I$1&I$2,Лист3!$B$4:$AQ$4&Лист3!$B$5:$AQ$5,0)),0) -> 0 | J27: =IFERROR(SUMPRODUCT(Лист1!$B$3:$AF$10*(Лист1!$B$1:$AF$1=Лист2!$D27)*(Лист2!$C27=Лист1!$A$3:$A$10))*INDEX(Лист3!$B$7:$AQ$96,MATCH(Лист2!$C27,Лист3!$A$7:$A$96,0),MATCH(Лист2!J$1&J$2,Лист3!$B$4:$AQ$4&Лист3!$B$5:$AQ$5,0)),0) -> 8 | K27: =IFERROR(SUMPRODUCT(Лист1!$B$3:$AF$10*(Лист1!$B$1:$AF$1=Лист2!$D27)*(Лист2!$C27=Лист1!$A$3:$A$10))*INDEX(Лист3!$B$7:$AQ$96,MATCH(Лист2!$C27,Лист3!$A$7:$A$96,0),MATCH(Лист2!K$1&K$2,Лист3!$B$4:$AQ$4&Лист3!$B$5:$AQ$5,0)),0) -> 0 | L27: =IFERROR(SUMPRODUCT(Лист1!$B$3:$AF$10*(Лист1!$B$1:$AF$1=Лист2!$D27)*(Лист2!$C27=Лист1!$A$3:$A$10))*INDEX(Лист3!$B$7:$AQ$96,MATCH(Лист2!$C27,Лист3!$A$7:$A$96,0),MATCH(Лист2!L$1&L$2,Лист3!$B$4:$AQ$4&Лист3!$B$5:$AQ$5,0)),0) -> 13.2 | M27: =IFERROR(SUMPRODUCT(Лист1!$B$3:$AF$10*(Лист1!$B$1:$AF$1=Лист2!$D27)*(Лист2!$C27=Лист1!$A$3:$A$10))*INDEX(Лист3!$B$7:$AQ$96,MATCH(Лист2!$C27,Лист3!$A$7:$A$96,0),MATCH(Лист2!M$1&M$2,Лист3!$B$4:$AQ$4&Лист3!$B$5:$AQ$5,0)),0) -> 360 | N27: =IFERROR(SUMPRODUCT(Лист1!$B$3:$AF$10*(Лист1!$B$1:$AF$1=Лист2!$D27)*(Лист2!$C27=Лист1!$A$3:$A$10))*INDEX(Лист3!$B$7:$AQ$96,MATCH(Лист2!$C27,Лист3!$A$7:$A$96,0),MATCH(Лист2!N$1&N$2,Лист3!$B$4:$AQ$4&Лист3!$B$5:$AQ$5,0)),0) -> 200 | O27: =IFERROR(SUMPRODUCT(Лист1!$B$3:$AF$10*(Лист1!$B$1:$AF$1=Лист2!$D27)*(Лист2!$C27=Лист1!$A$3:$A$10))*INDEX(Лист3!$B$7:$AQ$96,MATCH(Лист2!$C27,Лист3!$A$7:$A$96,0),MATCH(Лист2!O$1&O$2,Лист3!$B$4:$AQ$4&Лист3!$B$5:$AQ$5,0)),0) -> 0 | P27: =IFERROR(SUMPRODUCT(Лист1!$B$3:$AF$10*(Лист1!$B$1:$AF$1=Лист2!$D27)*(Лист2!$C27=Лист1!$A$3:$A$10))*INDEX(Лист3!$B$7:$AQ$96,MATCH(Лист2!$C27,Лист3!$A$7:$A$96,0),MATCH(Лист2!P$1&P$2,Лист3!$B$4:$AQ$4&Лист3!$B$5:$AQ$5,0)),0) -> 240 | Q27: =IFERROR(SUMPRODUCT(Лист1!$B$3:$AF$10*(Лист1!$B$1:$AF$1=Лист2!$D27)*(Лист2!$C27=Лист1!$A$3:$A$10))*INDEX(Лист3!$B$7:$AQ$96,MATCH(Лист2!$C27,Лист3!$A$7:$A$96,0),MATCH(Лист2!Q$1&Q$2,Лист3!$B$4:$AQ$4&Лист3!$B$5:$AQ$5,0)),0) -> 0 | R27: =IFERROR(SUMPRODUCT(Лист1!$B$3:$AF$10*(Лист1!$B$1:$AF$1=Лист2!$D27)*(Лист2!$C27=Лист1!$A$3:$A$10))*INDEX(Лист3!$B$7:$AQ$96,MATCH(Лист2!$C27,Лист3!$A$7:$A$96,0),MATCH(Лист2!R$1&R$2,Лист3!$B$4:$AQ$4&Лист3!$B$5:$AQ$5,0)),0) -> 192 | S27: =IFERROR(SUMPRODUCT(Лист1!$B$3:$AF$10*(Лист1!$B$1:$AF$1=Лист2!$D27)*(Лист2!$C27=Лист1!$A$3:$A$10))*INDEX(Лист3!$B$7:$AQ$96,MATCH(Лист2!$C27,Лист3!$A$7:$A$96,0),MATCH(Лист2!S$1&S$2,Лист3!$B$4:$AQ$4&Лист3!$B$5:$AQ$5,0)),0) -> 0 | T27: =IFERROR(SUMPRODUCT(Лист1!$B$3:$AF$10*(Лист1!$B$1:$AF$1=Лист2!$D27)*(Лист2!$C27=Лист1!$A$3:$A$10))*INDEX(Лист3!$B$7:$AQ$96,MATCH(Лист2!$C27,Лист3!$A$7:$A$96,0),MATCH(Лист2!T$1&T$2,Лист3!$B$4:$AQ$4&Лист3!$B$5:$AQ$5,0)),0) -> 2 | U27: =IFERROR(SUMPRODUCT(Лист1!$B$3:$AF$10*(Лист1!$B$1:$AF$1=Лист2!$D27)*(Лист2!$C27=Лист1!$A$3:$A$10))*INDEX(Лист3!$B$7:$AQ$96,MATCH(Лист2!$C27,Лист3!$A$7:$A$96,0),MATCH(Лист2!U$1&U$2,Лист3!$B$4:$AQ$4&Лист3!$B$5:$AQ$5,0)),0) -> 0 | V27: =IFERROR(SUMPRODUCT(Лист1!$B$3:$AF$10*(Лист1!$B$1:$AF$1=Лист2!$D27)*(Лист2!$C27=Лист1!$A$3:$A$10))*INDEX(Лист3!$B$7:$AQ$96,MATCH(Лист2!$C27,Лист3!$A$7:$A$96,0),MATCH(Лист2!V$1&V$2,Лист3!$B$4:$AQ$4&Лист3!$B$5:$AQ$5,0)),0) -> 0 | W27: =IFERROR(SUMPRODUCT(Лист1!$B$3:$AF$10*(Лист1!$B$1:$AF$1=Лист2!$D27)*(Лист2!$C27=Лист1!$A$3:$A$10))*INDEX(Лист3!$B$7:$AQ$96,MATCH(Лист2!$C27,Лист3!$A$7:$A$96,0),MATCH(Лист2!W$1&W$2,Лист3!$B$4:$AQ$4&Лист3!$B$5:$AQ$5,0)),0) -> 0 | X27: =IFERROR(SUMPRODUCT(Лист1!$B$3:$AF$10*(Лист1!$B$1:$AF$1=Лист2!$D27)*(Лист2!$C27=Лист1!$A$3:$A$10))*INDEX(Лист3!$B$7:$AQ$96,MATCH(Лист2!$C27,Лист3!$A$7:$A$96,0),MATCH(Лист2!X$1&X$2,Лист3!$B$4:$AQ$4&Лист3!$B$5:$AQ$5,0)),0) -> 6.8 | Y27: =IFERROR(SUMPRODUCT(Лист1!$B$3:$AF$10*(Лист1!$B$1:$AF$1=Лист2!$D27)*(Лист2!$C27=Лист1!$A$3:$A$10))*INDEX(Лист3!$B$7:$AQ$96,MATCH(Лист2!$C27,Лист3!$A$7:$A$96,0),MATCH(Лист2!Y$1&Y$2,Лист3!$B$4:$AQ$4&Лист3!$B$5:$AQ$5,0)),0) -> 0 | Z27: =IFERROR(SUMPRODUCT(Лист1!$B$3:$AF$10*(Лист1!$B$1:$AF$1=Лист2!$D27)*(Лист2!$C27=Лист1!$A$3:$A$10))*INDEX(Лист3!$B$7:$AQ$96,MATCH(Лист2!$C27,Лист3!$A$7:$A$96,0),MATCH(Лист2!Z$1&Z$2,Лист3!$B$4:$AQ$4&Лист3!$B$5:$AQ$5,0)),0) -> 1 | AA27: =IFERROR(SUMPRODUCT(Лист1!$B$3:$AF$10*(Лист1!$B$1:$AF$1=Лист2!$D27)*(Лист2!$C27=Лист1!$A$3:$A$10))*INDEX(Лист3!$B$7:$AQ$96,MATCH(Лист2!$C27,Лист3!$A$7:$A$96,0),MATCH(Лист2!AA$1&AA$2,Лист3!$B$4:$AQ$4&Лист3!$B$5:$AQ$5,0)),0) -> 18.8
C28: =IFERROR(INDEX(Лист1!$A$3:$A$10,SMALL(IF(ISNUMBER(INDEX(Лист1!$B$3:$AF$10,,MATCH(Лист2!$D28,Лист1!$B$1:$AF$1,0))),ROW(Лист1!$A$3:$A$10)-2),COUNTIF($D$7:D28,D28))),"") ->  | D28: 6 | E28: =IFERROR(SUMPRODUCT(Лист1!$B$3:$AF$10*(Лист1!$B$1:$AF$1=Лист2!$D28)*(Лист2!$C28=Лист1!$A$3:$A$10))*INDEX(Лист3!$B$7:$AQ$96,MATCH(Лист2!$C28,Лист3!$A$7:$A$96,0),MATCH(Лист2!E$1&E$2,Лист3!$B$4:$AQ$4&Лист3!$B$5:$AQ$5,0)),0) -> 0 | F28: =IFERROR(SUMPRODUCT(Лист1!$B$3:$AF$10*(Лист1!$B$1:$AF$1=Лист2!$D28)*(Лист2!$C28=Лист1!$A$3:$A$10))*INDEX(Лист3!$B$7:$AQ$96,MATCH(Лист2!$C28,Лист3!$A$7:$A$96,0),MATCH(Лист2!F$1&F$2,Лист3!$B$4:$AQ$4&Лист3!$B$5:$AQ$5,0)),0) -> 0 | G28: =IFERROR(SUMPRODUCT(Лист1!$B$3:$AF$10*(Лист1!$B$1:$AF$1=Лист2!$D28)*(Лист2!$C28=Лист1!$A$3:$A$10))*INDEX(Лист3!$B$7:$AQ$96,MATCH(Лист2!$C28,Лист3!$A$7:$A$96,0),MATCH(Лист2!G$1&G$2,Лист3!$B$4:$AQ$4&Лист3!$B$5:$AQ$5,0)),0) -> 0 | H28: =IFERROR(SUMPRODUCT(Лист1!$B$3:$AF$10*(Лист1!$B$1:$AF$1=Лист2!$D28)*(Лист2!$C28=Лист1!$A$3:$A$10))*INDEX(Лист3!$B$7:$AQ$96,MATCH(Лист2!$C28,Лист3!$A$7:$A$96,0),MATCH(Лист2!H$1&H$2,Лист3!$B$4:$AQ$4&Лист3!$B$5:$AQ$5,0)),0) -> 0 | I28: =IFERROR(SUMPRODUCT(Лист1!$B$3:$AF$10*(Лист1!$B$1:$AF$1=Лист2!$D28)*(Лист2!$C28=Лист1!$A$3:$A$10))*INDEX(Лист3!$B$7:$AQ$96,MATCH(Лист2!$C28,Лист3!$A$7:$A$96,0),MATCH(Лист2!I$1&I$2,Лист3!$B$4:$AQ$4&Лист3!$B$5:$AQ$5,0)),0) -> 0 | J28: =IFERROR(SUMPRODUCT(Лист1!$B$3:$AF$10*(Лист1!$B$1:$AF$1=Лист2!$D28)*(Лист2!$C28=Лист1!$A$3:$A$10))*INDEX(Лист3!$B$7:$AQ$96,MATCH(Лист2!$C28,Лист3!$A$7:$A$96,0),MATCH(Лист2!J$1&J$2,Лист3!$B$4:$AQ$4&Лист3!$B$5:$AQ$5,0)),0) -> 0 | K28: =IFERROR(SUMPRODUCT(Лист1!$B$3:$AF$10*(Лист1!$B$1:$AF$1=Лист2!$D28)*(Лист2!$C28=Лист1!$A$3:$A$10))*INDEX(Лист3!$B$7:$AQ$96,MATCH(Лист2!$C28,Лист3!$A$7:$A$96,0),MATCH(Лист2!K$1&K$2,Лист3!$B$4:$AQ$4&Лист3!$B$5:$AQ$5,0)),0) -> 0 | L28: =IFERROR(SUMPRODUCT(Лист1!$B$3:$AF$10*(Лист1!$B$1:$AF$1=Лист2!$D28)*(Лист2!$C28=Лист1!$A$3:$A$10))*INDEX(Лист3!$B$7:$AQ$96,MATCH(Лист2!$C28,Лист3!$A$7:$A$96,0),MATCH(Лист2!L$1&L$2,Лист3!$B$4:$AQ$4&Лист3!$B$5:$AQ$5,0)),0) -> 0 | M28: =IFERROR(SUMPRODUCT(Лист1!$B$3:$AF$10*(Лист1!$B$1:$AF$1=Лист2!$D28)*(Лист2!$C28=Лист1!$A$3:$A$10))*INDEX(Лист3!$B$7:$AQ$96,MATCH(Лист2!$C28,Лист3!$A$7:$A$96,0),MATCH(Лист2!M$1&M$2,Лист3!$B$4:$AQ$4&Лист3!$B$5:$AQ$5,0)),0) -> 0 | N28: =IFERROR(SUMPRODUCT(Лист1!$B$3:$AF$10*(Лист1!$B$1:$AF$1=Лист2!$D28)*(Лист2!$C28=Лист1!$A$3:$A$10))*INDEX(Лист3!$B$7:$AQ$96,MATCH(Лист2!$C28,Лист3!$A$7:$A$96,0),MATCH(Лист2!N$1&N$2,Лист3!$B$4:$AQ$4&Лист3!$B$5:$AQ$5,0)),0) -> 0 | O28: =IFERROR(SUMPRODUCT(Лист1!$B$3:$AF$10*(Лист1!$B$1:$AF$1=Лист2!$D28)*(Лист2!$C28=Лист1!$A$3:$A$10))*INDEX(Лист3!$B$7:$AQ$96,MATCH(Лист2!$C28,Лист3!$A$7:$A$96,0),MATCH(Лист2!O$1&O$2,Лист3!$B$4:$AQ$4&Лист3!$B$5:$AQ$5,0)),0) -> 0 | P28: =IFERROR(SUMPRODUCT(Лист1!$B$3:$AF$10*(Лист1!$B$1:$AF$1=Лист2!$D28)*(Лист2!$C28=Лист1!$A$3:$A$10))*INDEX(Лист3!$B$7:$AQ$96,MATCH(Лист2!$C28,Лист3!$A$7:$A$96,0),MATCH(Лист2!P$1&P$2,Лист3!$B$4:$AQ$4&Лист3!$B$5:$AQ$5,0)),0) -> 0 | Q28: =IFERROR(SUMPRODUCT(Лист1!$B$3:$AF$10*(Лист1!$B$1:$AF$1=Лист2!$D28)*(Лист2!$C28=Лист1!$A$3:$A$10))*INDEX(Лист3!$B$7:$AQ$96,MATCH(Лист2!$C28,Лист3!$A$7:$A$96,0),MATCH(Лист2!Q$1&Q$2,Лист3!$B$4:$AQ$4&Лист3!$B$5:$AQ$5,0)),0) -> 0 | R28: =IFERROR(SUMPRODUCT(Лист1!$B$3:$AF$10*(Лист1!$B$1:$AF$1=Лист2!$D28)*(Лист2!$C28=Лист1!$A$3:$A$10))*INDEX(Лист3!$B$7:$AQ$96,MATCH(Лист2!$C28,Лист3!$A$7:$A$96,0),MATCH(Лист2!R$1&R$2,Лист3!$B$4:$AQ$4&Лист3!$B$5:$AQ$5,0)),0) -> 0 | S28: =IFERROR(SUMPRODUCT(Лист1!$B$3:$AF$10*(Лист1!$B$1:$AF$1=Лист2!$D28)*(Лист2!$C28=Лист1!$A$3:$A$10))*INDEX(Лист3!$B$7:$AQ$96,MATCH(Лист2!$C28,Лист3!$A$7:$A$96,0),MATCH(Лист2!S$1&S$2,Лист3!$B$4:$AQ$4&Лист3!$B$5:$AQ$5,0)),0) -> 0 | T28: =IFERROR(SUMPRODUCT(Лист1!$B$3:$AF$10*(Лист1!$B$1:$AF$1=Лист2!$D28)*(Лист2!$C28=Лист1!$A$3:$A$10))*INDEX(Лист3!$B$7:$AQ$96,MATCH(Лист2!$C28,Лист3!$A$7:$A$96,0),MATCH(Лист2!T$1&T$2,Лист3!$B$4:$AQ$4&Лист3!$B$5:$AQ$5,0)),0) -> 0 | U28: =IFERROR(SUMPRODUCT(Лист1!$B$3:$AF$10*(Лист1!$B$1:$AF$1=Лист2!$D28)*(Лист2!$C28=Лист1!$A$3:$A$10))*INDEX(Лист3!$B$7:$AQ$96,MATCH(Лист2!$C28,Лист3!$A$7:$A$96,0),MATCH(Лист2!U$1&U$2,Лист3!$B$4:$AQ$4&Лист3!$B$5:$AQ$5,0)),0) -> 0 | V28: =IFERROR(SUMPRODUCT(Лист1!$B$3:$AF$10*(Лист1!$B$1:$AF$1=Лист2!$D28)*(Лист2!$C28=Лист1!$A$3:$A$10))*INDEX(Лист3!$B$7:$AQ$96,MATCH(Лист2!$C28,Лист3!$A$7:$A$96,0),MATCH(Лист2!V$1&V$2,Лист3!$B$4:$AQ$4&Лист3!$B$5:$AQ$5,0)),0) -> 0 | W28: =IFERROR(SUMPRODUCT(Лист1!$B$3:$AF$10*(Лист1!$B$1:$AF$1=Лист2!$D28)*(Лист2!$C28=Лист1!$A$3:$A$10))*INDEX(Лист3!$B$7:$AQ$96,MATCH(Лист2!$C28,Лист3!$A$7:$A$96,0),MATCH(Лист2!W$1&W$2,Лист3!$B$4:$AQ$4&Лист3!$B$5:$AQ$5,0)),0) -> 0 | X28: =IFERROR(SUMPRODUCT(Лист1!$B$3:$AF$10*(Лист1!$B$1:$AF$1=Лист2!$D28)*(Лист2!$C28=Лист1!$A$3:$A$10))*INDEX(Лист3!$B$7:$AQ$96,MATCH(Лист2!$C28,Лист3!$A$7:$A$96,0),MATCH(Лист2!X$1&X$2,Лист3!$B$4:$AQ$4&Лист3!$B$5:$AQ$5,0)),0) -> 0 | Y28: =IFERROR(SUMPRODUCT(Лист1!$B$3:$AF$10*(Лист1!$B$1:$AF$1=Лист2!$D28)*(Лист2!$C28=Лист1!$A$3:$A$10))*INDEX(Лист3!$B$7:$AQ$96,MATCH(Лист2!$C28,Лист3!$A$7:$A$96,0),MATCH(Лист2!Y$1&Y$2,Лист3!$B$4:$AQ$4&Лист3!$B$5:$AQ$5,0)),0) -> 0 | Z28: =IFERROR(SUMPRODUCT(Лист1!$B$3:$AF$10*(Лист1!$B$1:$AF$1=Лист2!$D28)*(Лист2!$C28=Лист1!$A$3:$A$10))*INDEX(Лист3!$B$7:$AQ$96,MATCH(Лист2!$C28,Лист3!$A$7:$A$96,0),MATCH(Лист2!Z$1&Z$2,Лист3!$B$4:$AQ$4&Лист3!$B$5:$AQ$5,0)),0) -> 0 | AA28: =IFERROR(SUMPRODUCT(Лист1!$B$3:$AF$10*(Лист1!$B$1:$AF$1=Лист2!$D28)*(Лист2!$C28=Лист1!$A$3:$A$10))*INDEX(Лист3!$B$7:$AQ$96,MATCH(Лист2!$C28,Лист3!$A$7:$A$96,0),MATCH(Лист2!AA$1&AA$2,Лист3!$B$4:$AQ$4&Лист3!$B$5:$AQ$5,0)),0) -> 0
C29: =IFERROR(INDEX(Лист1!$A$3:$A$10,SMALL(IF(ISNUMBER(INDEX(Лист1!$B$3:$AF$10,,MATCH(Лист2!$D29,Лист1!$B$1:$AF$1,0))),ROW(Лист1!$A$3:$A$10)-2),COUNTIF($D$7:D29,D29))),"") ->  | D29: 6 | E29: =IFERROR(SUMPRODUCT(Лист1!$B$3:$AF$10*(Лист1!$B$1:$AF$1=Лист2!$D29)*(Лист2!$C29=Лист1!$A$3:$A$10))*INDEX(Лист3!$B$7:$AQ$96,MATCH(Лист2!$C29,Лист3!$A$7:$A$96,0),MATCH(Лист2!E$1&E$2,Лист3!$B$4:$AQ$4&Лист3!$B$5:$AQ$5,0)),0) -> 0 | F29: =IFERROR(SUMPRODUCT(Лист1!$B$3:$AF$10*(Лист1!$B$1:$AF$1=Лист2!$D29)*(Лист2!$C29=Лист1!$A$3:$A$10))*INDEX(Лист3!$B$7:$AQ$96,MATCH(Лист2!$C29,Лист3!$A$7:$A$96,0),MATCH(Лист2!F$1&F$2,Лист3!$B$4:$AQ$4&Лист3!$B$5:$AQ$5,0)),0) -> 0 | G29: =IFERROR(SUMPRODUCT(Лист1!$B$3:$AF$10*(Лист1!$B$1:$AF$1=Лист2!$D29)*(Лист2!$C29=Лист1!$A$3:$A$10))*INDEX(Лист3!$B$7:$AQ$96,MATCH(Лист2!$C29,Лист3!$A$7:$A$96,0),MATCH(Лист2!G$1&G$2,Лист3!$B$4:$AQ$4&Лист3!$B$5:$AQ$5,0)),0) -> 0 | H29: =IFERROR(SUMPRODUCT(Лист1!$B$3:$AF$10*(Лист1!$B$1:$AF$1=Лист2!$D29)*(Лист2!$C29=Лист1!$A$3:$A$10))*INDEX(Лист3!$B$7:$AQ$96,MATCH(Лист2!$C29,Лист3!$A$7:$A$96,0),MATCH(Лист2!H$1&H$2,Лист3!$B$4:$AQ$4&Лист3!$B$5:$AQ$5,0)),0) -> 0 | I29: =IFERROR(SUMPRODUCT(Лист1!$B$3:$AF$10*(Лист1!$B$1:$AF$1=Лист2!$D29)*(Лист2!$C29=Лист1!$A$3:$A$10))*INDEX(Лист3!$B$7:$AQ$96,MATCH(Лист2!$C29,Лист3!$A$7:$A$96,0),MATCH(Лист2!I$1&I$2,Лист3!$B$4:$AQ$4&Лист3!$B$5:$AQ$5,0)),0) -> 0 | J29: =IFERROR(SUMPRODUCT(Лист1!$B$3:$AF$10*(Лист1!$B$1:$AF$1=Лист2!$D29)*(Лист2!$C29=Лист1!$A$3:$A$10))*INDEX(Лист3!$B$7:$AQ$96,MATCH(Лист2!$C29,Лист3!$A$7:$A$96,0),MATCH(Лист2!J$1&J$2,Лист3!$B$4:$AQ$4&Лист3!$B$5:$AQ$5,0)),0) -> 0 | K29: =IFERROR(SUMPRODUCT(Лист1!$B$3:$AF$10*(Лист1!$B$1:$AF$1=Лист2!$D29)*(Лист2!$C29=Лист1!$A$3:$A$10))*INDEX(Лист3!$B$7:$AQ$96,MATCH(Лист2!$C29,Лист3!$A$7:$A$96,0),MATCH(Лист2!K$1&K$2,Лист3!$B$4:$AQ$4&Лист3!$B$5:$AQ$5,0)),0) -> 0 | L29: =IFERROR(SUMPRODUCT(Лист1!$B$3:$AF$10*(Лист1!$B$1:$AF$1=Лист2!$D29)*(Лист2!$C29=Лист1!$A$3:$A$10))*INDEX(Лист3!$B$7:$AQ$96,MATCH(Лист2!$C29,Лист3!$A$7:$A$96,0),MATCH(Лист2!L$1&L$2,Лист3!$B$4:$AQ$4&Лист3!$B$5:$AQ$5,0)),0) -> 0 | M29: =IFERROR(SUMPRODUCT(Лист1!$B$3:$AF$10*(Лист1!$B$1:$AF$1=Лист2!$D29)*(Лист2!$C29=Лист1!$A$3:$A$10))*INDEX(Лист3!$B$7:$AQ$96,MATCH(Лист2!$C29,Лист3!$A$7:$A$96,0),MATCH(Лист2!M$1&M$2,Лист3!$B$4:$AQ$4&Лист3!$B$5:$AQ$5,0)),0) -> 0 | N29: =IFERROR(SUMPRODUCT(Лист1!$B$3:$AF$10*(Лист1!$B$1:$AF$1=Лист2!$D29)*(Лист2!$C29=Лист1!$A$3:$A$10))*INDEX(Лист3!$B$7:$AQ$96,MATCH(Лист2!$C29,Лист3!$A$7:$A$96,0),MATCH(Лист2!N$1&N$2,Лист3!$B$4:$AQ$4&Лист3!$B$5:$AQ$5,0)),0) -> 0 | O29: =IFERROR(SUMPRODUCT(Лист1!$B$3:$AF$10*(Лист1!$B$1:$AF$1=Лист2!$D29)*(Лист2!$C29=Лист1!$A$3:$A$10))*INDEX(Лист3!$B$7:$AQ$96,MATCH(Лист2!$C29,Лист3!$A$7:$A$96,0),MATCH(Лист2!O$1&O$2,Лист3!$B$4:$AQ$4&Лист3!$B$5:$AQ$5,0)),0) -> 0 | P29: =IFERROR(SUMPRODUCT(Лист1!$B$3:$AF$10*(Лист1!$B$1:$AF$1=Лист2!$D29)*(Лист2!$C29=Лист1!$A$3:$A$10))*INDEX(Лист3!$B$7:$AQ$96,MATCH(Лист2!$C29,Лист3!$A$7:$A$96,0),MATCH(Лист2!P$1&P$2,Лист3!$B$4:$AQ$4&Лист3!$B$5:$AQ$5,0)),0) -> 0 | Q29: =IFERROR(SUMPRODUCT(Лист1!$B$3:$AF$10*(Лист1!$B$1:$AF$1=Лист2!$D29)*(Лист2!$C29=Лист1!$A$3:$A$10))*INDEX(Лист3!$B$7:$AQ$96,MATCH(Лист2!$C29,Лист3!$A$7:$A$96,0),MATCH(Лист2!Q$1&Q$2,Лист3!$B$4:$AQ$4&Лист3!$B$5:$AQ$5,0)),0) -> 0 | R29: =IFERROR(SUMPRODUCT(Лист1!$B$3:$AF$10*(Лист1!$B$1:$AF$1=Лист2!$D29)*(Лист2!$C29=Лист1!$A$3:$A$10))*INDEX(Лист3!$B$7:$AQ$96,MATCH(Лист2!$C29,Лист3!$A$7:$A$96,0),MATCH(Лист2!R$1&R$2,Лист3!$B$4:$AQ$4&Лист3!$B$5:$AQ$5,0)),0) -> 0 | S29: =IFERROR(SUMPRODUCT(Лист1!$B$3:$AF$10*(Лист1!$B$1:$AF$1=Лист2!$D29)*(Лист2!$C29=Лист1!$A$3:$A$10))*INDEX(Лист3!$B$7:$AQ$96,MATCH(Лист2!$C29,Лист3!$A$7:$A$96,0),MATCH(Лист2!S$1&S$2,Лист3!$B$4:$AQ$4&Лист3!$B$5:$AQ$5,0)),0) -> 0 | T29: =IFERROR(SUMPRODUCT(Лист1!$B$3:$AF$10*(Лист1!$B$1:$AF$1=Лист2!$D29)*(Лист2!$C29=Лист1!$A$3:$A$10))*INDEX(Лист3!$B$7:$AQ$96,MATCH(Лист2!$C29,Лист3!$A$7:$A$96,0),MATCH(Лист2!T$1&T$2,Лист3!$B$4:$AQ$4&Лист3!$B$5:$AQ$5,0)),0) -> 0 | U29: =IFERROR(SUMPRODUCT(Лист1!$B$3:$AF$10*(Лист1!$B$1:$AF$1=Лист2!$D29)*(Лист2!$C29=Лист1!$A$3:$A$10))*INDEX(Лист3!$B$7:$AQ$96,MATCH(Лист2!$C29,Лист3!$A$7:$A$96,0),MATCH(Лист2!U$1&U$2,Лист3!$B$4:$AQ$4&Лист3!$B$5:$AQ$5,0)),0) -> 0 | V29: =IFERROR(SUMPRODUCT(Лист1!$B$3:$AF$10*(Лист1!$B$1:$AF$1=Лист2!$D29)*(Лист2!$C29=Лист1!$A$3:$A$10))*INDEX(Лист3!$B$7:$AQ$96,MATCH(Лист2!$C29,Лист3!$A$7:$A$96,0),MATCH(Лист2!V$1&V$2,Лист3!$B$4:$AQ$4&Лист3!$B$5:$AQ$5,0)),0) -> 0 | W29: =IFERROR(SUMPRODUCT(Лист1!$B$3:$AF$10*(Лист1!$B$1:$AF$1=Лист2!$D29)*(Лист2!$C29=Лист1!$A$3:$A$10))*INDEX(Лист3!$B$7:$AQ$96,MATCH(Лист2!$C29,Лист3!$A$7:$A$96,0),MATCH(Лист2!W$1&W$2,Лист3!$B$4:$AQ$4&Лист3!$B$5:$AQ$5,0)),0) -> 0 | X29: =IFERROR(SUMPRODUCT(Лист1!$B$3:$AF$10*(Лист1!$B$1:$AF$1=Лист2!$D29)*(Лист2!$C29=Лист1!$A$3:$A$10))*INDEX(Лист3!$B$7:$AQ$96,MATCH(Лист2!$C29,Лист3!$A$7:$A$96,0),MATCH(Лист2!X$1&X$2,Лист3!$B$4:$AQ$4&Лист3!$B$5:$AQ$5,0)),0) -> 0 | Y29: =IFERROR(SUMPRODUCT(Лист1!$B$3:$AF$10*(Лист1!$B$1:$AF$1=Лист2!$D29)*(Лист2!$C29=Лист1!$A$3:$A$10))*INDEX(Лист3!$B$7:$AQ$96,MATCH(Лист2!$C29,Лист3!$A$7:$A$96,0),MATCH(Лист2!Y$1&Y$2,Лист3!$B$4:$AQ$4&Лист3!$B$5:$AQ$5,0)),0) -> 0 | Z29: =IFERROR(SUMPRODUCT(Лист1!$B$3:$AF$10*(Лист1!$B$1:$AF$1=Лист2!$D29)*(Лист2!$C29=Лист1!$A$3:$A$10))*INDEX(Лист3!$B$7:$AQ$96,MATCH(Лист2!$C29,Лист3!$A$7:$A$96,0),MATCH(Лист2!Z$1&Z$2,Лист3!$B$4:$AQ$4&Лист3!$B$5:$AQ$5,0)),0) -> 0 | AA29: =IFERROR(SUMPRODUCT(Лист1!$B$3:$AF$10*(Лист1!$B$1:$AF$1=Лист2!$D29)*(Лист2!$C29=Лист1!$A$3:$A$10))*INDEX(Лист3!$B$7:$AQ$96,MATCH(Лист2!$C29,Лист3!$A$7:$A$96,0),MATCH(Лист2!AA$1&AA$2,Лист3!$B$4:$AQ$4&Лист3!$B$5:$AQ$5,0)),0) -> 0
C30: =IFERROR(INDEX(Лист1!$A$3:$A$10,SMALL(IF(ISNUMBER(INDEX(Лист1!$B$3:$AF$10,,MATCH(Лист2!$D30,Лист1!$B$1:$AF$1,0))),ROW(Лист1!$A$3:$A$10)-2),COUNTIF($D$7:D30,D30))),"") ->  | D30: 6 | E30: =IFERROR(SUMPRODUCT(Лист1!$B$3:$AF$10*(Лист1!$B$1:$AF$1=Лист2!$D30)*(Лист2!$C30=Лист1!$A$3:$A$10))*INDEX(Лист3!$B$7:$AQ$96,MATCH(Лист2!$C30,Лист3!$A$7:$A$96,0),MATCH(Лист2!E$1&E$2,Лист3!$B$4:$AQ$4&Лист3!$B$5:$AQ$5,0)),0) -> 0 | F30: =IFERROR(SUMPRODUCT(Лист1!$B$3:$AF$10*(Лист1!$B$1:$AF$1=Лист2!$D30)*(Лист2!$C30=Лист1!$A$3:$A$10))*INDEX(Лист3!$B$7:$AQ$96,MATCH(Лист2!$C30,Лист3!$A$7:$A$96,0),MATCH(Лист2!F$1&F$2,Лист3!$B$4:$AQ$4&Лист3!$B$5:$AQ$5,0)),0) -> 0 | G30: =IFERROR(SUMPRODUCT(Лист1!$B$3:$AF$10*(Лист1!$B$1:$AF$1=Лист2!$D30)*(Лист2!$C30=Лист1!$A$3:$A$10))*INDEX(Лист3!$B$7:$AQ$96,MATCH(Лист2!$C30,Лист3!$A$7:$A$96,0),MATCH(Лист2!G$1&G$2,Лист3!$B$4:$AQ$4&Лист3!$B$5:$AQ$5,0)),0) -> 0 | H30: =IFERROR(SUMPRODUCT(Лист1!$B$3:$AF$10*(Лист1!$B$1:$AF$1=Лист2!$D30)*(Лист2!$C30=Лист1!$A$3:$A$10))*INDEX(Лист3!$B$7:$AQ$96,MATCH(Лист2!$C30,Лист3!$A$7:$A$96,0),MATCH(Лист2!H$1&H$2,Лист3!$B$4:$AQ$4&Лист3!$B$5:$AQ$5,0)),0) -> 0 | I30: =IFERROR(SUMPRODUCT(Лист1!$B$3:$AF$10*(Лист1!$B$1:$AF$1=Лист2!$D30)*(Лист2!$C30=Лист1!$A$3:$A$10))*INDEX(Лист3!$B$7:$AQ$96,MATCH(Лист2!$C30,Лист3!$A$7:$A$96,0),MATCH(Лист2!I$1&I$2,Лист3!$B$4:$AQ$4&Лист3!$B$5:$AQ$5,0)),0) -> 0 | J30: =IFERROR(SUMPRODUCT(Лист1!$B$3:$AF$10*(Лист1!$B$1:$AF$1=Лист2!$D30)*(Лист2!$C30=Лист1!$A$3:$A$10))*INDEX(Лист3!$B$7:$AQ$96,MATCH(Лист2!$C30,Лист3!$A$7:$A$96,0),MATCH(Лист2!J$1&J$2,Лист3!$B$4:$AQ$4&Лист3!$B$5:$AQ$5,0)),0) -> 0 | K30: =IFERROR(SUMPRODUCT(Лист1!$B$3:$AF$10*(Лист1!$B$1:$AF$1=Лист2!$D30)*(Лист2!$C30=Лист1!$A$3:$A$10))*INDEX(Лист3!$B$7:$AQ$96,MATCH(Лист2!$C30,Лист3!$A$7:$A$96,0),MATCH(Лист2!K$1&K$2,Лист3!$B$4:$AQ$4&Лист3!$B$5:$AQ$5,0)),0) -> 0 | L30: =IFERROR(SUMPRODUCT(Лист1!$B$3:$AF$10*(Лист1!$B$1:$AF$1=Лист2!$D30)*(Лист2!$C30=Лист1!$A$3:$A$10))*INDEX(Лист3!$B$7:$AQ$96,MATCH(Лист2!$C30,Лист3!$A$7:$A$96,0),MATCH(Лист2!L$1&L$2,Лист3!$B$4:$AQ$4&Лист3!$B$5:$AQ$5,0)),0) -> 0 | M30: =IFERROR(SUMPRODUCT(Лист1!$B$3:$AF$10*(Лист1!$B$1:$AF$1=Лист2!$D30)*(Лист2!$C30=Лист1!$A$3:$A$10))*INDEX(Лист3!$B$7:$AQ$96,MATCH(Лист2!$C30,Лист3!$A$7:$A$96,0),MATCH(Лист2!M$1&M$2,Лист3!$B$4:$AQ$4&Лист3!$B$5:$AQ$5,0)),0) -> 0 | N30: =IFERROR(SUMPRODUCT(Лист1!$B$3:$AF$10*(Лист1!$B$1:$AF$1=Лист2!$D30)*(Лист2!$C30=Лист1!$A$3:$A$10))*INDEX(Лист3!$B$7:$AQ$96,MATCH(Лист2!$C30,Лист3!$A$7:$A$96,0),MATCH(Лист2!N$1&N$2,Лист3!$B$4:$AQ$4&Лист3!$B$5:$AQ$5,0)),0) -> 0 | O30: =IFERROR(SUMPRODUCT(Лист1!$B$3:$AF$10*(Лист1!$B$1:$AF$1=Лист2!$D30)*(Лист2!$C30=Лист1!$A$3:$A$10))*INDEX(Лист3!$B$7:$AQ$96,MATCH(Лист2!$C30,Лист3!$A$7:$A$96,0),MATCH(Лист2!O$1&O$2,Лист3!$B$4:$AQ$4&Лист3!$B$5:$AQ$5,0)),0) -> 0 | P30: =IFERROR(SUMPRODUCT(Лист1!$B$3:$AF$10*(Лист1!$B$1:$AF$1=Лист2!$D30)*(Лист2!$C30=Лист1!$A$3:$A$10))*INDEX(Лист3!$B$7:$AQ$96,MATCH(Лист2!$C30,Лист3!$A$7:$A$96,0),MATCH(Лист2!P$1&P$2,Лист3!$B$4:$AQ$4&Лист3!$B$5:$AQ$5,0)),0) -> 0 | Q30: =IFERROR(SUMPRODUCT(Лист1!$B$3:$AF$10*(Лист1!$B$1:$AF$1=Лист2!$D30)*(Лист2!$C30=Лист1!$A$3:$A$10))*INDEX(Лист3!$B$7:$AQ$96,MATCH(Лист2!$C30,Лист3!$A$7:$A$96,0),MATCH(Лист2!Q$1&Q$2,Лист3!$B$4:$AQ$4&Лист3!$B$5:$AQ$5,0)),0) -> 0 | R30: =IFERROR(SUMPRODUCT(Лист1!$B$3:$AF$10*(Лист1!$B$1:$AF$1=Лист2!$D30)*(Лист2!$C30=Лист1!$A$3:$A$10))*INDEX(Лист3!$B$7:$AQ$96,MATCH(Лист2!$C30,Лист3!$A$7:$A$96,0),MATCH(Лист2!R$1&R$2,Лист3!$B$4:$AQ$4&Лист3!$B$5:$AQ$5,0)),0) -> 0 | S30: =IFERROR(SUMPRODUCT(Лист1!$B$3:$AF$10*(Лист1!$B$1:$AF$1=Лист2!$D30)*(Лист2!$C30=Лист1!$A$3:$A$10))*INDEX(Лист3!$B$7:$AQ$96,MATCH(Лист2!$C30,Лист3!$A$7:$A$96,0),MATCH(Лист2!S$1&S$2,Лист3!$B$4:$AQ$4&Лист3!$B$5:$AQ$5,0)),0) -> 0 | T30: =IFERROR(SUMPRODUCT(Лист1!$B$3:$AF$10*(Лист1!$B$1:$AF$1=Лист2!$D30)*(Лист2!$C30=Лист1!$A$3:$A$10))*INDEX(Лист3!$B$7:$AQ$96,MATCH(Лист2!$C30,Лист3!$A$7:$A$96,0),MATCH(Лист2!T$1&T$2,Лист3!$B$4:$AQ$4&Лист3!$B$5:$AQ$5,0)),0) -> 0 | U30: =IFERROR(SUMPRODUCT(Лист1!$B$3:$AF$10*(Лист1!$B$1:$AF$1=Лист2!$D30)*(Лист2!$C30=Лист1!$A$3:$A$10))*INDEX(Лист3!$B$7:$AQ$96,MATCH(Лист2!$C30,Лист3!$A$7:$A$96,0),MATCH(Лист2!U$1&U$2,Лист3!$B$4:$AQ$4&Лист3!$B$5:$AQ$5,0)),0) -> 0 | V30: =IFERROR(SUMPRODUCT(Лист1!$B$3:$AF$10*(Лист1!$B$1:$AF$1=Лист2!$D30)*(Лист2!$C30=Лист1!$A$3:$A$10))*INDEX(Лист3!$B$7:$AQ$96,MATCH(Лист2!$C30,Лист3!$A$7:$A$96,0),MATCH(Лист2!V$1&V$2,Лист3!$B$4:$AQ$4&Лист3!$B$5:$AQ$5,0)),0) -> 0 | W30: =IFERROR(SUMPRODUCT(Лист1!$B$3:$AF$10*(Лист1!$B$1:$AF$1=Лист2!$D30)*(Лист2!$C30=Лист1!$A$3:$A$10))*INDEX(Лист3!$B$7:$AQ$96,MATCH(Лист2!$C30,Лист3!$A$7:$A$96,0),MATCH(Лист2!W$1&W$2,Лист3!$B$4:$AQ$4&Лист3!$B$5:$AQ$5,0)),0) -> 0 | X30: =IFERROR(SUMPRODUCT(Лист1!$B$3:$AF$10*(Лист1!$B$1:$AF$1=Лист2!$D30)*(Лист2!$C30=Лист1!$A$3:$A$10))*INDEX(Лист3!$B$7:$AQ$96,MATCH(Лист2!$C30,Лист3!$A$7:$A$96,0),MATCH(Лист2!X$1&X$2,Лист3!$B$4:$AQ$4&Лист3!$B$5:$AQ$5,0)),0) -> 0 | Y30: =IFERROR(SUMPRODUCT(Лист1!$B$3:$AF$10*(Лист1!$B$1:$AF$1=Лист2!$D30)*(Лист2!$C30=Лист1!$A$3:$A$10))*INDEX(Лист3!$B$7:$AQ$96,MATCH(Лист2!$C30,Лист3!$A$7:$A$96,0),MATCH(Лист2!Y$1&Y$2,Лист3!$B$4:$AQ$4&Лист3!$B$5:$AQ$5,0)),0) -> 0 | Z30: =IFERROR(SUMPRODUCT(Лист1!$B$3:$AF$10*(Лист1!$B$1:$AF$1=Лист2!$D30)*(Лист2!$C30=Лист1!$A$3:$A$10))*INDEX(Лист3!$B$7:$AQ$96,MATCH(Лист2!$C30,Лист3!$A$7:$A$96,0),MATCH(Лист2!Z$1&Z$2,Лист3!$B$4:$AQ$4&Лист3!$B$5:$AQ$5,0)),0) -> 0 | AA30: =IFERROR(SUMPRODUCT(Лист1!$B$3:$AF$10*(Лист1!$B$1:$AF$1=Лист2!$D30)*(Лист2!$C30=Лист1!$A$3:$A$10))*INDEX(Лист3!$B$7:$AQ$96,MATCH(Лист2!$C30,Лист3!$A$7:$A$96,0),MATCH(Лист2!AA$1&AA$2,Лист3!$B$4:$AQ$4&Лист3!$B$5:$AQ$5,0)),0) -> 0
C31: =IFERROR(INDEX(Лист1!$A$3:$A$10,SMALL(IF(ISNUMBER(INDEX(Лист1!$B$3:$AF$10,,MATCH(Лист2!$D31,Лист1!$B$1:$AF$1,0))),ROW(Лист1!$A$3:$A$10)-2),COUNTIF($D$7:D31,D31))),"") -> Плита "Экстрол" 30-1180.580.50/8 (Ч), м3 | D31: 7 | E31: =IFERROR(SUMPRODUCT(Лист1!$B$3:$AF$10*(Лист1!$B$1:$AF$1=Лист2!$D31)*(Лист2!$C31=Лист1!$A$3:$A$10))*INDEX(Лист3!$B$7:$AQ$96,MATCH(Лист2!$C31,Лист3!$A$7:$A$96,0),MATCH(Лист2!E$1&E$2,Лист3!$B$4:$AQ$4&Лист3!$B$5:$AQ$5,0)),0) -> 540 | F31: =IFERROR(SUMPRODUCT(Лист1!$B$3:$AF$10*(Лист1!$B$1:$AF$1=Лист2!$D31)*(Лист2!$C31=Лист1!$A$3:$A$10))*INDEX(Лист3!$B$7:$AQ$96,MATCH(Лист2!$C31,Лист3!$A$7:$A$96,0),MATCH(Лист2!F$1&F$2,Лист3!$B$4:$AQ$4&Лист3!$B$5:$AQ$5,0)),0) -> 2180 | G31: =IFERROR(SUMPRODUCT(Лист1!$B$3:$AF$10*(Лист1!$B$1:$AF$1=Лист2!$D31)*(Лист2!$C31=Лист1!$A$3:$A$10))*INDEX(Лист3!$B$7:$AQ$96,MATCH(Лист2!$C31,Лист3!$A$7:$A$96,0),MATCH(Лист2!G$1&G$2,Лист3!$B$4:$AQ$4&Лист3!$B$5:$AQ$5,0)),0) -> 10 | H31: =IFERROR(SUMPRODUCT(Лист1!$B$3:$AF$10*(Лист1!$B$1:$AF$1=Лист2!$D31)*(Лист2!$C31=Лист1!$A$3:$A$10))*INDEX(Лист3!$B$7:$AQ$96,MATCH(Лист2!$C31,Лист3!$A$7:$A$96,0),MATCH(Лист2!H$1&H$2,Лист3!$B$4:$AQ$4&Лист3!$B$5:$AQ$5,0)),0) -> 7 | I31: =IFERROR(SUMPRODUCT(Лист1!$B$3:$AF$10*(Лист1!$B$1:$AF$1=Лист2!$D31)*(Лист2!$C31=Лист1!$A$3:$A$10))*INDEX(Лист3!$B$7:$AQ$96,MATCH(Лист2!$C31,Лист3!$A$7:$A$96,0),MATCH(Лист2!I$1&I$2,Лист3!$B$4:$AQ$4&Лист3!$B$5:$AQ$5,0)),0) -> 0 | J31: =IFERROR(SUMPRODUCT(Лист1!$B$3:$AF$10*(Лист1!$B$1:$AF$1=Лист2!$D31)*(Лист2!$C31=Лист1!$A$3:$A$10))*INDEX(Лист3!$B$7:$AQ$96,MATCH(Лист2!$C31,Лист3!$A$7:$A$96,0),MATCH(Лист2!J$1&J$2,Лист3!$B$4:$AQ$4&Лист3!$B$5:$AQ$5,0)),0) -> 2 | K31: =IFERROR(SUMPRODUCT(Лист1!$B$3:$AF$10*(Лист1!$B$1:$AF$1=Лист2!$D31)*(Лист2!$C31=Лист1!$A$3:$A$10))*INDEX(Лист3!$B$7:$AQ$96,MATCH(Лист2!$C31,Лист3!$A$7:$A$96,0),MATCH(Лист2!K$1&K$2,Лист3!$B$4:$AQ$4&Лист3!$B$5:$AQ$5,0)),0) -> 0 | L31: =IFERROR(SUMPRODUCT(Лист1!$B$3:$AF$10*(Лист1!$B$1:$AF$1=Лист2!$D31)*(Лист2!$C31=Лист1!$A$3:$A$10))*INDEX(Лист3!$B$7:$AQ$96,MATCH(Лист2!$C31,Лист3!$A$7:$A$96,0),MATCH(Лист2!L$1&L$2,Лист3!$B$4:$AQ$4&Лист3!$B$5:$AQ$5,0)),0) -> 2 | M31: =IFERROR(SUMPRODUCT(Лист1!$B$3:$AF$10*(Лист1!$B$1:$AF$1=Лист2!$D31)*(Лист2!$C31=Лист1!$A$3:$A$10))*INDEX(Лист3!$B$7:$AQ$96,MATCH(Лист2!$C31,Лист3!$A$7:$A$96,0),MATCH(Лист2!M$1&M$2,Лист3!$B$4:$AQ$4&Лист3!$B$5:$AQ$5,0)),0) -> 90 | N31: =IFERROR(SUMPRODUCT(Лист1!$B$3:$AF$10*(Лист1!$B$1:$AF$1=Лист2!$D31)*(Лист2!$C31=Лист1!$A$3:$A$10))*INDEX(Лист3!$B$7:$AQ$96,MATCH(Лист2!$C31,Лист3!$A$7:$A$96,0),MATCH(Лист2!N$1&N$2,Лист3!$B$4:$AQ$4&Лист3!$B$5:$AQ$5,0)),0) -> 50 | O31: =IFERROR(SUMPRODUCT(Лист1!$B$3:$AF$10*(Лист1!$B$1:$AF$1=Лист2!$D31)*(Лист2!$C31=Лист1!$A$3:$A$10))*INDEX(Лист3!$B$7:$AQ$96,MATCH(Лист2!$C31,Лист3!$A$7:$A$96,0),MATCH(Лист2!O$1&O$2,Лист3!$B$4:$AQ$4&Лист3!$B$5:$AQ$5,0)),0) -> 0 | P31: =IFERROR(SUMPRODUCT(Лист1!$B$3:$AF$10*(Лист1!$B$1:$AF$1=Лист2!$D31)*(Лист2!$C31=Лист1!$A$3:$A$10))*INDEX(Лист3!$B$7:$AQ$96,MATCH(Лист2!$C31,Лист3!$A$7:$A$96,0),MATCH(Лист2!P$1&P$2,Лист3!$B$4:$AQ$4&Лист3!$B$5:$AQ$5,0)),0) -> 89 | Q31: =IFERROR(SUMPRODUCT(Лист1!$B$3:$AF$10*(Лист1!$B$1:$AF$1=Лист2!$D31)*(Лист2!$C31=Лист1!$A$3:$A$10))*INDEX(Лист3!$B$7:$AQ$96,MATCH(Лист2!$C31,Лист3!$A$7:$A$96,0),MATCH(Лист2!Q$1&Q$2,Лист3!$B$4:$AQ$4&Лист3!$B$5:$AQ$5,0)),0) -> 0 | R31: =IFERROR(SUMPRODUCT(Лист1!$B$3:$AF$10*(Лист1!$B$1:$AF$1=Лист2!$D31)*(Лист2!$C31=Лист1!$A$3:$A$10))*INDEX(Лист3!$B$7:$AQ$96,MATCH(Лист2!$C31,Лист3!$A$7:$A$96,0),MATCH(Лист2!R$1&R$2,Лист3!$B$4:$AQ$4&Лист3!$B$5:$AQ$5,0)),0) -> 10 | S31: =IFERROR(SUMPRODUCT(Лист1!$B$3:$AF$10*(Лист1!$B$1:$AF$1=Лист2!$D31)*(Лист2!$C31=Лист1!$A$3:$A$10))*INDEX(Лист3!$B$7:$AQ$96,MATCH(Лист2!$C31,Лист3!$A$7:$A$96,0),MATCH(Лист2!S$1&S$2,Лист3!$B$4:$AQ$4&Лист3!$B$5:$AQ$5,0)),0) -> 0.6 | T31: =IFERROR(SUMPRODUCT(Лист1!$B$3:$AF$10*(Лист1!$B$1:$AF$1=Лист2!$D31)*(Лист2!$C31=Лист1!$A$3:$A$10))*INDEX(Лист3!$B$7:$AQ$96,MATCH(Лист2!$C31,Лист3!$A$7:$A$96,0),MATCH(Лист2!T$1&T$2,Лист3!$B$4:$AQ$4&Лист3!$B$5:$AQ$5,0)),0) -> 0 | U31: =IFERROR(SUMPRODUCT(Лист1!$B$3:$AF$10*(Лист1!$B$1:$AF$1=Лист2!$D31)*(Лист2!$C31=Лист1!$A$3:$A$10))*INDEX(Лист3!$B$7:$AQ$96,MATCH(Лист2!$C31,Лист3!$A$7:$A$96,0),MATCH(Лист2!U$1&U$2,Лист3!$B$4:$AQ$4&Лист3!$B$5:$AQ$5,0)),0) -> 0 | V31: =IFERROR(SUMPRODUCT(Лист1!$B$3:$AF$10*(Лист1!$B$1:$AF$1=Лист2!$D31)*(Лист2!$C31=Лист1!$A$3:$A$10))*INDEX(Лист3!$B$7:$AQ$96,MATCH(Лист2!$C31,Лист3!$A$7:$A$96,0),MATCH(Лист2!V$1&V$2,Лист3!$B$4:$AQ$4&Лист3!$B$5:$AQ$5,0)),0) -> 0 | W31: =IFERROR(SUMPRODUCT(Лист1!$B$3:$AF$10*(Лист1!$B$1:$AF$1=Лист2!$D31)*(Лист2!$C31=Лист1!$A$3:$A$10))*INDEX(Лист3!$B$7:$AQ$96,MATCH(Лист2!$C31,Лист3!$A$7:$A$96,0),MATCH(Лист2!W$1&W$2,Лист3!$B$4:$AQ$4&Лист3!$B$5:$AQ$5,0)),0) -> 0 | X31: =IFERROR(SUMPRODUCT(Лист1!$B$3:$AF$10*(Лист1!$B$1:$AF$1=Лист2!$D31)*(Лист2!$C31=Лист1!$A$3:$A$10))*INDEX(Лист3!$B$7:$AQ$96,MATCH(Лист2!$C31,Лист3!$A$7:$A$96,0),MATCH(Лист2!X$1&X$2,Лист3!$B$4:$AQ$4&Лист3!$B$5:$AQ$5,0)),0) -> 1.6 | Y31: =IFERROR(SUMPRODUCT(Лист1!$B$3:$AF$10*(Лист1!$B$1:$AF$1=Лист2!$D31)*(Лист2!$C31=Лист1!$A$3:$A$10))*INDEX(Лист3!$B$7:$AQ$96,MATCH(Лист2!$C31,Лист3!$A$7:$A$96,0),MATCH(Лист2!Y$1&Y$2,Лист3!$B$4:$AQ$4&Лист3!$B$5:$AQ$5,0)),0) -> 0 | Z31: =IFERROR(SUMPRODUCT(Лист1!$B$3:$AF$10*(Лист1!$B$1:$AF$1=Лист2!$D31)*(Лист2!$C31=Лист1!$A$3:$A$10))*INDEX(Лист3!$B$7:$AQ$96,MATCH(Лист2!$C31,Лист3!$A$7:$A$96,0),MATCH(Лист2!Z$1&Z$2,Лист3!$B$4:$AQ$4&Лист3!$B$5:$AQ$5,0)),0) -> 0.25 | AA31: =IFERROR(SUMPRODUCT(Лист1!$B$3:$AF$10*(Лист1!$B$1:$AF$1=Лист2!$D31)*(Лист2!$C31=Лист1!$A$3:$A$10))*INDEX(Лист3!$B$7:$AQ$96,MATCH(Лист2!$C31,Лист3!$A$7:$A$96,0),MATCH(Лист2!AA$1&AA$2,Лист3!$B$4:$AQ$4&Лист3!$B$5:$AQ$5,0)),0) -> 1.5
C32: =IFERROR(INDEX(Лист1!$A$3:$A$10,SMALL(IF(ISNUMBER(INDEX(Лист1!$B$3:$AF$10,,MATCH(Лист2!$D32,Лист1!$B$1:$AF$1,0))),ROW(Лист1!$A$3:$A$10)-2),COUNTIF($D$7:D32,D32))),"") -> Плита "Экстрол" 35-1180.580.50/8 (Ч) Г4, м3 | D32: 7 | E32: =IFERROR(SUMPRODUCT(Лист1!$B$3:$AF$10*(Лист1!$B$1:$AF$1=Лист2!$D32)*(Лист2!$C32=Лист1!$A$3:$A$10))*INDEX(Лист3!$B$7:$AQ$96,MATCH(Лист2!$C32,Лист3!$A$7:$A$96,0),MATCH(Лист2!E$1&E$2,Лист3!$B$4:$AQ$4&Лист3!$B$5:$AQ$5,0)),0) -> 610 | F32: =IFERROR(SUMPRODUCT(Лист1!$B$3:$AF$10*(Лист1!$B$1:$AF$1=Лист2!$D32)*(Лист2!$C32=Лист1!$A$3:$A$10))*INDEX(Лист3!$B$7:$AQ$96,MATCH(Лист2!$C32,Лист3!$A$7:$A$96,0),MATCH(Лист2!F$1&F$2,Лист3!$B$4:$AQ$4&Лист3!$B$5:$AQ$5,0)),0) -> 2040 | G32: =IFERROR(SUMPRODUCT(Лист1!$B$3:$AF$10*(Лист1!$B$1:$AF$1=Лист2!$D32)*(Лист2!$C32=Лист1!$A$3:$A$10))*INDEX(Лист3!$B$7:$AQ$96,MATCH(Лист2!$C32,Лист3!$A$7:$A$96,0),MATCH(Лист2!G$1&G$2,Лист3!$B$4:$AQ$4&Лист3!$B$5:$AQ$5,0)),0) -> 15 | H32: =IFERROR(SUMPRODUCT(Лист1!$B$3:$AF$10*(Лист1!$B$1:$AF$1=Лист2!$D32)*(Лист2!$C32=Лист1!$A$3:$A$10))*INDEX(Лист3!$B$7:$AQ$96,MATCH(Лист2!$C32,Лист3!$A$7:$A$96,0),MATCH(Лист2!H$1&H$2,Лист3!$B$4:$AQ$4&Лист3!$B$5:$AQ$5,0)),0) -> 12 | I32: =IFERROR(SUMPRODUCT(Лист1!$B$3:$AF$10*(Лист1!$B$1:$AF$1=Лист2!$D32)*(Лист2!$C32=Лист1!$A$3:$A$10))*INDEX(Лист3!$B$7:$AQ$96,MATCH(Лист2!$C32,Лист3!$A$7:$A$96,0),MATCH(Лист2!I$1&I$2,Лист3!$B$4:$AQ$4&Лист3!$B$5:$AQ$5,0)),0) -> 0 | J32: =IFERROR(SUMPRODUCT(Лист1!$B$3:$AF$10*(Лист1!$B$1:$AF$1=Лист2!$D32)*(Лист2!$C32=Лист1!$A$3:$A$10))*INDEX(Лист3!$B$7:$AQ$96,MATCH(Лист2!$C32,Лист3!$A$7:$A$96,0),MATCH(Лист2!J$1&J$2,Лист3!$B$4:$AQ$4&Лист3!$B$5:$AQ$5,0)),0) -> 2 | K32: =IFERROR(SUMPRODUCT(Лист1!$B$3:$AF$10*(Лист1!$B$1:$AF$1=Лист2!$D32)*(Лист2!$C32=Лист1!$A$3:$A$10))*INDEX(Лист3!$B$7:$AQ$96,MATCH(Лист2!$C32,Лист3!$A$7:$A$96,0),MATCH(Лист2!K$1&K$2,Лист3!$B$4:$AQ$4&Лист3!$B$5:$AQ$5,0)),0) -> 0 | L32: =IFERROR(SUMPRODUCT(Лист1!$B$3:$AF$10*(Лист1!$B$1:$AF$1=Лист2!$D32)*(Лист2!$C32=Лист1!$A$3:$A$10))*INDEX(Лист3!$B$7:$AQ$96,MATCH(Лист2!$C32,Лист3!$A$7:$A$96,0),MATCH(Лист2!L$1&L$2,Лист3!$B$4:$AQ$4&Лист3!$B$5:$AQ$5,0)),0) -> 3 | M32: =IFERROR(SUMPRODUCT(Лист1!$B$3:$AF$10*(Лист1!$B$1:$AF$1=Лист2!$D32)*(Лист2!$C32=Лист1!$A$3:$A$10))*INDEX(Лист3!$B$7:$AQ$96,MATCH(Лист2!$C32,Лист3!$A$7:$A$96,0),MATCH(Лист2!M$1&M$2,Лист3!$B$4:$AQ$4&Лист3!$B$5:$AQ$5,0)),0) -> 120 | N32: =IFERROR(SUMPRODUCT(Лист1!$B$3:$AF$10*(Лист1!$B$1:$AF$1=Лист2!$D32)*(Лист2!$C32=Лист1!$A$3:$A$10))*INDEX(Лист3!$B$7:$AQ$96,MATCH(Лист2!$C32,Лист3!$A$7:$A$96,0),MATCH(Лист2!N$1&N$2,Лист3!$B$4:$AQ$4&Лист3!$B$5:$AQ$5,0)),0) -> 60 | O32: =IFERROR(SUMPRODUCT(Лист1!$B$3:$AF$10*(Лист1!$B$1:$AF$1=Лист2!$D32)*(Лист2!$C32=Лист1!$A$3:$A$10))*INDEX(Лист3!$B$7:$AQ$96,MATCH(Лист2!$C32,Лист3!$A$7:$A$96,0),MATCH(Лист2!O$1&O$2,Лист3!$B$4:$AQ$4&Лист3!$B$5:$AQ$5,0)),0) -> 0 | P32: =IFERROR(SUMPRODUCT(Лист1!$B$3:$AF$10*(Лист1!$B$1:$AF$1=Лист2!$D32)*(Лист2!$C32=Лист1!$A$3:$A$10))*INDEX(Лист3!$B$7:$AQ$96,MATCH(Лист2!$C32,Лист3!$A$7:$A$96,0),MATCH(Лист2!P$1&P$2,Лист3!$B$4:$AQ$4&Лист3!$B$5:$AQ$5,0)),0) -> 80 | Q32: =IFERROR(SUMPRODUCT(Лист1!$B$3:$AF$10*(Лист1!$B$1:$AF$1=Лист2!$D32)*(Лист2!$C32=Лист1!$A$3:$A$10))*INDEX(Лист3!$B$7:$AQ$96,MATCH(Лист2!$C32,Лист3!$A$7:$A$96,0),MATCH(Лист2!Q$1&Q$2,Лист3!$B$4:$AQ$4&Лист3!$B$5:$AQ$5,0)),0) -> 0 | R32: =IFERROR(SUMPRODUCT(Лист1!$B$3:$AF$10*(Лист1!$B$1:$AF$1=Лист2!$D32)*(Лист2!$C32=Лист1!$A$3:$A$10))*INDEX(Лист3!$B$7:$AQ$96,MATCH(Лист2!$C32,Лист3!$A$7:$A$96,0),MATCH(Лист2!R$1&R$2,Лист3!$B$4:$AQ$4&Лист3!$B$5:$AQ$5,0)),0) -> 10 | S32: =IFERROR(SUMPRODUCT(Лист1!$B$3:$AF$10*(Лист1!$B$1:$AF$1=Лист2!$D32)*(Лист2!$C32=Лист1!$A$3:$A$10))*INDEX(Лист3!$B$7:$AQ$96,MATCH(Лист2!$C32,Лист3!$A$7:$A$96,0),MATCH(Лист2!S$1&S$2,Лист3!$B$4:$AQ$4&Лист3!$B$5:$AQ$5,0)),0) -> 0.6 | T32: =IFERROR(SUMPRODUCT(Лист1!$B$3:$AF$10*(Лист1!$B$1:$AF$1=Лист2!$D32)*(Лист2!$C32=Лист1!$A$3:$A$10))*INDEX(Лист3!$B$7:$AQ$96,MATCH(Лист2!$C32,Лист3!$A$7:$A$96,0),MATCH(Лист2!T$1&T$2,Лист3!$B$4:$AQ$4&Лист3!$B$5:$AQ$5,0)),0) -> 0 | U32: =IFERROR(SUMPRODUCT(Лист1!$B$3:$AF$10*(Лист1!$B$1:$AF$1=Лист2!$D32)*(Лист2!$C32=Лист1!$A$3:$A$10))*INDEX(Лист3!$B$7:$AQ$96,MATCH(Лист2!$C32,Лист3!$A$7:$A$96,0),MATCH(Лист2!U$1&U$2,Лист3!$B$4:$AQ$4&Лист3!$B$5:$AQ$5,0)),0) -> 0 | V32: =IFERROR(SUMPRODUCT(Лист1!$B$3:$AF$10*(Лист1!$B$1:$AF$1=Лист2!$D32)*(Лист2!$C32=Лист1!$A$3:$A$10))*INDEX(Лист3!$B$7:$AQ$96,MATCH(Лист2!$C32,Лист3!$A$7:$A$96,0),MATCH(Лист2!V$1&V$2,Лист3!$B$4:$AQ$4&Лист3!$B$5:$AQ$5,0)),0) -> 0 | W32: =IFERROR(SUMPRODUCT(Лист1!$B$3:$AF$10*(Лист1!$B$1:$AF$1=Лист2!$D32)*(Лист2!$C32=Лист1!$A$3:$A$10))*INDEX(Лист3!$B$7:$AQ$96,MATCH(Лист2!$C32,Лист3!$A$7:$A$96,0),MATCH(Лист2!W$1&W$2,Лист3!$B$4:$AQ$4&Лист3!$B$5:$AQ$5,0)),0) -> 0 | X32: =IFERROR(SUMPRODUCT(Лист1!$B$3:$AF$10*(Лист1!$B$1:$AF$1=Лист2!$D32)*(Лист2!$C32=Лист1!$A$3:$A$10))*INDEX(Лист3!$B$7:$AQ$96,MATCH(Лист2!$C32,Лист3!$A$7:$A$96,0),MATCH(Лист2!X$1&X$2,Лист3!$B$4:$AQ$4&Лист3!$B$5:$AQ$5,0)),0) -> 1.6 | Y32: =IFERROR(SUMPRODUCT(Лист1!$B$3:$AF$10*(Лист1!$B$1:$AF$1=Лист2!$D32)*(Лист2!$C32=Лист1!$A$3:$A$10))*INDEX(Лист3!$B$7:$AQ$96,MATCH(Лист2!$C32,Лист3!$A$7:$A$96,0),MATCH(Лист2!Y$1&Y$2,Лист3!$B$4:$AQ$4&Лист3!$B$5:$AQ$5,0)),0) -> 0 | Z32: =IFERROR(SUMPRODUCT(Лист1!$B$3:$AF$10*(Лист1!$B$1:$AF$1=Лист2!$D32)*(Лист2!$C32=Лист1!$A$3:$A$10))*INDEX(Лист3!$B$7:$AQ$96,MATCH(Лист2!$C32,Лист3!$A$7:$A$96,0),MATCH(Лист2!Z$1&Z$2,Лист3!$B$4:$AQ$4&Лист3!$B$5:$AQ$5,0)),0) -> 0.25 | AA32: =IFERROR(SUMPRODUCT(Лист1!$B$3:$AF$10*(Лист1!$B$1:$AF$1=Лист2!$D32)*(Лист2!$C32=Лист1!$A$3:$A$10))*INDEX(Лист3!$B$7:$AQ$96,MATCH(Лист2!$C32,Лист3!$A$7:$A$96,0),MATCH(Лист2!AA$1&AA$2,Лист3!$B$4:$AQ$4&Лист3!$B$5:$AQ$5,0)),0) -> 4.7
C33: =IFERROR(INDEX(Лист1!$A$3:$A$10,SMALL(IF(ISNUMBER(INDEX(Лист1!$B$3:$AF$10,,MATCH(Лист2!$D33,Лист1!$B$1:$AF$1,0))),ROW(Лист1!$A$3:$A$10)-2),COUNTIF($D$7:D33,D33))),"") ->  | D33: 7 | E33: =IFERROR(SUMPRODUCT(Лист1!$B$3:$AF$10*(Лист1!$B$1:$AF$1=Лист2!$D33)*(Лист2!$C33=Лист1!$A$3:$A$10))*INDEX(Лист3!$B$7:$AQ$96,MATCH(Лист2!$C33,Лист3!$A$7:$A$96,0),MATCH(Лист2!E$1&E$2,Лист3!$B$4:$AQ$4&Лист3!$B$5:$AQ$5,0)),0) -> 0 | F33: =IFERROR(SUMPRODUCT(Лист1!$B$3:$AF$10*(Лист1!$B$1:$AF$1=Лист2!$D33)*(Лист2!$C33=Лист1!$A$3:$A$10))*INDEX(Лист3!$B$7:$AQ$96,MATCH(Лист2!$C33,Лист3!$A$7:$A$96,0),MATCH(Лист2!F$1&F$2,Лист3!$B$4:$AQ$4&Лист3!$B$5:$AQ$5,0)),0) -> 0 | G33: =IFERROR(SUMPRODUCT(Лист1!$B$3:$AF$10*(Лист1!$B$1:$AF$1=Лист2!$D33)*(Лист2!$C33=Лист1!$A$3:$A$10))*INDEX(Лист3!$B$7:$AQ$96,MATCH(Лист2!$C33,Лист3!$A$7:$A$96,0),MATCH(Лист2!G$1&G$2,Лист3!$B$4:$AQ$4&Лист3!$B$5:$AQ$5,0)),0) -> 0 | H33: =IFERROR(SUMPRODUCT(Лист1!$B$3:$AF$10*(Лист1!$B$1:$AF$1=Лист2!$D33)*(Лист2!$C33=Лист1!$A$3:$A$10))*INDEX(Лист3!$B$7:$AQ$96,MATCH(Лист2!$C33,Лист3!$A$7:$A$96,0),MATCH(Лист2!H$1&H$2,Лист3!$B$4:$AQ$4&Лист3!$B$5:$AQ$5,0)),0) -> 0 | I33: =IFERROR(SUMPRODUCT(Лист1!$B$3:$AF$10*(Лист1!$B$1:$AF$1=Лист2!$D33)*(Лист2!$C33=Лист1!$A$3:$A$10))*INDEX(Лист3!$B$7:$AQ$96,MATCH(Лист2!$C33,Лист3!$A$7:$A$96,0),MATCH(Лист2!I$1&I$2,Лист3!$B$4:$AQ$4&Лист3!$B$5:$AQ$5,0)),0) -> 0 | J33: =IFERROR(SUMPRODUCT(Лист1!$B$3:$AF$10*(Лист1!$B$1:$AF$1=Лист2!$D33)*(Лист2!$C33=Лист1!$A$3:$A$10))*INDEX(Лист3!$B$7:$AQ$96,MATCH(Лист2!$C33,Лист3!$A$7:$A$96,0),MATCH(Лист2!J$1&J$2,Лист3!$B$4:$AQ$4&Лист3!$B$5:$AQ$5,0)),0) -> 0 | K33: =IFERROR(SUMPRODUCT(Лист1!$B$3:$AF$10*(Лист1!$B$1:$AF$1=Лист2!$D33)*(Лист2!$C33=Лист1!$A$3:$A$10))*INDEX(Лист3!$B$7:$AQ$96,MATCH(Лист2!$C33,Лист3!$A$7:$A$96,0),MATCH(Лист2!K$1&K$2,Лист3!$B$4:$AQ$4&Лист3!$B$5:$AQ$5,0)),0) -> 0 | L33: =IFERROR(SUMPRODUCT(Лист1!$B$3:$AF$10*(Лист1!$B$1:$AF$1=Лист2!$D33)*(Лист2!$C33=Лист1!$A$3:$A$10))*INDEX(Лист3!$B$7:$AQ$96,MATCH(Лист2!$C33,Лист3!$A$7:$A$96,0),MATCH(Лист2!L$1&L$2,Лист3!$B$4:$AQ$4&Лист3!$B$5:$AQ$5,0)),0) -> 0 | M33: =IFERROR(SUMPRODUCT(Лист1!$B$3:$AF$10*(Лист1!$B$1:$AF$1=Лист2!$D33)*(Лист2!$C33=Лист1!$A$3:$A$10))*INDEX(Лист3!$B$7:$AQ$96,MATCH(Лист2!$C33,Лист3!$A$7:$A$96,0),MATCH(Лист2!M$1&M$2,Лист3!$B$4:$AQ$4&Лист3!$B$5:$AQ$5,0)),0) -> 0 | N33: =IFERROR(SUMPRODUCT(Лист1!$B$3:$AF$10*(Лист1!$B$1:$AF$1=Лист2!$D33)*(Лист2!$C33=Лист1!$A$3:$A$10))*INDEX(Лист3!$B$7:$AQ$96,MATCH(Лист2!$C33,Лист3!$A$7:$A$96,0),MATCH(Лист2!N$1&N$2,Лист3!$B$4:$AQ$4&Лист3!$B$5:$AQ$5,0)),0) -> 0 | O33: =IFERROR(SUMPRODUCT(Лист1!$B$3:$AF$10*(Лист1!$B$1:$AF$1=Лист2!$D33)*(Лист2!$C33=Лист1!$A$3:$A$10))*INDEX(Лист3!$B$7:$AQ$96,MATCH(Лист2!$C33,Лист3!$A$7:$A$96,0),MATCH(Лист2!O$1&O$2,Лист3!$B$4:$AQ$4&Лист3!$B$5:$AQ$5,0)),0) -> 0 | P33: =IFERROR(SUMPRODUCT(Лист1!$B$3:$AF$10*(Лист1!$B$1:$AF$1=Лист2!$D33)*(Лист2!$C33=Лист1!$A$3:$A$10))*INDEX(Лист3!$B$7:$AQ$96,MATCH(Лист2!$C33,Лист3!$A$7:$A$96,0),MATCH(Лист2!P$1&P$2,Лист3!$B$4:$AQ$4&Лист3!$B$5:$AQ$5,0)),0) -> 0 | Q33: =IFERROR(SUMPRODUCT(Лист1!$B$3:$AF$10*(Лист1!$B$1:$AF$1=Лист2!$D33)*(Лист2!$C33=Лист1!$A$3:$A$10))*INDEX(Лист3!$B$7:$AQ$96,MATCH(Лист2!$C33,Лист3!$A$7:$A$96,0),MATCH(Лист2!Q$1&Q$2,Лист3!$B$4:$AQ$4&Лист3!$B$5:$AQ$5,0)),0) -> 0 | R33: =IFERROR(SUMPRODUCT(Лист1!$B$3:$AF$10*(Лист1!$B$1:$AF$1=Лист2!$D33)*(Лист2!$C33=Лист1!$A$3:$A$10))*INDEX(Лист3!$B$7:$AQ$96,MATCH(Лист2!$C33,Лист3!$A$7:$A$96,0),MATCH(Лист2!R$1&R$2,Лист3!$B$4:$AQ$4&Лист3!$B$5:$AQ$5,0)),0) -> 0 | S33: =IFERROR(SUMPRODUCT(Лист1!$B$3:$AF$10*(Лист1!$B$1:$AF$1=Лист2!$D33)*(Лист2!$C33=Лист1!$A$3:$A$10))*INDEX(Лист3!$B$7:$AQ$96,MATCH(Лист2!$C33,Лист3!$A$7:$A$96,0),MATCH(Лист2!S$1&S$2,Лист3!$B$4:$AQ$4&Лист3!$B$5:$AQ$5,0)),0) -> 0 | T33: =IFERROR(SUMPRODUCT(Лист1!$B$3:$AF$10*(Лист1!$B$1:$AF$1=Лист2!$D33)*(Лист2!$C33=Лист1!$A$3:$A$10))*INDEX(Лист3!$B$7:$AQ$96,MATCH(Лист2!$C33,Лист3!$A$7:$A$96,0),MATCH(Лист2!T$1&T$2,Лист3!$B$4:$AQ$4&Лист3!$B$5:$AQ$5,0)),0) -> 0 | U33: =IFERROR(SUMPRODUCT(Лист1!$B$3:$AF$10*(Лист1!$B$1:$AF$1=Лист2!$D33)*(Лист2!$C33=Лист1!$A$3:$A$10))*INDEX(Лист3!$B$7:$AQ$96,MATCH(Лист2!$C33,Лист3!$A$7:$A$96,0),MATCH(Лист2!U$1&U$2,Лист3!$B$4:$AQ$4&Лист3!$B$5:$AQ$5,0)),0) -> 0 | V33: =IFERROR(SUMPRODUCT(Лист1!$B$3:$AF$10*(Лист1!$B$1:$AF$1=Лист2!$D33)*(Лист2!$C33=Лист1!$A$3:$A$10))*INDEX(Лист3!$B$7:$AQ$96,MATCH(Лист2!$C33,Лист3!$A$7:$A$96,0),MATCH(Лист2!V$1&V$2,Лист3!$B$4:$AQ$4&Лист3!$B$5:$AQ$5,0)),0) -> 0 | W33: =IFERROR(SUMPRODUCT(Лист1!$B$3:$AF$10*(Лист1!$B$1:$AF$1=Лист2!$D33)*(Лист2!$C33=Лист1!$A$3:$A$10))*INDEX(Лист3!$B$7:$AQ$96,MATCH(Лист2!$C33,Лист3!$A$7:$A$96,0),MATCH(Лист2!W$1&W$2,Лист3!$B$4:$AQ$4&Лист3!$B$5:$AQ$5,0)),0) -> 0 | X33: =IFERROR(SUMPRODUCT(Лист1!$B$3:$AF$10*(Лист1!$B$1:$AF$1=Лист2!$D33)*(Лист2!$C33=Лист1!$A$3:$A$10))*INDEX(Лист3!$B$7:$AQ$96,MATCH(Лист2!$C33,Лист3!$A$7:$A$96,0),MATCH(Лист2!X$1&X$2,Лист3!$B$4:$AQ$4&Лист3!$B$5:$AQ$5,0)),0) -> 0 | Y33: =IFERROR(SUMPRODUCT(Лист1!$B$3:$AF$10*(Лист1!$B$1:$AF$1=Лист2!$D33)*(Лист2!$C33=Лист1!$A$3:$A$10))*INDEX(Лист3!$B$7:$AQ$96,MATCH(Лист2!$C33,Лист3!$A$7:$A$96,0),MATCH(Лист2!Y$1&Y$2,Лист3!$B$4:$AQ$4&Лист3!$B$5:$AQ$5,0)),0) -> 0 | Z33: =IFERROR(SUMPRODUCT(Лист1!$B$3:$AF$10*(Лист1!$B$1:$AF$1=Лист2!$D33)*(Лист2!$C33=Лист1!$A$3:$A$10))*INDEX(Лист3!$B$7:$AQ$96,MATCH(Лист2!$C33,Лист3!$A$7:$A$96,0),MATCH(Лист2!Z$1&Z$2,Лист3!$B$4:$AQ$4&Лист3!$B$5:$AQ$5,0)),0) -> 0 | AA33: =IFERROR(SUMPRODUCT(Лист1!$B$3:$AF$10*(Лист1!$B$1:$AF$1=Лист2!$D33)*(Лист2!$C33=Лист1!$A$3:$A$10))*INDEX(Лист3!$B$7:$AQ$96,MATCH(Лист2!$C33,Лист3!$A$7:$A$96,0),MATCH(Лист2!AA$1&AA$2,Лист3!$B$4:$AQ$4&Лист3!$B$5:$AQ$5,0)),0) -> 0
C34: =IFERROR(INDEX(Лист1!$A$3:$A$10,SMALL(IF(ISNUMBER(INDEX(Лист1!$B$3:$AF$10,,MATCH(Лист2!$D34,Лист1!$B$1:$AF$1,0))),ROW(Лист1!$A$3:$A$10)-2),COUNTIF($D$7:D34,D34))),"") ->  | D34: 7 | E34: =IFERROR(SUMPRODUCT(Лист1!$B$3:$AF$10*(Лист1!$B$1:$AF$1=Лист2!$D34)*(Лист2!$C34=Лист1!$A$3:$A$10))*INDEX(Лист3!$B$7:$AQ$96,MATCH(Лист2!$C34,Лист3!$A$7:$A$96,0),MATCH(Лист2!E$1&E$2,Лист3!$B$4:$AQ$4&Лист3!$B$5:$AQ$5,0)),0) -> 0 | F34: =IFERROR(SUMPRODUCT(Лист1!$B$3:$AF$10*(Лист1!$B$1:$AF$1=Лист2!$D34)*(Лист2!$C34=Лист1!$A$3:$A$10))*INDEX(Лист3!$B$7:$AQ$96,MATCH(Лист2!$C34,Лист3!$A$7:$A$96,0),MATCH(Лист2!F$1&F$2,Лист3!$B$4:$AQ$4&Лист3!$B$5:$AQ$5,0)),0) -> 0 | G34: =IFERROR(SUMPRODUCT(Лист1!$B$3:$AF$10*(Лист1!$B$1:$AF$1=Лист2!$D34)*(Лист2!$C34=Лист1!$A$3:$A$10))*INDEX(Лист3!$B$7:$AQ$96,MATCH(Лист2!$C34,Лист3!$A$7:$A$96,0),MATCH(Лист2!G$1&G$2,Лист3!$B$4:$AQ$4&Лист3!$B$5:$AQ$5,0)),0) -> 0 | H34: =IFERROR(SUMPRODUCT(Лист1!$B$3:$AF$10*(Лист1!$B$1:$AF$1=Лист2!$D34)*(Лист2!$C34=Лист1!$A$3:$A$10))*INDEX(Лист3!$B$7:$AQ$96,MATCH(Лист2!$C34,Лист3!$A$7:$A$96,0),MATCH(Лист2!H$1&H$2,Лист3!$B$4:$AQ$4&Лист3!$B$5:$AQ$5,0)),0) -> 0 | I34: =IFERROR(SUMPRODUCT(Лист1!$B$3:$AF$10*(Лист1!$B$1:$AF$1=Лист2!$D34)*(Лист2!$C34=Лист1!$A$3:$A$10))*INDEX(Лист3!$B$7:$AQ$96,MATCH(Лист2!$C34,Лист3!$A$7:$A$96,0),MATCH(Лист2!I$1&I$2,Лист3!$B$4:$AQ$4&Лист3!$B$5:$AQ$5,0)),0) -> 0 | J34: =IFERROR(SUMPRODUCT(Лист1!$B$3:$AF$10*(Лист1!$B$1:$AF$1=Лист2!$D34)*(Лист2!$C34=Лист1!$A$3:$A$10))*INDEX(Лист3!$B$7:$AQ$96,MATCH(Лист2!$C34,Лист3!$A$7:$A$96,0),MATCH(Лист2!J$1&J$2,Лист3!$B$4:$AQ$4&Лист3!$B$5:$AQ$5,0)),0) -> 0 | K34: =IFERROR(SUMPRODUCT(Лист1!$B$3:$AF$10*(Лист1!$B$1:$AF$1=Лист2!$D34)*(Лист2!$C34=Лист1!$A$3:$A$10))*INDEX(Лист3!$B$7:$AQ$96,MATCH(Лист2!$C34,Лист3!$A$7:$A$96,0),MATCH(Лист2!K$1&K$2,Лист3!$B$4:$AQ$4&Лист3!$B$5:$AQ$5,0)),0) -> 0 | L34: =IFERROR(SUMPRODUCT(Лист1!$B$3:$AF$10*(Лист1!$B$1:$AF$1=Лист2!$D34)*(Лист2!$C34=Лист1!$A$3:$A$10))*INDEX(Лист3!$B$7:$AQ$96,MATCH(Лист2!$C34,Лист3!$A$7:$A$96,0),MATCH(Лист2!L$1&L$2,Лист3!$B$4:$AQ$4&Лист3!$B$5:$AQ$5,0)),0) -> 0 | M34: =IFERROR(SUMPRODUCT(Лист1!$B$3:$AF$10*(Лист1!$B$1:$AF$1=Лист2!$D34)*(Лист2!$C34=Лист1!$A$3:$A$10))*INDEX(Лист3!$B$7:$AQ$96,MATCH(Лист2!$C34,Лист3!$A$7:$A$96,0),MATCH(Лист2!M$1&M$2,Лист3!$B$4:$AQ$4&Лист3!$B$5:$AQ$5,0)),0) -> 0 | N34: =IFERROR(SUMPRODUCT(Лист1!$B$3:$AF$10*(Лист1!$B$1:$AF$1=Лист2!$D34)*(Лист2!$C34=Лист1!$A$3:$A$10))*INDEX(Лист3!$B$7:$AQ$96,MATCH(Лист2!$C34,Лист3!$A$7:$A$96,0),MATCH(Лист2!N$1&N$2,Лист3!$B$4:$AQ$4&Лист3!$B$5:$AQ$5,0)),0) -> 0 | O34: =IFERROR(SUMPRODUCT(Лист1!$B$3:$AF$10*(Лист1!$B$1:$AF$1=Лист2!$D34)*(Лист2!$C34=Лист1!$A$3:$A$10))*INDEX(Лист3!$B$7:$AQ$96,MATCH(Лист2!$C34,Лист3!$A$7:$A$96,0),MATCH(Лист2!O$1&O$2,Лист3!$B$4:$AQ$4&Лист3!$B$5:$AQ$5,0)),0) -> 0 | P34: =IFERROR(SUMPRODUCT(Лист1!$B$3:$AF$10*(Лист1!$B$1:$AF$1=Лист2!$D34)*(Лист2!$C34=Лист1!$A$3:$A$10))*INDEX(Лист3!$B$7:$AQ$96,MATCH(Лист2!$C34,Лист3!$A$7:$A$96,0),MATCH(Лист2!P$1&P$2,Лист3!$B$4:$AQ$4&Лист3!$B$5:$AQ$5,0)),0) -> 0 | Q34: =IFERROR(SUMPRODUCT(Лист1!$B$3:$AF$10*(Лист1!$B$1:$AF$1=Лист2!$D34)*(Лист2!$C34=Лист1!$A$3:$A$10))*INDEX(Лист3!$B$7:$AQ$96,MATCH(Лист2!$C34,Лист3!$A$7:$A$96,0),MATCH(Лист2!Q$1&Q$2,Лист3!$B$4:$AQ$4&Лист3!$B$5:$AQ$5,0)),0) -> 0 | R34: =IFERROR(SUMPRODUCT(Лист1!$B$3:$AF$10*(Лист1!$B$1:$AF$1=Лист2!$D34)*(Лист2!$C34=Лист1!$A$3:$A$10))*INDEX(Лист3!$B$7:$AQ$96,MATCH(Лист2!$C34,Лист3!$A$7:$A$96,0),MATCH(Лист2!R$1&R$2,Лист3!$B$4:$AQ$4&Лист3!$B$5:$AQ$5,0)),0) -> 0 | S34: =IFERROR(SUMPRODUCT(Лист1!$B$3:$AF$10*(Лист1!$B$1:$AF$1=Лист2!$D34)*(Лист2!$C34=Лист1!$A$3:$A$10))*INDEX(Лист3!$B$7:$AQ$96,MATCH(Лист2!$C34,Лист3!$A$7:$A$96,0),MATCH(Лист2!S$1&S$2,Лист3!$B$4:$AQ$4&Лист3!$B$5:$AQ$5,0)),0) -> 0 | T34: =IFERROR(SUMPRODUCT(Лист1!$B$3:$AF$10*(Лист1!$B$1:$AF$1=Лист2!$D34)*(Лист2!$C34=Лист1!$A$3:$A$10))*INDEX(Лист3!$B$7:$AQ$96,MATCH(Лист2!$C34,Лист3!$A$7:$A$96,0),MATCH(Лист2!T$1&T$2,Лист3!$B$4:$AQ$4&Лист3!$B$5:$AQ$5,0)),0) -> 0 | U34: =IFERROR(SUMPRODUCT(Лист1!$B$3:$AF$10*(Лист1!$B$1:$AF$1=Лист2!$D34)*(Лист2!$C34=Лист1!$A$3:$A$10))*INDEX(Лист3!$B$7:$AQ$96,MATCH(Лист2!$C34,Лист3!$A$7:$A$96,0),MATCH(Лист2!U$1&U$2,Лист3!$B$4:$AQ$4&Лист3!$B$5:$AQ$5,0)),0) -> 0 | V34: =IFERROR(SUMPRODUCT(Лист1!$B$3:$AF$10*(Лист1!$B$1:$AF$1=Лист2!$D34)*(Лист2!$C34=Лист1!$A$3:$A$10))*INDEX(Лист3!$B$7:$AQ$96,MATCH(Лист2!$C34,Лист3!$A$7:$A$96,0),MATCH(Лист2!V$1&V$2,Лист3!$B$4:$AQ$4&Лист3!$B$5:$AQ$5,0)),0) -> 0 | W34: =IFERROR(SUMPRODUCT(Лист1!$B$3:$AF$10*(Лист1!$B$1:$AF$1=Лист2!$D34)*(Лист2!$C34=Лист1!$A$3:$A$10))*INDEX(Лист3!$B$7:$AQ$96,MATCH(Лист2!$C34,Лист3!$A$7:$A$96,0),MATCH(Лист2!W$1&W$2,Лист3!$B$4:$AQ$4&Лист3!$B$5:$AQ$5,0)),0) -> 0 | X34: =IFERROR(SUMPRODUCT(Лист1!$B$3:$AF$10*(Лист1!$B$1:$AF$1=Лист2!$D34)*(Лист2!$C34=Лист1!$A$3:$A$10))*INDEX(Лист3!$B$7:$AQ$96,MATCH(Лист2!$C34,Лист3!$A$7:$A$96,0),MATCH(Лист2!X$1&X$2,Лист3!$B$4:$AQ$4&Лист3!$B$5:$AQ$5,0)),0) -> 0 | Y34: =IFERROR(SUMPRODUCT(Лист1!$B$3:$AF$10*(Лист1!$B$1:$AF$1=Лист2!$D34)*(Лист2!$C34=Лист1!$A$3:$A$10))*INDEX(Лист3!$B$7:$AQ$96,MATCH(Лист2!$C34,Лист3!$A$7:$A$96,0),MATCH(Лист2!Y$1&Y$2,Лист3!$B$4:$AQ$4&Лист3!$B$5:$AQ$5,0)),0) -> 0 | Z34: =IFERROR(SUMPRODUCT(Лист1!$B$3:$AF$10*(Лист1!$B$1:$AF$1=Лист2!$D34)*(Лист2!$C34=Лист1!$A$3:$A$10))*INDEX(Лист3!$B$7:$AQ$96,MATCH(Лист2!$C34,Лист3!$A$7:$A$96,0),MATCH(Лист2!Z$1&Z$2,Лист3!$B$4:$AQ$4&Лист3!$B$5:$AQ$5,0)),0) -> 0 | AA34: =IFERROR(SUMPRODUCT(Лист1!$B$3:$AF$10*(Лист1!$B$1:$AF$1=Лист2!$D34)*(Лист2!$C34=Лист1!$A$3:$A$10))*INDEX(Лист3!$B$7:$AQ$96,MATCH(Лист2!$C34,Лист3!$A$7:$A$96,0),MATCH(Лист2!AA$1&AA$2,Лист3!$B$4:$AQ$4&Лист3!$B$5:$AQ$5,0)),0) -> 0
C35: =IFERROR(INDEX(Лист1!$A$3:$A$10,SMALL(IF(ISNUMBER(INDEX(Лист1!$B$3:$AF$10,,MATCH(Лист2!$D35,Лист1!$B$1:$AF$1,0))),ROW(Лист1!$A$3:$A$10)-2),COUNTIF($D$7:D35,D35))),"") -> Плита "Экстрол" 45-1180.580.50/8 (Ч), м3 | D35: 8 | E35: =IFERROR(SUMPRODUCT(Лист1!$B$3:$AF$10*(Лист1!$B$1:$AF$1=Лист2!$D35)*(Лист2!$C35=Лист1!$A$3:$A$10))*INDEX(Лист3!$B$7:$AQ$96,MATCH(Лист2!$C35,Лист3!$A$7:$A$96,0),MATCH(Лист2!E$1&E$2,Лист3!$B$4:$AQ$4&Лист3!$B$5:$AQ$5,0)),0) -> 2040 | F35: =IFERROR(SUMPRODUCT(Лист1!$B$3:$AF$10*(Лист1!$B$1:$AF$1=Лист2!$D35)*(Лист2!$C35=Лист1!$A$3:$A$10))*INDEX(Лист3!$B$7:$AQ$96,MATCH(Лист2!$C35,Лист3!$A$7:$A$96,0),MATCH(Лист2!F$1&F$2,Лист3!$B$4:$AQ$4&Лист3!$B$5:$AQ$5,0)),0) -> 4880 | G35: =IFERROR(SUMPRODUCT(Лист1!$B$3:$AF$10*(Лист1!$B$1:$AF$1=Лист2!$D35)*(Лист2!$C35=Лист1!$A$3:$A$10))*INDEX(Лист3!$B$7:$AQ$96,MATCH(Лист2!$C35,Лист3!$A$7:$A$96,0),MATCH(Лист2!G$1&G$2,Лист3!$B$4:$AQ$4&Лист3!$B$5:$AQ$5,0)),0) -> 0 | H35: =IFERROR(SUMPRODUCT(Лист1!$B$3:$AF$10*(Лист1!$B$1:$AF$1=Лист2!$D35)*(Лист2!$C35=Лист1!$A$3:$A$10))*INDEX(Лист3!$B$7:$AQ$96,MATCH(Лист2!$C35,Лист3!$A$7:$A$96,0),MATCH(Лист2!H$1&H$2,Лист3!$B$4:$AQ$4&Лист3!$B$5:$AQ$5,0)),0) -> 52 | I35: =IFERROR(SUMPRODUCT(Лист1!$B$3:$AF$10*(Лист1!$B$1:$AF$1=Лист2!$D35)*(Лист2!$C35=Лист1!$A$3:$A$10))*INDEX(Лист3!$B$7:$AQ$96,MATCH(Лист2!$C35,Лист3!$A$7:$A$96,0),MATCH(Лист2!I$1&I$2,Лист3!$B$4:$AQ$4&Лист3!$B$5:$AQ$5,0)),0) -> 0 | J35: =IFERROR(SUMPRODUCT(Лист1!$B$3:$AF$10*(Лист1!$B$1:$AF$1=Лист2!$D35)*(Лист2!$C35=Лист1!$A$3:$A$10))*INDEX(Лист3!$B$7:$AQ$96,MATCH(Лист2!$C35,Лист3!$A$7:$A$96,0),MATCH(Лист2!J$1&J$2,Лист3!$B$4:$AQ$4&Лист3!$B$5:$AQ$5,0)),0) -> 4 | K35: =IFERROR(SUMPRODUCT(Лист1!$B$3:$AF$10*(Лист1!$B$1:$AF$1=Лист2!$D35)*(Лист2!$C35=Лист1!$A$3:$A$10))*INDEX(Лист3!$B$7:$AQ$96,MATCH(Лист2!$C35,Лист3!$A$7:$A$96,0),MATCH(Лист2!K$1&K$2,Лист3!$B$4:$AQ$4&Лист3!$B$5:$AQ$5,0)),0) -> 0 | L35: =IFERROR(SUMPRODUCT(Лист1!$B$3:$AF$10*(Лист1!$B$1:$AF$1=Лист2!$D35)*(Лист2!$C35=Лист1!$A$3:$A$10))*INDEX(Лист3!$B$7:$AQ$96,MATCH(Лист2!$C35,Лист3!$A$7:$A$96,0),MATCH(Лист2!L$1&L$2,Лист3!$B$4:$AQ$4&Лист3!$B$5:$AQ$5,0)),0) -> 6 | M35: =IFERROR(SUMPRODUCT(Лист1!$B$3:$AF$10*(Лист1!$B$1:$AF$1=Лист2!$D35)*(Лист2!$C35=Лист1!$A$3:$A$10))*INDEX(Лист3!$B$7:$AQ$96,MATCH(Лист2!$C35,Лист3!$A$7:$A$96,0),MATCH(Лист2!M$1&M$2,Лист3!$B$4:$AQ$4&Лист3!$B$5:$AQ$5,0)),0) -> 320 | N35: =IFERROR(SUMPRODUCT(Лист1!$B$3:$AF$10*(Лист1!$B$1:$AF$1=Лист2!$D35)*(Лист2!$C35=Лист1!$A$3:$A$10))*INDEX(Лист3!$B$7:$AQ$96,MATCH(Лист2!$C35,Лист3!$A$7:$A$96,0),MATCH(Лист2!N$1&N$2,Лист3!$B$4:$AQ$4&Лист3!$B$5:$AQ$5,0)),0) -> 80 | O35: =IFERROR(SUMPRODUCT(Лист1!$B$3:$AF$10*(Лист1!$B$1:$AF$1=Лист2!$D35)*(Лист2!$C35=Лист1!$A$3:$A$10))*INDEX(Лист3!$B$7:$AQ$96,MATCH(Лист2!$C35,Лист3!$A$7:$A$96,0),MATCH(Лист2!O$1&O$2,Лист3!$B$4:$AQ$4&Лист3!$B$5:$AQ$5,0)),0) -> 0 | P35: =IFERROR(SUMPRODUCT(Лист1!$B$3:$AF$10*(Лист1!$B$1:$AF$1=Лист2!$D35)*(Лист2!$C35=Лист1!$A$3:$A$10))*INDEX(Лист3!$B$7:$AQ$96,MATCH(Лист2!$C35,Лист3!$A$7:$A$96,0),MATCH(Лист2!P$1&P$2,Лист3!$B$4:$AQ$4&Лист3!$B$5:$AQ$5,0)),0) -> 180 | Q35: =IFERROR(SUMPRODUCT(Лист1!$B$3:$AF$10*(Лист1!$B$1:$AF$1=Лист2!$D35)*(Лист2!$C35=Лист1!$A$3:$A$10))*INDEX(Лист3!$B$7:$AQ$96,MATCH(Лист2!$C35,Лист3!$A$7:$A$96,0),MATCH(Лист2!Q$1&Q$2,Лист3!$B$4:$AQ$4&Лист3!$B$5:$AQ$5,0)),0) -> 0 | R35: =IFERROR(SUMPRODUCT(Лист1!$B$3:$AF$10*(Лист1!$B$1:$AF$1=Лист2!$D35)*(Лист2!$C35=Лист1!$A$3:$A$10))*INDEX(Лист3!$B$7:$AQ$96,MATCH(Лист2!$C35,Лист3!$A$7:$A$96,0),MATCH(Лист2!R$1&R$2,Лист3!$B$4:$AQ$4&Лист3!$B$5:$AQ$5,0)),0) -> 20 | S35: =IFERROR(SUMPRODUCT(Лист1!$B$3:$AF$10*(Лист1!$B$1:$AF$1=Лист2!$D35)*(Лист2!$C35=Лист1!$A$3:$A$10))*INDEX(Лист3!$B$7:$AQ$96,MATCH(Лист2!$C35,Лист3!$A$7:$A$96,0),MATCH(Лист2!S$1&S$2,Лист3!$B$4:$AQ$4&Лист3!$B$5:$AQ$5,0)),0) -> 1.2 | T35: =IFERROR(SUMPRODUCT(Лист1!$B$3:$AF$10*(Лист1!$B$1:$AF$1=Лист2!$D35)*(Лист2!$C35=Лист1!$A$3:$A$10))*INDEX(Лист3!$B$7:$AQ$96,MATCH(Лист2!$C35,Лист3!$A$7:$A$96,0),MATCH(Лист2!T$1&T$2,Лист3!$B$4:$AQ$4&Лист3!$B$5:$AQ$5,0)),0) -> 0 | U35: =IFERROR(SUMPRODUCT(Лист1!$B$3:$AF$10*(Лист1!$B$1:$AF$1=Лист2!$D35)*(Лист2!$C35=Лист1!$A$3:$A$10))*INDEX(Лист3!$B$7:$AQ$96,MATCH(Лист2!$C35,Лист3!$A$7:$A$96,0),MATCH(Лист2!U$1&U$2,Лист3!$B$4:$AQ$4&Лист3!$B$5:$AQ$5,0)),0) -> 0 | V35: =IFERROR(SUMPRODUCT(Лист1!$B$3:$AF$10*(Лист1!$B$1:$AF$1=Лист2!$D35)*(Лист2!$C35=Лист1!$A$3:$A$10))*INDEX(Лист3!$B$7:$AQ$96,MATCH(Лист2!$C35,Лист3!$A$7:$A$96,0),MATCH(Лист2!V$1&V$2,Лист3!$B$4:$AQ$4&Лист3!$B$5:$AQ$5,0)),0) -> 0 | W35: =IFERROR(SUMPRODUCT(Лист1!$B$3:$AF$10*(Лист1!$B$1:$AF$1=Лист2!$D35)*(Лист2!$C35=Лист1!$A$3:$A$10))*INDEX(Лист3!$B$7:$AQ$96,MATCH(Лист2!$C35,Лист3!$A$7:$A$96,0),MATCH(Лист2!W$1&W$2,Лист3!$B$4:$AQ$4&Лист3!$B$5:$AQ$5,0)),0) -> 0 | X35: =IFERROR(SUMPRODUCT(Лист1!$B$3:$AF$10*(Лист1!$B$1:$AF$1=Лист2!$D35)*(Лист2!$C35=Лист1!$A$3:$A$10))*INDEX(Лист3!$B$7:$AQ$96,MATCH(Лист2!$C35,Лист3!$A$7:$A$96,0),MATCH(Лист2!X$1&X$2,Лист3!$B$4:$AQ$4&Лист3!$B$5:$AQ$5,0)),0) -> 3.2 | Y35: =IFERROR(SUMPRODUCT(Лист1!$B$3:$AF$10*(Лист1!$B$1:$AF$1=Лист2!$D35)*(Лист2!$C35=Лист1!$A$3:$A$10))*INDEX(Лист3!$B$7:$AQ$96,MATCH(Лист2!$C35,Лист3!$A$7:$A$96,0),MATCH(Лист2!Y$1&Y$2,Лист3!$B$4:$AQ$4&Лист3!$B$5:$AQ$5,0)),0) -> 0 | Z35: =IFERROR(SUMPRODUCT(Лист1!$B$3:$AF$10*(Лист1!$B$1:$AF$1=Лист2!$D35)*(Лист2!$C35=Лист1!$A$3:$A$10))*INDEX(Лист3!$B$7:$AQ$96,MATCH(Лист2!$C35,Лист3!$A$7:$A$96,0),MATCH(Лист2!Z$1&Z$2,Лист3!$B$4:$AQ$4&Лист3!$B$5:$AQ$5,0)),0) -> 0.5 | AA35: =IFERROR(SUMPRODUCT(Лист1!$B$3:$AF$10*(Лист1!$B$1:$AF$1=Лист2!$D35)*(Лист2!$C35=Лист1!$A$3:$A$10))*INDEX(Лист3!$B$7:$AQ$96,MATCH(Лист2!$C35,Лист3!$A$7:$A$96,0),MATCH(Лист2!AA$1&AA$2,Лист3!$B$4:$AQ$4&Лист3!$B$5:$AQ$5,0)),0) -> 9.4
C36: =IFERROR(INDEX(Лист1!$A$3:$A$10,SMALL(IF(ISNUMBER(INDEX(Лист1!$B$3:$AF$10,,MATCH(Лист2!$D36,Лист1!$B$1:$AF$1,0))),ROW(Лист1!$A$3:$A$10)-2),COUNTIF($D$7:D36,D36))),"") -> Плита "Экстрол" 40-1180.580.50/8 (Ч) Г4, м3 | D36: 8 | E36: =IFERROR(SUMPRODUCT(Лист1!$B$3:$AF$10*(Лист1!$B$1:$AF$1=Лист2!$D36)*(Лист2!$C36=Лист1!$A$3:$A$10))*INDEX(Лист3!$B$7:$AQ$96,MATCH(Лист2!$C36,Лист3!$A$7:$A$96,0),MATCH(Лист2!E$1&E$2,Лист3!$B$4:$AQ$4&Лист3!$B$5:$AQ$5,0)),0) -> 2160 | F36: =IFERROR(SUMPRODUCT(Лист1!$B$3:$AF$10*(Лист1!$B$1:$AF$1=Лист2!$D36)*(Лист2!$C36=Лист1!$A$3:$A$10))*INDEX(Лист3!$B$7:$AQ$96,MATCH(Лист2!$C36,Лист3!$A$7:$A$96,0),MATCH(Лист2!F$1&F$2,Лист3!$B$4:$AQ$4&Лист3!$B$5:$AQ$5,0)),0) -> 6420 | G36: =IFERROR(SUMPRODUCT(Лист1!$B$3:$AF$10*(Лист1!$B$1:$AF$1=Лист2!$D36)*(Лист2!$C36=Лист1!$A$3:$A$10))*INDEX(Лист3!$B$7:$AQ$96,MATCH(Лист2!$C36,Лист3!$A$7:$A$96,0),MATCH(Лист2!G$1&G$2,Лист3!$B$4:$AQ$4&Лист3!$B$5:$AQ$5,0)),0) -> 0.03402286336 | H36: =IFERROR(SUMPRODUCT(Лист1!$B$3:$AF$10*(Лист1!$B$1:$AF$1=Лист2!$D36)*(Лист2!$C36=Лист1!$A$3:$A$10))*INDEX(Лист3!$B$7:$AQ$96,MATCH(Лист2!$C36,Лист3!$A$7:$A$96,0),MATCH(Лист2!H$1&H$2,Лист3!$B$4:$AQ$4&Лист3!$B$5:$AQ$5,0)),0) -> 41.76 | I36: =IFERROR(SUMPRODUCT(Лист1!$B$3:$AF$10*(Лист1!$B$1:$AF$1=Лист2!$D36)*(Лист2!$C36=Лист1!$A$3:$A$10))*INDEX(Лист3!$B$7:$AQ$96,MATCH(Лист2!$C36,Лист3!$A$7:$A$96,0),MATCH(Лист2!I$1&I$2,Лист3!$B$4:$AQ$4&Лист3!$B$5:$AQ$5,0)),0) -> 0 | J36: =IFERROR(SUMPRODUCT(Лист1!$B$3:$AF$10*(Лист1!$B$1:$AF$1=Лист2!$D36)*(Лист2!$C36=Лист1!$A$3:$A$10))*INDEX(Лист3!$B$7:$AQ$96,MATCH(Лист2!$C36,Лист3!$A$7:$A$96,0),MATCH(Лист2!J$1&J$2,Лист3!$B$4:$AQ$4&Лист3!$B$5:$AQ$5,0)),0) -> 0 | K36: =IFERROR(SUMPRODUCT(Лист1!$B$3:$AF$10*(Лист1!$B$1:$AF$1=Лист2!$D36)*(Лист2!$C36=Лист1!$A$3:$A$10))*INDEX(Лист3!$B$7:$AQ$96,MATCH(Лист2!$C36,Лист3!$A$7:$A$96,0),MATCH(Лист2!K$1&K$2,Лист3!$B$4:$AQ$4&Лист3!$B$5:$AQ$5,0)),0) -> 0 | L36: =IFERROR(SUMPRODUCT(Лист1!$B$3:$AF$10*(Лист1!$B$1:$AF$1=Лист2!$D36)*(Лист2!$C36=Лист1!$A$3:$A$10))*INDEX(Лист3!$B$7:$AQ$96,MATCH(Лист2!$C36,Лист3!$A$7:$A$96,0),MATCH(Лист2!L$1&L$2,Лист3!$B$4:$AQ$4&Лист3!$B$5:$AQ$5,0)),0) -> 9 | M36: =IFERROR(SUMPRODUCT(Лист1!$B$3:$AF$10*(Лист1!$B$1:$AF$1=Лист2!$D36)*(Лист2!$C36=Лист1!$A$3:$A$10))*INDEX(Лист3!$B$7:$AQ$96,MATCH(Лист2!$C36,Лист3!$A$7:$A$96,0),MATCH(Лист2!M$1&M$2,Лист3!$B$4:$AQ$4&Лист3!$B$5:$AQ$5,0)),0) -> 343.5 | N36: =IFERROR(SUMPRODUCT(Лист1!$B$3:$AF$10*(Лист1!$B$1:$AF$1=Лист2!$D36)*(Лист2!$C36=Лист1!$A$3:$A$10))*INDEX(Лист3!$B$7:$AQ$96,MATCH(Лист2!$C36,Лист3!$A$7:$A$96,0),MATCH(Лист2!N$1&N$2,Лист3!$B$4:$AQ$4&Лист3!$B$5:$AQ$5,0)),0) -> 114 | O36: =IFERROR(SUMPRODUCT(Лист1!$B$3:$AF$10*(Лист1!$B$1:$AF$1=Лист2!$D36)*(Лист2!$C36=Лист1!$A$3:$A$10))*INDEX(Лист3!$B$7:$AQ$96,MATCH(Лист2!$C36,Лист3!$A$7:$A$96,0),MATCH(Лист2!O$1&O$2,Лист3!$B$4:$AQ$4&Лист3!$B$5:$AQ$5,0)),0) -> 0 | P36: =IFERROR(SUMPRODUCT(Лист1!$B$3:$AF$10*(Лист1!$B$1:$AF$1=Лист2!$D36)*(Лист2!$C36=Лист1!$A$3:$A$10))*INDEX(Лист3!$B$7:$AQ$96,MATCH(Лист2!$C36,Лист3!$A$7:$A$96,0),MATCH(Лист2!P$1&P$2,Лист3!$B$4:$AQ$4&Лист3!$B$5:$AQ$5,0)),0) -> 276 | Q36: =IFERROR(SUMPRODUCT(Лист1!$B$3:$AF$10*(Лист1!$B$1:$AF$1=Лист2!$D36)*(Лист2!$C36=Лист1!$A$3:$A$10))*INDEX(Лист3!$B$7:$AQ$96,MATCH(Лист2!$C36,Лист3!$A$7:$A$96,0),MATCH(Лист2!Q$1&Q$2,Лист3!$B$4:$AQ$4&Лист3!$B$5:$AQ$5,0)),0) -> 0 | R36: =IFERROR(SUMPRODUCT(Лист1!$B$3:$AF$10*(Лист1!$B$1:$AF$1=Лист2!$D36)*(Лист2!$C36=Лист1!$A$3:$A$10))*INDEX(Лист3!$B$7:$AQ$96,MATCH(Лист2!$C36,Лист3!$A$7:$A$96,0),MATCH(Лист2!R$1&R$2,Лист3!$B$4:$AQ$4&Лист3!$B$5:$AQ$5,0)),0) -> 30 | S36: =IFERROR(SUMPRODUCT(Лист1!$B$3:$AF$10*(Лист1!$B$1:$AF$1=Лист2!$D36)*(Лист2!$C36=Лист1!$A$3:$A$10))*INDEX(Лист3!$B$7:$AQ$96,MATCH(Лист2!$C36,Лист3!$A$7:$A$96,0),MATCH(Лист2!S$1&S$2,Лист3!$B$4:$AQ$4&Лист3!$B$5:$AQ$5,0)),0) -> 1.8 | T36: =IFERROR(SUMPRODUCT(Лист1!$B$3:$AF$10*(Лист1!$B$1:$AF$1=Лист2!$D36)*(Лист2!$C36=Лист1!$A$3:$A$10))*INDEX(Лист3!$B$7:$AQ$96,MATCH(Лист2!$C36,Лист3!$A$7:$A$96,0),MATCH(Лист2!T$1&T$2,Лист3!$B$4:$AQ$4&Лист3!$B$5:$AQ$5,0)),0) -> 0 | U36: =IFERROR(SUMPRODUCT(Лист1!$B$3:$AF$10*(Лист1!$B$1:$AF$1=Лист2!$D36)*(Лист2!$C36=Лист1!$A$3:$A$10))*INDEX(Лист3!$B$7:$AQ$96,MATCH(Лист2!$C36,Лист3!$A$7:$A$96,0),MATCH(Лист2!U$1&U$2,Лист3!$B$4:$AQ$4&Лист3!$B$5:$AQ$5,0)),0) -> 0 | V36: =IFERROR(SUMPRODUCT(Лист1!$B$3:$AF$10*(Лист1!$B$1:$AF$1=Лист2!$D36)*(Лист2!$C36=Лист1!$A$3:$A$10))*INDEX(Лист3!$B$7:$AQ$96,MATCH(Лист2!$C36,Лист3!$A$7:$A$96,0),MATCH(Лист2!V$1&V$2,Лист3!$B$4:$AQ$4&Лист3!$B$5:$AQ$5,0)),0) -> 0 | W36: =IFERROR(SUMPRODUCT(Лист1!$B$3:$AF$10*(Лист1!$B$1:$AF$1=Лист2!$D36)*(Лист2!$C36=Лист1!$A$3:$A$10))*INDEX(Лист3!$B$7:$AQ$96,MATCH(Лист2!$C36,Лист3!$A$7:$A$96,0),MATCH(Лист2!W$1&W$2,Лист3!$B$4:$AQ$4&Лист3!$B$5:$AQ$5,0)),0) -> 0 | X36: =IFERROR(SUMPRODUCT(Лист1!$B$3:$AF$10*(Лист1!$B$1:$AF$1=Лист2!$D36)*(Лист2!$C36=Лист1!$A$3:$A$10))*INDEX(Лист3!$B$7:$AQ$96,MATCH(Лист2!$C36,Лист3!$A$7:$A$96,0),MATCH(Лист2!X$1&X$2,Лист3!$B$4:$AQ$4&Лист3!$B$5:$AQ$5,0)),0) -> 4.8 | Y36: =IFERROR(SUMPRODUCT(Лист1!$B$3:$AF$10*(Лист1!$B$1:$AF$1=Лист2!$D36)*(Лист2!$C36=Лист1!$A$3:$A$10))*INDEX(Лист3!$B$7:$AQ$96,MATCH(Лист2!$C36,Лист3!$A$7:$A$96,0),MATCH(Лист2!Y$1&Y$2,Лист3!$B$4:$AQ$4&Лист3!$B$5:$AQ$5,0)),0) -> 0 | Z36: =IFERROR(SUMPRODUCT(Лист1!$B$3:$AF$10*(Лист1!$B$1:$AF$1=Лист2!$D36)*(Лист2!$C36=Лист1!$A$3:$A$10))*INDEX(Лист3!$B$7:$AQ$96,MATCH(Лист2!$C36,Лист3!$A$7:$A$96,0),MATCH(Лист2!Z$1&Z$2,Лист3!$B$4:$AQ$4&Лист3!$B$5:$AQ$5,0)),0) -> 0.75 | AA36: =IFERROR(SUMPRODUCT(Лист1!$B$3:$AF$10*(Лист1!$B$1:$AF$1=Лист2!$D36)*(Лист2!$C36=Лист1!$A$3:$A$10))*INDEX(Лист3!$B$7:$AQ$96,MATCH(Лист2!$C36,Лист3!$A$7:$A$96,0),MATCH(Лист2!AA$1&AA$2,Лист3!$B$4:$AQ$4&Лист3!$B$5:$AQ$5,0)),0) -> 14.1
C37: =IFERROR(INDEX(Лист1!$A$3:$A$10,SMALL(IF(ISNUMBER(INDEX(Лист1!$B$3:$AF$10,,MATCH(Лист2!$D37,Лист1!$B$1:$AF$1,0))),ROW(Лист1!$A$3:$A$10)-2),COUNTIF($D$7:D37,D37))),"") ->  | D37: 8 | E37: =IFERROR(SUMPRODUCT(Лист1!$B$3:$AF$10*(Лист1!$B$1:$AF$1=Лист2!$D37)*(Лист2!$C37=Лист1!$A$3:$A$10))*INDEX(Лист3!$B$7:$AQ$96,MATCH(Лист2!$C37,Лист3!$A$7:$A$96,0),MATCH(Лист2!E$1&E$2,Лист3!$B$4:$AQ$4&Лист3!$B$5:$AQ$5,0)),0) -> 0 | F37: =IFERROR(SUMPRODUCT(Лист1!$B$3:$AF$10*(Лист1!$B$1:$AF$1=Лист2!$D37)*(Лист2!$C37=Лист1!$A$3:$A$10))*INDEX(Лист3!$B$7:$AQ$96,MATCH(Лист2!$C37,Лист3!$A$7:$A$96,0),MATCH(Лист2!F$1&F$2,Лист3!$B$4:$AQ$4&Лист3!$B$5:$AQ$5,0)),0) -> 0 | G37: =IFERROR(SUMPRODUCT(Лист1!$B$3:$AF$10*(Лист1!$B$1:$AF$1=Лист2!$D37)*(Лист2!$C37=Лист1!$A$3:$A$10))*INDEX(Лист3!$B$7:$AQ$96,MATCH(Лист2!$C37,Лист3!$A$7:$A$96,0),MATCH(Лист2!G$1&G$2,Лист3!$B$4:$AQ$4&Лист3!$B$5:$AQ$5,0)),0) -> 0 | H37: =IFERROR(SUMPRODUCT(Лист1!$B$3:$AF$10*(Лист1!$B$1:$AF$1=Лист2!$D37)*(Лист2!$C37=Лист1!$A$3:$A$10))*INDEX(Лист3!$B$7:$AQ$96,MATCH(Лист2!$C37,Лист3!$A$7:$A$96,0),MATCH(Лист2!H$1&H$2,Лист3!$B$4:$AQ$4&Лист3!$B$5:$AQ$5,0)),0) -> 0 | I37: =IFERROR(SUMPRODUCT(Лист1!$B$3:$AF$10*(Лист1!$B$1:$AF$1=Лист2!$D37)*(Лист2!$C37=Лист1!$A$3:$A$10))*INDEX(Лист3!$B$7:$AQ$96,MATCH(Лист2!$C37,Лист3!$A$7:$A$96,0),MATCH(Лист2!I$1&I$2,Лист3!$B$4:$AQ$4&Лист3!$B$5:$AQ$5,0)),0) -> 0 | J37: =IFERROR(SUMPRODUCT(Лист1!$B$3:$AF$10*(Лист1!$B$1:$AF$1=Лист2!$D37)*(Лист2!$C37=Лист1!$A$3:$A$10))*INDEX(Лист3!$B$7:$AQ$96,MATCH(Лист2!$C37,Лист3!$A$7:$A$96,0),MATCH(Лист2!J$1&J$2,Лист3!$B$4:$AQ$4&Лист3!$B$5:$AQ$5,0)),0) -> 0 | K37: =IFERROR(SUMPRODUCT(Лист1!$B$3:$AF$10*(Лист1!$B$1:$AF$1=Лист2!$D37)*(Лист2!$C37=Лист1!$A$3:$A$10))*INDEX(Лист3!$B$7:$AQ$96,MATCH(Лист2!$C37,Лист3!$A$7:$A$96,0),MATCH(Лист2!K$1&K$2,Лист3!$B$4:$AQ$4&Лист3!$B$5:$AQ$5,0)),0) -> 0 | L37: =IFERROR(SUMPRODUCT(Лист1!$B$3:$AF$10*(Лист1!$B$1:$AF$1=Лист2!$D37)*(Лист2!$C37=Лист1!$A$3:$A$10))*INDEX(Лист3!$B$7:$AQ$96,MATCH(Лист2!$C37,Лист3!$A$7:$A$96,0),MATCH(Лист2!L$1&L$2,Лист3!$B$4:$AQ$4&Лист3!$B$5:$AQ$5,0)),0) -> 0 | M37: =IFERROR(SUMPRODUCT(Лист1!$B$3:$AF$10*(Лист1!$B$1:$AF$1=Лист2!$D37)*(Лист2!$C37=Лист1!$A$3:$A$10))*INDEX(Лист3!$B$7:$AQ$96,MATCH(Лист2!$C37,Лист3!$A$7:$A$96,0),MATCH(Лист2!M$1&M$2,Лист3!$B$4:$AQ$4&Лист3!$B$5:$AQ$5,0)),0) -> 0 | N37: =IFERROR(SUMPRODUCT(Лист1!$B$3:$AF$10*(Лист1!$B$1:$AF$1=Лист2!$D37)*(Лист2!$C37=Лист1!$A$3:$A$10))*INDEX(Лист3!$B$7:$AQ$96,MATCH(Лист2!$C37,Лист3!$A$7:$A$96,0),MATCH(Лист2!N$1&N$2,Лист3!$B$4:$AQ$4&Лист3!$B$5:$AQ$5,0)),0) -> 0 | O37: =IFERROR(SUMPRODUCT(Лист1!$B$3:$AF$10*(Лист1!$B$1:$AF$1=Лист2!$D37)*(Лист2!$C37=Лист1!$A$3:$A$10))*INDEX(Лист3!$B$7:$AQ$96,MATCH(Лист2!$C37,Лист3!$A$7:$A$96,0),MATCH(Лист2!O$1&O$2,Лист3!$B$4:$AQ$4&Лист3!$B$5:$AQ$5,0)),0) -> 0 | P37: =IFERROR(SUMPRODUCT(Лист1!$B$3:$AF$10*(Лист1!$B$1:$AF$1=Лист2!$D37)*(Лист2!$C37=Лист1!$A$3:$A$10))*INDEX(Лист3!$B$7:$AQ$96,MATCH(Лист2!$C37,Лист3!$A$7:$A$96,0),MATCH(Лист2!P$1&P$2,Лист3!$B$4:$AQ$4&Лист3!$B$5:$AQ$5,0)),0) -> 0 | Q37: =IFERROR(SUMPRODUCT(Лист1!$B$3:$AF$10*(Лист1!$B$1:$AF$1=Лист2!$D37)*(Лист2!$C37=Лист1!$A$3:$A$10))*INDEX(Лист3!$B$7:$AQ$96,MATCH(Лист2!$C37,Лист3!$A$7:$A$96,0),MATCH(Лист2!Q$1&Q$2,Лист3!$B$4:$AQ$4&Лист3!$B$5:$AQ$5,0)),0) -> 0 | R37: =IFERROR(SUMPRODUCT(Лист1!$B$3:$AF$10*(Лист1!$B$1:$AF$1=Лист2!$D37)*(Лист2!$C37=Лист1!$A$3:$A$10))*INDEX(Лист3!$B$7:$AQ$96,MATCH(Лист2!$C37,Лист3!$A$7:$A$96,0),MATCH(Лист2!R$1&R$2,Лист3!$B$4:$AQ$4&Лист3!$B$5:$AQ$5,0)),0) -> 0 | S37: =IFERROR(SUMPRODUCT(Лист1!$B$3:$AF$10*(Лист1!$B$1:$AF$1=Лист2!$D37)*(Лист2!$C37=Лист1!$A$3:$A$10))*INDEX(Лист3!$B$7:$AQ$96,MATCH(Лист2!$C37,Лист3!$A$7:$A$96,0),MATCH(Лист2!S$1&S$2,Лист3!$B$4:$AQ$4&Лист3!$B$5:$AQ$5,0)),0) -> 0 | T37: =IFERROR(SUMPRODUCT(Лист1!$B$3:$AF$10*(Лист1!$B$1:$AF$1=Лист2!$D37)*(Лист2!$C37=Лист1!$A$3:$A$10))*INDEX(Лист3!$B$7:$AQ$96,MATCH(Лист2!$C37,Лист3!$A$7:$A$96,0),MATCH(Лист2!T$1&T$2,Лист3!$B$4:$AQ$4&Лист3!$B$5:$AQ$5,0)),0) -> 0 | U37: =IFERROR(SUMPRODUCT(Лист1!$B$3:$AF$10*(Лист1!$B$1:$AF$1=Лист2!$D37)*(Лист2!$C37=Лист1!$A$3:$A$10))*INDEX(Лист3!$B$7:$AQ$96,MATCH(Лист2!$C37,Лист3!$A$7:$A$96,0),MATCH(Лист2!U$1&U$2,Лист3!$B$4:$AQ$4&Лист3!$B$5:$AQ$5,0)),0) -> 0 | V37: =IFERROR(SUMPRODUCT(Лист1!$B$3:$AF$10*(Лист1!$B$1:$AF$1=Лист2!$D37)*(Лист2!$C37=Лист1!$A$3:$A$10))*INDEX(Лист3!$B$7:$AQ$96,MATCH(Лист2!$C37,Лист3!$A$7:$A$96,0),MATCH(Лист2!V$1&V$2,Лист3!$B$4:$AQ$4&Лист3!$B$5:$AQ$5,0)),0) -> 0 | W37: =IFERROR(SUMPRODUCT(Лист1!$B$3:$AF$10*(Лист1!$B$1:$AF$1=Лист2!$D37)*(Лист2!$C37=Лист1!$A$3:$A$10))*INDEX(Лист3!$B$7:$AQ$96,MATCH(Лист2!$C37,Лист3!$A$7:$A$96,0),MATCH(Лист2!W$1&W$2,Лист3!$B$4:$AQ$4&Лист3!$B$5:$AQ$5,0)),0) -> 0 | X37: =IFERROR(SUMPRODUCT(Лист1!$B$3:$AF$10*(Лист1!$B$1:$AF$1=Лист2!$D37)*(Лист2!$C37=Лист1!$A$3:$A$10))*INDEX(Лист3!$B$7:$AQ$96,MATCH(Лист2!$C37,Лист3!$A$7:$A$96,0),MATCH(Лист2!X$1&X$2,Лист3!$B$4:$AQ$4&Лист3!$B$5:$AQ$5,0)),0) -> 0 | Y37: =IFERROR(SUMPRODUCT(Лист1!$B$3:$AF$10*(Лист1!$B$1:$AF$1=Лист2!$D37)*(Лист2!$C37=Лист1!$A$3:$A$10))*INDEX(Лист3!$B$7:$AQ$96,MATCH(Лист2!$C37,Лист3!$A$7:$A$96,0),MATCH(Лист2!Y$1&Y$2,Лист3!$B$4:$AQ$4&Лист3!$B$5:$AQ$5,0)),0) -> 0 | Z37: =IFERROR(SUMPRODUCT(Лист1!$B$3:$AF$10*(Лист1!$B$1:$AF$1=Лист2!$D37)*(Лист2!$C37=Лист1!$A$3:$A$10))*INDEX(Лист3!$B$7:$AQ$96,MATCH(Лист2!$C37,Лист3!$A$7:$A$96,0),MATCH(Лист2!Z$1&Z$2,Лист3!$B$4:$AQ$4&Лист3!$B$5:$AQ$5,0)),0) -> 0 | AA37: =IFERROR(SUMPRODUCT(Лист1!$B$3:$AF$10*(Лист1!$B$1:$AF$1=Лист2!$D37)*(Лист2!$C37=Лист1!$A$3:$A$10))*INDEX(Лист3!$B$7:$AQ$96,MATCH(Лист2!$C37,Лист3!$A$7:$A$96,0),MATCH(Лист2!AA$1&AA$2,Лист3!$B$4:$AQ$4&Лист3!$B$5:$AQ$5,0)),0) -> 0
C38: =IFERROR(INDEX(Лист1!$A$3:$A$10,SMALL(IF(ISNUMBER(INDEX(Лист1!$B$3:$AF$10,,MATCH(Лист2!$D38,Лист1!$B$1:$AF$1,0))),ROW(Лист1!$A$3:$A$10)-2),COUNTIF($D$7:D38,D38))),"") ->  | D38: 8 | E38: =IFERROR(SUMPRODUCT(Лист1!$B$3:$AF$10*(Лист1!$B$1:$AF$1=Лист2!$D38)*(Лист2!$C38=Лист1!$A$3:$A$10))*INDEX(Лист3!$B$7:$AQ$96,MATCH(Лист2!$C38,Лист3!$A$7:$A$96,0),MATCH(Лист2!E$1&E$2,Лист3!$B$4:$AQ$4&Лист3!$B$5:$AQ$5,0)),0) -> 0 | F38: =IFERROR(SUMPRODUCT(Лист1!$B$3:$AF$10*(Лист1!$B$1:$AF$1=Лист2!$D38)*(Лист2!$C38=Лист1!$A$3:$A$10))*INDEX(Лист3!$B$7:$AQ$96,MATCH(Лист2!$C38,Лист3!$A$7:$A$96,0),MATCH(Лист2!F$1&F$2,Лист3!$B$4:$AQ$4&Лист3!$B$5:$AQ$5,0)),0) -> 0 | G38: =IFERROR(SUMPRODUCT(Лист1!$B$3:$AF$10*(Лист1!$B$1:$AF$1=Лист2!$D38)*(Лист2!$C38=Лист1!$A$3:$A$10))*INDEX(Лист3!$B$7:$AQ$96,MATCH(Лист2!$C38,Лист3!$A$7:$A$96,0),MATCH(Лист2!G$1&G$2,Лист3!$B$4:$AQ$4&Лист3!$B$5:$AQ$5,0)),0) -> 0 | H38: =IFERROR(SUMPRODUCT(Лист1!$B$3:$AF$10*(Лист1!$B$1:$AF$1=Лист2!$D38)*(Лист2!$C38=Лист1!$A$3:$A$10))*INDEX(Лист3!$B$7:$AQ$96,MATCH(Лист2!$C38,Лист3!$A$7:$A$96,0),MATCH(Лист2!H$1&H$2,Лист3!$B$4:$AQ$4&Лист3!$B$5:$AQ$5,0)),0) -> 0 | I38: =IFERROR(SUMPRODUCT(Лист1!$B$3:$AF$10*(Лист1!$B$1:$AF$1=Лист2!$D38)*(Лист2!$C38=Лист1!$A$3:$A$10))*INDEX(Лист3!$B$7:$AQ$96,MATCH(Лист2!$C38,Лист3!$A$7:$A$96,0),MATCH(Лист2!I$1&I$2,Лист3!$B$4:$AQ$4&Лист3!$B$5:$AQ$5,0)),0) -> 0 | J38: =IFERROR(SUMPRODUCT(Лист1!$B$3:$AF$10*(Лист1!$B$1:$AF$1=Лист2!$D38)*(Лист2!$C38=Лист1!$A$3:$A$10))*INDEX(Лист3!$B$7:$AQ$96,MATCH(Лист2!$C38,Лист3!$A$7:$A$96,0),MATCH(Лист2!J$1&J$2,Лист3!$B$4:$AQ$4&Лист3!$B$5:$AQ$5,0)),0) -> 0 | K38: =IFERROR(SUMPRODUCT(Лист1!$B$3:$AF$10*(Лист1!$B$1:$AF$1=Лист2!$D38)*(Лист2!$C38=Лист1!$A$3:$A$10))*INDEX(Лист3!$B$7:$AQ$96,MATCH(Лист2!$C38,Лист3!$A$7:$A$96,0),MATCH(Лист2!K$1&K$2,Лист3!$B$4:$AQ$4&Лист3!$B$5:$AQ$5,0)),0) -> 0 | L38: =IFERROR(SUMPRODUCT(Лист1!$B$3:$AF$10*(Лист1!$B$1:$AF$1=Лист2!$D38)*(Лист2!$C38=Лист1!$A$3:$A$10))*INDEX(Лист3!$B$7:$AQ$96,MATCH(Лист2!$C38,Лист3!$A$7:$A$96,0),MATCH(Лист2!L$1&L$2,Лист3!$B$4:$AQ$4&Лист3!$B$5:$AQ$5,0)),0) -> 0 | M38: =IFERROR(SUMPRODUCT(Лист1!$B$3:$AF$10*(Лист1!$B$1:$AF$1=Лист2!$D38)*(Лист2!$C38=Лист1!$A$3:$A$10))*INDEX(Лист3!$B$7:$AQ$96,MATCH(Лист2!$C38,Лист3!$A$7:$A$96,0),MATCH(Лист2!M$1&M$2,Лист3!$B$4:$AQ$4&Лист3!$B$5:$AQ$5,0)),0) -> 0 | N38: =IFERROR(SUMPRODUCT(Лист1!$B$3:$AF$10*(Лист1!$B$1:$AF$1=Лист2!$D38)*(Лист2!$C38=Лист1!$A$3:$A$10))*INDEX(Лист3!$B$7:$AQ$96,MATCH(Лист2!$C38,Лист3!$A$7:$A$96,0),MATCH(Лист2!N$1&N$2,Лист3!$B$4:$AQ$4&Лист3!$B$5:$AQ$5,0)),0) -> 0 | O38: =IFERROR(SUMPRODUCT(Лист1!$B$3:$AF$10*(Лист1!$B$1:$AF$1=Лист2!$D38)*(Лист2!$C38=Лист1!$A$3:$A$10))*INDEX(Лист3!$B$7:$AQ$96,MATCH(Лист2!$C38,Лист3!$A$7:$A$96,0),MATCH(Лист2!O$1&O$2,Лист3!$B$4:$AQ$4&Лист3!$B$5:$AQ$5,0)),0) -> 0 | P38: =IFERROR(SUMPRODUCT(Лист1!$B$3:$AF$10*(Лист1!$B$1:$AF$1=Лист2!$D38)*(Лист2!$C38=Лист1!$A$3:$A$10))*INDEX(Лист3!$B$7:$AQ$96,MATCH(Лист2!$C38,Лист3!$A$7:$A$96,0),MATCH(Лист2!P$1&P$2,Лист3!$B$4:$AQ$4&Лист3!$B$5:$AQ$5,0)),0) -> 0 | Q38: =IFERROR(SUMPRODUCT(Лист1!$B$3:$AF$10*(Лист1!$B$1:$AF$1=Лист2!$D38)*(Лист2!$C38=Лист1!$A$3:$A$10))*INDEX(Лист3!$B$7:$AQ$96,MATCH(Лист2!$C38,Лист3!$A$7:$A$96,0),MATCH(Лист2!Q$1&Q$2,Лист3!$B$4:$AQ$4&Лист3!$B$5:$AQ$5,0)),0) -> 0 | R38: =IFERROR(SUMPRODUCT(Лист1!$B$3:$AF$10*(Лист1!$B$1:$AF$1=Лист2!$D38)*(Лист2!$C38=Лист1!$A$3:$A$10))*INDEX(Лист3!$B$7:$AQ$96,MATCH(Лист2!$C38,Лист3!$A$7:$A$96,0),MATCH(Лист2!R$1&R$2,Лист3!$B$4:$AQ$4&Лист3!$B$5:$AQ$5,0)),0) -> 0 | S38: =IFERROR(SUMPRODUCT(Лист1!$B$3:$AF$10*(Лист1!$B$1:$AF$1=Лист2!$D38)*(Лист2!$C38=Лист1!$A$3:$A$10))*INDEX(Лист3!$B$7:$AQ$96,MATCH(Лист2!$C38,Лист3!$A$7:$A$96,0),MATCH(Лист2!S$1&S$2,Лист3!$B$4:$AQ$4&Лист3!$B$5:$AQ$5,0)),0) -> 0 | T38: =IFERROR(SUMPRODUCT(Лист1!$B$3:$AF$10*(Лист1!$B$1:$AF$1=Лист2!$D38)*(Лист2!$C38=Лист1!$A$3:$A$10))*INDEX(Лист3!$B$7:$AQ$96,MATCH(Лист2!$C38,Лист3!$A$7:$A$96,0),MATCH(Лист2!T$1&T$2,Лист3!$B$4:$AQ$4&Лист3!$B$5:$AQ$5,0)),0) -> 0 | U38: =IFERROR(SUMPRODUCT(Лист1!$B$3:$AF$10*(Лист1!$B$1:$AF$1=Лист2!$D38)*(Лист2!$C38=Лист1!$A$3:$A$10))*INDEX(Лист3!$B$7:$AQ$96,MATCH(Лист2!$C38,Лист3!$A$7:$A$96,0),MATCH(Лист2!U$1&U$2,Лист3!$B$4:$AQ$4&Лист3!$B$5:$AQ$5,0)),0) -> 0 | V38: =IFERROR(SUMPRODUCT(Лист1!$B$3:$AF$10*(Лист1!$B$1:$AF$1=Лист2!$D38)*(Лист2!$C38=Лист1!$A$3:$A$10))*INDEX(Лист3!$B$7:$AQ$96,MATCH(Лист2!$C38,Лист3!$A$7:$A$96,0),MATCH(Лист2!V$1&V$2,Лист3!$B$4:$AQ$4&Лист3!$B$5:$AQ$5,0)),0) -> 0 | W38: =IFERROR(SUMPRODUCT(Лист1!$B$3:$AF$10*(Лист1!$B$1:$AF$1=Лист2!$D38)*(Лист2!$C38=Лист1!$A$3:$A$10))*INDEX(Лист3!$B$7:$AQ$96,MATCH(Лист2!$C38,Лист3!$A$7:$A$96,0),MATCH(Лист2!W$1&W$2,Лист3!$B$4:$AQ$4&Лист3!$B$5:$AQ$5,0)),0) -> 0 | X38: =IFERROR(SUMPRODUCT(Лист1!$B$3:$AF$10*(Лист1!$B$1:$AF$1=Лист2!$D38)*(Лист2!$C38=Лист1!$A$3:$A$10))*INDEX(Лист3!$B$7:$AQ$96,MATCH(Лист2!$C38,Лист3!$A$7:$A$96,0),MATCH(Лист2!X$1&X$2,Лист3!$B$4:$AQ$4&Лист3!$B$5:$AQ$5,0)),0) -> 0 | Y38: =IFERROR(SUMPRODUCT(Лист1!$B$3:$AF$10*(Лист1!$B$1:$AF$1=Лист2!$D38)*(Лист2!$C38=Лист1!$A$3:$A$10))*INDEX(Лист3!$B$7:$AQ$96,MATCH(Лист2!$C38,Лист3!$A$7:$A$96,0),MATCH(Лист2!Y$1&Y$2,Лист3!$B$4:$AQ$4&Лист3!$B$5:$AQ$5,0)),0) -> 0 | Z38: =IFERROR(SUMPRODUCT(Лист1!$B$3:$AF$10*(Лист1!$B$1:$AF$1=Лист2!$D38)*(Лист2!$C38=Лист1!$A$3:$A$10))*INDEX(Лист3!$B$7:$AQ$96,MATCH(Лист2!$C38,Лист3!$A$7:$A$96,0),MATCH(Лист2!Z$1&Z$2,Лист3!$B$4:$AQ$4&Лист3!$B$5:$AQ$5,0)),0) -> 0 | AA38: =IFERROR(SUMPRODUCT(Лист1!$B$3:$AF$10*(Лист1!$B$1:$AF$1=Лист2!$D38)*(Лист2!$C38=Лист1!$A$3:$A$10))*INDEX(Лист3!$B$7:$AQ$96,MATCH(Лист2!$C38,Лист3!$A$7:$A$96,0),MATCH(Лист2!AA$1&AA$2,Лист3!$B$4:$AQ$4&Лист3!$B$5:$AQ$5,0)),0) -> 0
C39: =IFERROR(INDEX(Лист1!$A$3:$A$10,SMALL(IF(ISNUMBER(INDEX(Лист1!$B$3:$AF$10,,MATCH(Лист2!$D39,Лист1!$B$1:$AF$1,0))),ROW(Лист1!$A$3:$A$10)-2),COUNTIF($D$7:D39,D39))),"") -> Плита "Экстрол Малахит" 1180.580.50/8 (Ч), м3 | D39: 9 | E39: =IFERROR(SUMPRODUCT(Лист1!$B$3:$AF$10*(Лист1!$B$1:$AF$1=Лист2!$D39)*(Лист2!$C39=Лист1!$A$3:$A$10))*INDEX(Лист3!$B$7:$AQ$96,MATCH(Лист2!$C39,Лист3!$A$7:$A$96,0),MATCH(Лист2!E$1&E$2,Лист3!$B$4:$AQ$4&Лист3!$B$5:$AQ$5,0)),0) -> 2160 | F39: =IFERROR(SUMPRODUCT(Лист1!$B$3:$AF$10*(Лист1!$B$1:$AF$1=Лист2!$D39)*(Лист2!$C39=Лист1!$A$3:$A$10))*INDEX(Лист3!$B$7:$AQ$96,MATCH(Лист2!$C39,Лист3!$A$7:$A$96,0),MATCH(Лист2!F$1&F$2,Лист3!$B$4:$AQ$4&Лист3!$B$5:$AQ$5,0)),0) -> 8320 | G39: =IFERROR(SUMPRODUCT(Лист1!$B$3:$AF$10*(Лист1!$B$1:$AF$1=Лист2!$D39)*(Лист2!$C39=Лист1!$A$3:$A$10))*INDEX(Лист3!$B$7:$AQ$96,MATCH(Лист2!$C39,Лист3!$A$7:$A$96,0),MATCH(Лист2!G$1&G$2,Лист3!$B$4:$AQ$4&Лист3!$B$5:$AQ$5,0)),0) -> 0 | H39: =IFERROR(SUMPRODUCT(Лист1!$B$3:$AF$10*(Лист1!$B$1:$AF$1=Лист2!$D39)*(Лист2!$C39=Лист1!$A$3:$A$10))*INDEX(Лист3!$B$7:$AQ$96,MATCH(Лист2!$C39,Лист3!$A$7:$A$96,0),MATCH(Лист2!H$1&H$2,Лист3!$B$4:$AQ$4&Лист3!$B$5:$AQ$5,0)),0) -> 60 | I39: =IFERROR(SUMPRODUCT(Лист1!$B$3:$AF$10*(Лист1!$B$1:$AF$1=Лист2!$D39)*(Лист2!$C39=Лист1!$A$3:$A$10))*INDEX(Лист3!$B$7:$AQ$96,MATCH(Лист2!$C39,Лист3!$A$7:$A$96,0),MATCH(Лист2!I$1&I$2,Лист3!$B$4:$AQ$4&Лист3!$B$5:$AQ$5,0)),0) -> 0 | J39: =IFERROR(SUMPRODUCT(Лист1!$B$3:$AF$10*(Лист1!$B$1:$AF$1=Лист2!$D39)*(Лист2!$C39=Лист1!$A$3:$A$10))*INDEX(Лист3!$B$7:$AQ$96,MATCH(Лист2!$C39,Лист3!$A$7:$A$96,0),MATCH(Лист2!J$1&J$2,Лист3!$B$4:$AQ$4&Лист3!$B$5:$AQ$5,0)),0) -> 8 | K39: =IFERROR(SUMPRODUCT(Лист1!$B$3:$AF$10*(Лист1!$B$1:$AF$1=Лист2!$D39)*(Лист2!$C39=Лист1!$A$3:$A$10))*INDEX(Лист3!$B$7:$AQ$96,MATCH(Лист2!$C39,Лист3!$A$7:$A$96,0),MATCH(Лист2!K$1&K$2,Лист3!$B$4:$AQ$4&Лист3!$B$5:$AQ$5,0)),0) -> 0 | L39: =IFERROR(SUMPRODUCT(Лист1!$B$3:$AF$10*(Лист1!$B$1:$AF$1=Лист2!$D39)*(Лист2!$C39=Лист1!$A$3:$A$10))*INDEX(Лист3!$B$7:$AQ$96,MATCH(Лист2!$C39,Лист3!$A$7:$A$96,0),MATCH(Лист2!L$1&L$2,Лист3!$B$4:$AQ$4&Лист3!$B$5:$AQ$5,0)),0) -> 13.2 | M39: =IFERROR(SUMPRODUCT(Лист1!$B$3:$AF$10*(Лист1!$B$1:$AF$1=Лист2!$D39)*(Лист2!$C39=Лист1!$A$3:$A$10))*INDEX(Лист3!$B$7:$AQ$96,MATCH(Лист2!$C39,Лист3!$A$7:$A$96,0),MATCH(Лист2!M$1&M$2,Лист3!$B$4:$AQ$4&Лист3!$B$5:$AQ$5,0)),0) -> 360 | N39: =IFERROR(SUMPRODUCT(Лист1!$B$3:$AF$10*(Лист1!$B$1:$AF$1=Лист2!$D39)*(Лист2!$C39=Лист1!$A$3:$A$10))*INDEX(Лист3!$B$7:$AQ$96,MATCH(Лист2!$C39,Лист3!$A$7:$A$96,0),MATCH(Лист2!N$1&N$2,Лист3!$B$4:$AQ$4&Лист3!$B$5:$AQ$5,0)),0) -> 200 | O39: =IFERROR(SUMPRODUCT(Лист1!$B$3:$AF$10*(Лист1!$B$1:$AF$1=Лист2!$D39)*(Лист2!$C39=Лист1!$A$3:$A$10))*INDEX(Лист3!$B$7:$AQ$96,MATCH(Лист2!$C39,Лист3!$A$7:$A$96,0),MATCH(Лист2!O$1&O$2,Лист3!$B$4:$AQ$4&Лист3!$B$5:$AQ$5,0)),0) -> 0 | P39: =IFERROR(SUMPRODUCT(Лист1!$B$3:$AF$10*(Лист1!$B$1:$AF$1=Лист2!$D39)*(Лист2!$C39=Лист1!$A$3:$A$10))*INDEX(Лист3!$B$7:$AQ$96,MATCH(Лист2!$C39,Лист3!$A$7:$A$96,0),MATCH(Лист2!P$1&P$2,Лист3!$B$4:$AQ$4&Лист3!$B$5:$AQ$5,0)),0) -> 240 | Q39: =IFERROR(SUMPRODUCT(Лист1!$B$3:$AF$10*(Лист1!$B$1:$AF$1=Лист2!$D39)*(Лист2!$C39=Лист1!$A$3:$A$10))*INDEX(Лист3!$B$7:$AQ$96,MATCH(Лист2!$C39,Лист3!$A$7:$A$96,0),MATCH(Лист2!Q$1&Q$2,Лист3!$B$4:$AQ$4&Лист3!$B$5:$AQ$5,0)),0) -> 0 | R39: =IFERROR(SUMPRODUCT(Лист1!$B$3:$AF$10*(Лист1!$B$1:$AF$1=Лист2!$D39)*(Лист2!$C39=Лист1!$A$3:$A$10))*INDEX(Лист3!$B$7:$AQ$96,MATCH(Лист2!$C39,Лист3!$A$7:$A$96,0),MATCH(Лист2!R$1&R$2,Лист3!$B$4:$AQ$4&Лист3!$B$5:$AQ$5,0)),0) -> 192 | S39: =IFERROR(SUMPRODUCT(Лист1!$B$3:$AF$10*(Лист1!$B$1:$AF$1=Лист2!$D39)*(Лист2!$C39=Лист1!$A$3:$A$10))*INDEX(Лист3!$B$7:$AQ$96,MATCH(Лист2!$C39,Лист3!$A$7:$A$96,0),MATCH(Лист2!S$1&S$2,Лист3!$B$4:$AQ$4&Лист3!$B$5:$AQ$5,0)),0) -> 0 | T39: =IFERROR(SUMPRODUCT(Лист1!$B$3:$AF$10*(Лист1!$B$1:$AF$1=Лист2!$D39)*(Лист2!$C39=Лист1!$A$3:$A$10))*INDEX(Лист3!$B$7:$AQ$96,MATCH(Лист2!$C39,Лист3!$A$7:$A$96,0),MATCH(Лист2!T$1&T$2,Лист3!$B$4:$AQ$4&Лист3!$B$5:$AQ$5,0)),0) -> 2 | U39: =IFERROR(SUMPRODUCT(Лист1!$B$3:$AF$10*(Лист1!$B$1:$AF$1=Лист2!$D39)*(Лист2!$C39=Лист1!$A$3:$A$10))*INDEX(Лист3!$B$7:$AQ$96,MATCH(Лист2!$C39,Лист3!$A$7:$A$96,0),MATCH(Лист2!U$1&U$2,Лист3!$B$4:$AQ$4&Лист3!$B$5:$AQ$5,0)),0) -> 0 | V39: =IFERROR(SUMPRODUCT(Лист1!$B$3:$AF$10*(Лист1!$B$1:$AF$1=Лист2!$D39)*(Лист2!$C39=Лист1!$A$3:$A$10))*INDEX(Лист3!$B$7:$AQ$96,MATCH(Лист2!$C39,Лист3!$A$7:$A$96,0),MATCH(Лист2!V$1&V$2,Лист3!$B$4:$AQ$4&Лист3!$B$5:$AQ$5,0)),0) -> 0 | W39: =IFERROR(SUMPRODUCT(Лист1!$B$3:$AF$10*(Лист1!$B$1:$AF$1=Лист2!$D39)*(Лист2!$C39=Лист1!$A$3:$A$10))*INDEX(Лист3!$B$7:$AQ$96,MATCH(Лист2!$C39,Лист3!$A$7:$A$96,0),MATCH(Лист2!W$1&W$2,Лист3!$B$4:$AQ$4&Лист3!$B$5:$AQ$5,0)),0) -> 0 | X39: =IFERROR(SUMPRODUCT(Лист1!$B$3:$AF$10*(Лист1!$B$1:$AF$1=Лист2!$D39)*(Лист2!$C39=Лист1!$A$3:$A$10))*INDEX(Лист3!$B$7:$AQ$96,MATCH(Лист2!$C39,Лист3!$A$7:$A$96,0),MATCH(Лист2!X$1&X$2,Лист3!$B$4:$AQ$4&Лист3!$B$5:$AQ$5,0)),0) -> 6.8 | Y39: =IFERROR(SUMPRODUCT(Лист1!$B$3:$AF$10*(Лист1!$B$1:$AF$1=Лист2!$D39)*(Лист2!$C39=Лист1!$A$3:$A$10))*INDEX(Лист3!$B$7:$AQ$96,MATCH(Лист2!$C39,Лист3!$A$7:$A$96,0),MATCH(Лист2!Y$1&Y$2,Лист3!$B$4:$AQ$4&Лист3!$B$5:$AQ$5,0)),0) -> 0 | Z39: =IFERROR(SUMPRODUCT(Лист1!$B$3:$AF$10*(Лист1!$B$1:$AF$1=Лист2!$D39)*(Лист2!$C39=Лист1!$A$3:$A$10))*INDEX(Лист3!$B$7:$AQ$96,MATCH(Лист2!$C39,Лист3!$A$7:$A$96,0),MATCH(Лист2!Z$1&Z$2,Лист3!$B$4:$AQ$4&Лист3!$B$5:$AQ$5,0)),0) -> 1 | AA39: =IFERROR(SUMPRODUCT(Лист1!$B$3:$AF$10*(Лист1!$B$1:$AF$1=Лист2!$D39)*(Лист2!$C39=Лист1!$A$3:$A$10))*INDEX(Лист3!$B$7:$AQ$96,MATCH(Лист2!$C39,Лист3!$A$7:$A$96,0),MATCH(Лист2!AA$1&AA$2,Лист3!$B$4:$AQ$4&Лист3!$B$5:$AQ$5,0)),0) -> 18.8
C40: =IFERROR(INDEX(Лист1!$A$3:$A$10,SMALL(IF(ISNUMBER(INDEX(Лист1!$B$3:$AF$10,,MATCH(Лист2!$D40,Лист1!$B$1:$AF$1,0))),ROW(Лист1!$A$3:$A$10)-2),COUNTIF($D$7:D40,D40))),"") ->  | D40: 9 | E40: =IFERROR(SUMPRODUCT(Лист1!$B$3:$AF$10*(Лист1!$B$1:$AF$1=Лист2!$D40)*(Лист2!$C40=Лист1!$A$3:$A$10))*INDEX(Лист3!$B$7:$AQ$96,MATCH(Лист2!$C40,Лист3!$A$7:$A$96,0),MATCH(Лист2!E$1&E$2,Лист3!$B$4:$AQ$4&Лист3!$B$5:$AQ$5,0)),0) -> 0 | F40: =IFERROR(SUMPRODUCT(Лист1!$B$3:$AF$10*(Лист1!$B$1:$AF$1=Лист2!$D40)*(Лист2!$C40=Лист1!$A$3:$A$10))*INDEX(Лист3!$B$7:$AQ$96,MATCH(Лист2!$C40,Лист3!$A$7:$A$96,0),MATCH(Лист2!F$1&F$2,Лист3!$B$4:$AQ$4&Лист3!$B$5:$AQ$5,0)),0) -> 0 | G40: =IFERROR(SUMPRODUCT(Лист1!$B$3:$AF$10*(Лист1!$B$1:$AF$1=Лист2!$D40)*(Лист2!$C40=Лист1!$A$3:$A$10))*INDEX(Лист3!$B$7:$AQ$96,MATCH(Лист2!$C40,Лист3!$A$7:$A$96,0),MATCH(Лист2!G$1&G$2,Лист3!$B$4:$AQ$4&Лист3!$B$5:$AQ$5,0)),0) -> 0 | H40: =IFERROR(SUMPRODUCT(Лист1!$B$3:$AF$10*(Лист1!$B$1:$AF$1=Лист2!$D40)*(Лист2!$C40=Лист1!$A$3:$A$10))*INDEX(Лист3!$B$7:$AQ$96,MATCH(Лист2!$C40,Лист3!$A$7:$A$96,0),MATCH(Лист2!H$1&H$2,Лист3!$B$4:$AQ$4&Лист3!$B$5:$AQ$5,0)),0) -> 0 | I40: =IFERROR(SUMPRODUCT(Лист1!$B$3:$AF$10*(Лист1!$B$1:$AF$1=Лист2!$D40)*(Лист2!$C40=Лист1!$A$3:$A$10))*INDEX(Лист3!$B$7:$AQ$96,MATCH(Лист2!$C40,Лист3!$A$7:$A$96,0),MATCH(Лист2!I$1&I$2,Лист3!$B$4:$AQ$4&Лист3!$B$5:$AQ$5,0)),0) -> 0 | J40: =IFERROR(SUMPRODUCT(Лист1!$B$3:$AF$10*(Лист1!$B$1:$AF$1=Лист2!$D40)*(Лист2!$C40=Лист1!$A$3:$A$10))*INDEX(Лист3!$B$7:$AQ$96,MATCH(Лист2!$C40,Лист3!$A$7:$A$96,0),MATCH(Лист2!J$1&J$2,Лист3!$B$4:$AQ$4&Лист3!$B$5:$AQ$5,0)),0) -> 0 | K40: =IFERROR(SUMPRODUCT(Лист1!$B$3:$AF$10*(Лист1!$B$1:$AF$1=Лист2!$D40)*(Лист2!$C40=Лист1!$A$3:$A$10))*INDEX(Лист3!$B$7:$AQ$96,MATCH(Лист2!$C40,Лист3!$A$7:$A$96,0),MATCH(Лист2!K$1&K$2,Лист3!$B$4:$AQ$4&Лист3!$B$5:$AQ$5,0)),0) -> 0 | L40: =IFERROR(SUMPRODUCT(Лист1!$B$3:$AF$10*(Лист1!$B$1:$AF$1=Лист2!$D40)*(Лист2!$C40=Лист1!$A$3:$A$10))*INDEX(Лист3!$B$7:$AQ$96,MATCH(Лист2!$C40,Лист3!$A$7:$A$96,0),MATCH(Лист2!L$1&L$2,Лист3!$B$4:$AQ$4&Лист3!$B$5:$AQ$5,0)),0) -> 0 | M40: =IFERROR(SUMPRODUCT(Лист1!$B$3:$AF$10*(Лист1!$B$1:$AF$1=Лист2!$D40)*(Лист2!$C40=Лист1!$A$3:$A$10))*INDEX(Лист3!$B$7:$AQ$96,MATCH(Лист2!$C40,Лист3!$A$7:$A$96,0),MATCH(Лист2!M$1&M$2,Лист3!$B$4:$AQ$4&Лист3!$B$5:$AQ$5,0)),0) -> 0 | N40: =IFERROR(SUMPRODUCT(Лист1!$B$3:$AF$10*(Лист1!$B$1:$AF$1=Лист2!$D40)*(Лист2!$C40=Лист1!$A$3:$A$10))*INDEX(Лист3!$B$7:$AQ$96,MATCH(Лист2!$C40,Лист3!$A$7:$A$96,0),MATCH(Лист2!N$1&N$2,Лист3!$B$4:$AQ$4&Лист3!$B$5:$AQ$5,0)),0) -> 0 | O40: =IFERROR(SUMPRODUCT(Лист1!$B$3:$AF$10*(Лист1!$B$1:$AF$1=Лист2!$D40)*(Лист2!$C40=Лист1!$A$3:$A$10))*INDEX(Лист3!$B$7:$AQ$96,MATCH(Лист2!$C40,Лист3!$A$7:$A$96,0),MATCH(Лист2!O$1&O$2,Лист3!$B$4:$AQ$4&Лист3!$B$5:$AQ$5,0)),0) -> 0 | P40: =IFERROR(SUMPRODUCT(Лист1!$B$3:$AF$10*(Лист1!$B$1:$AF$1=Лист2!$D40)*(Лист2!$C40=Лист1!$A$3:$A$10))*INDEX(Лист3!$B$7:$AQ$96,MATCH(Лист2!$C40,Лист3!$A$7:$A$96,0),MATCH(Лист2!P$1&P$2,Лист3!$B$4:$AQ$4&Лист3!$B$5:$AQ$5,0)),0) -> 0 | Q40: =IFERROR(SUMPRODUCT(Лист1!$B$3:$AF$10*(Лист1!$B$1:$AF$1=Лист2!$D40)*(Лист2!$C40=Лист1!$A$3:$A$10))*INDEX(Лист3!$B$7:$AQ$96,MATCH(Лист2!$C40,Лист3!$A$7:$A$96,0),MATCH(Лист2!Q$1&Q$2,Лист3!$B$4:$AQ$4&Лист3!$B$5:$AQ$5,0)),0) -> 0 | R40: =IFERROR(SUMPRODUCT(Лист1!$B$3:$AF$10*(Лист1!$B$1:$AF$1=Лист2!$D40)*(Лист2!$C40=Лист1!$A$3:$A$10))*INDEX(Лист3!$B$7:$AQ$96,MATCH(Лист2!$C40,Лист3!$A$7:$A$96,0),MATCH(Лист2!R$1&R$2,Лист3!$B$4:$AQ$4&Лист3!$B$5:$AQ$5,0)),0) -> 0 | S40: =IFERROR(SUMPRODUCT(Лист1!$B$3:$AF$10*(Лист1!$B$1:$AF$1=Лист2!$D40)*(Лист2!$C40=Лист1!$A$3:$A$10))*INDEX(Лист3!$B$7:$AQ$96,MATCH(Лист2!$C40,Лист3!$A$7:$A$96,0),MATCH(Лист2!S$1&S$2,Лист3!$B$4:$AQ$4&Лист3!$B$5:$AQ$5,0)),0) -> 0 | T40: =IFERROR(SUMPRODUCT(Лист1!$B$3:$AF$10*(Лист1!$B$1:$AF$1=Лист2!$D40)*(Лист2!$C40=Лист1!$A$3:$A$10))*INDEX(Лист3!$B$7:$AQ$96,MATCH(Лист2!$C40,Лист3!$A$7:$A$96,0),MATCH(Лист2!T$1&T$2,Лист3!$B$4:$AQ$4&Лист3!$B$5:$AQ$5,0)),0) -> 0 | U40: =IFERROR(SUMPRODUCT(Лист1!$B$3:$AF$10*(Лист1!$B$1:$AF$1=Лист2!$D40)*(Лист2!$C40=Лист1!$A$3:$A$10))*INDEX(Лист3!$B$7:$AQ$96,MATCH(Лист2!$C40,Лист3!$A$7:$A$96,0),MATCH(Лист2!U$1&U$2,Лист3!$B$4:$AQ$4&Лист3!$B$5:$AQ$5,0)),0) -> 0 | V40: =IFERROR(SUMPRODUCT(Лист1!$B$3:$AF$10*(Лист1!$B$1:$AF$1=Лист2!$D40)*(Лист2!$C40=Лист1!$A$3:$A$10))*INDEX(Лист3!$B$7:$AQ$96,MATCH(Лист2!$C40,Лист3!$A$7:$A$96,0),MATCH(Лист2!V$1&V$2,Лист3!$B$4:$AQ$4&Лист3!$B$5:$AQ$5,0)),0) -> 0 | W40: =IFERROR(SUMPRODUCT(Лист1!$B$3:$AF$10*(Лист1!$B$1:$AF$1=Лист2!$D40)*(Лист2!$C40=Лист1!$A$3:$A$10))*INDEX(Лист3!$B$7:$AQ$96,MATCH(Лист2!$C40,Лист3!$A$7:$A$96,0),MATCH(Лист2!W$1&W$2,Лист3!$B$4:$AQ$4&Лист3!$B$5:$AQ$5,0)),0) -> 0 | X40: =IFERROR(SUMPRODUCT(Лист1!$B$3:$AF$10*(Лист1!$B$1:$AF$1=Лист2!$D40)*(Лист2!$C40=Лист1!$A$3:$A$10))*INDEX(Лист3!$B$7:$AQ$96,MATCH(Лист2!$C40,Лист3!$A$7:$A$96,0),MATCH(Лист2!X$1&X$2,Лист3!$B$4:$AQ$4&Лист3!$B$5:$AQ$5,0)),0) -> 0 | Y40: =IFERROR(SUMPRODUCT(Лист1!$B$3:$AF$10*(Лист1!$B$1:$AF$1=Лист2!$D40)*(Лист2!$C40=Лист1!$A$3:$A$10))*INDEX(Лист3!$B$7:$AQ$96,MATCH(Лист2!$C40,Лист3!$A$7:$A$96,0),MATCH(Лист2!Y$1&Y$2,Лист3!$B$4:$AQ$4&Лист3!$B$5:$AQ$5,0)),0) -> 0 | Z40: =IFERROR(SUMPRODUCT(Лист1!$B$3:$AF$10*(Лист1!$B$1:$AF$1=Лист2!$D40)*(Лист2!$C40=Лист1!$A$3:$A$10))*INDEX(Лист3!$B$7:$AQ$96,MATCH(Лист2!$C40,Лист3!$A$7:$A$96,0),MATCH(Лист2!Z$1&Z$2,Лист3!$B$4:$AQ$4&Лист3!$B$5:$AQ$5,0)),0) -> 0 | AA40: =IFERROR(SUMPRODUCT(Лист1!$B$3:$AF$10*(Лист1!$B$1:$AF$1=Лист2!$D40)*(Лист2!$C40=Лист1!$A$3:$A$10))*INDEX(Лист3!$B$7:$AQ$96,MATCH(Лист2!$C40,Лист3!$A$7:$A$96,0),MATCH(Лист2!AA$1&AA$2,Лист3!$B$4:$AQ$4&Лист3!$B$5:$AQ$5,0)),0) -> 0
C41: =IFERROR(INDEX(Лист1!$A$3:$A$10,SMALL(IF(ISNUMBER(INDEX(Лист1!$B$3:$AF$10,,MATCH(Лист2!$D41,Лист1!$B$1:$AF$1,0))),ROW(Лист1!$A$3:$A$10)-2),COUNTIF($D$7:D41,D41))),"") ->  | D41: 9 | E41: =IFERROR(SUMPRODUCT(Лист1!$B$3:$AF$10*(Лист1!$B$1:$AF$1=Лист2!$D41)*(Лист2!$C41=Лист1!$A$3:$A$10))*INDEX(Лист3!$B$7:$AQ$96,MATCH(Лист2!$C41,Лист3!$A$7:$A$96,0),MATCH(Лист2!E$1&E$2,Лист3!$B$4:$AQ$4&Лист3!$B$5:$AQ$5,0)),0) -> 0 | F41: =IFERROR(SUMPRODUCT(Лист1!$B$3:$AF$10*(Лист1!$B$1:$AF$1=Лист2!$D41)*(Лист2!$C41=Лист1!$A$3:$A$10))*INDEX(Лист3!$B$7:$AQ$96,MATCH(Лист2!$C41,Лист3!$A$7:$A$96,0),MATCH(Лист2!F$1&F$2,Лист3!$B$4:$AQ$4&Лист3!$B$5:$AQ$5,0)),0) -> 0 | G41: =IFERROR(SUMPRODUCT(Лист1!$B$3:$AF$10*(Лист1!$B$1:$AF$1=Лист2!$D41)*(Лист2!$C41=Лист1!$A$3:$A$10))*INDEX(Лист3!$B$7:$AQ$96,MATCH(Лист2!$C41,Лист3!$A$7:$A$96,0),MATCH(Лист2!G$1&G$2,Лист3!$B$4:$AQ$4&Лист3!$B$5:$AQ$5,0)),0) -> 0 | H41: =IFERROR(SUMPRODUCT(Лист1!$B$3:$AF$10*(Лист1!$B$1:$AF$1=Лист2!$D41)*(Лист2!$C41=Лист1!$A$3:$A$10))*INDEX(Лист3!$B$7:$AQ$96,MATCH(Лист2!$C41,Лист3!$A$7:$A$96,0),MATCH(Лист2!H$1&H$2,Лист3!$B$4:$AQ$4&Лист3!$B$5:$AQ$5,0)),0) -> 0 | I41: =IFERROR(SUMPRODUCT(Лист1!$B$3:$AF$10*(Лист1!$B$1:$AF$1=Лист2!$D41)*(Лист2!$C41=Лист1!$A$3:$A$10))*INDEX(Лист3!$B$7:$AQ$96,MATCH(Лист2!$C41,Лист3!$A$7:$A$96,0),MATCH(Лист2!I$1&I$2,Лист3!$B$4:$AQ$4&Лист3!$B$5:$AQ$5,0)),0) -> 0 | J41: =IFERROR(SUMPRODUCT(Лист1!$B$3:$AF$10*(Лист1!$B$1:$AF$1=Лист2!$D41)*(Лист2!$C41=Лист1!$A$3:$A$10))*INDEX(Лист3!$B$7:$AQ$96,MATCH(Лист2!$C41,Лист3!$A$7:$A$96,0),MATCH(Лист2!J$1&J$2,Лист3!$B$4:$AQ$4&Лист3!$B$5:$AQ$5,0)),0) -> 0 | K41: =IFERROR(SUMPRODUCT(Лист1!$B$3:$AF$10*(Лист1!$B$1:$AF$1=Лист2!$D41)*(Лист2!$C41=Лист1!$A$3:$A$10))*INDEX(Лист3!$B$7:$AQ$96,MATCH(Лист2!$C41,Лист3!$A$7:$A$96,0),MATCH(Лист2!K$1&K$2,Лист3!$B$4:$AQ$4&Лист3!$B$5:$AQ$5,0)),0) -> 0 | L41: =IFERROR(SUMPRODUCT(Лист1!$B$3:$AF$10*(Лист1!$B$1:$AF$1=Лист2!$D41)*(Лист2!$C41=Лист1!$A$3:$A$10))*INDEX(Лист3!$B$7:$AQ$96,MATCH(Лист2!$C41,Лист3!$A$7:$A$96,0),MATCH(Лист2!L$1&L$2,Лист3!$B$4:$AQ$4&Лист3!$B$5:$AQ$5,0)),0) -> 0 | M41: =IFERROR(SUMPRODUCT(Лист1!$B$3:$AF$10*(Лист1!$B$1:$AF$1=Лист2!$D41)*(Лист2!$C41=Лист1!$A$3:$A$10))*INDEX(Лист3!$B$7:$AQ$96,MATCH(Лист2!$C41,Лист3!$A$7:$A$96,0),MATCH(Лист2!M$1&M$2,Лист3!$B$4:$AQ$4&Лист3!$B$5:$AQ$5,0)),0) -> 0 | N41: =IFERROR(SUMPRODUCT(Лист1!$B$3:$AF$10*(Лист1!$B$1:$AF$1=Лист2!$D41)*(Лист2!$C41=Лист1!$A$3:$A$10))*INDEX(Лист3!$B$7:$AQ$96,MATCH(Лист2!$C41,Лист3!$A$7:$A$96,0),MATCH(Лист2!N$1&N$2,Лист3!$B$4:$AQ$4&Лист3!$B$5:$AQ$5,0)),0) -> 0 | O41: =IFERROR(SUMPRODUCT(Лист1!$B$3:$AF$10*(Лист1!$B$1:$AF$1=Лист2!$D41)*(Лист2!$C41=Лист1!$A$3:$A$10))*INDEX(Лист3!$B$7:$AQ$96,MATCH(Лист2!$C41,Лист3!$A$7:$A$96,0),MATCH(Лист2!O$1&O$2,Лист3!$B$4:$AQ$4&Лист3!$B$5:$AQ$5,0)),0) -> 0 | P41: =IFERROR(SUMPRODUCT(Лист1!$B$3:$AF$10*(Лист1!$B$1:$AF$1=Лист2!$D41)*(Лист2!$C41=Лист1!$A$3:$A$10))*INDEX(Лист3!$B$7:$AQ$96,MATCH(Лист2!$C41,Лист3!$A$7:$A$96,0),MATCH(Лист2!P$1&P$2,Лист3!$B$4:$AQ$4&Лист3!$B$5:$AQ$5,0)),0) -> 0 | Q41: =IFERROR(SUMPRODUCT(Лист1!$B$3:$AF$10*(Лист1!$B$1:$AF$1=Лист2!$D41)*(Лист2!$C41=Лист1!$A$3:$A$10))*INDEX(Лист3!$B$7:$AQ$96,MATCH(Лист2!$C41,Лист3!$A$7:$A$96,0),MATCH(Лист2!Q$1&Q$2,Лист3!$B$4:$AQ$4&Лист3!$B$5:$AQ$5,0)),0) -> 0 | R41: =IFERROR(SUMPRODUCT(Лист1!$B$3:$AF$10*(Лист1!$B$1:$AF$1=Лист2!$D41)*(Лист2!$C41=Лист1!$A$3:$A$10))*INDEX(Лист3!$B$7:$AQ$96,MATCH(Лист2!$C41,Лист3!$A$7:$A$96,0),MATCH(Лист2!R$1&R$2,Лист3!$B$4:$AQ$4&Лист3!$B$5:$AQ$5,0)),0) -> 0 | S41: =IFERROR(SUMPRODUCT(Лист1!$B$3:$AF$10*(Лист1!$B$1:$AF$1=Лист2!$D41)*(Лист2!$C41=Лист1!$A$3:$A$10))*INDEX(Лист3!$B$7:$AQ$96,MATCH(Лист2!$C41,Лист3!$A$7:$A$96,0),MATCH(Лист2!S$1&S$2,Лист3!$B$4:$AQ$4&Лист3!$B$5:$AQ$5,0)),0) -> 0 | T41: =IFERROR(SUMPRODUCT(Лист1!$B$3:$AF$10*(Лист1!$B$1:$AF$1=Лист2!$D41)*(Лист2!$C41=Лист1!$A$3:$A$10))*INDEX(Лист3!$B$7:$AQ$96,MATCH(Лист2!$C41,Лист3!$A$7:$A$96,0),MATCH(Лист2!T$1&T$2,Лист3!$B$4:$AQ$4&Лист3!$B$5:$AQ$5,0)),0) -> 0 | U41: =IFERROR(SUMPRODUCT(Лист1!$B$3:$AF$10*(Лист1!$B$1:$AF$1=Лист2!$D41)*(Лист2!$C41=Лист1!$A$3:$A$10))*INDEX(Лист3!$B$7:$AQ$96,MATCH(Лист2!$C41,Лист3!$A$7:$A$96,0),MATCH(Лист2!U$1&U$2,Лист3!$B$4:$AQ$4&Лист3!$B$5:$AQ$5,0)),0) -> 0 | V41: =IFERROR(SUMPRODUCT(Лист1!$B$3:$AF$10*(Лист1!$B$1:$AF$1=Лист2!$D41)*(Лист2!$C41=Лист1!$A$3:$A$10))*INDEX(Лист3!$B$7:$AQ$96,MATCH(Лист2!$C41,Лист3!$A$7:$A$96,0),MATCH(Лист2!V$1&V$2,Лист3!$B$4:$AQ$4&Лист3!$B$5:$AQ$5,0)),0) -> 0 | W41: =IFERROR(SUMPRODUCT(Лист1!$B$3:$AF$10*(Лист1!$B$1:$AF$1=Лист2!$D41)*(Лист2!$C41=Лист1!$A$3:$A$10))*INDEX(Лист3!$B$7:$AQ$96,MATCH(Лист2!$C41,Лист3!$A$7:$A$96,0),MATCH(Лист2!W$1&W$2,Лист3!$B$4:$AQ$4&Лист3!$B$5:$AQ$5,0)),0) -> 0 | X41: =IFERROR(SUMPRODUCT(Лист1!$B$3:$AF$10*(Лист1!$B$1:$AF$1=Лист2!$D41)*(Лист2!$C41=Лист1!$A$3:$A$10))*INDEX(Лист3!$B$7:$AQ$96,MATCH(Лист2!$C41,Лист3!$A$7:$A$96,0),MATCH(Лист2!X$1&X$2,Лист3!$B$4:$AQ$4&Лист3!$B$5:$AQ$5,0)),0) -> 0 | Y41: =IFERROR(SUMPRODUCT(Лист1!$B$3:$AF$10*(Лист1!$B$1:$AF$1=Лист2!$D41)*(Лист2!$C41=Лист1!$A$3:$A$10))*INDEX(Лист3!$B$7:$AQ$96,MATCH(Лист2!$C41,Лист3!$A$7:$A$96,0),MATCH(Лист2!Y$1&Y$2,Лист3!$B$4:$AQ$4&Лист3!$B$5:$AQ$5,0)),0) -> 0 | Z41: =IFERROR(SUMPRODUCT(Лист1!$B$3:$AF$10*(Лист1!$B$1:$AF$1=Лист2!$D41)*(Лист2!$C41=Лист1!$A$3:$A$10))*INDEX(Лист3!$B$7:$AQ$96,MATCH(Лист2!$C41,Лист3!$A$7:$A$96,0),MATCH(Лист2!Z$1&Z$2,Лист3!$B$4:$AQ$4&Лист3!$B$5:$AQ$5,0)),0) -> 0 | AA41: =IFERROR(SUMPRODUCT(Лист1!$B$3:$AF$10*(Лист1!$B$1:$AF$1=Лист2!$D41)*(Лист2!$C41=Лист1!$A$3:$A$10))*INDEX(Лист3!$B$7:$AQ$96,MATCH(Лист2!$C41,Лист3!$A$7:$A$96,0),MATCH(Лист2!AA$1&AA$2,Лист3!$B$4:$AQ$4&Лист3!$B$5:$AQ$5,0)),0) -> 0
C42: =IFERROR(INDEX(Лист1!$A$3:$A$10,SMALL(IF(ISNUMBER(INDEX(Лист1!$B$3:$AF$10,,MATCH(Лист2!$D42,Лист1!$B$1:$AF$1,0))),ROW(Лист1!$A$3:$A$10)-2),COUNTIF($D$7:D42,D42))),"") ->  | D42: 9 | E42: =IFERROR(SUMPRODUCT(Лист1!$B$3:$AF$10*(Лист1!$B$1:$AF$1=Лист2!$D42)*(Лист2!$C42=Лист1!$A$3:$A$10))*INDEX(Лист3!$B$7:$AQ$96,MATCH(Лист2!$C42,Лист3!$A$7:$A$96,0),MATCH(Лист2!E$1&E$2,Лист3!$B$4:$AQ$4&Лист3!$B$5:$AQ$5,0)),0) -> 0 | F42: =IFERROR(SUMPRODUCT(Лист1!$B$3:$AF$10*(Лист1!$B$1:$AF$1=Лист2!$D42)*(Лист2!$C42=Лист1!$A$3:$A$10))*INDEX(Лист3!$B$7:$AQ$96,MATCH(Лист2!$C42,Лист3!$A$7:$A$96,0),MATCH(Лист2!F$1&F$2,Лист3!$B$4:$AQ$4&Лист3!$B$5:$AQ$5,0)),0) -> 0 | G42: =IFERROR(SUMPRODUCT(Лист1!$B$3:$AF$10*(Лист1!$B$1:$AF$1=Лист2!$D42)*(Лист2!$C42=Лист1!$A$3:$A$10))*INDEX(Лист3!$B$7:$AQ$96,MATCH(Лист2!$C42,Лист3!$A$7:$A$96,0),MATCH(Лист2!G$1&G$2,Лист3!$B$4:$AQ$4&Лист3!$B$5:$AQ$5,0)),0) -> 0 | H42: =IFERROR(SUMPRODUCT(Лист1!$B$3:$AF$10*(Лист1!$B$1:$AF$1=Лист2!$D42)*(Лист2!$C42=Лист1!$A$3:$A$10))*INDEX(Лист3!$B$7:$AQ$96,MATCH(Лист2!$C42,Лист3!$A$7:$A$96,0),MATCH(Лист2!H$1&H$2,Лист3!$B$4:$AQ$4&Лист3!$B$5:$AQ$5,0)),0) -> 0 | I42: =IFERROR(SUMPRODUCT(Лист1!$B$3:$AF$10*(Лист1!$B$1:$AF$1=Лист2!$D42)*(Лист2!$C42=Лист1!$A$3:$A$10))*INDEX(Лист3!$B$7:$AQ$96,MATCH(Лист2!$C42,Лист3!$A$7:$A$96,0),MATCH(Лист2!I$1&I$2,Лист3!$B$4:$AQ$4&Лист3!$B$5:$AQ$5,0)),0) -> 0 | J42: =IFERROR(SUMPRODUCT(Лист1!$B$3:$AF$10*(Лист1!$B$1:$AF$1=Лист2!$D42)*(Лист2!$C42=Лист1!$A$3:$A$10))*INDEX(Лист3!$B$7:$AQ$96,MATCH(Лист2!$C42,Лист3!$A$7:$A$96,0),MATCH(Лист2!J$1&J$2,Лист3!$B$4:$AQ$4&Лист3!$B$5:$AQ$5,0)),0) -> 0 | K42: =IFERROR(SUMPRODUCT(Лист1!$B$3:$AF$10*(Лист1!$B$1:$AF$1=Лист2!$D42)*(Лист2!$C42=Лист1!$A$3:$A$10))*INDEX(Лист3!$B$7:$AQ$96,MATCH(Лист2!$C42,Лист3!$A$7:$A$96,0),MATCH(Лист2!K$1&K$2,Лист3!$B$4:$AQ$4&Лист3!$B$5:$AQ$5,0)),0) -> 0 | L42: =IFERROR(SUMPRODUCT(Лист1!$B$3:$AF$10*(Лист1!$B$1:$AF$1=Лист2!$D42)*(Лист2!$C42=Лист1!$A$3:$A$10))*INDEX(Лист3!$B$7:$AQ$96,MATCH(Лист2!$C42,Лист3!$A$7:$A$96,0),MATCH(Лист2!L$1&L$2,Лист3!$B$4:$AQ$4&Лист3!$B$5:$AQ$5,0)),0) -> 0 | M42: =IFERROR(SUMPRODUCT(Лист1!$B$3:$AF$10*(Лист1!$B$1:$AF$1=Лист2!$D42)*(Лист2!$C42=Лист1!$A$3:$A$10))*INDEX(Лист3!$B$7:$AQ$96,MATCH(Лист2!$C42,Лист3!$A$7:$A$96,0),MATCH(Лист2!M$1&M$2,Лист3!$B$4:$AQ$4&Лист3!$B$5:$AQ$5,0)),0) -> 0 | N42: =IFERROR(SUMPRODUCT(Лист1!$B$3:$AF$10*(Лист1!$B$1:$AF$1=Лист2!$D42)*(Лист2!$C42=Лист1!$A$3:$A$10))*INDEX(Лист3!$B$7:$AQ$96,MATCH(Лист2!$C42,Лист3!$A$7:$A$96,0),MATCH(Лист2!N$1&N$2,Лист3!$B$4:$AQ$4&Лист3!$B$5:$AQ$5,0)),0) -> 0 | O42: =IFERROR(SUMPRODUCT(Лист1!$B$3:$AF$10*(Лист1!$B$1:$AF$1=Лист2!$D42)*(Лист2!$C42=Лист1!$A$3:$A$10))*INDEX(Лист3!$B$7:$AQ$96,MATCH(Лист2!$C42,Лист3!$A$7:$A$96,0),MATCH(Лист2!O$1&O$2,Лист3!$B$4:$AQ$4&Лист3!$B$5:$AQ$5,0)),0) -> 0 | P42: =IFERROR(SUMPRODUCT(Лист1!$B$3:$AF$10*(Лист1!$B$1:$AF$1=Лист2!$D42)*(Лист2!$C42=Лист1!$A$3:$A$10))*INDEX(Лист3!$B$7:$AQ$96,MATCH(Лист2!$C42,Лист3!$A$7:$A$96,0),MATCH(Лист2!P$1&P$2,Лист3!$B$4:$AQ$4&Лист3!$B$5:$AQ$5,0)),0) -> 0 | Q42: =IFERROR(SUMPRODUCT(Лист1!$B$3:$AF$10*(Лист1!$B$1:$AF$1=Лист2!$D42)*(Лист2!$C42=Лист1!$A$3:$A$10))*INDEX(Лист3!$B$7:$AQ$96,MATCH(Лист2!$C42,Лист3!$A$7:$A$96,0),MATCH(Лист2!Q$1&Q$2,Лист3!$B$4:$AQ$4&Лист3!$B$5:$AQ$5,0)),0) -> 0 | R42: =IFERROR(SUMPRODUCT(Лист1!$B$3:$AF$10*(Лист1!$B$1:$AF$1=Лист2!$D42)*(Лист2!$C42=Лист1!$A$3:$A$10))*INDEX(Лист3!$B$7:$AQ$96,MATCH(Лист2!$C42,Лист3!$A$7:$A$96,0),MATCH(Лист2!R$1&R$2,Лист3!$B$4:$AQ$4&Лист3!$B$5:$AQ$5,0)),0) -> 0 | S42: =IFERROR(SUMPRODUCT(Лист1!$B$3:$AF$10*(Лист1!$B$1:$AF$1=Лист2!$D42)*(Лист2!$C42=Лист1!$A$3:$A$10))*INDEX(Лист3!$B$7:$AQ$96,MATCH(Лист2!$C42,Лист3!$A$7:$A$96,0),MATCH(Лист2!S$1&S$2,Лист3!$B$4:$AQ$4&Лист3!$B$5:$AQ$5,0)),0) -> 0 | T42: =IFERROR(SUMPRODUCT(Лист1!$B$3:$AF$10*(Лист1!$B$1:$AF$1=Лист2!$D42)*(Лист2!$C42=Лист1!$A$3:$A$10))*INDEX(Лист3!$B$7:$AQ$96,MATCH(Лист2!$C42,Лист3!$A$7:$A$96,0),MATCH(Лист2!T$1&T$2,Лист3!$B$4:$AQ$4&Лист3!$B$5:$AQ$5,0)),0) -> 0 | U42: =IFERROR(SUMPRODUCT(Лист1!$B$3:$AF$10*(Лист1!$B$1:$AF$1=Лист2!$D42)*(Лист2!$C42=Лист1!$A$3:$A$10))*INDEX(Лист3!$B$7:$AQ$96,MATCH(Лист2!$C42,Лист3!$A$7:$A$96,0),MATCH(Лист2!U$1&U$2,Лист3!$B$4:$AQ$4&Лист3!$B$5:$AQ$5,0)),0) -> 0 | V42: =IFERROR(SUMPRODUCT(Лист1!$B$3:$AF$10*(Лист1!$B$1:$AF$1=Лист2!$D42)*(Лист2!$C42=Лист1!$A$3:$A$10))*INDEX(Лист3!$B$7:$AQ$96,MATCH(Лист2!$C42,Лист3!$A$7:$A$96,0),MATCH(Лист2!V$1&V$2,Лист3!$B$4:$AQ$4&Лист3!$B$5:$AQ$5,0)),0) -> 0 | W42: =IFERROR(SUMPRODUCT(Лист1!$B$3:$AF$10*(Лист1!$B$1:$AF$1=Лист2!$D42)*(Лист2!$C42=Лист1!$A$3:$A$10))*INDEX(Лист3!$B$7:$AQ$96,MATCH(Лист2!$C42,Лист3!$A$7:$A$96,0),MATCH(Лист2!W$1&W$2,Лист3!$B$4:$AQ$4&Лист3!$B$5:$AQ$5,0)),0) -> 0 | X42: =IFERROR(SUMPRODUCT(Лист1!$B$3:$AF$10*(Лист1!$B$1:$AF$1=Лист2!$D42)*(Лист2!$C42=Лист1!$A$3:$A$10))*INDEX(Лист3!$B$7:$AQ$96,MATCH(Лист2!$C42,Лист3!$A$7:$A$96,0),MATCH(Лист2!X$1&X$2,Лист3!$B$4:$AQ$4&Лист3!$B$5:$AQ$5,0)),0) -> 0 | Y42: =IFERROR(SUMPRODUCT(Лист1!$B$3:$AF$10*(Лист1!$B$1:$AF$1=Лист2!$D42)*(Лист2!$C42=Лист1!$A$3:$A$10))*INDEX(Лист3!$B$7:$AQ$96,MATCH(Лист2!$C42,Лист3!$A$7:$A$96,0),MATCH(Лист2!Y$1&Y$2,Лист3!$B$4:$AQ$4&Лист3!$B$5:$AQ$5,0)),0) -> 0 | Z42: =IFERROR(SUMPRODUCT(Лист1!$B$3:$AF$10*(Лист1!$B$1:$AF$1=Лист2!$D42)*(Лист2!$C42=Лист1!$A$3:$A$10))*INDEX(Лист3!$B$7:$AQ$96,MATCH(Лист2!$C42,Лист3!$A$7:$A$96,0),MATCH(Лист2!Z$1&Z$2,Лист3!$B$4:$AQ$4&Лист3!$B$5:$AQ$5,0)),0) -> 0 | AA42: =IFERROR(SUMPRODUCT(Лист1!$B$3:$AF$10*(Лист1!$B$1:$AF$1=Лист2!$D42)*(Лист2!$C42=Лист1!$A$3:$A$10))*INDEX(Лист3!$B$7:$AQ$96,MATCH(Лист2!$C42,Лист3!$A$7:$A$96,0),MATCH(Лист2!AA$1&AA$2,Лист3!$B$4:$AQ$4&Лист3!$B$5:$AQ$5,0)),0) -> 0
C43: =IFERROR(INDEX(Лист1!$A$3:$A$10,SMALL(IF(ISNUMBER(INDEX(Лист1!$B$3:$AF$10,,MATCH(Лист2!$D43,Лист1!$B$1:$AF$1,0))),ROW(Лист1!$A$3:$A$10)-2),COUNTIF($D$7:D43,D43))),"") -> Плита "Экстрол" 30-1180.580.50/8 (Ч), м3 | D43: 10 | E43: =IFERROR(SUMPRODUCT(Лист1!$B$3:$AF$10*(Лист1!$B$1:$AF$1=Лист2!$D43)*(Лист2!$C43=Лист1!$A$3:$A$10))*INDEX(Лист3!$B$7:$AQ$96,MATCH(Лист2!$C43,Лист3!$A$7:$A$96,0),MATCH(Лист2!E$1&E$2,Лист3!$B$4:$AQ$4&Лист3!$B$5:$AQ$5,0)),0) -> 540 | F43: =IFERROR(SUMPRODUCT(Лист1!$B$3:$AF$10*(Лист1!$B$1:$AF$1=Лист2!$D43)*(Лист2!$C43=Лист1!$A$3:$A$10))*INDEX(Лист3!$B$7:$AQ$96,MATCH(Лист2!$C43,Лист3!$A$7:$A$96,0),MATCH(Лист2!F$1&F$2,Лист3!$B$4:$AQ$4&Лист3!$B$5:$AQ$5,0)),0) -> 2180 | G43: =IFERROR(SUMPRODUCT(Лист1!$B$3:$AF$10*(Лист1!$B$1:$AF$1=Лист2!$D43)*(Лист2!$C43=Лист1!$A$3:$A$10))*INDEX(Лист3!$B$7:$AQ$96,MATCH(Лист2!$C43,Лист3!$A$7:$A$96,0),MATCH(Лист2!G$1&G$2,Лист3!$B$4:$AQ$4&Лист3!$B$5:$AQ$5,0)),0) -> 10 | H43: =IFERROR(SUMPRODUCT(Лист1!$B$3:$AF$10*(Лист1!$B$1:$AF$1=Лист2!$D43)*(Лист2!$C43=Лист1!$A$3:$A$10))*INDEX(Лист3!$B$7:$AQ$96,MATCH(Лист2!$C43,Лист3!$A$7:$A$96,0),MATCH(Лист2!H$1&H$2,Лист3!$B$4:$AQ$4&Лист3!$B$5:$AQ$5,0)),0) -> 7 | I43: =IFERROR(SUMPRODUCT(Лист1!$B$3:$AF$10*(Лист1!$B$1:$AF$1=Лист2!$D43)*(Лист2!$C43=Лист1!$A$3:$A$10))*INDEX(Лист3!$B$7:$AQ$96,MATCH(Лист2!$C43,Лист3!$A$7:$A$96,0),MATCH(Лист2!I$1&I$2,Лист3!$B$4:$AQ$4&Лист3!$B$5:$AQ$5,0)),0) -> 0 | J43: =IFERROR(SUMPRODUCT(Лист1!$B$3:$AF$10*(Лист1!$B$1:$AF$1=Лист2!$D43)*(Лист2!$C43=Лист1!$A$3:$A$10))*INDEX(Лист3!$B$7:$AQ$96,MATCH(Лист2!$C43,Лист3!$A$7:$A$96,0),MATCH(Лист2!J$1&J$2,Лист3!$B$4:$AQ$4&Лист3!$B$5:$AQ$5,0)),0) -> 2 | K43: =IFERROR(SUMPRODUCT(Лист1!$B$3:$AF$10*(Лист1!$B$1:$AF$1=Лист2!$D43)*(Лист2!$C43=Лист1!$A$3:$A$10))*INDEX(Лист3!$B$7:$AQ$96,MATCH(Лист2!$C43,Лист3!$A$7:$A$96,0),MATCH(Лист2!K$1&K$2,Лист3!$B$4:$AQ$4&Лист3!$B$5:$AQ$5,0)),0) -> 0 | L43: =IFERROR(SUMPRODUCT(Лист1!$B$3:$AF$10*(Лист1!$B$1:$AF$1=Лист2!$D43)*(Лист2!$C43=Лист1!$A$3:$A$10))*INDEX(Лист3!$B$7:$AQ$96,MATCH(Лист2!$C43,Лист3!$A$7:$A$96,0),MATCH(Лист2!L$1&L$2,Лист3!$B$4:$AQ$4&Лист3!$B$5:$AQ$5,0)),0) -> 2 | M43: =IFERROR(SUMPRODUCT(Лист1!$B$3:$AF$10*(Лист1!$B$1:$AF$1=Лист2!$D43)*(Лист2!$C43=Лист1!$A$3:$A$10))*INDEX(Лист3!$B$7:$AQ$96,MATCH(Лист2!$C43,Лист3!$A$7:$A$96,0),MATCH(Лист2!M$1&M$2,Лист3!$B$4:$AQ$4&Лист3!$B$5:$AQ$5,0)),0) -> 90 | N43: =IFERROR(SUMPRODUCT(Лист1!$B$3:$AF$10*(Лист1!$B$1:$AF$1=Лист2!$D43)*(Лист2!$C43=Лист1!$A$3:$A$10))*INDEX(Лист3!$B$7:$AQ$96,MATCH(Лист2!$C43,Лист3!$A$7:$A$96,0),MATCH(Лист2!N$1&N$2,Лист3!$B$4:$AQ$4&Лист3!$B$5:$AQ$5,0)),0) -> 50 | O43: =IFERROR(SUMPRODUCT(Лист1!$B$3:$AF$10*(Лист1!$B$1:$AF$1=Лист2!$D43)*(Лист2!$C43=Лист1!$A$3:$A$10))*INDEX(Лист3!$B$7:$AQ$96,MATCH(Лист2!$C43,Лист3!$A$7:$A$96,0),MATCH(Лист2!O$1&O$2,Лист3!$B$4:$AQ$4&Лист3!$B$5:$AQ$5,0)),0) -> 0 | P43: =IFERROR(SUMPRODUCT(Лист1!$B$3:$AF$10*(Лист1!$B$1:$AF$1=Лист2!$D43)*(Лист2!$C43=Лист1!$A$3:$A$10))*INDEX(Лист3!$B$7:$AQ$96,MATCH(Лист2!$C43,Лист3!$A$7:$A$96,0),MATCH(Лист2!P$1&P$2,Лист3!$B$4:$AQ$4&Лист3!$B$5:$AQ$5,0)),0) -> 89 | Q43: =IFERROR(SUMPRODUCT(Лист1!$B$3:$AF$10*(Лист1!$B$1:$AF$1=Лист2!$D43)*(Лист2!$C43=Лист1!$A$3:$A$10))*INDEX(Лист3!$B$7:$AQ$96,MATCH(Лист2!$C43,Лист3!$A$7:$A$96,0),MATCH(Лист2!Q$1&Q$2,Лист3!$B$4:$AQ$4&Лист3!$B$5:$AQ$5,0)),0) -> 0 | R43: =IFERROR(SUMPRODUCT(Лист1!$B$3:$AF$10*(Лист1!$B$1:$AF$1=Лист2!$D43)*(Лист2!$C43=Лист1!$A$3:$A$10))*INDEX(Лист3!$B$7:$AQ$96,MATCH(Лист2!$C43,Лист3!$A$7:$A$96,0),MATCH(Лист2!R$1&R$2,Лист3!$B$4:$AQ$4&Лист3!$B$5:$AQ$5,0)),0) -> 10 | S43: =IFERROR(SUMPRODUCT(Лист1!$B$3:$AF$10*(Лист1!$B$1:$AF$1=Лист2!$D43)*(Лист2!$C43=Лист1!$A$3:$A$10))*INDEX(Лист3!$B$7:$AQ$96,MATCH(Лист2!$C43,Лист3!$A$7:$A$96,0),MATCH(Лист2!S$1&S$2,Лист3!$B$4:$AQ$4&Лист3!$B$5:$AQ$5,0)),0) -> 0.6 | T43: =IFERROR(SUMPRODUCT(Лист1!$B$3:$AF$10*(Лист1!$B$1:$AF$1=Лист2!$D43)*(Лист2!$C43=Лист1!$A$3:$A$10))*INDEX(Лист3!$B$7:$AQ$96,MATCH(Лист2!$C43,Лист3!$A$7:$A$96,0),MATCH(Лист2!T$1&T$2,Лист3!$B$4:$AQ$4&Лист3!$B$5:$AQ$5,0)),0) -> 0 | U43: =IFERROR(SUMPRODUCT(Лист1!$B$3:$AF$10*(Лист1!$B$1:$AF$1=Лист2!$D43)*(Лист2!$C43=Лист1!$A$3:$A$10))*INDEX(Лист3!$B$7:$AQ$96,MATCH(Лист2!$C43,Лист3!$A$7:$A$96,0),MATCH(Лист2!U$1&U$2,Лист3!$B$4:$AQ$4&Лист3!$B$5:$AQ$5,0)),0) -> 0 | V43: =IFERROR(SUMPRODUCT(Лист1!$B$3:$AF$10*(Лист1!$B$1:$AF$1=Лист2!$D43)*(Лист2!$C43=Лист1!$A$3:$A$10))*INDEX(Лист3!$B$7:$AQ$96,MATCH(Лист2!$C43,Лист3!$A$7:$A$96,0),MATCH(Лист2!V$1&V$2,Лист3!$B$4:$AQ$4&Лист3!$B$5:$AQ$5,0)),0) -> 0 | W43: =IFERROR(SUMPRODUCT(Лист1!$B$3:$AF$10*(Лист1!$B$1:$AF$1=Лист2!$D43)*(Лист2!$C43=Лист1!$A$3:$A$10))*INDEX(Лист3!$B$7:$AQ$96,MATCH(Лист2!$C43,Лист3!$A$7:$A$96,0),MATCH(Лист2!W$1&W$2,Лист3!$B$4:$AQ$4&Лист3!$B$5:$AQ$5,0)),0) -> 0 | X43: =IFERROR(SUMPRODUCT(Лист1!$B$3:$AF$10*(Лист1!$B$1:$AF$1=Лист2!$D43)*(Лист2!$C43=Лист1!$A$3:$A$10))*INDEX(Лист3!$B$7:$AQ$96,MATCH(Лист2!$C43,Лист3!$A$7:$A$96,0),MATCH(Лист2!X$1&X$2,Лист3!$B$4:$AQ$4&Лист3!$B$5:$AQ$5,0)),0) -> 1.6 | Y43: =IFERROR(SUMPRODUCT(Лист1!$B$3:$AF$10*(Лист1!$B$1:$AF$1=Лист2!$D43)*(Лист2!$C43=Лист1!$A$3:$A$10))*INDEX(Лист3!$B$7:$AQ$96,MATCH(Лист2!$C43,Лист3!$A$7:$A$96,0),MATCH(Лист2!Y$1&Y$2,Лист3!$B$4:$AQ$4&Лист3!$B$5:$AQ$5,0)),0) -> 0 | Z43: =IFERROR(SUMPRODUCT(Лист1!$B$3:$AF$10*(Лист1!$B$1:$AF$1=Лист2!$D43)*(Лист2!$C43=Лист1!$A$3:$A$10))*INDEX(Лист3!$B$7:$AQ$96,MATCH(Лист2!$C43,Лист3!$A$7:$A$96,0),MATCH(Лист2!Z$1&Z$2,Лист3!$B$4:$AQ$4&Лист3!$B$5:$AQ$5,0)),0) -> 0.25 | AA43: =IFERROR(SUMPRODUCT(Лист1!$B$3:$AF$10*(Лист1!$B$1:$AF$1=Лист2!$D43)*(Лист2!$C43=Лист1!$A$3:$A$10))*INDEX(Лист3!$B$7:$AQ$96,MATCH(Лист2!$C43,Лист3!$A$7:$A$96,0),MATCH(Лист2!AA$1&AA$2,Лист3!$B$4:$AQ$4&Лист3!$B$5:$AQ$5,0)),0) -> 1.5
C44: =IFERROR(INDEX(Лист1!$A$3:$A$10,SMALL(IF(ISNUMBER(INDEX(Лист1!$B$3:$AF$10,,MATCH(Лист2!$D44,Лист1!$B$1:$AF$1,0))),ROW(Лист1!$A$3:$A$10)-2),COUNTIF($D$7:D44,D44))),"") -> Плита "Экстрол" 35-1180.580.50/8 (Ч) Г4, м3 | D44: 10 | E44: =IFERROR(SUMPRODUCT(Лист1!$B$3:$AF$10*(Лист1!$B$1:$AF$1=Лист2!$D44)*(Лист2!$C44=Лист1!$A$3:$A$10))*INDEX(Лист3!$B$7:$AQ$96,MATCH(Лист2!$C44,Лист3!$A$7:$A$96,0),MATCH(Лист2!E$1&E$2,Лист3!$B$4:$AQ$4&Лист3!$B$5:$AQ$5,0)),0) -> 610 | F44: =IFERROR(SUMPRODUCT(Лист1!$B$3:$AF$10*(Лист1!$B$1:$AF$1=Лист2!$D44)*(Лист2!$C44=Лист1!$A$3:$A$10))*INDEX(Лист3!$B$7:$AQ$96,MATCH(Лист2!$C44,Лист3!$A$7:$A$96,0),MATCH(Лист2!F$1&F$2,Лист3!$B$4:$AQ$4&Лист3!$B$5:$AQ$5,0)),0) -> 2040 | G44: =IFERROR(SUMPRODUCT(Лист1!$B$3:$AF$10*(Лист1!$B$1:$AF$1=Лист2!$D44)*(Лист2!$C44=Лист1!$A$3:$A$10))*INDEX(Лист3!$B$7:$AQ$96,MATCH(Лист2!$C44,Лист3!$A$7:$A$96,0),MATCH(Лист2!G$1&G$2,Лист3!$B$4:$AQ$4&Лист3!$B$5:$AQ$5,0)),0) -> 15 | H44: =IFERROR(SUMPRODUCT(Лист1!$B$3:$AF$10*(Лист1!$B$1:$AF$1=Лист2!$D44)*(Лист2!$C44=Лист1!$A$3:$A$10))*INDEX(Лист3!$B$7:$AQ$96,MATCH(Лист2!$C44,Лист3!$A$7:$A$96,0),MATCH(Лист2!H$1&H$2,Лист3!$B$4:$AQ$4&Лист3!$B$5:$AQ$5,0)),0) -> 12 | I44: =IFERROR(SUMPRODUCT(Лист1!$B$3:$AF$10*(Лист1!$B$1:$AF$1=Лист2!$D44)*(Лист2!$C44=Лист1!$A$3:$A$10))*INDEX(Лист3!$B$7:$AQ$96,MATCH(Лист2!$C44,Лист3!$A$7:$A$96,0),MATCH(Лист2!I$1&I$2,Лист3!$B$4:$AQ$4&Лист3!$B$5:$AQ$5,0)),0) -> 0 | J44: =IFERROR(SUMPRODUCT(Лист1!$B$3:$AF$10*(Лист1!$B$1:$AF$1=Лист2!$D44)*(Лист2!$C44=Лист1!$A$3:$A$10))*INDEX(Лист3!$B$7:$AQ$96,MATCH(Лист2!$C44,Лист3!$A$7:$A$96,0),MATCH(Лист2!J$1&J$2,Лист3!$B$4:$AQ$4&Лист3!$B$5:$AQ$5,0)),0) -> 2 | K44: =IFERROR(SUMPRODUCT(Лист1!$B$3:$AF$10*(Лист1!$B$1:$AF$1=Лист2!$D44)*(Лист2!$C44=Лист1!$A$3:$A$10))*INDEX(Лист3!$B$7:$AQ$96,MATCH(Лист2!$C44,Лист3!$A$7:$A$96,0),MATCH(Лист2!K$1&K$2,Лист3!$B$4:$AQ$4&Лист3!$B$5:$AQ$5,0)),0) -> 0 | L44: =IFERROR(SUMPRODUCT(Лист1!$B$3:$AF$10*(Лист1!$B$1:$AF$1=Лист2!$D44)*(Лист2!$C44=Лист1!$A$3:$A$10))*INDEX(Лист3!$B$7:$AQ$96,MATCH(Лист2!$C44,Лист3!$A$7:$A$96,0),MATCH(Лист2!L$1&L$2,Лист3!$B$4:$AQ$4&Лист3!$B$5:$AQ$5,0)),0) -> 3 | M44: =IFERROR(SUMPRODUCT(Лист1!$B$3:$AF$10*(Лист1!$B$1:$AF$1=Лист2!$D44)*(Лист2!$C44=Лист1!$A$3:$A$10))*INDEX(Лист3!$B$7:$AQ$96,MATCH(Лист2!$C44,Лист3!$A$7:$A$96,0),MATCH(Лист2!M$1&M$2,Лист3!$B$4:$AQ$4&Лист3!$B$5:$AQ$5,0)),0) -> 120 | N44: =IFERROR(SUMPRODUCT(Лист1!$B$3:$AF$10*(Лист1!$B$1:$AF$1=Лист2!$D44)*(Лист2!$C44=Лист1!$A$3:$A$10))*INDEX(Лист3!$B$7:$AQ$96,MATCH(Лист2!$C44,Лист3!$A$7:$A$96,0),MATCH(Лист2!N$1&N$2,Лист3!$B$4:$AQ$4&Лист3!$B$5:$AQ$5,0)),0) -> 60 | O44: =IFERROR(SUMPRODUCT(Лист1!$B$3:$AF$10*(Лист1!$B$1:$AF$1=Лист2!$D44)*(Лист2!$C44=Лист1!$A$3:$A$10))*INDEX(Лист3!$B$7:$AQ$96,MATCH(Лист2!$C44,Лист3!$A$7:$A$96,0),MATCH(Лист2!O$1&O$2,Лист3!$B$4:$AQ$4&Лист3!$B$5:$AQ$5,0)),0) -> 0 | P44: =IFERROR(SUMPRODUCT(Лист1!$B$3:$AF$10*(Лист1!$B$1:$AF$1=Лист2!$D44)*(Лист2!$C44=Лист1!$A$3:$A$10))*INDEX(Лист3!$B$7:$AQ$96,MATCH(Лист2!$C44,Лист3!$A$7:$A$96,0),MATCH(Лист2!P$1&P$2,Лист3!$B$4:$AQ$4&Лист3!$B$5:$AQ$5,0)),0) -> 80 | Q44: =IFERROR(SUMPRODUCT(Лист1!$B$3:$AF$10*(Лист1!$B$1:$AF$1=Лист2!$D44)*(Лист2!$C44=Лист1!$A$3:$A$10))*INDEX(Лист3!$B$7:$AQ$96,MATCH(Лист2!$C44,Лист3!$A$7:$A$96,0),MATCH(Лист2!Q$1&Q$2,Лист3!$B$4:$AQ$4&Лист3!$B$5:$AQ$5,0)),0) -> 0 | R44: =IFERROR(SUMPRODUCT(Лист1!$B$3:$AF$10*(Лист1!$B$1:$AF$1=Лист2!$D44)*(Лист2!$C44=Лист1!$A$3:$A$10))*INDEX(Лист3!$B$7:$AQ$96,MATCH(Лист2!$C44,Лист3!$A$7:$A$96,0),MATCH(Лист2!R$1&R$2,Лист3!$B$4:$AQ$4&Лист3!$B$5:$AQ$5,0)),0) -> 10 | S44: =IFERROR(SUMPRODUCT(Лист1!$B$3:$AF$10*(Лист1!$B$1:$AF$1=Лист2!$D44)*(Лист2!$C44=Лист1!$A$3:$A$10))*INDEX(Лист3!$B$7:$AQ$96,MATCH(Лист2!$C44,Лист3!$A$7:$A$96,0),MATCH(Лист2!S$1&S$2,Лист3!$B$4:$AQ$4&Лист3!$B$5:$AQ$5,0)),0) -> 0.6 | T44: =IFERROR(SUMPRODUCT(Лист1!$B$3:$AF$10*(Лист1!$B$1:$AF$1=Лист2!$D44)*(Лист2!$C44=Лист1!$A$3:$A$10))*INDEX(Лист3!$B$7:$AQ$96,MATCH(Лист2!$C44,Лист3!$A$7:$A$96,0),MATCH(Лист2!T$1&T$2,Лист3!$B$4:$AQ$4&Лист3!$B$5:$AQ$5,0)),0) -> 0 | U44: =IFERROR(SUMPRODUCT(Лист1!$B$3:$AF$10*(Лист1!$B$1:$AF$1=Лист2!$D44)*(Лист2!$C44=Лист1!$A$3:$A$10))*INDEX(Лист3!$B$7:$AQ$96,MATCH(Лист2!$C44,Лист3!$A$7:$A$96,0),MATCH(Лист2!U$1&U$2,Лист3!$B$4:$AQ$4&Лист3!$B$5:$AQ$5,0)),0) -> 0 | V44: =IFERROR(SUMPRODUCT(Лист1!$B$3:$AF$10*(Лист1!$B$1:$AF$1=Лист2!$D44)*(Лист2!$C44=Лист1!$A$3:$A$10))*INDEX(Лист3!$B$7:$AQ$96,MATCH(Лист2!$C44,Лист3!$A$7:$A$96,0),MATCH(Лист2!V$1&V$2,Лист3!$B$4:$AQ$4&Лист3!$B$5:$AQ$5,0)),0) -> 0 | W44: =IFERROR(SUMPRODUCT(Лист1!$B$3:$AF$10*(Лист1!$B$1:$AF$1=Лист2!$D44)*(Лист2!$C44=Лист1!$A$3:$A$10))*INDEX(Лист3!$B$7:$AQ$96,MATCH(Лист2!$C44,Лист3!$A$7:$A$96,0),MATCH(Лист2!W$1&W$2,Лист3!$B$4:$AQ$4&Лист3!$B$5:$AQ$5,0)),0) -> 0 | X44: =IFERROR(SUMPRODUCT(Лист1!$B$3:$AF$10*(Лист1!$B$1:$AF$1=Лист2!$D44)*(Лист2!$C44=Лист1!$A$3:$A$10))*INDEX(Лист3!$B$7:$AQ$96,MATCH(Лист2!$C44,Лист3!$A$7:$A$96,0),MATCH(Лист2!X$1&X$2,Лист3!$B$4:$AQ$4&Лист3!$B$5:$AQ$5,0)),0) -> 1.6 | Y44: =IFERROR(SUMPRODUCT(Лист1!$B$3:$AF$10*(Лист1!$B$1:$AF$1=Лист2!$D44)*(Лист2!$C44=Лист1!$A$3:$A$10))*INDEX(Лист3!$B$7:$AQ$96,MATCH(Лист2!$C44,Лист3!$A$7:$A$96,0),MATCH(Лист2!Y$1&Y$2,Лист3!$B$4:$AQ$4&Лист3!$B$5:$AQ$5,0)),0) -> 0 | Z44: =IFERROR(SUMPRODUCT(Лист1!$B$3:$AF$10*(Лист1!$B$1:$AF$1=Лист2!$D44)*(Лист2!$C44=Лист1!$A$3:$A$10))*INDEX(Лист3!$B$7:$AQ$96,MATCH(Лист2!$C44,Лист3!$A$7:$A$96,0),MATCH(Лист2!Z$1&Z$2,Лист3!$B$4:$AQ$4&Лист3!$B$5:$AQ$5,0)),0) -> 0.25 | AA44: =IFERROR(SUMPRODUCT(Лист1!$B$3:$AF$10*(Лист1!$B$1:$AF$1=Лист2!$D44)*(Лист2!$C44=Лист1!$A$3:$A$10))*INDEX(Лист3!$B$7:$AQ$96,MATCH(Лист2!$C44,Лист3!$A$7:$A$96,0),MATCH(Лист2!AA$1&AA$2,Лист3!$B$4:$AQ$4&Лист3!$B$5:$AQ$5,0)),0) -> 4.7
C45: =IFERROR(INDEX(Лист1!$A$3:$A$10,SMALL(IF(ISNUMBER(INDEX(Лист1!$B$3:$AF$10,,MATCH(Лист2!$D45,Лист1!$B$1:$AF$1,0))),ROW(Лист1!$A$3:$A$10)-2),COUNTIF($D$7:D45,D45))),"") ->  | D45: 10 | E45: =IFERROR(SUMPRODUCT(Лист1!$B$3:$AF$10*(Лист1!$B$1:$AF$1=Лист2!$D45)*(Лист2!$C45=Лист1!$A$3:$A$10))*INDEX(Лист3!$B$7:$AQ$96,MATCH(Лист2!$C45,Лист3!$A$7:$A$96,0),MATCH(Лист2!E$1&E$2,Лист3!$B$4:$AQ$4&Лист3!$B$5:$AQ$5,0)),0) -> 0 | F45: =IFERROR(SUMPRODUCT(Лист1!$B$3:$AF$10*(Лист1!$B$1:$AF$1=Лист2!$D45)*(Лист2!$C45=Лист1!$A$3:$A$10))*INDEX(Лист3!$B$7:$AQ$96,MATCH(Лист2!$C45,Лист3!$A$7:$A$96,0),MATCH(Лист2!F$1&F$2,Лист3!$B$4:$AQ$4&Лист3!$B$5:$AQ$5,0)),0) -> 0 | G45: =IFERROR(SUMPRODUCT(Лист1!$B$3:$AF$10*(Лист1!$B$1:$AF$1=Лист2!$D45)*(Лист2!$C45=Лист1!$A$3:$A$10))*INDEX(Лист3!$B$7:$AQ$96,MATCH(Лист2!$C45,Лист3!$A$7:$A$96,0),MATCH(Лист2!G$1&G$2,Лист3!$B$4:$AQ$4&Лист3!$B$5:$AQ$5,0)),0) -> 0 | H45: =IFERROR(SUMPRODUCT(Лист1!$B$3:$AF$10*(Лист1!$B$1:$AF$1=Лист2!$D45)*(Лист2!$C45=Лист1!$A$3:$A$10))*INDEX(Лист3!$B$7:$AQ$96,MATCH(Лист2!$C45,Лист3!$A$7:$A$96,0),MATCH(Лист2!H$1&H$2,Лист3!$B$4:$AQ$4&Лист3!$B$5:$AQ$5,0)),0) -> 0 | I45: =IFERROR(SUMPRODUCT(Лист1!$B$3:$AF$10*(Лист1!$B$1:$AF$1=Лист2!$D45)*(Лист2!$C45=Лист1!$A$3:$A$10))*INDEX(Лист3!$B$7:$AQ$96,MATCH(Лист2!$C45,Лист3!$A$7:$A$96,0),MATCH(Лист2!I$1&I$2,Лист3!$B$4:$AQ$4&Лист3!$B$5:$AQ$5,0)),0) -> 0 | J45: =IFERROR(SUMPRODUCT(Лист1!$B$3:$AF$10*(Лист1!$B$1:$AF$1=Лист2!$D45)*(Лист2!$C45=Лист1!$A$3:$A$10))*INDEX(Лист3!$B$7:$AQ$96,MATCH(Лист2!$C45,Лист3!$A$7:$A$96,0),MATCH(Лист2!J$1&J$2,Лист3!$B$4:$AQ$4&Лист3!$B$5:$AQ$5,0)),0) -> 0 | K45: =IFERROR(SUMPRODUCT(Лист1!$B$3:$AF$10*(Лист1!$B$1:$AF$1=Лист2!$D45)*(Лист2!$C45=Лист1!$A$3:$A$10))*INDEX(Лист3!$B$7:$AQ$96,MATCH(Лист2!$C45,Лист3!$A$7:$A$96,0),MATCH(Лист2!K$1&K$2,Лист3!$B$4:$AQ$4&Лист3!$B$5:$AQ$5,0)),0) -> 0 | L45: =IFERROR(SUMPRODUCT(Лист1!$B$3:$AF$10*(Лист1!$B$1:$AF$1=Лист2!$D45)*(Лист2!$C45=Лист1!$A$3:$A$10))*INDEX(Лист3!$B$7:$AQ$96,MATCH(Лист2!$C45,Лист3!$A$7:$A$96,0),MATCH(Лист2!L$1&L$2,Лист3!$B$4:$AQ$4&Лист3!$B$5:$AQ$5,0)),0) -> 0 | M45: =IFERROR(SUMPRODUCT(Лист1!$B$3:$AF$10*(Лист1!$B$1:$AF$1=Лист2!$D45)*(Лист2!$C45=Лист1!$A$3:$A$10))*INDEX(Лист3!$B$7:$AQ$96,MATCH(Лист2!$C45,Лист3!$A$7:$A$96,0),MATCH(Лист2!M$1&M$2,Лист3!$B$4:$AQ$4&Лист3!$B$5:$AQ$5,0)),0) -> 0 | N45: =IFERROR(SUMPRODUCT(Лист1!$B$3:$AF$10*(Лист1!$B$1:$AF$1=Лист2!$D45)*(Лист2!$C45=Лист1!$A$3:$A$10))*INDEX(Лист3!$B$7:$AQ$96,MATCH(Лист2!$C45,Лист3!$A$7:$A$96,0),MATCH(Лист2!N$1&N$2,Лист3!$B$4:$AQ$4&Лист3!$B$5:$AQ$5,0)),0) -> 0 | O45: =IFERROR(SUMPRODUCT(Лист1!$B$3:$AF$10*(Лист1!$B$1:$AF$1=Лист2!$D45)*(Лист2!$C45=Лист1!$A$3:$A$10))*INDEX(Лист3!$B$7:$AQ$96,MATCH(Лист2!$C45,Лист3!$A$7:$A$96,0),MATCH(Лист2!O$1&O$2,Лист3!$B$4:$AQ$4&Лист3!$B$5:$AQ$5,0)),0) -> 0 | P45: =IFERROR(SUMPRODUCT(Лист1!$B$3:$AF$10*(Лист1!$B$1:$AF$1=Лист2!$D45)*(Лист2!$C45=Лист1!$A$3:$A$10))*INDEX(Лист3!$B$7:$AQ$96,MATCH(Лист2!$C45,Лист3!$A$7:$A$96,0),MATCH(Лист2!P$1&P$2,Лист3!$B$4:$AQ$4&Лист3!$B$5:$AQ$5,0)),0) -> 0 | Q45: =IFERROR(SUMPRODUCT(Лист1!$B$3:$AF$10*(Лист1!$B$1:$AF$1=Лист2!$D45)*(Лист2!$C45=Лист1!$A$3:$A$10))*INDEX(Лист3!$B$7:$AQ$96,MATCH(Лист2!$C45,Лист3!$A$7:$A$96,0),MATCH(Лист2!Q$1&Q$2,Лист3!$B$4:$AQ$4&Лист3!$B$5:$AQ$5,0)),0) -> 0 | R45: =IFERROR(SUMPRODUCT(Лист1!$B$3:$AF$10*(Лист1!$B$1:$AF$1=Лист2!$D45)*(Лист2!$C45=Лист1!$A$3:$A$10))*INDEX(Лист3!$B$7:$AQ$96,MATCH(Лист2!$C45,Лист3!$A$7:$A$96,0),MATCH(Лист2!R$1&R$2,Лист3!$B$4:$AQ$4&Лист3!$B$5:$AQ$5,0)),0) -> 0 | S45: =IFERROR(SUMPRODUCT(Лист1!$B$3:$AF$10*(Лист1!$B$1:$AF$1=Лист2!$D45)*(Лист2!$C45=Лист1!$A$3:$A$10))*INDEX(Лист3!$B$7:$AQ$96,MATCH(Лист2!$C45,Лист3!$A$7:$A$96,0),MATCH(Лист2!S$1&S$2,Лист3!$B$4:$AQ$4&Лист3!$B$5:$AQ$5,0)),0) -> 0 | T45: =IFERROR(SUMPRODUCT(Лист1!$B$3:$AF$10*(Лист1!$B$1:$AF$1=Лист2!$D45)*(Лист2!$C45=Лист1!$A$3:$A$10))*INDEX(Лист3!$B$7:$AQ$96,MATCH(Лист2!$C45,Лист3!$A$7:$A$96,0),MATCH(Лист2!T$1&T$2,Лист3!$B$4:$AQ$4&Лист3!$B$5:$AQ$5,0)),0) -> 0 | U45: =IFERROR(SUMPRODUCT(Лист1!$B$3:$AF$10*(Лист1!$B$1:$AF$1=Лист2!$D45)*(Лист2!$C45=Лист1!$A$3:$A$10))*INDEX(Лист3!$B$7:$AQ$96,MATCH(Лист2!$C45,Лист3!$A$7:$A$96,0),MATCH(Лист2!U$1&U$2,Лист3!$B$4:$AQ$4&Лист3!$B$5:$AQ$5,0)),0) -> 0 | V45: =IFERROR(SUMPRODUCT(Лист1!$B$3:$AF$10*(Лист1!$B$1:$AF$1=Лист2!$D45)*(Лист2!$C45=Лист1!$A$3:$A$10))*INDEX(Лист3!$B$7:$AQ$96,MATCH(Лист2!$C45,Лист3!$A$7:$A$96,0),MATCH(Лист2!V$1&V$2,Лист3!$B$4:$AQ$4&Лист3!$B$5:$AQ$5,0)),0) -> 0 | W45: =IFERROR(SUMPRODUCT(Лист1!$B$3:$AF$10*(Лист1!$B$1:$AF$1=Лист2!$D45)*(Лист2!$C45=Лист1!$A$3:$A$10))*INDEX(Лист3!$B$7:$AQ$96,MATCH(Лист2!$C45,Лист3!$A$7:$A$96,0),MATCH(Лист2!W$1&W$2,Лист3!$B$4:$AQ$4&Лист3!$B$5:$AQ$5,0)),0) -> 0 | X45: =IFERROR(SUMPRODUCT(Лист1!$B$3:$AF$10*(Лист1!$B$1:$AF$1=Лист2!$D45)*(Лист2!$C45=Лист1!$A$3:$A$10))*INDEX(Лист3!$B$7:$AQ$96,MATCH(Лист2!$C45,Лист3!$A$7:$A$96,0),MATCH(Лист2!X$1&X$2,Лист3!$B$4:$AQ$4&Лист3!$B$5:$AQ$5,0)),0) -> 0 | Y45: =IFERROR(SUMPRODUCT(Лист1!$B$3:$AF$10*(Лист1!$B$1:$AF$1=Лист2!$D45)*(Лист2!$C45=Лист1!$A$3:$A$10))*INDEX(Лист3!$B$7:$AQ$96,MATCH(Лист2!$C45,Лист3!$A$7:$A$96,0),MATCH(Лист2!Y$1&Y$2,Лист3!$B$4:$AQ$4&Лист3!$B$5:$AQ$5,0)),0) -> 0 | Z45: =IFERROR(SUMPRODUCT(Лист1!$B$3:$AF$10*(Лист1!$B$1:$AF$1=Лист2!$D45)*(Лист2!$C45=Лист1!$A$3:$A$10))*INDEX(Лист3!$B$7:$AQ$96,MATCH(Лист2!$C45,Лист3!$A$7:$A$96,0),MATCH(Лист2!Z$1&Z$2,Лист3!$B$4:$AQ$4&Лист3!$B$5:$AQ$5,0)),0) -> 0 | AA45: =IFERROR(SUMPRODUCT(Лист1!$B$3:$AF$10*(Лист1!$B$1:$AF$1=Лист2!$D45)*(Лист2!$C45=Лист1!$A$3:$A$10))*INDEX(Лист3!$B$7:$AQ$96,MATCH(Лист2!$C45,Лист3!$A$7:$A$96,0),MATCH(Лист2!AA$1&AA$2,Лист3!$B$4:$AQ$4&Лист3!$B$5:$AQ$5,0)),0) -> 0
C46: =IFERROR(INDEX(Лист1!$A$3:$A$10,SMALL(IF(ISNUMBER(INDEX(Лист1!$B$3:$AF$10,,MATCH(Лист2!$D46,Лист1!$B$1:$AF$1,0))),ROW(Лист1!$A$3:$A$10)-2),COUNTIF($D$7:D46,D46))),"") ->  | D46: 10 | E46: =IFERROR(SUMPRODUCT(Лист1!$B$3:$AF$10*(Лист1!$B$1:$AF$1=Лист2!$D46)*(Лист2!$C46=Лист1!$A$3:$A$10))*INDEX(Лист3!$B$7:$AQ$96,MATCH(Лист2!$C46,Лист3!$A$7:$A$96,0),MATCH(Лист2!E$1&E$2,Лист3!$B$4:$AQ$4&Лист3!$B$5:$AQ$5,0)),0) -> 0 | F46: =IFERROR(SUMPRODUCT(Лист1!$B$3:$AF$10*(Лист1!$B$1:$AF$1=Лист2!$D46)*(Лист2!$C46=Лист1!$A$3:$A$10))*INDEX(Лист3!$B$7:$AQ$96,MATCH(Лист2!$C46,Лист3!$A$7:$A$96,0),MATCH(Лист2!F$1&F$2,Лист3!$B$4:$AQ$4&Лист3!$B$5:$AQ$5,0)),0) -> 0 | G46: =IFERROR(SUMPRODUCT(Лист1!$B$3:$AF$10*(Лист1!$B$1:$AF$1=Лист2!$D46)*(Лист2!$C46=Лист1!$A$3:$A$10))*INDEX(Лист3!$B$7:$AQ$96,MATCH(Лист2!$C46,Лист3!$A$7:$A$96,0),MATCH(Лист2!G$1&G$2,Лист3!$B$4:$AQ$4&Лист3!$B$5:$AQ$5,0)),0) -> 0 | H46: =IFERROR(SUMPRODUCT(Лист1!$B$3:$AF$10*(Лист1!$B$1:$AF$1=Лист2!$D46)*(Лист2!$C46=Лист1!$A$3:$A$10))*INDEX(Лист3!$B$7:$AQ$96,MATCH(Лист2!$C46,Лист3!$A$7:$A$96,0),MATCH(Лист2!H$1&H$2,Лист3!$B$4:$AQ$4&Лист3!$B$5:$AQ$5,0)),0) -> 0 | I46: =IFERROR(SUMPRODUCT(Лист1!$B$3:$AF$10*(Лист1!$B$1:$AF$1=Лист2!$D46)*(Лист2!$C46=Лист1!$A$3:$A$10))*INDEX(Лист3!$B$7:$AQ$96,MATCH(Лист2!$C46,Лист3!$A$7:$A$96,0),MATCH(Лист2!I$1&I$2,Лист3!$B$4:$AQ$4&Лист3!$B$5:$AQ$5,0)),0) -> 0 | J46: =IFERROR(SUMPRODUCT(Лист1!$B$3:$AF$10*(Лист1!$B$1:$AF$1=Лист2!$D46)*(Лист2!$C46=Лист1!$A$3:$A$10))*INDEX(Лист3!$B$7:$AQ$96,MATCH(Лист2!$C46,Лист3!$A$7:$A$96,0),MATCH(Лист2!J$1&J$2,Лист3!$B$4:$AQ$4&Лист3!$B$5:$AQ$5,0)),0) -> 0 | K46: =IFERROR(SUMPRODUCT(Лист1!$B$3:$AF$10*(Лист1!$B$1:$AF$1=Лист2!$D46)*(Лист2!$C46=Лист1!$A$3:$A$10))*INDEX(Лист3!$B$7:$AQ$96,MATCH(Лист2!$C46,Лист3!$A$7:$A$96,0),MATCH(Лист2!K$1&K$2,Лист3!$B$4:$AQ$4&Лист3!$B$5:$AQ$5,0)),0) -> 0 | L46: =IFERROR(SUMPRODUCT(Лист1!$B$3:$AF$10*(Лист1!$B$1:$AF$1=Лист2!$D46)*(Лист2!$C46=Лист1!$A$3:$A$10))*INDEX(Лист3!$B$7:$AQ$96,MATCH(Лист2!$C46,Лист3!$A$7:$A$96,0),MATCH(Лист2!L$1&L$2,Лист3!$B$4:$AQ$4&Лист3!$B$5:$AQ$5,0)),0) -> 0 | M46: =IFERROR(SUMPRODUCT(Лист1!$B$3:$AF$10*(Лист1!$B$1:$AF$1=Лист2!$D46)*(Лист2!$C46=Лист1!$A$3:$A$10))*INDEX(Лист3!$B$7:$AQ$96,MATCH(Лист2!$C46,Лист3!$A$7:$A$96,0),MATCH(Лист2!M$1&M$2,Лист3!$B$4:$AQ$4&Лист3!$B$5:$AQ$5,0)),0) -> 0 | N46: =IFERROR(SUMPRODUCT(Лист1!$B$3:$AF$10*(Лист1!$B$1:$AF$1=Лист2!$D46)*(Лист2!$C46=Лист1!$A$3:$A$10))*INDEX(Лист3!$B$7:$AQ$96,MATCH(Лист2!$C46,Лист3!$A$7:$A$96,0),MATCH(Лист2!N$1&N$2,Лист3!$B$4:$AQ$4&Лист3!$B$5:$AQ$5,0)),0) -> 0 | O46: =IFERROR(SUMPRODUCT(Лист1!$B$3:$AF$10*(Лист1!$B$1:$AF$1=Лист2!$D46)*(Лист2!$C46=Лист1!$A$3:$A$10))*INDEX(Лист3!$B$7:$AQ$96,MATCH(Лист2!$C46,Лист3!$A$7:$A$96,0),MATCH(Лист2!O$1&O$2,Лист3!$B$4:$AQ$4&Лист3!$B$5:$AQ$5,0)),0) -> 0 | P46: =IFERROR(SUMPRODUCT(Лист1!$B$3:$AF$10*(Лист1!$B$1:$AF$1=Лист2!$D46)*(Лист2!$C46=Лист1!$A$3:$A$10))*INDEX(Лист3!$B$7:$AQ$96,MATCH(Лист2!$C46,Лист3!$A$7:$A$96,0),MATCH(Лист2!P$1&P$2,Лист3!$B$4:$AQ$4&Лист3!$B$5:$AQ$5,0)),0) -> 0 | Q46: =IFERROR(SUMPRODUCT(Лист1!$B$3:$AF$10*(Лист1!$B$1:$AF$1=Лист2!$D46)*(Лист2!$C46=Лист1!$A$3:$A$10))*INDEX(Лист3!$B$7:$AQ$96,MATCH(Лист2!$C46,Лист3!$A$7:$A$96,0),MATCH(Лист2!Q$1&Q$2,Лист3!$B$4:$AQ$4&Лист3!$B$5:$AQ$5,0)),0) -> 0 | R46: =IFERROR(SUMPRODUCT(Лист1!$B$3:$AF$10*(Лист1!$B$1:$AF$1=Лист2!$D46)*(Лист2!$C46=Лист1!$A$3:$A$10))*INDEX(Лист3!$B$7:$AQ$96,MATCH(Лист2!$C46,Лист3!$A$7:$A$96,0),MATCH(Лист2!R$1&R$2,Лист3!$B$4:$AQ$4&Лист3!$B$5:$AQ$5,0)),0) -> 0 | S46: =IFERROR(SUMPRODUCT(Лист1!$B$3:$AF$10*(Лист1!$B$1:$AF$1=Лист2!$D46)*(Лист2!$C46=Лист1!$A$3:$A$10))*INDEX(Лист3!$B$7:$AQ$96,MATCH(Лист2!$C46,Лист3!$A$7:$A$96,0),MATCH(Лист2!S$1&S$2,Лист3!$B$4:$AQ$4&Лист3!$B$5:$AQ$5,0)),0) -> 0 | T46: =IFERROR(SUMPRODUCT(Лист1!$B$3:$AF$10*(Лист1!$B$1:$AF$1=Лист2!$D46)*(Лист2!$C46=Лист1!$A$3:$A$10))*INDEX(Лист3!$B$7:$AQ$96,MATCH(Лист2!$C46,Лист3!$A$7:$A$96,0),MATCH(Лист2!T$1&T$2,Лист3!$B$4:$AQ$4&Лист3!$B$5:$AQ$5,0)),0) -> 0 | U46: =IFERROR(SUMPRODUCT(Лист1!$B$3:$AF$10*(Лист1!$B$1:$AF$1=Лист2!$D46)*(Лист2!$C46=Лист1!$A$3:$A$10))*INDEX(Лист3!$B$7:$AQ$96,MATCH(Лист2!$C46,Лист3!$A$7:$A$96,0),MATCH(Лист2!U$1&U$2,Лист3!$B$4:$AQ$4&Лист3!$B$5:$AQ$5,0)),0) -> 0 | V46: =IFERROR(SUMPRODUCT(Лист1!$B$3:$AF$10*(Лист1!$B$1:$AF$1=Лист2!$D46)*(Лист2!$C46=Лист1!$A$3:$A$10))*INDEX(Лист3!$B$7:$AQ$96,MATCH(Лист2!$C46,Лист3!$A$7:$A$96,0),MATCH(Лист2!V$1&V$2,Лист3!$B$4:$AQ$4&Лист3!$B$5:$AQ$5,0)),0) -> 0 | W46: =IFERROR(SUMPRODUCT(Лист1!$B$3:$AF$10*(Лист1!$B$1:$AF$1=Лист2!$D46)*(Лист2!$C46=Лист1!$A$3:$A$10))*INDEX(Лист3!$B$7:$AQ$96,MATCH(Лист2!$C46,Лист3!$A$7:$A$96,0),MATCH(Лист2!W$1&W$2,Лист3!$B$4:$AQ$4&Лист3!$B$5:$AQ$5,0)),0) -> 0 | X46: =IFERROR(SUMPRODUCT(Лист1!$B$3:$AF$10*(Лист1!$B$1:$AF$1=Лист2!$D46)*(Лист2!$C46=Лист1!$A$3:$A$10))*INDEX(Лист3!$B$7:$AQ$96,MATCH(Лист2!$C46,Лист3!$A$7:$A$96,0),MATCH(Лист2!X$1&X$2,Лист3!$B$4:$AQ$4&Лист3!$B$5:$AQ$5,0)),0) -> 0 | Y46: =IFERROR(SUMPRODUCT(Лист1!$B$3:$AF$10*(Лист1!$B$1:$AF$1=Лист2!$D46)*(Лист2!$C46=Лист1!$A$3:$A$10))*INDEX(Лист3!$B$7:$AQ$96,MATCH(Лист2!$C46,Лист3!$A$7:$A$96,0),MATCH(Лист2!Y$1&Y$2,Лист3!$B$4:$AQ$4&Лист3!$B$5:$AQ$5,0)),0) -> 0 | Z46: =IFERROR(SUMPRODUCT(Лист1!$B$3:$AF$10*(Лист1!$B$1:$AF$1=Лист2!$D46)*(Лист2!$C46=Лист1!$A$3:$A$10))*INDEX(Лист3!$B$7:$AQ$96,MATCH(Лист2!$C46,Лист3!$A$7:$A$96,0),MATCH(Лист2!Z$1&Z$2,Лист3!$B$4:$AQ$4&Лист3!$B$5:$AQ$5,0)),0) -> 0 | AA46: =IFERROR(SUMPRODUCT(Лист1!$B$3:$AF$10*(Лист1!$B$1:$AF$1=Лист2!$D46)*(Лист2!$C46=Лист1!$A$3:$A$10))*INDEX(Лист3!$B$7:$AQ$96,MATCH(Лист2!$C46,Лист3!$A$7:$A$96,0),MATCH(Лист2!AA$1&AA$2,Лист3!$B$4:$AQ$4&Лист3!$B$5:$AQ$5,0)),0) -> 0
C47: =IFERROR(INDEX(Лист1!$A$3:$A$10,SMALL(IF(ISNUMBER(INDEX(Лист1!$B$3:$AF$10,,MATCH(Лист2!$D47,Лист1!$B$1:$AF$1,0))),ROW(Лист1!$A$3:$A$10)-2),COUNTIF($D$7:D47,D47))),"") -> Плита "Экстрол" 45-1180.580.50/8 (Ч), м3 | D47: 11 | E47: =IFERROR(SUMPRODUCT(Лист1!$B$3:$AF$10*(Лист1!$B$1:$AF$1=Лист2!$D47)*(Лист2!$C47=Лист1!$A$3:$A$10))*INDEX(Лист3!$B$7:$AQ$96,MATCH(Лист2!$C47,Лист3!$A$7:$A$96,0),MATCH(Лист2!E$1&E$2,Лист3!$B$4:$AQ$4&Лист3!$B$5:$AQ$5,0)),0) -> 2040 | F47: =IFERROR(SUMPRODUCT(Лист1!$B$3:$AF$10*(Лист1!$B$1:$AF$1=Лист2!$D47)*(Лист2!$C47=Лист1!$A$3:$A$10))*INDEX(Лист3!$B$7:$AQ$96,MATCH(Лист2!$C47,Лист3!$A$7:$A$96,0),MATCH(Лист2!F$1&F$2,Лист3!$B$4:$AQ$4&Лист3!$B$5:$AQ$5,0)),0) -> 4880 | G47: =IFERROR(SUMPRODUCT(Лист1!$B$3:$AF$10*(Лист1!$B$1:$AF$1=Лист2!$D47)*(Лист2!$C47=Лист1!$A$3:$A$10))*INDEX(Лист3!$B$7:$AQ$96,MATCH(Лист2!$C47,Лист3!$A$7:$A$96,0),MATCH(Лист2!G$1&G$2,Лист3!$B$4:$AQ$4&Лист3!$B$5:$AQ$5,0)),0) -> 0 | H47: =IFERROR(SUMPRODUCT(Лист1!$B$3:$AF$10*(Лист1!$B$1:$AF$1=Лист2!$D47)*(Лист2!$C47=Лист1!$A$3:$A$10))*INDEX(Лист3!$B$7:$AQ$96,MATCH(Лист2!$C47,Лист3!$A$7:$A$96,0),MATCH(Лист2!H$1&H$2,Лист3!$B$4:$AQ$4&Лист3!$B$5:$AQ$5,0)),0) -> 52 | I47: =IFERROR(SUMPRODUCT(Лист1!$B$3:$AF$10*(Лист1!$B$1:$AF$1=Лист2!$D47)*(Лист2!$C47=Лист1!$A$3:$A$10))*INDEX(Лист3!$B$7:$AQ$96,MATCH(Лист2!$C47,Лист3!$A$7:$A$96,0),MATCH(Лист2!I$1&I$2,Лист3!$B$4:$AQ$4&Лист3!$B$5:$AQ$5,0)),0) -> 0 | J47: =IFERROR(SUMPRODUCT(Лист1!$B$3:$AF$10*(Лист1!$B$1:$AF$1=Лист2!$D47)*(Лист2!$C47=Лист1!$A$3:$A$10))*INDEX(Лист3!$B$7:$AQ$96,MATCH(Лист2!$C47,Лист3!$A$7:$A$96,0),MATCH(Лист2!J$1&J$2,Лист3!$B$4:$AQ$4&Лист3!$B$5:$AQ$5,0)),0) -> 4 | K47: =IFERROR(SUMPRODUCT(Лист1!$B$3:$AF$10*(Лист1!$B$1:$AF$1=Лист2!$D47)*(Лист2!$C47=Лист1!$A$3:$A$10))*INDEX(Лист3!$B$7:$AQ$96,MATCH(Лист2!$C47,Лист3!$A$7:$A$96,0),MATCH(Лист2!K$1&K$2,Лист3!$B$4:$AQ$4&Лист3!$B$5:$AQ$5,0)),0) -> 0 | L47: =IFERROR(SUMPRODUCT(Лист1!$B$3:$AF$10*(Лист1!$B$1:$AF$1=Лист2!$D47)*(Лист2!$C47=Лист1!$A$3:$A$10))*INDEX(Лист3!$B$7:$AQ$96,MATCH(Лист2!$C47,Лист3!$A$7:$A$96,0),MATCH(Лист2!L$1&L$2,Лист3!$B$4:$AQ$4&Лист3!$B$5:$AQ$5,0)),0) -> 6 | M47: =IFERROR(SUMPRODUCT(Лист1!$B$3:$AF$10*(Лист1!$B$1:$AF$1=Лист2!$D47)*(Лист2!$C47=Лист1!$A$3:$A$10))*INDEX(Лист3!$B$7:$AQ$96,MATCH(Лист2!$C47,Лист3!$A$7:$A$96,0),MATCH(Лист2!M$1&M$2,Лист3!$B$4:$AQ$4&Лист3!$B$5:$AQ$5,0)),0) -> 320 | N47: =IFERROR(SUMPRODUCT(Лист1!$B$3:$AF$10*(Лист1!$B$1:$AF$1=Лист2!$D47)*(Лист2!$C47=Лист1!$A$3:$A$10))*INDEX(Лист3!$B$7:$AQ$96,MATCH(Лист2!$C47,Лист3!$A$7:$A$96,0),MATCH(Лист2!N$1&N$2,Лист3!$B$4:$AQ$4&Лист3!$B$5:$AQ$5,0)),0) -> 80 | O47: =IFERROR(SUMPRODUCT(Лист1!$B$3:$AF$10*(Лист1!$B$1:$AF$1=Лист2!$D47)*(Лист2!$C47=Лист1!$A$3:$A$10))*INDEX(Лист3!$B$7:$AQ$96,MATCH(Лист2!$C47,Лист3!$A$7:$A$96,0),MATCH(Лист2!O$1&O$2,Лист3!$B$4:$AQ$4&Лист3!$B$5:$AQ$5,0)),0) -> 0 | P47: =IFERROR(SUMPRODUCT(Лист1!$B$3:$AF$10*(Лист1!$B$1:$AF$1=Лист2!$D47)*(Лист2!$C47=Лист1!$A$3:$A$10))*INDEX(Лист3!$B$7:$AQ$96,MATCH(Лист2!$C47,Лист3!$A$7:$A$96,0),MATCH(Лист2!P$1&P$2,Лист3!$B$4:$AQ$4&Лист3!$B$5:$AQ$5,0)),0) -> 180 | Q47: =IFERROR(SUMPRODUCT(Лист1!$B$3:$AF$10*(Лист1!$B$1:$AF$1=Лист2!$D47)*(Лист2!$C47=Лист1!$A$3:$A$10))*INDEX(Лист3!$B$7:$AQ$96,MATCH(Лист2!$C47,Лист3!$A$7:$A$96,0),MATCH(Лист2!Q$1&Q$2,Лист3!$B$4:$AQ$4&Лист3!$B$5:$AQ$5,0)),0) -> 0 | R47: =IFERROR(SUMPRODUCT(Лист1!$B$3:$AF$10*(Лист1!$B$1:$AF$1=Лист2!$D47)*(Лист2!$C47=Лист1!$A$3:$A$10))*INDEX(Лист3!$B$7:$AQ$96,MATCH(Лист2!$C47,Лист3!$A$7:$A$96,0),MATCH(Лист2!R$1&R$2,Лист3!$B$4:$AQ$4&Лист3!$B$5:$AQ$5,0)),0) -> 20 | S47: =IFERROR(SUMPRODUCT(Лист1!$B$3:$AF$10*(Лист1!$B$1:$AF$1=Лист2!$D47)*(Лист2!$C47=Лист1!$A$3:$A$10))*INDEX(Лист3!$B$7:$AQ$96,MATCH(Лист2!$C47,Лист3!$A$7:$A$96,0),MATCH(Лист2!S$1&S$2,Лист3!$B$4:$AQ$4&Лист3!$B$5:$AQ$5,0)),0) -> 1.2 | T47: =IFERROR(SUMPRODUCT(Лист1!$B$3:$AF$10*(Лист1!$B$1:$AF$1=Лист2!$D47)*(Лист2!$C47=Лист1!$A$3:$A$10))*INDEX(Лист3!$B$7:$AQ$96,MATCH(Лист2!$C47,Лист3!$A$7:$A$96,0),MATCH(Лист2!T$1&T$2,Лист3!$B$4:$AQ$4&Лист3!$B$5:$AQ$5,0)),0) -> 0 | U47: =IFERROR(SUMPRODUCT(Лист1!$B$3:$AF$10*(Лист1!$B$1:$AF$1=Лист2!$D47)*(Лист2!$C47=Лист1!$A$3:$A$10))*INDEX(Лист3!$B$7:$AQ$96,MATCH(Лист2!$C47,Лист3!$A$7:$A$96,0),MATCH(Лист2!U$1&U$2,Лист3!$B$4:$AQ$4&Лист3!$B$5:$AQ$5,0)),0) -> 0 | V47: =IFERROR(SUMPRODUCT(Лист1!$B$3:$AF$10*(Лист1!$B$1:$AF$1=Лист2!$D47)*(Лист2!$C47=Лист1!$A$3:$A$10))*INDEX(Лист3!$B$7:$AQ$96,MATCH(Лист2!$C47,Лист3!$A$7:$A$96,0),MATCH(Лист2!V$1&V$2,Лист3!$B$4:$AQ$4&Лист3!$B$5:$AQ$5,0)),0) -> 0 | W47: =IFERROR(SUMPRODUCT(Лист1!$B$3:$AF$10*(Лист1!$B$1:$AF$1=Лист2!$D47)*(Лист2!$C47=Лист1!$A$3:$A$10))*INDEX(Лист3!$B$7:$AQ$96,MATCH(Лист2!$C47,Лист3!$A$7:$A$96,0),MATCH(Лист2!W$1&W$2,Лист3!$B$4:$AQ$4&Лист3!$B$5:$AQ$5,0)),0) -> 0 | X47: =IFERROR(SUMPRODUCT(Лист1!$B$3:$AF$10*(Лист1!$B$1:$AF$1=Лист2!$D47)*(Лист2!$C47=Лист1!$A$3:$A$10))*INDEX(Лист3!$B$7:$AQ$96,MATCH(Лист2!$C47,Лист3!$A$7:$A$96,0),MATCH(Лист2!X$1&X$2,Лист3!$B$4:$AQ$4&Лист3!$B$5:$AQ$5,0)),0) -> 3.2 | Y47: =IFERROR(SUMPRODUCT(Лист1!$B$3:$AF$10*(Лист1!$B$1:$AF$1=Лист2!$D47)*(Лист2!$C47=Лист1!$A$3:$A$10))*INDEX(Лист3!$B$7:$AQ$96,MATCH(Лист2!$C47,Лист3!$A$7:$A$96,0),MATCH(Лист2!Y$1&Y$2,Лист3!$B$4:$AQ$4&Лист3!$B$5:$AQ$5,0)),0) -> 0 | Z47: =IFERROR(SUMPRODUCT(Лист1!$B$3:$AF$10*(Лист1!$B$1:$AF$1=Лист2!$D47)*(Лист2!$C47=Лист1!$A$3:$A$10))*INDEX(Лист3!$B$7:$AQ$96,MATCH(Лист2!$C47,Лист3!$A$7:$A$96,0),MATCH(Лист2!Z$1&Z$2,Лист3!$B$4:$AQ$4&Лист3!$B$5:$AQ$5,0)),0) -> 0.5 | AA47: =IFERROR(SUMPRODUCT(Лист1!$B$3:$AF$10*(Лист1!$B$1:$AF$1=Лист2!$D47)*(Лист2!$C47=Лист1!$A$3:$A$10))*INDEX(Лист3!$B$7:$AQ$96,MATCH(Лист2!$C47,Лист3!$A$7:$A$96,0),MATCH(Лист2!AA$1&AA$2,Лист3!$B$4:$AQ$4&Лист3!$B$5:$AQ$5,0)),0) -> 9.4
C48: =IFERROR(INDEX(Лист1!$A$3:$A$10,SMALL(IF(ISNUMBER(INDEX(Лист1!$B$3:$AF$10,,MATCH(Лист2!$D48,Лист1!$B$1:$AF$1,0))),ROW(Лист1!$A$3:$A$10)-2),COUNTIF($D$7:D48,D48))),"") -> Плита "Экстрол" 40-1180.580.50/8 (Ч) Г4, м3 | D48: 11 | E48: =IFERROR(SUMPRODUCT(Лист1!$B$3:$AF$10*(Лист1!$B$1:$AF$1=Лист2!$D48)*(Лист2!$C48=Лист1!$A$3:$A$10))*INDEX(Лист3!$B$7:$AQ$96,MATCH(Лист2!$C48,Лист3!$A$7:$A$96,0),MATCH(Лист2!E$1&E$2,Лист3!$B$4:$AQ$4&Лист3!$B$5:$AQ$5,0)),0) -> 2160 | F48: =IFERROR(SUMPRODUCT(Лист1!$B$3:$AF$10*(Лист1!$B$1:$AF$1=Лист2!$D48)*(Лист2!$C48=Лист1!$A$3:$A$10))*INDEX(Лист3!$B$7:$AQ$96,MATCH(Лист2!$C48,Лист3!$A$7:$A$96,0),MATCH(Лист2!F$1&F$2,Лист3!$B$4:$AQ$4&Лист3!$B$5:$AQ$5,0)),0) -> 6420 | G48: =IFERROR(SUMPRODUCT(Лист1!$B$3:$AF$10*(Лист1!$B$1:$AF$1=Лист2!$D48)*(Лист2!$C48=Лист1!$A$3:$A$10))*INDEX(Лист3!$B$7:$AQ$96,MATCH(Лист2!$C48,Лист3!$A$7:$A$96,0),MATCH(Лист2!G$1&G$2,Лист3!$B$4:$AQ$4&Лист3!$B$5:$AQ$5,0)),0) -> 0.03402286336 | H48: =IFERROR(SUMPRODUCT(Лист1!$B$3:$AF$10*(Лист1!$B$1:$AF$1=Лист2!$D48)*(Лист2!$C48=Лист1!$A$3:$A$10))*INDEX(Лист3!$B$7:$AQ$96,MATCH(Лист2!$C48,Лист3!$A$7:$A$96,0),MATCH(Лист2!H$1&H$2,Лист3!$B$4:$AQ$4&Лист3!$B$5:$AQ$5,0)),0) -> 41.76 | I48: =IFERROR(SUMPRODUCT(Лист1!$B$3:$AF$10*(Лист1!$B$1:$AF$1=Лист2!$D48)*(Лист2!$C48=Лист1!$A$3:$A$10))*INDEX(Лист3!$B$7:$AQ$96,MATCH(Лист2!$C48,Лист3!$A$7:$A$96,0),MATCH(Лист2!I$1&I$2,Лист3!$B$4:$AQ$4&Лист3!$B$5:$AQ$5,0)),0) -> 0 | J48: =IFERROR(SUMPRODUCT(Лист1!$B$3:$AF$10*(Лист1!$B$1:$AF$1=Лист2!$D48)*(Лист2!$C48=Лист1!$A$3:$A$10))*INDEX(Лист3!$B$7:$AQ$96,MATCH(Лист2!$C48,Лист3!$A$7:$A$96,0),MATCH(Лист2!J$1&J$2,Лист3!$B$4:$AQ$4&Лист3!$B$5:$AQ$5,0)),0) -> 0 | K48: =IFERROR(SUMPRODUCT(Лист1!$B$3:$AF$10*(Лист1!$B$1:$AF$1=Лист2!$D48)*(Лист2!$C48=Лист1!$A$3:$A$10))*INDEX(Лист3!$B$7:$AQ$96,MATCH(Лист2!$C48,Лист3!$A$7:$A$96,0),MATCH(Лист2!K$1&K$2,Лист3!$B$4:$AQ$4&Лист3!$B$5:$AQ$5,0)),0) -> 0 | L48: =IFERROR(SUMPRODUCT(Лист1!$B$3:$AF$10*(Лист1!$B$1:$AF$1=Лист2!$D48)*(Лист2!$C48=Лист1!$A$3:$A$10))*INDEX(Лист3!$B$7:$AQ$96,MATCH(Лист2!$C48,Лист3!$A$7:$A$96,0),MATCH(Лист2!L$1&L$2,Лист3!$B$4:$AQ$4&Лист3!$B$5:$AQ$5,0)),0) -> 9 | M48: =IFERROR(SUMPRODUCT(Лист1!$B$3:$AF$10*(Лист1!$B$1:$AF$1=Лист2!$D48)*(Лист2!$C48=Лист1!$A$3:$A$10))*INDEX(Лист3!$B$7:$AQ$96,MATCH(Лист2!$C48,Лист3!$A$7:$A$96,0),MATCH(Лист2!M$1&M$2,Лист3!$B$4:$AQ$4&Лист3!$B$5:$AQ$5,0)),0) -> 343.5 | N48: =IFERROR(SUMPRODUCT(Лист1!$B$3:$AF$10*(Лист1!$B$1:$AF$1=Лист2!$D48)*(Лист2!$C48=Лист1!$A$3:$A$10))*INDEX(Лист3!$B$7:$AQ$96,MATCH(Лист2!$C48,Лист3!$A$7:$A$96,0),MATCH(Лист2!N$1&N$2,Лист3!$B$4:$AQ$4&Лист3!$B$5:$AQ$5,0)),0) -> 114 | O48: =IFERROR(SUMPRODUCT(Лист1!$B$3:$AF$10*(Лист1!$B$1:$AF$1=Лист2!$D48)*(Лист2!$C48=Лист1!$A$3:$A$10))*INDEX(Лист3!$B$7:$AQ$96,MATCH(Лист2!$C48,Лист3!$A$7:$A$96,0),MATCH(Лист2!O$1&O$2,Лист3!$B$4:$AQ$4&Лист3!$B$5:$AQ$5,0)),0) -> 0 | P48: =IFERROR(SUMPRODUCT(Лист1!$B$3:$AF$10*(Лист1!$B$1:$AF$1=Лист2!$D48)*(Лист2!$C48=Лист1!$A$3:$A$10))*INDEX(Лист3!$B$7:$AQ$96,MATCH(Лист2!$C48,Лист3!$A$7:$A$96,0),MATCH(Лист2!P$1&P$2,Лист3!$B$4:$AQ$4&Лист3!$B$5:$AQ$5,0)),0) -> 276 | Q48: =IFERROR(SUMPRODUCT(Лист1!$B$3:$AF$10*(Лист1!$B$1:$AF$1=Лист2!$D48)*(Лист2!$C48=Лист1!$A$3:$A$10))*INDEX(Лист3!$B$7:$AQ$96,MATCH(Лист2!$C48,Лист3!$A$7:$A$96,0),MATCH(Лист2!Q$1&Q$2,Лист3!$B$4:$AQ$4&Лист3!$B$5:$AQ$5,0)),0) -> 0 | R48: =IFERROR(SUMPRODUCT(Лист1!$B$3:$AF$10*(Лист1!$B$1:$AF$1=Лист2!$D48)*(Лист2!$C48=Лист1!$A$3:$A$10))*INDEX(Лист3!$B$7:$AQ$96,MATCH(Лист2!$C48,Лист3!$A$7:$A$96,0),MATCH(Лист2!R$1&R$2,Лист3!$B$4:$AQ$4&Лист3!$B$5:$AQ$5,0)),0) -> 30 | S48: =IFERROR(SUMPRODUCT(Лист1!$B$3:$AF$10*(Лист1!$B$1:$AF$1=Лист2!$D48)*(Лист2!$C48=Лист1!$A$3:$A$10))*INDEX(Лист3!$B$7:$AQ$96,MATCH(Лист2!$C48,Лист3!$A$7:$A$96,0),MATCH(Лист2!S$1&S$2,Лист3!$B$4:$AQ$4&Лист3!$B$5:$AQ$5,0)),0) -> 1.8 | T48: =IFERROR(SUMPRODUCT(Лист1!$B$3:$AF$10*(Лист1!$B$1:$AF$1=Лист2!$D48)*(Лист2!$C48=Лист1!$A$3:$A$10))*INDEX(Лист3!$B$7:$AQ$96,MATCH(Лист2!$C48,Лист3!$A$7:$A$96,0),MATCH(Лист2!T$1&T$2,Лист3!$B$4:$AQ$4&Лист3!$B$5:$AQ$5,0)),0) -> 0 | U48: =IFERROR(SUMPRODUCT(Лист1!$B$3:$AF$10*(Лист1!$B$1:$AF$1=Лист2!$D48)*(Лист2!$C48=Лист1!$A$3:$A$10))*INDEX(Лист3!$B$7:$AQ$96,MATCH(Лист2!$C48,Лист3!$A$7:$A$96,0),MATCH(Лист2!U$1&U$2,Лист3!$B$4:$AQ$4&Лист3!$B$5:$AQ$5,0)),0) -> 0 | V48: =IFERROR(SUMPRODUCT(Лист1!$B$3:$AF$10*(Лист1!$B$1:$AF$1=Лист2!$D48)*(Лист2!$C48=Лист1!$A$3:$A$10))*INDEX(Лист3!$B$7:$AQ$96,MATCH(Лист2!$C48,Лист3!$A$7:$A$96,0),MATCH(Лист2!V$1&V$2,Лист3!$B$4:$AQ$4&Лист3!$B$5:$AQ$5,0)),0) -> 0 | W48: =IFERROR(SUMPRODUCT(Лист1!$B$3:$AF$10*(Лист1!$B$1:$AF$1=Лист2!$D48)*(Лист2!$C48=Лист1!$A$3:$A$10))*INDEX(Лист3!$B$7:$AQ$96,MATCH(Лист2!$C48,Лист3!$A$7:$A$96,0),MATCH(Лист2!W$1&W$2,Лист3!$B$4:$AQ$4&Лист3!$B$5:$AQ$5,0)),0) -> 0 | X48: =IFERROR(SUMPRODUCT(Лист1!$B$3:$AF$10*(Лист1!$B$1:$AF$1=Лист2!$D48)*(Лист2!$C48=Лист1!$A$3:$A$10))*INDEX(Лист3!$B$7:$AQ$96,MATCH(Лист2!$C48,Лист3!$A$7:$A$96,0),MATCH(Лист2!X$1&X$2,Лист3!$B$4:$AQ$4&Лист3!$B$5:$AQ$5,0)),0) -> 4.8 | Y48: =IFERROR(SUMPRODUCT(Лист1!$B$3:$AF$10*(Лист1!$B$1:$AF$1=Лист2!$D48)*(Лист2!$C48=Лист1!$A$3:$A$10))*INDEX(Лист3!$B$7:$AQ$96,MATCH(Лист2!$C48,Лист3!$A$7:$A$96,0),MATCH(Лист2!Y$1&Y$2,Лист3!$B$4:$AQ$4&Лист3!$B$5:$AQ$5,0)),0) -> 0 | Z48: =IFERROR(SUMPRODUCT(Лист1!$B$3:$AF$10*(Лист1!$B$1:$AF$1=Лист2!$D48)*(Лист2!$C48=Лист1!$A$3:$A$10))*INDEX(Лист3!$B$7:$AQ$96,MATCH(Лист2!$C48,Лист3!$A$7:$A$96,0),MATCH(Лист2!Z$1&Z$2,Лист3!$B$4:$AQ$4&Лист3!$B$5:$AQ$5,0)),0) -> 0.75 | AA48: =IFERROR(SUMPRODUCT(Лист1!$B$3:$AF$10*(Лист1!$B$1:$AF$1=Лист2!$D48)*(Лист2!$C48=Лист1!$A$3:$A$10))*INDEX(Лист3!$B$7:$AQ$96,MATCH(Лист2!$C48,Лист3!$A$7:$A$96,0),MATCH(Лист2!AA$1&AA$2,Лист3!$B$4:$AQ$4&Лист3!$B$5:$AQ$5,0)),0) -> 14.1
C49: =IFERROR(INDEX(Лист1!$A$3:$A$10,SMALL(IF(ISNUMBER(INDEX(Лист1!$B$3:$AF$10,,MATCH(Лист2!$D49,Лист1!$B$1:$AF$1,0))),ROW(Лист1!$A$3:$A$10)-2),COUNTIF($D$7:D49,D49))),"") ->  | D49: 11 | E49: =IFERROR(SUMPRODUCT(Лист1!$B$3:$AF$10*(Лист1!$B$1:$AF$1=Лист2!$D49)*(Лист2!$C49=Лист1!$A$3:$A$10))*INDEX(Лист3!$B$7:$AQ$96,MATCH(Лист2!$C49,Лист3!$A$7:$A$96,0),MATCH(Лист2!E$1&E$2,Лист3!$B$4:$AQ$4&Лист3!$B$5:$AQ$5,0)),0) -> 0 | F49: =IFERROR(SUMPRODUCT(Лист1!$B$3:$AF$10*(Лист1!$B$1:$AF$1=Лист2!$D49)*(Лист2!$C49=Лист1!$A$3:$A$10))*INDEX(Лист3!$B$7:$AQ$96,MATCH(Лист2!$C49,Лист3!$A$7:$A$96,0),MATCH(Лист2!F$1&F$2,Лист3!$B$4:$AQ$4&Лист3!$B$5:$AQ$5,0)),0) -> 0 | G49: =IFERROR(SUMPRODUCT(Лист1!$B$3:$AF$10*(Лист1!$B$1:$AF$1=Лист2!$D49)*(Лист2!$C49=Лист1!$A$3:$A$10))*INDEX(Лист3!$B$7:$AQ$96,MATCH(Лист2!$C49,Лист3!$A$7:$A$96,0),MATCH(Лист2!G$1&G$2,Лист3!$B$4:$AQ$4&Лист3!$B$5:$AQ$5,0)),0) -> 0 | H49: =IFERROR(SUMPRODUCT(Лист1!$B$3:$AF$10*(Лист1!$B$1:$AF$1=Лист2!$D49)*(Лист2!$C49=Лист1!$A$3:$A$10))*INDEX(Лист3!$B$7:$AQ$96,MATCH(Лист2!$C49,Лист3!$A$7:$A$96,0),MATCH(Лист2!H$1&H$2,Лист3!$B$4:$AQ$4&Лист3!$B$5:$AQ$5,0)),0) -> 0 | I49: =IFERROR(SUMPRODUCT(Лист1!$B$3:$AF$10*(Лист1!$B$1:$AF$1=Лист2!$D49)*(Лист2!$C49=Лист1!$A$3:$A$10))*INDEX(Лист3!$B$7:$AQ$96,MATCH(Лист2!$C49,Лист3!$A$7:$A$96,0),MATCH(Лист2!I$1&I$2,Лист3!$B$4:$AQ$4&Лист3!$B$5:$AQ$5,0)),0) -> 0 | J49: =IFERROR(SUMPRODUCT(Лист1!$B$3:$AF$10*(Лист1!$B$1:$AF$1=Лист2!$D49)*(Лист2!$C49=Лист1!$A$3:$A$10))*INDEX(Лист3!$B$7:$AQ$96,MATCH(Лист2!$C49,Лист3!$A$7:$A$96,0),MATCH(Лист2!J$1&J$2,Лист3!$B$4:$AQ$4&Лист3!$B$5:$AQ$5,0)),0) -> 0 | K49: =IFERROR(SUMPRODUCT(Лист1!$B$3:$AF$10*(Лист1!$B$1:$AF$1=Лист2!$D49)*(Лист2!$C49=Лист1!$A$3:$A$10))*INDEX(Лист3!$B$7:$AQ$96,MATCH(Лист2!$C49,Лист3!$A$7:$A$96,0),MATCH(Лист2!K$1&K$2,Лист3!$B$4:$AQ$4&Лист3!$B$5:$AQ$5,0)),0) -> 0 | L49: =IFERROR(SUMPRODUCT(Лист1!$B$3:$AF$10*(Лист1!$B$1:$AF$1=Лист2!$D49)*(Лист2!$C49=Лист1!$A$3:$A$10))*INDEX(Лист3!$B$7:$AQ$96,MATCH(Лист2!$C49,Лист3!$A$7:$A$96,0),MATCH(Лист2!L$1&L$2,Лист3!$B$4:$AQ$4&Лист3!$B$5:$AQ$5,0)),0) -> 0 | M49: =IFERROR(SUMPRODUCT(Лист1!$B$3:$AF$10*(Лист1!$B$1:$AF$1=Лист2!$D49)*(Лист2!$C49=Лист1!$A$3:$A$10))*INDEX(Лист3!$B$7:$AQ$96,MATCH(Лист2!$C49,Лист3!$A$7:$A$96,0),MATCH(Лист2!M$1&M$2,Лист3!$B$4:$AQ$4&Лист3!$B$5:$AQ$5,0)),0) -> 0 | N49: =IFERROR(SUMPRODUCT(Лист1!$B$3:$AF$10*(Лист1!$B$1:$AF$1=Лист2!$D49)*(Лист2!$C49=Лист1!$A$3:$A$10))*INDEX(Лист3!$B$7:$AQ$96,MATCH(Лист2!$C49,Лист3!$A$7:$A$96,0),MATCH(Лист2!N$1&N$2,Лист3!$B$4:$AQ$4&Лист3!$B$5:$AQ$5,0)),0) -> 0 | O49: =IFERROR(SUMPRODUCT(Лист1!$B$3:$AF$10*(Лист1!$B$1:$AF$1=Лист2!$D49)*(Лист2!$C49=Лист1!$A$3:$A$10))*INDEX(Лист3!$B$7:$AQ$96,MATCH(Лист2!$C49,Лист3!$A$7:$A$96,0),MATCH(Лист2!O$1&O$2,Лист3!$B$4:$AQ$4&Лист3!$B$5:$AQ$5,0)),0) -> 0 | P49: =IFERROR(SUMPRODUCT(Лист1!$B$3:$AF$10*(Лист1!$B$1:$AF$1=Лист2!$D49)*(Лист2!$C49=Лист1!$A$3:$A$10))*INDEX(Лист3!$B$7:$AQ$96,MATCH(Лист2!$C49,Лист3!$A$7:$A$96,0),MATCH(Лист2!P$1&P$2,Лист3!$B$4:$AQ$4&Лист3!$B$5:$AQ$5,0)),0) -> 0 | Q49: =IFERROR(SUMPRODUCT(Лист1!$B$3:$AF$10*(Лист1!$B$1:$AF$1=Лист2!$D49)*(Лист2!$C49=Лист1!$A$3:$A$10))*INDEX(Лист3!$B$7:$AQ$96,MATCH(Лист2!$C49,Лист3!$A$7:$A$96,0),MATCH(Лист2!Q$1&Q$2,Лист3!$B$4:$AQ$4&Лист3!$B$5:$AQ$5,0)),0) -> 0 | R49: =IFERROR(SUMPRODUCT(Лист1!$B$3:$AF$10*(Лист1!$B$1:$AF$1=Лист2!$D49)*(Лист2!$C49=Лист1!$A$3:$A$10))*INDEX(Лист3!$B$7:$AQ$96,MATCH(Лист2!$C49,Лист3!$A$7:$A$96,0),MATCH(Лист2!R$1&R$2,Лист3!$B$4:$AQ$4&Лист3!$B$5:$AQ$5,0)),0) -> 0 | S49: =IFERROR(SUMPRODUCT(Лист1!$B$3:$AF$10*(Лист1!$B$1:$AF$1=Лист2!$D49)*(Лист2!$C49=Лист1!$A$3:$A$10))*INDEX(Лист3!$B$7:$AQ$96,MATCH(Лист2!$C49,Лист3!$A$7:$A$96,0),MATCH(Лист2!S$1&S$2,Лист3!$B$4:$AQ$4&Лист3!$B$5:$AQ$5,0)),0) -> 0 | T49: =IFERROR(SUMPRODUCT(Лист1!$B$3:$AF$10*(Лист1!$B$1:$AF$1=Лист2!$D49)*(Лист2!$C49=Лист1!$A$3:$A$10))*INDEX(Лист3!$B$7:$AQ$96,MATCH(Лист2!$C49,Лист3!$A$7:$A$96,0),MATCH(Лист2!T$1&T$2,Лист3!$B$4:$AQ$4&Лист3!$B$5:$AQ$5,0)),0) -> 0 | U49: =IFERROR(SUMPRODUCT(Лист1!$B$3:$AF$10*(Лист1!$B$1:$AF$1=Лист2!$D49)*(Лист2!$C49=Лист1!$A$3:$A$10))*INDEX(Лист3!$B$7:$AQ$96,MATCH(Лист2!$C49,Лист3!$A$7:$A$96,0),MATCH(Лист2!U$1&U$2,Лист3!$B$4:$AQ$4&Лист3!$B$5:$AQ$5,0)),0) -> 0 | V49: =IFERROR(SUMPRODUCT(Лист1!$B$3:$AF$10*(Лист1!$B$1:$AF$1=Лист2!$D49)*(Лист2!$C49=Лист1!$A$3:$A$10))*INDEX(Лист3!$B$7:$AQ$96,MATCH(Лист2!$C49,Лист3!$A$7:$A$96,0),MATCH(Лист2!V$1&V$2,Лист3!$B$4:$AQ$4&Лист3!$B$5:$AQ$5,0)),0) -> 0 | W49: =IFERROR(SUMPRODUCT(Лист1!$B$3:$AF$10*(Лист1!$B$1:$AF$1=Лист2!$D49)*(Лист2!$C49=Лист1!$A$3:$A$10))*INDEX(Лист3!$B$7:$AQ$96,MATCH(Лист2!$C49,Лист3!$A$7:$A$96,0),MATCH(Лист2!W$1&W$2,Лист3!$B$4:$AQ$4&Лист3!$B$5:$AQ$5,0)),0) -> 0 | X49: =IFERROR(SUMPRODUCT(Лист1!$B$3:$AF$10*(Лист1!$B$1:$AF$1=Лист2!$D49)*(Лист2!$C49=Лист1!$A$3:$A$10))*INDEX(Лист3!$B$7:$AQ$96,MATCH(Лист2!$C49,Лист3!$A$7:$A$96,0),MATCH(Лист2!X$1&X$2,Лист3!$B$4:$AQ$4&Лист3!$B$5:$AQ$5,0)),0) -> 0 | Y49: =IFERROR(SUMPRODUCT(Лист1!$B$3:$AF$10*(Лист1!$B$1:$AF$1=Лист2!$D49)*(Лист2!$C49=Лист1!$A$3:$A$10))*INDEX(Лист3!$B$7:$AQ$96,MATCH(Лист2!$C49,Лист3!$A$7:$A$96,0),MATCH(Лист2!Y$1&Y$2,Лист3!$B$4:$AQ$4&Лист3!$B$5:$AQ$5,0)),0) -> 0 | Z49: =IFERROR(SUMPRODUCT(Лист1!$B$3:$AF$10*(Лист1!$B$1:$AF$1=Лист2!$D49)*(Лист2!$C49=Лист1!$A$3:$A$10))*INDEX(Лист3!$B$7:$AQ$96,MATCH(Лист2!$C49,Лист3!$A$7:$A$96,0),MATCH(Лист2!Z$1&Z$2,Лист3!$B$4:$AQ$4&Лист3!$B$5:$AQ$5,0)),0) -> 0 | AA49: =IFERROR(SUMPRODUCT(Лист1!$B$3:$AF$10*(Лист1!$B$1:$AF$1=Лист2!$D49)*(Лист2!$C49=Лист1!$A$3:$A$10))*INDEX(Лист3!$B$7:$AQ$96,MATCH(Лист2!$C49,Лист3!$A$7:$A$96,0),MATCH(Лист2!AA$1&AA$2,Лист3!$B$4:$AQ$4&Лист3!$B$5:$AQ$5,0)),0) -> 0
C50: =IFERROR(INDEX(Лист1!$A$3:$A$10,SMALL(IF(ISNUMBER(INDEX(Лист1!$B$3:$AF$10,,MATCH(Лист2!$D50,Лист1!$B$1:$AF$1,0))),ROW(Лист1!$A$3:$A$10)-2),COUNTIF($D$7:D50,D50))),"") ->  | D50: 11 | E50: =IFERROR(SUMPRODUCT(Лист1!$B$3:$AF$10*(Лист1!$B$1:$AF$1=Лист2!$D50)*(Лист2!$C50=Лист1!$A$3:$A$10))*INDEX(Лист3!$B$7:$AQ$96,MATCH(Лист2!$C50,Лист3!$A$7:$A$96,0),MATCH(Лист2!E$1&E$2,Лист3!$B$4:$AQ$4&Лист3!$B$5:$AQ$5,0)),0) -> 0 | F50: =IFERROR(SUMPRODUCT(Лист1!$B$3:$AF$10*(Лист1!$B$1:$AF$1=Лист2!$D50)*(Лист2!$C50=Лист1!$A$3:$A$10))*INDEX(Лист3!$B$7:$AQ$96,MATCH(Лист2!$C50,Лист3!$A$7:$A$96,0),MATCH(Лист2!F$1&F$2,Лист3!$B$4:$AQ$4&Лист3!$B$5:$AQ$5,0)),0) -> 0 | G50: =IFERROR(SUMPRODUCT(Лист1!$B$3:$AF$10*(Лист1!$B$1:$AF$1=Лист2!$D50)*(Лист2!$C50=Лист1!$A$3:$A$10))*INDEX(Лист3!$B$7:$AQ$96,MATCH(Лист2!$C50,Лист3!$A$7:$A$96,0),MATCH(Лист2!G$1&G$2,Лист3!$B$4:$AQ$4&Лист3!$B$5:$AQ$5,0)),0) -> 0 | H50: =IFERROR(SUMPRODUCT(Лист1!$B$3:$AF$10*(Лист1!$B$1:$AF$1=Лист2!$D50)*(Лист2!$C50=Лист1!$A$3:$A$10))*INDEX(Лист3!$B$7:$AQ$96,MATCH(Лист2!$C50,Лист3!$A$7:$A$96,0),MATCH(Лист2!H$1&H$2,Лист3!$B$4:$AQ$4&Лист3!$B$5:$AQ$5,0)),0) -> 0 | I50: =IFERROR(SUMPRODUCT(Лист1!$B$3:$AF$10*(Лист1!$B$1:$AF$1=Лист2!$D50)*(Лист2!$C50=Лист1!$A$3:$A$10))*INDEX(Лист3!$B$7:$AQ$96,MATCH(Лист2!$C50,Лист3!$A$7:$A$96,0),MATCH(Лист2!I$1&I$2,Лист3!$B$4:$AQ$4&Лист3!$B$5:$AQ$5,0)),0) -> 0 | J50: =IFERROR(SUMPRODUCT(Лист1!$B$3:$AF$10*(Лист1!$B$1:$AF$1=Лист2!$D50)*(Лист2!$C50=Лист1!$A$3:$A$10))*INDEX(Лист3!$B$7:$AQ$96,MATCH(Лист2!$C50,Лист3!$A$7:$A$96,0),MATCH(Лист2!J$1&J$2,Лист3!$B$4:$AQ$4&Лист3!$B$5:$AQ$5,0)),0) -> 0 | K50: =IFERROR(SUMPRODUCT(Лист1!$B$3:$AF$10*(Лист1!$B$1:$AF$1=Лист2!$D50)*(Лист2!$C50=Лист1!$A$3:$A$10))*INDEX(Лист3!$B$7:$AQ$96,MATCH(Лист2!$C50,Лист3!$A$7:$A$96,0),MATCH(Лист2!K$1&K$2,Лист3!$B$4:$AQ$4&Лист3!$B$5:$AQ$5,0)),0) -> 0 | L50: =IFERROR(SUMPRODUCT(Лист1!$B$3:$AF$10*(Лист1!$B$1:$AF$1=Лист2!$D50)*(Лист2!$C50=Лист1!$A$3:$A$10))*INDEX(Лист3!$B$7:$AQ$96,MATCH(Лист2!$C50,Лист3!$A$7:$A$96,0),MATCH(Лист2!L$1&L$2,Лист3!$B$4:$AQ$4&Лист3!$B$5:$AQ$5,0)),0) -> 0 | M50: =IFERROR(SUMPRODUCT(Лист1!$B$3:$AF$10*(Лист1!$B$1:$AF$1=Лист2!$D50)*(Лист2!$C50=Лист1!$A$3:$A$10))*INDEX(Лист3!$B$7:$AQ$96,MATCH(Лист2!$C50,Лист3!$A$7:$A$96,0),MATCH(Лист2!M$1&M$2,Лист3!$B$4:$AQ$4&Лист3!$B$5:$AQ$5,0)),0) -> 0 | N50: =IFERROR(SUMPRODUCT(Лист1!$B$3:$AF$10*(Лист1!$B$1:$AF$1=Лист2!$D50)*(Лист2!$C50=Лист1!$A$3:$A$10))*INDEX(Лист3!$B$7:$AQ$96,MATCH(Лист2!$C50,Лист3!$A$7:$A$96,0),MATCH(Лист2!N$1&N$2,Лист3!$B$4:$AQ$4&Лист3!$B$5:$AQ$5,0)),0) -> 0 | O50: =IFERROR(SUMPRODUCT(Лист1!$B$3:$AF$10*(Лист1!$B$1:$AF$1=Лист2!$D50)*(Лист2!$C50=Лист1!$A$3:$A$10))*INDEX(Лист3!$B$7:$AQ$96,MATCH(Лист2!$C50,Лист3!$A$7:$A$96,0),MATCH(Лист2!O$1&O$2,Лист3!$B$4:$AQ$4&Лист3!$B$5:$AQ$5,0)),0) -> 0 | P50: =IFERROR(SUMPRODUCT(Лист1!$B$3:$AF$10*(Лист1!$B$1:$AF$1=Лист2!$D50)*(Лист2!$C50=Лист1!$A$3:$A$10))*INDEX(Лист3!$B$7:$AQ$96,MATCH(Лист2!$C50,Лист3!$A$7:$A$96,0),MATCH(Лист2!P$1&P$2,Лист3!$B$4:$AQ$4&Лист3!$B$5:$AQ$5,0)),0) -> 0 | Q50: =IFERROR(SUMPRODUCT(Лист1!$B$3:$AF$10*(Лист1!$B$1:$AF$1=Лист2!$D50)*(Лист2!$C50=Лист1!$A$3:$A$10))*INDEX(Лист3!$B$7:$AQ$96,MATCH(Лист2!$C50,Лист3!$A$7:$A$96,0),MATCH(Лист2!Q$1&Q$2,Лист3!$B$4:$AQ$4&Лист3!$B$5:$AQ$5,0)),0) -> 0 | R50: =IFERROR(SUMPRODUCT(Лист1!$B$3:$AF$10*(Лист1!$B$1:$AF$1=Лист2!$D50)*(Лист2!$C50=Лист1!$A$3:$A$10))*INDEX(Лист3!$B$7:$AQ$96,MATCH(Лист2!$C50,Лист3!$A$7:$A$96,0),MATCH(Лист2!R$1&R$2,Лист3!$B$4:$AQ$4&Лист3!$B$5:$AQ$5,0)),0) -> 0 | S50: =IFERROR(SUMPRODUCT(Лист1!$B$3:$AF$10*(Лист1!$B$1:$AF$1=Лист2!$D50)*(Лист2!$C50=Лист1!$A$3:$A$10))*INDEX(Лист3!$B$7:$AQ$96,MATCH(Лист2!$C50,Лист3!$A$7:$A$96,0),MATCH(Лист2!S$1&S$2,Лист3!$B$4:$AQ$4&Лист3!$B$5:$AQ$5,0)),0) -> 0 | T50: =IFERROR(SUMPRODUCT(Лист1!$B$3:$AF$10*(Лист1!$B$1:$AF$1=Лист2!$D50)*(Лист2!$C50=Лист1!$A$3:$A$10))*INDEX(Лист3!$B$7:$AQ$96,MATCH(Лист2!$C50,Лист3!$A$7:$A$96,0),MATCH(Лист2!T$1&T$2,Лист3!$B$4:$AQ$4&Лист3!$B$5:$AQ$5,0)),0) -> 0 | U50: =IFERROR(SUMPRODUCT(Лист1!$B$3:$AF$10*(Лист1!$B$1:$AF$1=Лист2!$D50)*(Лист2!$C50=Лист1!$A$3:$A$10))*INDEX(Лист3!$B$7:$AQ$96,MATCH(Лист2!$C50,Лист3!$A$7:$A$96,0),MATCH(Лист2!U$1&U$2,Лист3!$B$4:$AQ$4&Лист3!$B$5:$AQ$5,0)),0) -> 0 | V50: =IFERROR(SUMPRODUCT(Лист1!$B$3:$AF$10*(Лист1!$B$1:$AF$1=Лист2!$D50)*(Лист2!$C50=Лист1!$A$3:$A$10))*INDEX(Лист3!$B$7:$AQ$96,MATCH(Лист2!$C50,Лист3!$A$7:$A$96,0),MATCH(Лист2!V$1&V$2,Лист3!$B$4:$AQ$4&Лист3!$B$5:$AQ$5,0)),0) -> 0 | W50: =IFERROR(SUMPRODUCT(Лист1!$B$3:$AF$10*(Лист1!$B$1:$AF$1=Лист2!$D50)*(Лист2!$C50=Лист1!$A$3:$A$10))*INDEX(Лист3!$B$7:$AQ$96,MATCH(Лист2!$C50,Лист3!$A$7:$A$96,0),MATCH(Лист2!W$1&W$2,Лист3!$B$4:$AQ$4&Лист3!$B$5:$AQ$5,0)),0) -> 0 | X50: =IFERROR(SUMPRODUCT(Лист1!$B$3:$AF$10*(Лист1!$B$1:$AF$1=Лист2!$D50)*(Лист2!$C50=Лист1!$A$3:$A$10))*INDEX(Лист3!$B$7:$AQ$96,MATCH(Лист2!$C50,Лист3!$A$7:$A$96,0),MATCH(Лист2!X$1&X$2,Лист3!$B$4:$AQ$4&Лист3!$B$5:$AQ$5,0)),0) -> 0 | Y50: =IFERROR(SUMPRODUCT(Лист1!$B$3:$AF$10*(Лист1!$B$1:$AF$1=Лист2!$D50)*(Лист2!$C50=Лист1!$A$3:$A$10))*INDEX(Лист3!$B$7:$AQ$96,MATCH(Лист2!$C50,Лист3!$A$7:$A$96,0),MATCH(Лист2!Y$1&Y$2,Лист3!$B$4:$AQ$4&Лист3!$B$5:$AQ$5,0)),0) -> 0 | Z50: =IFERROR(SUMPRODUCT(Лист1!$B$3:$AF$10*(Лист1!$B$1:$AF$1=Лист2!$D50)*(Лист2!$C50=Лист1!$A$3:$A$10))*INDEX(Лист3!$B$7:$AQ$96,MATCH(Лист2!$C50,Лист3!$A$7:$A$96,0),MATCH(Лист2!Z$1&Z$2,Лист3!$B$4:$AQ$4&Лист3!$B$5:$AQ$5,0)),0) -> 0 | AA50: =IFERROR(SUMPRODUCT(Лист1!$B$3:$AF$10*(Лист1!$B$1:$AF$1=Лист2!$D50)*(Лист2!$C50=Лист1!$A$3:$A$10))*INDEX(Лист3!$B$7:$AQ$96,MATCH(Лист2!$C50,Лист3!$A$7:$A$96,0),MATCH(Лист2!AA$1&AA$2,Лист3!$B$4:$AQ$4&Лист3!$B$5:$AQ$5,0)),0) -> 0
C51: =IFERROR(INDEX(Лист1!$A$3:$A$10,SMALL(IF(ISNUMBER(INDEX(Лист1!$B$3:$AF$10,,MATCH(Лист2!$D51,Лист1!$B$1:$AF$1,0))),ROW(Лист1!$A$3:$A$10)-2),COUNTIF($D$7:D51,D51))),"") -> Плита "Экстрол Малахит" 1180.580.50/8 (Ч), м3 | D51: 12 | E51: =IFERROR(SUMPRODUCT(Лист1!$B$3:$AF$10*(Лист1!$B$1:$AF$1=Лист2!$D51)*(Лист2!$C51=Лист1!$A$3:$A$10))*INDEX(Лист3!$B$7:$AQ$96,MATCH(Лист2!$C51,Лист3!$A$7:$A$96,0),MATCH(Лист2!E$1&E$2,Лист3!$B$4:$AQ$4&Лист3!$B$5:$AQ$5,0)),0) -> 2160 | F51: =IFERROR(SUMPRODUCT(Лист1!$B$3:$AF$10*(Лист1!$B$1:$AF$1=Лист2!$D51)*(Лист2!$C51=Лист1!$A$3:$A$10))*INDEX(Лист3!$B$7:$AQ$96,MATCH(Лист2!$C51,Лист3!$A$7:$A$96,0),MATCH(Лист2!F$1&F$2,Лист3!$B$4:$AQ$4&Лист3!$B$5:$AQ$5,0)),0) -> 8320 | G51: =IFERROR(SUMPRODUCT(Лист1!$B$3:$AF$10*(Лист1!$B$1:$AF$1=Лист2!$D51)*(Лист2!$C51=Лист1!$A$3:$A$10))*INDEX(Лист3!$B$7:$AQ$96,MATCH(Лист2!$C51,Лист3!$A$7:$A$96,0),MATCH(Лист2!G$1&G$2,Лист3!$B$4:$AQ$4&Лист3!$B$5:$AQ$5,0)),0) -> 0 | H51: =IFERROR(SUMPRODUCT(Лист1!$B$3:$AF$10*(Лист1!$B$1:$AF$1=Лист2!$D51)*(Лист2!$C51=Лист1!$A$3:$A$10))*INDEX(Лист3!$B$7:$AQ$96,MATCH(Лист2!$C51,Лист3!$A$7:$A$96,0),MATCH(Лист2!H$1&H$2,Лист3!$B$4:$AQ$4&Лист3!$B$5:$AQ$5,0)),0) -> 60 | I51: =IFERROR(SUMPRODUCT(Лист1!$B$3:$AF$10*(Лист1!$B$1:$AF$1=Лист2!$D51)*(Лист2!$C51=Лист1!$A$3:$A$10))*INDEX(Лист3!$B$7:$AQ$96,MATCH(Лист2!$C51,Лист3!$A$7:$A$96,0),MATCH(Лист2!I$1&I$2,Лист3!$B$4:$AQ$4&Лист3!$B$5:$AQ$5,0)),0) -> 0 | J51: =IFERROR(SUMPRODUCT(Лист1!$B$3:$AF$10*(Лист1!$B$1:$AF$1=Лист2!$D51)*(Лист2!$C51=Лист1!$A$3:$A$10))*INDEX(Лист3!$B$7:$AQ$96,MATCH(Лист2!$C51,Лист3!$A$7:$A$96,0),MATCH(Лист2!J$1&J$2,Лист3!$B$4:$AQ$4&Лист3!$B$5:$AQ$5,0)),0) -> 8 | K51: =IFERROR(SUMPRODUCT(Лист1!$B$3:$AF$10*(Лист1!$B$1:$AF$1=Лист2!$D51)*(Лист2!$C51=Лист1!$A$3:$A$10))*INDEX(Лист3!$B$7:$AQ$96,MATCH(Лист2!$C51,Лист3!$A$7:$A$96,0),MATCH(Лист2!K$1&K$2,Лист3!$B$4:$AQ$4&Лист3!$B$5:$AQ$5,0)),0) -> 0 | L51: =IFERROR(SUMPRODUCT(Лист1!$B$3:$AF$10*(Лист1!$B$1:$AF$1=Лист2!$D51)*(Лист2!$C51=Лист1!$A$3:$A$10))*INDEX(Лист3!$B$7:$AQ$96,MATCH(Лист2!$C51,Лист3!$A$7:$A$96,0),MATCH(Лист2!L$1&L$2,Лист3!$B$4:$AQ$4&Лист3!$B$5:$AQ$5,0)),0) -> 13.2 | M51: =IFERROR(SUMPRODUCT(Лист1!$B$3:$AF$10*(Лист1!$B$1:$AF$1=Лист2!$D51)*(Лист2!$C51=Лист1!$A$3:$A$10))*INDEX(Лист3!$B$7:$AQ$96,MATCH(Лист2!$C51,Лист3!$A$7:$A$96,0),MATCH(Лист2!M$1&M$2,Лист3!$B$4:$AQ$4&Лист3!$B$5:$AQ$5,0)),0) -> 360 | N51: =IFERROR(SUMPRODUCT(Лист1!$B$3:$AF$10*(Лист1!$B$1:$AF$1=Лист2!$D51)*(Лист2!$C51=Лист1!$A$3:$A$10))*INDEX(Лист3!$B$7:$AQ$96,MATCH(Лист2!$C51,Лист3!$A$7:$A$96,0),MATCH(Лист2!N$1&N$2,Лист3!$B$4:$AQ$4&Лист3!$B$5:$AQ$5,0)),0) -> 200 | O51: =IFERROR(SUMPRODUCT(Лист1!$B$3:$AF$10*(Лист1!$B$1:$AF$1=Лист2!$D51)*(Лист2!$C51=Лист1!$A$3:$A$10))*INDEX(Лист3!$B$7:$AQ$96,MATCH(Лист2!$C51,Лист3!$A$7:$A$96,0),MATCH(Лист2!O$1&O$2,Лист3!$B$4:$AQ$4&Лист3!$B$5:$AQ$5,0)),0) -> 0 | P51: =IFERROR(SUMPRODUCT(Лист1!$B$3:$AF$10*(Лист1!$B$1:$AF$1=Лист2!$D51)*(Лист2!$C51=Лист1!$A$3:$A$10))*INDEX(Лист3!$B$7:$AQ$96,MATCH(Лист2!$C51,Лист3!$A$7:$A$96,0),MATCH(Лист2!P$1&P$2,Лист3!$B$4:$AQ$4&Лист3!$B$5:$AQ$5,0)),0) -> 240 | Q51: =IFERROR(SUMPRODUCT(Лист1!$B$3:$AF$10*(Лист1!$B$1:$AF$1=Лист2!$D51)*(Лист2!$C51=Лист1!$A$3:$A$10))*INDEX(Лист3!$B$7:$AQ$96,MATCH(Лист2!$C51,Лист3!$A$7:$A$96,0),MATCH(Лист2!Q$1&Q$2,Лист3!$B$4:$AQ$4&Лист3!$B$5:$AQ$5,0)),0) -> 0 | R51: =IFERROR(SUMPRODUCT(Лист1!$B$3:$AF$10*(Лист1!$B$1:$AF$1=Лист2!$D51)*(Лист2!$C51=Лист1!$A$3:$A$10))*INDEX(Лист3!$B$7:$AQ$96,MATCH(Лист2!$C51,Лист3!$A$7:$A$96,0),MATCH(Лист2!R$1&R$2,Лист3!$B$4:$AQ$4&Лист3!$B$5:$AQ$5,0)),0) -> 192 | S51: =IFERROR(SUMPRODUCT(Лист1!$B$3:$AF$10*(Лист1!$B$1:$AF$1=Лист2!$D51)*(Лист2!$C51=Лист1!$A$3:$A$10))*INDEX(Лист3!$B$7:$AQ$96,MATCH(Лист2!$C51,Лист3!$A$7:$A$96,0),MATCH(Лист2!S$1&S$2,Лист3!$B$4:$AQ$4&Лист3!$B$5:$AQ$5,0)),0) -> 0 | T51: =IFERROR(SUMPRODUCT(Лист1!$B$3:$AF$10*(Лист1!$B$1:$AF$1=Лист2!$D51)*(Лист2!$C51=Лист1!$A$3:$A$10))*INDEX(Лист3!$B$7:$AQ$96,MATCH(Лист2!$C51,Лист3!$A$7:$A$96,0),MATCH(Лист2!T$1&T$2,Лист3!$B$4:$AQ$4&Лист3!$B$5:$AQ$5,0)),0) -> 2 | U51: =IFERROR(SUMPRODUCT(Лист1!$B$3:$AF$10*(Лист1!$B$1:$AF$1=Лист2!$D51)*(Лист2!$C51=Лист1!$A$3:$A$10))*INDEX(Лист3!$B$7:$AQ$96,MATCH(Лист2!$C51,Лист3!$A$7:$A$96,0),MATCH(Лист2!U$1&U$2,Лист3!$B$4:$AQ$4&Лист3!$B$5:$AQ$5,0)),0) -> 0 | V51: =IFERROR(SUMPRODUCT(Лист1!$B$3:$AF$10*(Лист1!$B$1:$AF$1=Лист2!$D51)*(Лист2!$C51=Лист1!$A$3:$A$10))*INDEX(Лист3!$B$7:$AQ$96,MATCH(Лист2!$C51,Лист3!$A$7:$A$96,0),MATCH(Лист2!V$1&V$2,Лист3!$B$4:$AQ$4&Лист3!$B$5:$AQ$5,0)),0) -> 0 | W51: =IFERROR(SUMPRODUCT(Лист1!$B$3:$AF$10*(Лист1!$B$1:$AF$1=Лист2!$D51)*(Лист2!$C51=Лист1!$A$3:$A$10))*INDEX(Лист3!$B$7:$AQ$96,MATCH(Лист2!$C51,Лист3!$A$7:$A$96,0),MATCH(Лист2!W$1&W$2,Лист3!$B$4:$AQ$4&Лист3!$B$5:$AQ$5,0)),0) -> 0 | X51: =IFERROR(SUMPRODUCT(Лист1!$B$3:$AF$10*(Лист1!$B$1:$AF$1=Лист2!$D51)*(Лист2!$C51=Лист1!$A$3:$A$10))*INDEX(Лист3!$B$7:$AQ$96,MATCH(Лист2!$C51,Лист3!$A$7:$A$96,0),MATCH(Лист2!X$1&X$2,Лист3!$B$4:$AQ$4&Лист3!$B$5:$AQ$5,0)),0) -> 6.8 | Y51: =IFERROR(SUMPRODUCT(Лист1!$B$3:$AF$10*(Лист1!$B$1:$AF$1=Лист2!$D51)*(Лист2!$C51=Лист1!$A$3:$A$10))*INDEX(Лист3!$B$7:$AQ$96,MATCH(Лист2!$C51,Лист3!$A$7:$A$96,0),MATCH(Лист2!Y$1&Y$2,Лист3!$B$4:$AQ$4&Лист3!$B$5:$AQ$5,0)),0) -> 0 | Z51: =IFERROR(SUMPRODUCT(Лист1!$B$3:$AF$10*(Лист1!$B$1:$AF$1=Лист2!$D51)*(Лист2!$C51=Лист1!$A$3:$A$10))*INDEX(Лист3!$B$7:$AQ$96,MATCH(Лист2!$C51,Лист3!$A$7:$A$96,0),MATCH(Лист2!Z$1&Z$2,Лист3!$B$4:$AQ$4&Лист3!$B$5:$AQ$5,0)),0) -> 1 | AA51: =IFERROR(SUMPRODUCT(Лист1!$B$3:$AF$10*(Лист1!$B$1:$AF$1=Лист2!$D51)*(Лист2!$C51=Лист1!$A$3:$A$10))*INDEX(Лист3!$B$7:$AQ$96,MATCH(Лист2!$C51,Лист3!$A$7:$A$96,0),MATCH(Лист2!AA$1&AA$2,Лист3!$B$4:$AQ$4&Лист3!$B$5:$AQ$5,0)),0) -> 18.8
C52: =IFERROR(INDEX(Лист1!$A$3:$A$10,SMALL(IF(ISNUMBER(INDEX(Лист1!$B$3:$AF$10,,MATCH(Лист2!$D52,Лист1!$B$1:$AF$1,0))),ROW(Лист1!$A$3:$A$10)-2),COUNTIF($D$7:D52,D52))),"") ->  | D52: 12 | E52: =IFERROR(SUMPRODUCT(Лист1!$B$3:$AF$10*(Лист1!$B$1:$AF$1=Лист2!$D52)*(Лист2!$C52=Лист1!$A$3:$A$10))*INDEX(Лист3!$B$7:$AQ$96,MATCH(Лист2!$C52,Лист3!$A$7:$A$96,0),MATCH(Лист2!E$1&E$2,Лист3!$B$4:$AQ$4&Лист3!$B$5:$AQ$5,0)),0) -> 0 | F52: =IFERROR(SUMPRODUCT(Лист1!$B$3:$AF$10*(Лист1!$B$1:$AF$1=Лист2!$D52)*(Лист2!$C52=Лист1!$A$3:$A$10))*INDEX(Лист3!$B$7:$AQ$96,MATCH(Лист2!$C52,Лист3!$A$7:$A$96,0),MATCH(Лист2!F$1&F$2,Лист3!$B$4:$AQ$4&Лист3!$B$5:$AQ$5,0)),0) -> 0 | G52: =IFERROR(SUMPRODUCT(Лист1!$B$3:$AF$10*(Лист1!$B$1:$AF$1=Лист2!$D52)*(Лист2!$C52=Лист1!$A$3:$A$10))*INDEX(Лист3!$B$7:$AQ$96,MATCH(Лист2!$C52,Лист3!$A$7:$A$96,0),MATCH(Лист2!G$1&G$2,Лист3!$B$4:$AQ$4&Лист3!$B$5:$AQ$5,0)),0) -> 0 | H52: =IFERROR(SUMPRODUCT(Лист1!$B$3:$AF$10*(Лист1!$B$1:$AF$1=Лист2!$D52)*(Лист2!$C52=Лист1!$A$3:$A$10))*INDEX(Лист3!$B$7:$AQ$96,MATCH(Лист2!$C52,Лист3!$A$7:$A$96,0),MATCH(Лист2!H$1&H$2,Лист3!$B$4:$AQ$4&Лист3!$B$5:$AQ$5,0)),0) -> 0 | I52: =IFERROR(SUMPRODUCT(Лист1!$B$3:$AF$10*(Лист1!$B$1:$AF$1=Лист2!$D52)*(Лист2!$C52=Лист1!$A$3:$A$10))*INDEX(Лист3!$B$7:$AQ$96,MATCH(Лист2!$C52,Лист3!$A$7:$A$96,0),MATCH(Лист2!I$1&I$2,Лист3!$B$4:$AQ$4&Лист3!$B$5:$AQ$5,0)),0) -> 0 | J52: =IFERROR(SUMPRODUCT(Лист1!$B$3:$AF$10*(Лист1!$B$1:$AF$1=Лист2!$D52)*(Лист2!$C52=Лист1!$A$3:$A$10))*INDEX(Лист3!$B$7:$AQ$96,MATCH(Лист2!$C52,Лист3!$A$7:$A$96,0),MATCH(Лист2!J$1&J$2,Лист3!$B$4:$AQ$4&Лист3!$B$5:$AQ$5,0)),0) -> 0 | K52: =IFERROR(SUMPRODUCT(Лист1!$B$3:$AF$10*(Лист1!$B$1:$AF$1=Лист2!$D52)*(Лист2!$C52=Лист1!$A$3:$A$10))*INDEX(Лист3!$B$7:$AQ$96,MATCH(Лист2!$C52,Лист3!$A$7:$A$96,0),MATCH(Лист2!K$1&K$2,Лист3!$B$4:$AQ$4&Лист3!$B$5:$AQ$5,0)),0) -> 0 | L52: =IFERROR(SUMPRODUCT(Лист1!$B$3:$AF$10*(Лист1!$B$1:$AF$1=Лист2!$D52)*(Лист2!$C52=Лист1!$A$3:$A$10))*INDEX(Лист3!$B$7:$AQ$96,MATCH(Лист2!$C52,Лист3!$A$7:$A$96,0),MATCH(Лист2!L$1&L$2,Лист3!$B$4:$AQ$4&Лист3!$B$5:$AQ$5,0)),0) -> 0 | M52: =IFERROR(SUMPRODUCT(Лист1!$B$3:$AF$10*(Лист1!$B$1:$AF$1=Лист2!$D52)*(Лист2!$C52=Лист1!$A$3:$A$10))*INDEX(Лист3!$B$7:$AQ$96,MATCH(Лист2!$C52,Лист3!$A$7:$A$96,0),MATCH(Лист2!M$1&M$2,Лист3!$B$4:$AQ$4&Лист3!$B$5:$AQ$5,0)),0) -> 0 | N52: =IFERROR(SUMPRODUCT(Лист1!$B$3:$AF$10*(Лист1!$B$1:$AF$1=Лист2!$D52)*(Лист2!$C52=Лист1!$A$3:$A$10))*INDEX(Лист3!$B$7:$AQ$96,MATCH(Лист2!$C52,Лист3!$A$7:$A$96,0),MATCH(Лист2!N$1&N$2,Лист3!$B$4:$AQ$4&Лист3!$B$5:$AQ$5,0)),0) -> 0 | O52: =IFERROR(SUMPRODUCT(Лист1!$B$3:$AF$10*(Лист1!$B$1:$AF$1=Лист2!$D52)*(Лист2!$C52=Лист1!$A$3:$A$10))*INDEX(Лист3!$B$7:$AQ$96,MATCH(Лист2!$C52,Лист3!$A$7:$A$96,0),MATCH(Лист2!O$1&O$2,Лист3!$B$4:$AQ$4&Лист3!$B$5:$AQ$5,0)),0) -> 0 | P52: =IFERROR(SUMPRODUCT(Лист1!$B$3:$AF$10*(Лист1!$B$1:$AF$1=Лист2!$D52)*(Лист2!$C52=Лист1!$A$3:$A$10))*INDEX(Лист3!$B$7:$AQ$96,MATCH(Лист2!$C52,Лист3!$A$7:$A$96,0),MATCH(Лист2!P$1&P$2,Лист3!$B$4:$AQ$4&Лист3!$B$5:$AQ$5,0)),0) -> 0 | Q52: =IFERROR(SUMPRODUCT(Лист1!$B$3:$AF$10*(Лист1!$B$1:$AF$1=Лист2!$D52)*(Лист2!$C52=Лист1!$A$3:$A$10))*INDEX(Лист3!$B$7:$AQ$96,MATCH(Лист2!$C52,Лист3!$A$7:$A$96,0),MATCH(Лист2!Q$1&Q$2,Лист3!$B$4:$AQ$4&Лист3!$B$5:$AQ$5,0)),0) -> 0 | R52: =IFERROR(SUMPRODUCT(Лист1!$B$3:$AF$10*(Лист1!$B$1:$AF$1=Лист2!$D52)*(Лист2!$C52=Лист1!$A$3:$A$10))*INDEX(Лист3!$B$7:$AQ$96,MATCH(Лист2!$C52,Лист3!$A$7:$A$96,0),MATCH(Лист2!R$1&R$2,Лист3!$B$4:$AQ$4&Лист3!$B$5:$AQ$5,0)),0) -> 0 | S52: =IFERROR(SUMPRODUCT(Лист1!$B$3:$AF$10*(Лист1!$B$1:$AF$1=Лист2!$D52)*(Лист2!$C52=Лист1!$A$3:$A$10))*INDEX(Лист3!$B$7:$AQ$96,MATCH(Лист2!$C52,Лист3!$A$7:$A$96,0),MATCH(Лист2!S$1&S$2,Лист3!$B$4:$AQ$4&Лист3!$B$5:$AQ$5,0)),0) -> 0 | T52: =IFERROR(SUMPRODUCT(Лист1!$B$3:$AF$10*(Лист1!$B$1:$AF$1=Лист2!$D52)*(Лист2!$C52=Лист1!$A$3:$A$10))*INDEX(Лист3!$B$7:$AQ$96,MATCH(Лист2!$C52,Лист3!$A$7:$A$96,0),MATCH(Лист2!T$1&T$2,Лист3!$B$4:$AQ$4&Лист3!$B$5:$AQ$5,0)),0) -> 0 | U52: =IFERROR(SUMPRODUCT(Лист1!$B$3:$AF$10*(Лист1!$B$1:$AF$1=Лист2!$D52)*(Лист2!$C52=Лист1!$A$3:$A$10))*INDEX(Лист3!$B$7:$AQ$96,MATCH(Лист2!$C52,Лист3!$A$7:$A$96,0),MATCH(Лист2!U$1&U$2,Лист3!$B$4:$AQ$4&Лист3!$B$5:$AQ$5,0)),0) -> 0 | V52: =IFERROR(SUMPRODUCT(Лист1!$B$3:$AF$10*(Лист1!$B$1:$AF$1=Лист2!$D52)*(Лист2!$C52=Лист1!$A$3:$A$10))*INDEX(Лист3!$B$7:$AQ$96,MATCH(Лист2!$C52,Лист3!$A$7:$A$96,0),MATCH(Лист2!V$1&V$2,Лист3!$B$4:$AQ$4&Лист3!$B$5:$AQ$5,0)),0) -> 0 | W52: =IFERROR(SUMPRODUCT(Лист1!$B$3:$AF$10*(Лист1!$B$1:$AF$1=Лист2!$D52)*(Лист2!$C52=Лист1!$A$3:$A$10))*INDEX(Лист3!$B$7:$AQ$96,MATCH(Лист2!$C52,Лист3!$A$7:$A$96,0),MATCH(Лист2!W$1&W$2,Лист3!$B$4:$AQ$4&Лист3!$B$5:$AQ$5,0)),0) -> 0 | X52: =IFERROR(SUMPRODUCT(Лист1!$B$3:$AF$10*(Лист1!$B$1:$AF$1=Лист2!$D52)*(Лист2!$C52=Лист1!$A$3:$A$10))*INDEX(Лист3!$B$7:$AQ$96,MATCH(Лист2!$C52,Лист3!$A$7:$A$96,0),MATCH(Лист2!X$1&X$2,Лист3!$B$4:$AQ$4&Лист3!$B$5:$AQ$5,0)),0) -> 0 | Y52: =IFERROR(SUMPRODUCT(Лист1!$B$3:$AF$10*(Лист1!$B$1:$AF$1=Лист2!$D52)*(Лист2!$C52=Лист1!$A$3:$A$10))*INDEX(Лист3!$B$7:$AQ$96,MATCH(Лист2!$C52,Лист3!$A$7:$A$96,0),MATCH(Лист2!Y$1&Y$2,Лист3!$B$4:$AQ$4&Лист3!$B$5:$AQ$5,0)),0) -> 0 | Z52: =IFERROR(SUMPRODUCT(Лист1!$B$3:$AF$10*(Лист1!$B$1:$AF$1=Лист2!$D52)*(Лист2!$C52=Лист1!$A$3:$A$10))*INDEX(Лист3!$B$7:$AQ$96,MATCH(Лист2!$C52,Лист3!$A$7:$A$96,0),MATCH(Лист2!Z$1&Z$2,Лист3!$B$4:$AQ$4&Лист3!$B$5:$AQ$5,0)),0) -> 0 | AA52: =IFERROR(SUMPRODUCT(Лист1!$B$3:$AF$10*(Лист1!$B$1:$AF$1=Лист2!$D52)*(Лист2!$C52=Лист1!$A$3:$A$10))*INDEX(Лист3!$B$7:$AQ$96,MATCH(Лист2!$C52,Лист3!$A$7:$A$96,0),MATCH(Лист2!AA$1&AA$2,Лист3!$B$4:$AQ$4&Лист3!$B$5:$AQ$5,0)),0) -> 0
C53: =IFERROR(INDEX(Лист1!$A$3:$A$10,SMALL(IF(ISNUMBER(INDEX(Лист1!$B$3:$AF$10,,MATCH(Лист2!$D53,Лист1!$B$1:$AF$1,0))),ROW(Лист1!$A$3:$A$10)-2),COUNTIF($D$7:D53,D53))),"") ->  | D53: 12 | E53: =IFERROR(SUMPRODUCT(Лист1!$B$3:$AF$10*(Лист1!$B$1:$AF$1=Лист2!$D53)*(Лист2!$C53=Лист1!$A$3:$A$10))*INDEX(Лист3!$B$7:$AQ$96,MATCH(Лист2!$C53,Лист3!$A$7:$A$96,0),MATCH(Лист2!E$1&E$2,Лист3!$B$4:$AQ$4&Лист3!$B$5:$AQ$5,0)),0) -> 0 | F53: =IFERROR(SUMPRODUCT(Лист1!$B$3:$AF$10*(Лист1!$B$1:$AF$1=Лист2!$D53)*(Лист2!$C53=Лист1!$A$3:$A$10))*INDEX(Лист3!$B$7:$AQ$96,MATCH(Лист2!$C53,Лист3!$A$7:$A$96,0),MATCH(Лист2!F$1&F$2,Лист3!$B$4:$AQ$4&Лист3!$B$5:$AQ$5,0)),0) -> 0 | G53: =IFERROR(SUMPRODUCT(Лист1!$B$3:$AF$10*(Лист1!$B$1:$AF$1=Лист2!$D53)*(Лист2!$C53=Лист1!$A$3:$A$10))*INDEX(Лист3!$B$7:$AQ$96,MATCH(Лист2!$C53,Лист3!$A$7:$A$96,0),MATCH(Лист2!G$1&G$2,Лист3!$B$4:$AQ$4&Лист3!$B$5:$AQ$5,0)),0) -> 0 | H53: =IFERROR(SUMPRODUCT(Лист1!$B$3:$AF$10*(Лист1!$B$1:$AF$1=Лист2!$D53)*(Лист2!$C53=Лист1!$A$3:$A$10))*INDEX(Лист3!$B$7:$AQ$96,MATCH(Лист2!$C53,Лист3!$A$7:$A$96,0),MATCH(Лист2!H$1&H$2,Лист3!$B$4:$AQ$4&Лист3!$B$5:$AQ$5,0)),0) -> 0 | I53: =IFERROR(SUMPRODUCT(Лист1!$B$3:$AF$10*(Лист1!$B$1:$AF$1=Лист2!$D53)*(Лист2!$C53=Лист1!$A$3:$A$10))*INDEX(Лист3!$B$7:$AQ$96,MATCH(Лист2!$C53,Лист3!$A$7:$A$96,0),MATCH(Лист2!I$1&I$2,Лист3!$B$4:$AQ$4&Лист3!$B$5:$AQ$5,0)),0) -> 0 | J53: =IFERROR(SUMPRODUCT(Лист1!$B$3:$AF$10*(Лист1!$B$1:$AF$1=Лист2!$D53)*(Лист2!$C53=Лист1!$A$3:$A$10))*INDEX(Лист3!$B$7:$AQ$96,MATCH(Лист2!$C53,Лист3!$A$7:$A$96,0),MATCH(Лист2!J$1&J$2,Лист3!$B$4:$AQ$4&Лист3!$B$5:$AQ$5,0)),0) -> 0 | K53: =IFERROR(SUMPRODUCT(Лист1!$B$3:$AF$10*(Лист1!$B$1:$AF$1=Лист2!$D53)*(Лист2!$C53=Лист1!$A$3:$A$10))*INDEX(Лист3!$B$7:$AQ$96,MATCH(Лист2!$C53,Лист3!$A$7:$A$96,0),MATCH(Лист2!K$1&K$2,Лист3!$B$4:$AQ$4&Лист3!$B$5:$AQ$5,0)),0) -> 0 | L53: =IFERROR(SUMPRODUCT(Лист1!$B$3:$AF$10*(Лист1!$B$1:$AF$1=Лист2!$D53)*(Лист2!$C53=Лист1!$A$3:$A$10))*INDEX(Лист3!$B$7:$AQ$96,MATCH(Лист2!$C53,Лист3!$A$7:$A$96,0),MATCH(Лист2!L$1&L$2,Лист3!$B$4:$AQ$4&Лист3!$B$5:$AQ$5,0)),0) -> 0 | M53: =IFERROR(SUMPRODUCT(Лист1!$B$3:$AF$10*(Лист1!$B$1:$AF$1=Лист2!$D53)*(Лист2!$C53=Лист1!$A$3:$A$10))*INDEX(Лист3!$B$7:$AQ$96,MATCH(Лист2!$C53,Лист3!$A$7:$A$96,0),MATCH(Лист2!M$1&M$2,Лист3!$B$4:$AQ$4&Лист3!$B$5:$AQ$5,0)),0) -> 0 | N53: =IFERROR(SUMPRODUCT(Лист1!$B$3:$AF$10*(Лист1!$B$1:$AF$1=Лист2!$D53)*(Лист2!$C53=Лист1!$A$3:$A$10))*INDEX(Лист3!$B$7:$AQ$96,MATCH(Лист2!$C53,Лист3!$A$7:$A$96,0),MATCH(Лист2!N$1&N$2,Лист3!$B$4:$AQ$4&Лист3!$B$5:$AQ$5,0)),0) -> 0 | O53: =IFERROR(SUMPRODUCT(Лист1!$B$3:$AF$10*(Лист1!$B$1:$AF$1=Лист2!$D53)*(Лист2!$C53=Лист1!$A$3:$A$10))*INDEX(Лист3!$B$7:$AQ$96,MATCH(Лист2!$C53,Лист3!$A$7:$A$96,0),MATCH(Лист2!O$1&O$2,Лист3!$B$4:$AQ$4&Лист3!$B$5:$AQ$5,0)),0) -> 0 | P53: =IFERROR(SUMPRODUCT(Лист1!$B$3:$AF$10*(Лист1!$B$1:$AF$1=Лист2!$D53)*(Лист2!$C53=Лист1!$A$3:$A$10))*INDEX(Лист3!$B$7:$AQ$96,MATCH(Лист2!$C53,Лист3!$A$7:$A$96,0),MATCH(Лист2!P$1&P$2,Лист3!$B$4:$AQ$4&Лист3!$B$5:$AQ$5,0)),0) -> 0 | Q53: =IFERROR(SUMPRODUCT(Лист1!$B$3:$AF$10*(Лист1!$B$1:$AF$1=Лист2!$D53)*(Лист2!$C53=Лист1!$A$3:$A$10))*INDEX(Лист3!$B$7:$AQ$96,MATCH(Лист2!$C53,Лист3!$A$7:$A$96,0),MATCH(Лист2!Q$1&Q$2,Лист3!$B$4:$AQ$4&Лист3!$B$5:$AQ$5,0)),0) -> 0 | R53: =IFERROR(SUMPRODUCT(Лист1!$B$3:$AF$10*(Лист1!$B$1:$AF$1=Лист2!$D53)*(Лист2!$C53=Лист1!$A$3:$A$10))*INDEX(Лист3!$B$7:$AQ$96,MATCH(Лист2!$C53,Лист3!$A$7:$A$96,0),MATCH(Лист2!R$1&R$2,Лист3!$B$4:$AQ$4&Лист3!$B$5:$AQ$5,0)),0) -> 0 | S53: =IFERROR(SUMPRODUCT(Лист1!$B$3:$AF$10*(Лист1!$B$1:$AF$1=Лист2!$D53)*(Лист2!$C53=Лист1!$A$3:$A$10))*INDEX(Лист3!$B$7:$AQ$96,MATCH(Лист2!$C53,Лист3!$A$7:$A$96,0),MATCH(Лист2!S$1&S$2,Лист3!$B$4:$AQ$4&Лист3!$B$5:$AQ$5,0)),0) -> 0 | T53: =IFERROR(SUMPRODUCT(Лист1!$B$3:$AF$10*(Лист1!$B$1:$AF$1=Лист2!$D53)*(Лист2!$C53=Лист1!$A$3:$A$10))*INDEX(Лист3!$B$7:$AQ$96,MATCH(Лист2!$C53,Лист3!$A$7:$A$96,0),MATCH(Лист2!T$1&T$2,Лист3!$B$4:$AQ$4&Лист3!$B$5:$AQ$5,0)),0) -> 0 | U53: =IFERROR(SUMPRODUCT(Лист1!$B$3:$AF$10*(Лист1!$B$1:$AF$1=Лист2!$D53)*(Лист2!$C53=Лист1!$A$3:$A$10))*INDEX(Лист3!$B$7:$AQ$96,MATCH(Лист2!$C53,Лист3!$A$7:$A$96,0),MATCH(Лист2!U$1&U$2,Лист3!$B$4:$AQ$4&Лист3!$B$5:$AQ$5,0)),0) -> 0 | V53: =IFERROR(SUMPRODUCT(Лист1!$B$3:$AF$10*(Лист1!$B$1:$AF$1=Лист2!$D53)*(Лист2!$C53=Лист1!$A$3:$A$10))*INDEX(Лист3!$B$7:$AQ$96,MATCH(Лист2!$C53,Лист3!$A$7:$A$96,0),MATCH(Лист2!V$1&V$2,Лист3!$B$4:$AQ$4&Лист3!$B$5:$AQ$5,0)),0) -> 0 | W53: =IFERROR(SUMPRODUCT(Лист1!$B$3:$AF$10*(Лист1!$B$1:$AF$1=Лист2!$D53)*(Лист2!$C53=Лист1!$A$3:$A$10))*INDEX(Лист3!$B$7:$AQ$96,MATCH(Лист2!$C53,Лист3!$A$7:$A$96,0),MATCH(Лист2!W$1&W$2,Лист3!$B$4:$AQ$4&Лист3!$B$5:$AQ$5,0)),0) -> 0 | X53: =IFERROR(SUMPRODUCT(Лист1!$B$3:$AF$10*(Лист1!$B$1:$AF$1=Лист2!$D53)*(Лист2!$C53=Лист1!$A$3:$A$10))*INDEX(Лист3!$B$7:$AQ$96,MATCH(Лист2!$C53,Лист3!$A$7:$A$96,0),MATCH(Лист2!X$1&X$2,Лист3!$B$4:$AQ$4&Лист3!$B$5:$AQ$5,0)),0) -> 0 | Y53: =IFERROR(SUMPRODUCT(Лист1!$B$3:$AF$10*(Лист1!$B$1:$AF$1=Лист2!$D53)*(Лист2!$C53=Лист1!$A$3:$A$10))*INDEX(Лист3!$B$7:$AQ$96,MATCH(Лист2!$C53,Лист3!$A$7:$A$96,0),MATCH(Лист2!Y$1&Y$2,Лист3!$B$4:$AQ$4&Лист3!$B$5:$AQ$5,0)),0) -> 0 | Z53: =IFERROR(SUMPRODUCT(Лист1!$B$3:$AF$10*(Лист1!$B$1:$AF$1=Лист2!$D53)*(Лист2!$C53=Лист1!$A$3:$A$10))*INDEX(Лист3!$B$7:$AQ$96,MATCH(Лист2!$C53,Лист3!$A$7:$A$96,0),MATCH(Лист2!Z$1&Z$2,Лист3!$B$4:$AQ$4&Лист3!$B$5:$AQ$5,0)),0) -> 0 | AA53: =IFERROR(SUMPRODUCT(Лист1!$B$3:$AF$10*(Лист1!$B$1:$AF$1=Лист2!$D53)*(Лист2!$C53=Лист1!$A$3:$A$10))*INDEX(Лист3!$B$7:$AQ$96,MATCH(Лист2!$C53,Лист3!$A$7:$A$96,0),MATCH(Лист2!AA$1&AA$2,Лист3!$B$4:$AQ$4&Лист3!$B$5:$AQ$5,0)),0) -> 0
C54: =IFERROR(INDEX(Лист1!$A$3:$A$10,SMALL(IF(ISNUMBER(INDEX(Лист1!$B$3:$AF$10,,MATCH(Лист2!$D54,Лист1!$B$1:$AF$1,0))),ROW(Лист1!$A$3:$A$10)-2),COUNTIF($D$7:D54,D54))),"") ->  | D54: 12 | E54: =IFERROR(SUMPRODUCT(Лист1!$B$3:$AF$10*(Лист1!$B$1:$AF$1=Лист2!$D54)*(Лист2!$C54=Лист1!$A$3:$A$10))*INDEX(Лист3!$B$7:$AQ$96,MATCH(Лист2!$C54,Лист3!$A$7:$A$96,0),MATCH(Лист2!E$1&E$2,Лист3!$B$4:$AQ$4&Лист3!$B$5:$AQ$5,0)),0) -> 0 | F54: =IFERROR(SUMPRODUCT(Лист1!$B$3:$AF$10*(Лист1!$B$1:$AF$1=Лист2!$D54)*(Лист2!$C54=Лист1!$A$3:$A$10))*INDEX(Лист3!$B$7:$AQ$96,MATCH(Лист2!$C54,Лист3!$A$7:$A$96,0),MATCH(Лист2!F$1&F$2,Лист3!$B$4:$AQ$4&Лист3!$B$5:$AQ$5,0)),0) -> 0 | G54: =IFERROR(SUMPRODUCT(Лист1!$B$3:$AF$10*(Лист1!$B$1:$AF$1=Лист2!$D54)*(Лист2!$C54=Лист1!$A$3:$A$10))*INDEX(Лист3!$B$7:$AQ$96,MATCH(Лист2!$C54,Лист3!$A$7:$A$96,0),MATCH(Лист2!G$1&G$2,Лист3!$B$4:$AQ$4&Лист3!$B$5:$AQ$5,0)),0) -> 0 | H54: =IFERROR(SUMPRODUCT(Лист1!$B$3:$AF$10*(Лист1!$B$1:$AF$1=Лист2!$D54)*(Лист2!$C54=Лист1!$A$3:$A$10))*INDEX(Лист3!$B$7:$AQ$96,MATCH(Лист2!$C54,Лист3!$A$7:$A$96,0),MATCH(Лист2!H$1&H$2,Лист3!$B$4:$AQ$4&Лист3!$B$5:$AQ$5,0)),0) -> 0 | I54: =IFERROR(SUMPRODUCT(Лист1!$B$3:$AF$10*(Лист1!$B$1:$AF$1=Лист2!$D54)*(Лист2!$C54=Лист1!$A$3:$A$10))*INDEX(Лист3!$B$7:$AQ$96,MATCH(Лист2!$C54,Лист3!$A$7:$A$96,0),MATCH(Лист2!I$1&I$2,Лист3!$B$4:$AQ$4&Лист3!$B$5:$AQ$5,0)),0) -> 0 | J54: =IFERROR(SUMPRODUCT(Лист1!$B$3:$AF$10*(Лист1!$B$1:$AF$1=Лист2!$D54)*(Лист2!$C54=Лист1!$A$3:$A$10))*INDEX(Лист3!$B$7:$AQ$96,MATCH(Лист2!$C54,Лист3!$A$7:$A$96,0),MATCH(Лист2!J$1&J$2,Лист3!$B$4:$AQ$4&Лист3!$B$5:$AQ$5,0)),0) -> 0 | K54: =IFERROR(SUMPRODUCT(Лист1!$B$3:$AF$10*(Лист1!$B$1:$AF$1=Лист2!$D54)*(Лист2!$C54=Лист1!$A$3:$A$10))*INDEX(Лист3!$B$7:$AQ$96,MATCH(Лист2!$C54,Лист3!$A$7:$A$96,0),MATCH(Лист2!K$1&K$2,Лист3!$B$4:$AQ$4&Лист3!$B$5:$AQ$5,0)),0) -> 0 | L54: =IFERROR(SUMPRODUCT(Лист1!$B$3:$AF$10*(Лист1!$B$1:$AF$1=Лист2!$D54)*(Лист2!$C54=Лист1!$A$3:$A$10))*INDEX(Лист3!$B$7:$AQ$96,MATCH(Лист2!$C54,Лист3!$A$7:$A$96,0),MATCH(Лист2!L$1&L$2,Лист3!$B$4:$AQ$4&Лист3!$B$5:$AQ$5,0)),0) -> 0 | M54: =IFERROR(SUMPRODUCT(Лист1!$B$3:$AF$10*(Лист1!$B$1:$AF$1=Лист2!$D54)*(Лист2!$C54=Лист1!$A$3:$A$10))*INDEX(Лист3!$B$7:$AQ$96,MATCH(Лист2!$C54,Лист3!$A$7:$A$96,0),MATCH(Лист2!M$1&M$2,Лист3!$B$4:$AQ$4&Лист3!$B$5:$AQ$5,0)),0) -> 0 | N54: =IFERROR(SUMPRODUCT(Лист1!$B$3:$AF$10*(Лист1!$B$1:$AF$1=Лист2!$D54)*(Лист2!$C54=Лист1!$A$3:$A$10))*INDEX(Лист3!$B$7:$AQ$96,MATCH(Лист2!$C54,Лист3!$A$7:$A$96,0),MATCH(Лист2!N$1&N$2,Лист3!$B$4:$AQ$4&Лист3!$B$5:$AQ$5,0)),0) -> 0 | O54: =IFERROR(SUMPRODUCT(Лист1!$B$3:$AF$10*(Лист1!$B$1:$AF$1=Лист2!$D54)*(Лист2!$C54=Лист1!$A$3:$A$10))*INDEX(Лист3!$B$7:$AQ$96,MATCH(Лист2!$C54,Лист3!$A$7:$A$96,0),MATCH(Лист2!O$1&O$2,Лист3!$B$4:$AQ$4&Лист3!$B$5:$AQ$5,0)),0) -> 0 | P54: =IFERROR(SUMPRODUCT(Лист1!$B$3:$AF$10*(Лист1!$B$1:$AF$1=Лист2!$D54)*(Лист2!$C54=Лист1!$A$3:$A$10))*INDEX(Лист3!$B$7:$AQ$96,MATCH(Лист2!$C54,Лист3!$A$7:$A$96,0),MATCH(Лист2!P$1&P$2,Лист3!$B$4:$AQ$4&Лист3!$B$5:$AQ$5,0)),0) -> 0 | Q54: =IFERROR(SUMPRODUCT(Лист1!$B$3:$AF$10*(Лист1!$B$1:$AF$1=Лист2!$D54)*(Лист2!$C54=Лист1!$A$3:$A$10))*INDEX(Лист3!$B$7:$AQ$96,MATCH(Лист2!$C54,Лист3!$A$7:$A$96,0),MATCH(Лист2!Q$1&Q$2,Лист3!$B$4:$AQ$4&Лист3!$B$5:$AQ$5,0)),0) -> 0 | R54: =IFERROR(SUMPRODUCT(Лист1!$B$3:$AF$10*(Лист1!$B$1:$AF$1=Лист2!$D54)*(Лист2!$C54=Лист1!$A$3:$A$10))*INDEX(Лист3!$B$7:$AQ$96,MATCH(Лист2!$C54,Лист3!$A$7:$A$96,0),MATCH(Лист2!R$1&R$2,Лист3!$B$4:$AQ$4&Лист3!$B$5:$AQ$5,0)),0) -> 0 | S54: =IFERROR(SUMPRODUCT(Лист1!$B$3:$AF$10*(Лист1!$B$1:$AF$1=Лист2!$D54)*(Лист2!$C54=Лист1!$A$3:$A$10))*INDEX(Лист3!$B$7:$AQ$96,MATCH(Лист2!$C54,Лист3!$A$7:$A$96,0),MATCH(Лист2!S$1&S$2,Лист3!$B$4:$AQ$4&Лист3!$B$5:$AQ$5,0)),0) -> 0 | T54: =IFERROR(SUMPRODUCT(Лист1!$B$3:$AF$10*(Лист1!$B$1:$AF$1=Лист2!$D54)*(Лист2!$C54=Лист1!$A$3:$A$10))*INDEX(Лист3!$B$7:$AQ$96,MATCH(Лист2!$C54,Лист3!$A$7:$A$96,0),MATCH(Лист2!T$1&T$2,Лист3!$B$4:$AQ$4&Лист3!$B$5:$AQ$5,0)),0) -> 0 | U54: =IFERROR(SUMPRODUCT(Лист1!$B$3:$AF$10*(Лист1!$B$1:$AF$1=Лист2!$D54)*(Лист2!$C54=Лист1!$A$3:$A$10))*INDEX(Лист3!$B$7:$AQ$96,MATCH(Лист2!$C54,Лист3!$A$7:$A$96,0),MATCH(Лист2!U$1&U$2,Лист3!$B$4:$AQ$4&Лист3!$B$5:$AQ$5,0)),0) -> 0 | V54: =IFERROR(SUMPRODUCT(Лист1!$B$3:$AF$10*(Лист1!$B$1:$AF$1=Лист2!$D54)*(Лист2!$C54=Лист1!$A$3:$A$10))*INDEX(Лист3!$B$7:$AQ$96,MATCH(Лист2!$C54,Лист3!$A$7:$A$96,0),MATCH(Лист2!V$1&V$2,Лист3!$B$4:$AQ$4&Лист3!$B$5:$AQ$5,0)),0) -> 0 | W54: =IFERROR(SUMPRODUCT(Лист1!$B$3:$AF$10*(Лист1!$B$1:$AF$1=Лист2!$D54)*(Лист2!$C54=Лист1!$A$3:$A$10))*INDEX(Лист3!$B$7:$AQ$96,MATCH(Лист2!$C54,Лист3!$A$7:$A$96,0),MATCH(Лист2!W$1&W$2,Лист3!$B$4:$AQ$4&Лист3!$B$5:$AQ$5,0)),0) -> 0 | X54: =IFERROR(SUMPRODUCT(Лист1!$B$3:$AF$10*(Лист1!$B$1:$AF$1=Лист2!$D54)*(Лист2!$C54=Лист1!$A$3:$A$10))*INDEX(Лист3!$B$7:$AQ$96,MATCH(Лист2!$C54,Лист3!$A$7:$A$96,0),MATCH(Лист2!X$1&X$2,Лист3!$B$4:$AQ$4&Лист3!$B$5:$AQ$5,0)),0) -> 0 | Y54: =IFERROR(SUMPRODUCT(Лист1!$B$3:$AF$10*(Лист1!$B$1:$AF$1=Лист2!$D54)*(Лист2!$C54=Лист1!$A$3:$A$10))*INDEX(Лист3!$B$7:$AQ$96,MATCH(Лист2!$C54,Лист3!$A$7:$A$96,0),MATCH(Лист2!Y$1&Y$2,Лист3!$B$4:$AQ$4&Лист3!$B$5:$AQ$5,0)),0) -> 0 | Z54: =IFERROR(SUMPRODUCT(Лист1!$B$3:$AF$10*(Лист1!$B$1:$AF$1=Лист2!$D54)*(Лист2!$C54=Лист1!$A$3:$A$10))*INDEX(Лист3!$B$7:$AQ$96,MATCH(Лист2!$C54,Лист3!$A$7:$A$96,0),MATCH(Лист2!Z$1&Z$2,Лист3!$B$4:$AQ$4&Лист3!$B$5:$AQ$5,0)),0) -> 0 | AA54: =IFERROR(SUMPRODUCT(Лист1!$B$3:$AF$10*(Лист1!$B$1:$AF$1=Лист2!$D54)*(Лист2!$C54=Лист1!$A$3:$A$10))*INDEX(Лист3!$B$7:$AQ$96,MATCH(Лист2!$C54,Лист3!$A$7:$A$96,0),MATCH(Лист2!AA$1&AA$2,Лист3!$B$4:$AQ$4&Лист3!$B$5:$AQ$5,0)),0) -> 0
C55: =IFERROR(INDEX(Лист1!$A$3:$A$10,SMALL(IF(ISNUMBER(INDEX(Лист1!$B$3:$AF$10,,MATCH(Лист2!$D55,Лист1!$B$1:$AF$1,0))),ROW(Лист1!$A$3:$A$10)-2),COUNTIF($D$7:D55,D55))),"") -> Плита "Экстрол" 30-1180.580.50/8 (Ч), м3 | D55: 13 | E55: =IFERROR(SUMPRODUCT(Лист1!$B$3:$AF$10*(Лист1!$B$1:$AF$1=Лист2!$D55)*(Лист2!$C55=Лист1!$A$3:$A$10))*INDEX(Лист3!$B$7:$AQ$96,MATCH(Лист2!$C55,Лист3!$A$7:$A$96,0),MATCH(Лист2!E$1&E$2,Лист3!$B$4:$AQ$4&Лист3!$B$5:$AQ$5,0)),0) -> 540 | F55: =IFERROR(SUMPRODUCT(Лист1!$B$3:$AF$10*(Лист1!$B$1:$AF$1=Лист2!$D55)*(Лист2!$C55=Лист1!$A$3:$A$10))*INDEX(Лист3!$B$7:$AQ$96,MATCH(Лист2!$C55,Лист3!$A$7:$A$96,0),MATCH(Лист2!F$1&F$2,Лист3!$B$4:$AQ$4&Лист3!$B$5:$AQ$5,0)),0) -> 2180 | G55: =IFERROR(SUMPRODUCT(Лист1!$B$3:$AF$10*(Лист1!$B$1:$AF$1=Лист2!$D55)*(Лист2!$C55=Лист1!$A$3:$A$10))*INDEX(Лист3!$B$7:$AQ$96,MATCH(Лист2!$C55,Лист3!$A$7:$A$96,0),MATCH(Лист2!G$1&G$2,Лист3!$B$4:$AQ$4&Лист3!$B$5:$AQ$5,0)),0) -> 10 | H55: =IFERROR(SUMPRODUCT(Лист1!$B$3:$AF$10*(Лист1!$B$1:$AF$1=Лист2!$D55)*(Лист2!$C55=Лист1!$A$3:$A$10))*INDEX(Лист3!$B$7:$AQ$96,MATCH(Лист2!$C55,Лист3!$A$7:$A$96,0),MATCH(Лист2!H$1&H$2,Лист3!$B$4:$AQ$4&Лист3!$B$5:$AQ$5,0)),0) -> 7 | I55: =IFERROR(SUMPRODUCT(Лист1!$B$3:$AF$10*(Лист1!$B$1:$AF$1=Лист2!$D55)*(Лист2!$C55=Лист1!$A$3:$A$10))*INDEX(Лист3!$B$7:$AQ$96,MATCH(Лист2!$C55,Лист3!$A$7:$A$96,0),MATCH(Лист2!I$1&I$2,Лист3!$B$4:$AQ$4&Лист3!$B$5:$AQ$5,0)),0) -> 0 | J55: =IFERROR(SUMPRODUCT(Лист1!$B$3:$AF$10*(Лист1!$B$1:$AF$1=Лист2!$D55)*(Лист2!$C55=Лист1!$A$3:$A$10))*INDEX(Лист3!$B$7:$AQ$96,MATCH(Лист2!$C55,Лист3!$A$7:$A$96,0),MATCH(Лист2!J$1&J$2,Лист3!$B$4:$AQ$4&Лист3!$B$5:$AQ$5,0)),0) -> 2 | K55: =IFERROR(SUMPRODUCT(Лист1!$B$3:$AF$10*(Лист1!$B$1:$AF$1=Лист2!$D55)*(Лист2!$C55=Лист1!$A$3:$A$10))*INDEX(Лист3!$B$7:$AQ$96,MATCH(Лист2!$C55,Лист3!$A$7:$A$96,0),MATCH(Лист2!K$1&K$2,Лист3!$B$4:$AQ$4&Лист3!$B$5:$AQ$5,0)),0) -> 0 | L55: =IFERROR(SUMPRODUCT(Лист1!$B$3:$AF$10*(Лист1!$B$1:$AF$1=Лист2!$D55)*(Лист2!$C55=Лист1!$A$3:$A$10))*INDEX(Лист3!$B$7:$AQ$96,MATCH(Лист2!$C55,Лист3!$A$7:$A$96,0),MATCH(Лист2!L$1&L$2,Лист3!$B$4:$AQ$4&Лист3!$B$5:$AQ$5,0)),0) -> 2 | M55: =IFERROR(SUMPRODUCT(Лист1!$B$3:$AF$10*(Лист1!$B$1:$AF$1=Лист2!$D55)*(Лист2!$C55=Лист1!$A$3:$A$10))*INDEX(Лист3!$B$7:$AQ$96,MATCH(Лист2!$C55,Лист3!$A$7:$A$96,0),MATCH(Лист2!M$1&M$2,Лист3!$B$4:$AQ$4&Лист3!$B$5:$AQ$5,0)),0) -> 90 | N55: =IFERROR(SUMPRODUCT(Лист1!$B$3:$AF$10*(Лист1!$B$1:$AF$1=Лист2!$D55)*(Лист2!$C55=Лист1!$A$3:$A$10))*INDEX(Лист3!$B$7:$AQ$96,MATCH(Лист2!$C55,Лист3!$A$7:$A$96,0),MATCH(Лист2!N$1&N$2,Лист3!$B$4:$AQ$4&Лист3!$B$5:$AQ$5,0)),0) -> 50 | O55: =IFERROR(SUMPRODUCT(Лист1!$B$3:$AF$10*(Лист1!$B$1:$AF$1=Лист2!$D55)*(Лист2!$C55=Лист1!$A$3:$A$10))*INDEX(Лист3!$B$7:$AQ$96,MATCH(Лист2!$C55,Лист3!$A$7:$A$96,0),MATCH(Лист2!O$1&O$2,Лист3!$B$4:$AQ$4&Лист3!$B$5:$AQ$5,0)),0) -> 0 | P55: =IFERROR(SUMPRODUCT(Лист1!$B$3:$AF$10*(Лист1!$B$1:$AF$1=Лист2!$D55)*(Лист2!$C55=Лист1!$A$3:$A$10))*INDEX(Лист3!$B$7:$AQ$96,MATCH(Лист2!$C55,Лист3!$A$7:$A$96,0),MATCH(Лист2!P$1&P$2,Лист3!$B$4:$AQ$4&Лист3!$B$5:$AQ$5,0)),0) -> 89 | Q55: =IFERROR(SUMPRODUCT(Лист1!$B$3:$AF$10*(Лист1!$B$1:$AF$1=Лист2!$D55)*(Лист2!$C55=Лист1!$A$3:$A$10))*INDEX(Лист3!$B$7:$AQ$96,MATCH(Лист2!$C55,Лист3!$A$7:$A$96,0),MATCH(Лист2!Q$1&Q$2,Лист3!$B$4:$AQ$4&Лист3!$B$5:$AQ$5,0)),0) -> 0 | R55: =IFERROR(SUMPRODUCT(Лист1!$B$3:$AF$10*(Лист1!$B$1:$AF$1=Лист2!$D55)*(Лист2!$C55=Лист1!$A$3:$A$10))*INDEX(Лист3!$B$7:$AQ$96,MATCH(Лист2!$C55,Лист3!$A$7:$A$96,0),MATCH(Лист2!R$1&R$2,Лист3!$B$4:$AQ$4&Лист3!$B$5:$AQ$5,0)),0) -> 10 | S55: =IFERROR(SUMPRODUCT(Лист1!$B$3:$AF$10*(Лист1!$B$1:$AF$1=Лист2!$D55)*(Лист2!$C55=Лист1!$A$3:$A$10))*INDEX(Лист3!$B$7:$AQ$96,MATCH(Лист2!$C55,Лист3!$A$7:$A$96,0),MATCH(Лист2!S$1&S$2,Лист3!$B$4:$AQ$4&Лист3!$B$5:$AQ$5,0)),0) -> 0.6 | T55: =IFERROR(SUMPRODUCT(Лист1!$B$3:$AF$10*(Лист1!$B$1:$AF$1=Лист2!$D55)*(Лист2!$C55=Лист1!$A$3:$A$10))*INDEX(Лист3!$B$7:$AQ$96,MATCH(Лист2!$C55,Лист3!$A$7:$A$96,0),MATCH(Лист2!T$1&T$2,Лист3!$B$4:$AQ$4&Лист3!$B$5:$AQ$5,0)),0) -> 0 | U55: =IFERROR(SUMPRODUCT(Лист1!$B$3:$AF$10*(Лист1!$B$1:$AF$1=Лист2!$D55)*(Лист2!$C55=Лист1!$A$3:$A$10))*INDEX(Лист3!$B$7:$AQ$96,MATCH(Лист2!$C55,Лист3!$A$7:$A$96,0),MATCH(Лист2!U$1&U$2,Лист3!$B$4:$AQ$4&Лист3!$B$5:$AQ$5,0)),0) -> 0 | V55: =IFERROR(SUMPRODUCT(Лист1!$B$3:$AF$10*(Лист1!$B$1:$AF$1=Лист2!$D55)*(Лист2!$C55=Лист1!$A$3:$A$10))*INDEX(Лист3!$B$7:$AQ$96,MATCH(Лист2!$C55,Лист3!$A$7:$A$96,0),MATCH(Лист2!V$1&V$2,Лист3!$B$4:$AQ$4&Лист3!$B$5:$AQ$5,0)),0) -> 0 | W55: =IFERROR(SUMPRODUCT(Лист1!$B$3:$AF$10*(Лист1!$B$1:$AF$1=Лист2!$D55)*(Лист2!$C55=Лист1!$A$3:$A$10))*INDEX(Лист3!$B$7:$AQ$96,MATCH(Лист2!$C55,Лист3!$A$7:$A$96,0),MATCH(Лист2!W$1&W$2,Лист3!$B$4:$AQ$4&Лист3!$B$5:$AQ$5,0)),0) -> 0 | X55: =IFERROR(SUMPRODUCT(Лист1!$B$3:$AF$10*(Лист1!$B$1:$AF$1=Лист2!$D55)*(Лист2!$C55=Лист1!$A$3:$A$10))*INDEX(Лист3!$B$7:$AQ$96,MATCH(Лист2!$C55,Лист3!$A$7:$A$96,0),MATCH(Лист2!X$1&X$2,Лист3!$B$4:$AQ$4&Лист3!$B$5:$AQ$5,0)),0) -> 1.6 | Y55: =IFERROR(SUMPRODUCT(Лист1!$B$3:$AF$10*(Лист1!$B$1:$AF$1=Лист2!$D55)*(Лист2!$C55=Лист1!$A$3:$A$10))*INDEX(Лист3!$B$7:$AQ$96,MATCH(Лист2!$C55,Лист3!$A$7:$A$96,0),MATCH(Лист2!Y$1&Y$2,Лист3!$B$4:$AQ$4&Лист3!$B$5:$AQ$5,0)),0) -> 0 | Z55: =IFERROR(SUMPRODUCT(Лист1!$B$3:$AF$10*(Лист1!$B$1:$AF$1=Лист2!$D55)*(Лист2!$C55=Лист1!$A$3:$A$10))*INDEX(Лист3!$B$7:$AQ$96,MATCH(Лист2!$C55,Лист3!$A$7:$A$96,0),MATCH(Лист2!Z$1&Z$2,Лист3!$B$4:$AQ$4&Лист3!$B$5:$AQ$5,0)),0) -> 0.25 | AA55: =IFERROR(SUMPRODUCT(Лист1!$B$3:$AF$10*(Лист1!$B$1:$AF$1=Лист2!$D55)*(Лист2!$C55=Лист1!$A$3:$A$10))*INDEX(Лист3!$B$7:$AQ$96,MATCH(Лист2!$C55,Лист3!$A$7:$A$96,0),MATCH(Лист2!AA$1&AA$2,Лист3!$B$4:$AQ$4&Лист3!$B$5:$AQ$5,0)),0) -> 1.5
C56: =IFERROR(INDEX(Лист1!$A$3:$A$10,SMALL(IF(ISNUMBER(INDEX(Лист1!$B$3:$AF$10,,MATCH(Лист2!$D56,Лист1!$B$1:$AF$1,0))),ROW(Лист1!$A$3:$A$10)-2),COUNTIF($D$7:D56,D56))),"") -> Плита "Экстрол" 35-1180.580.50/8 (Ч) Г4, м3 | D56: 13 | E56: =IFERROR(SUMPRODUCT(Лист1!$B$3:$AF$10*(Лист1!$B$1:$AF$1=Лист2!$D56)*(Лист2!$C56=Лист1!$A$3:$A$10))*INDEX(Лист3!$B$7:$AQ$96,MATCH(Лист2!$C56,Лист3!$A$7:$A$96,0),MATCH(Лист2!E$1&E$2,Лист3!$B$4:$AQ$4&Лист3!$B$5:$AQ$5,0)),0) -> 610 | F56: =IFERROR(SUMPRODUCT(Лист1!$B$3:$AF$10*(Лист1!$B$1:$AF$1=Лист2!$D56)*(Лист2!$C56=Лист1!$A$3:$A$10))*INDEX(Лист3!$B$7:$AQ$96,MATCH(Лист2!$C56,Лист3!$A$7:$A$96,0),MATCH(Лист2!F$1&F$2,Лист3!$B$4:$AQ$4&Лист3!$B$5:$AQ$5,0)),0) -> 2040 | G56: =IFERROR(SUMPRODUCT(Лист1!$B$3:$AF$10*(Лист1!$B$1:$AF$1=Лист2!$D56)*(Лист2!$C56=Лист1!$A$3:$A$10))*INDEX(Лист3!$B$7:$AQ$96,MATCH(Лист2!$C56,Лист3!$A$7:$A$96,0),MATCH(Лист2!G$1&G$2,Лист3!$B$4:$AQ$4&Лист3!$B$5:$AQ$5,0)),0) -> 15 | H56: =IFERROR(SUMPRODUCT(Лист1!$B$3:$AF$10*(Лист1!$B$1:$AF$1=Лист2!$D56)*(Лист2!$C56=Лист1!$A$3:$A$10))*INDEX(Лист3!$B$7:$AQ$96,MATCH(Лист2!$C56,Лист3!$A$7:$A$96,0),MATCH(Лист2!H$1&H$2,Лист3!$B$4:$AQ$4&Лист3!$B$5:$AQ$5,0)),0) -> 12 | I56: =IFERROR(SUMPRODUCT(Лист1!$B$3:$AF$10*(Лист1!$B$1:$AF$1=Лист2!$D56)*(Лист2!$C56=Лист1!$A$3:$A$10))*INDEX(Лист3!$B$7:$AQ$96,MATCH(Лист2!$C56,Лист3!$A$7:$A$96,0),MATCH(Лист2!I$1&I$2,Лист3!$B$4:$AQ$4&Лист3!$B$5:$AQ$5,0)),0) -> 0 | J56: =IFERROR(SUMPRODUCT(Лист1!$B$3:$AF$10*(Лист1!$B$1:$AF$1=Лист2!$D56)*(Лист2!$C56=Лист1!$A$3:$A$10))*INDEX(Лист3!$B$7:$AQ$96,MATCH(Лист2!$C56,Лист3!$A$7:$A$96,0),MATCH(Лист2!J$1&J$2,Лист3!$B$4:$AQ$4&Лист3!$B$5:$AQ$5,0)),0) -> 2 | K56: =IFERROR(SUMPRODUCT(Лист1!$B$3:$AF$10*(Лист1!$B$1:$AF$1=Лист2!$D56)*(Лист2!$C56=Лист1!$A$3:$A$10))*INDEX(Лист3!$B$7:$AQ$96,MATCH(Лист2!$C56,Лист3!$A$7:$A$96,0),MATCH(Лист2!K$1&K$2,Лист3!$B$4:$AQ$4&Лист3!$B$5:$AQ$5,0)),0) -> 0 | L56: =IFERROR(SUMPRODUCT(Лист1!$B$3:$AF$10*(Лист1!$B$1:$AF$1=Лист2!$D56)*(Лист2!$C56=Лист1!$A$3:$A$10))*INDEX(Лист3!$B$7:$AQ$96,MATCH(Лист2!$C56,Лист3!$A$7:$A$96,0),MATCH(Лист2!L$1&L$2,Лист3!$B$4:$AQ$4&Лист3!$B$5:$AQ$5,0)),0) -> 3 | M56: =IFERROR(SUMPRODUCT(Лист1!$B$3:$AF$10*(Лист1!$B$1:$AF$1=Лист2!$D56)*(Лист2!$C56=Лист1!$A$3:$A$10))*INDEX(Лист3!$B$7:$AQ$96,MATCH(Лист2!$C56,Лист3!$A$7:$A$96,0),MATCH(Лист2!M$1&M$2,Лист3!$B$4:$AQ$4&Лист3!$B$5:$AQ$5,0)),0) -> 120 | N56: =IFERROR(SUMPRODUCT(Лист1!$B$3:$AF$10*(Лист1!$B$1:$AF$1=Лист2!$D56)*(Лист2!$C56=Лист1!$A$3:$A$10))*INDEX(Лист3!$B$7:$AQ$96,MATCH(Лист2!$C56,Лист3!$A$7:$A$96,0),MATCH(Лист2!N$1&N$2,Лист3!$B$4:$AQ$4&Лист3!$B$5:$AQ$5,0)),0) -> 60 | O56: =IFERROR(SUMPRODUCT(Лист1!$B$3:$AF$10*(Лист1!$B$1:$AF$1=Лист2!$D56)*(Лист2!$C56=Лист1!$A$3:$A$10))*INDEX(Лист3!$B$7:$AQ$96,MATCH(Лист2!$C56,Лист3!$A$7:$A$96,0),MATCH(Лист2!O$1&O$2,Лист3!$B$4:$AQ$4&Лист3!$B$5:$AQ$5,0)),0) -> 0 | P56: =IFERROR(SUMPRODUCT(Лист1!$B$3:$AF$10*(Лист1!$B$1:$AF$1=Лист2!$D56)*(Лист2!$C56=Лист1!$A$3:$A$10))*INDEX(Лист3!$B$7:$AQ$96,MATCH(Лист2!$C56,Лист3!$A$7:$A$96,0),MATCH(Лист2!P$1&P$2,Лист3!$B$4:$AQ$4&Лист3!$B$5:$AQ$5,0)),0) -> 80 | Q56: =IFERROR(SUMPRODUCT(Лист1!$B$3:$AF$10*(Лист1!$B$1:$AF$1=Лист2!$D56)*(Лист2!$C56=Лист1!$A$3:$A$10))*INDEX(Лист3!$B$7:$AQ$96,MATCH(Лист2!$C56,Лист3!$A$7:$A$96,0),MATCH(Лист2!Q$1&Q$2,Лист3!$B$4:$AQ$4&Лист3!$B$5:$AQ$5,0)),0) -> 0 | R56: =IFERROR(SUMPRODUCT(Лист1!$B$3:$AF$10*(Лист1!$B$1:$AF$1=Лист2!$D56)*(Лист2!$C56=Лист1!$A$3:$A$10))*INDEX(Лист3!$B$7:$AQ$96,MATCH(Лист2!$C56,Лист3!$A$7:$A$96,0),MATCH(Лист2!R$1&R$2,Лист3!$B$4:$AQ$4&Лист3!$B$5:$AQ$5,0)),0) -> 10 | S56: =IFERROR(SUMPRODUCT(Лист1!$B$3:$AF$10*(Лист1!$B$1:$AF$1=Лист2!$D56)*(Лист2!$C56=Лист1!$A$3:$A$10))*INDEX(Лист3!$B$7:$AQ$96,MATCH(Лист2!$C56,Лист3!$A$7:$A$96,0),MATCH(Лист2!S$1&S$2,Лист3!$B$4:$AQ$4&Лист3!$B$5:$AQ$5,0)),0) -> 0.6 | T56: =IFERROR(SUMPRODUCT(Лист1!$B$3:$AF$10*(Лист1!$B$1:$AF$1=Лист2!$D56)*(Лист2!$C56=Лист1!$A$3:$A$10))*INDEX(Лист3!$B$7:$AQ$96,MATCH(Лист2!$C56,Лист3!$A$7:$A$96,0),MATCH(Лист2!T$1&T$2,Лист3!$B$4:$AQ$4&Лист3!$B$5:$AQ$5,0)),0) -> 0 | U56: =IFERROR(SUMPRODUCT(Лист1!$B$3:$AF$10*(Лист1!$B$1:$AF$1=Лист2!$D56)*(Лист2!$C56=Лист1!$A$3:$A$10))*INDEX(Лист3!$B$7:$AQ$96,MATCH(Лист2!$C56,Лист3!$A$7:$A$96,0),MATCH(Лист2!U$1&U$2,Лист3!$B$4:$AQ$4&Лист3!$B$5:$AQ$5,0)),0) -> 0 | V56: =IFERROR(SUMPRODUCT(Лист1!$B$3:$AF$10*(Лист1!$B$1:$AF$1=Лист2!$D56)*(Лист2!$C56=Лист1!$A$3:$A$10))*INDEX(Лист3!$B$7:$AQ$96,MATCH(Лист2!$C56,Лист3!$A$7:$A$96,0),MATCH(Лист2!V$1&V$2,Лист3!$B$4:$AQ$4&Лист3!$B$5:$AQ$5,0)),0) -> 0 | W56: =IFERROR(SUMPRODUCT(Лист1!$B$3:$AF$10*(Лист1!$B$1:$AF$1=Лист2!$D56)*(Лист2!$C56=Лист1!$A$3:$A$10))*INDEX(Лист3!$B$7:$AQ$96,MATCH(Лист2!$C56,Лист3!$A$7:$A$96,0),MATCH(Лист2!W$1&W$2,Лист3!$B$4:$AQ$4&Лист3!$B$5:$AQ$5,0)),0) -> 0 | X56: =IFERROR(SUMPRODUCT(Лист1!$B$3:$AF$10*(Лист1!$B$1:$AF$1=Лист2!$D56)*(Лист2!$C56=Лист1!$A$3:$A$10))*INDEX(Лист3!$B$7:$AQ$96,MATCH(Лист2!$C56,Лист3!$A$7:$A$96,0),MATCH(Лист2!X$1&X$2,Лист3!$B$4:$AQ$4&Лист3!$B$5:$AQ$5,0)),0) -> 1.6 | Y56: =IFERROR(SUMPRODUCT(Лист1!$B$3:$AF$10*(Лист1!$B$1:$AF$1=Лист2!$D56)*(Лист2!$C56=Лист1!$A$3:$A$10))*INDEX(Лист3!$B$7:$AQ$96,MATCH(Лист2!$C56,Лист3!$A$7:$A$96,0),MATCH(Лист2!Y$1&Y$2,Лист3!$B$4:$AQ$4&Лист3!$B$5:$AQ$5,0)),0) -> 0 | Z56: =IFERROR(SUMPRODUCT(Лист1!$B$3:$AF$10*(Лист1!$B$1:$AF$1=Лист2!$D56)*(Лист2!$C56=Лист1!$A$3:$A$10))*INDEX(Лист3!$B$7:$AQ$96,MATCH(Лист2!$C56,Лист3!$A$7:$A$96,0),MATCH(Лист2!Z$1&Z$2,Лист3!$B$4:$AQ$4&Лист3!$B$5:$AQ$5,0)),0) -> 0.25 | AA56: =IFERROR(SUMPRODUCT(Лист1!$B$3:$AF$10*(Лист1!$B$1:$AF$1=Лист2!$D56)*(Лист2!$C56=Лист1!$A$3:$A$10))*INDEX(Лист3!$B$7:$AQ$96,MATCH(Лист2!$C56,Лист3!$A$7:$A$96,0),MATCH(Лист2!AA$1&AA$2,Лист3!$B$4:$AQ$4&Лист3!$B$5:$AQ$5,0)),0) -> 4.7
C57: =IFERROR(INDEX(Лист1!$A$3:$A$10,SMALL(IF(ISNUMBER(INDEX(Лист1!$B$3:$AF$10,,MATCH(Лист2!$D57,Лист1!$B$1:$AF$1,0))),ROW(Лист1!$A$3:$A$10)-2),COUNTIF($D$7:D57,D57))),"") ->  | D57: 13 | E57: =IFERROR(SUMPRODUCT(Лист1!$B$3:$AF$10*(Лист1!$B$1:$AF$1=Лист2!$D57)*(Лист2!$C57=Лист1!$A$3:$A$10))*INDEX(Лист3!$B$7:$AQ$96,MATCH(Лист2!$C57,Лист3!$A$7:$A$96,0),MATCH(Лист2!E$1&E$2,Лист3!$B$4:$AQ$4&Лист3!$B$5:$AQ$5,0)),0) -> 0 | F57: =IFERROR(SUMPRODUCT(Лист1!$B$3:$AF$10*(Лист1!$B$1:$AF$1=Лист2!$D57)*(Лист2!$C57=Лист1!$A$3:$A$10))*INDEX(Лист3!$B$7:$AQ$96,MATCH(Лист2!$C57,Лист3!$A$7:$A$96,0),MATCH(Лист2!F$1&F$2,Лист3!$B$4:$AQ$4&Лист3!$B$5:$AQ$5,0)),0) -> 0 | G57: =IFERROR(SUMPRODUCT(Лист1!$B$3:$AF$10*(Лист1!$B$1:$AF$1=Лист2!$D57)*(Лист2!$C57=Лист1!$A$3:$A$10))*INDEX(Лист3!$B$7:$AQ$96,MATCH(Лист2!$C57,Лист3!$A$7:$A$96,0),MATCH(Лист2!G$1&G$2,Лист3!$B$4:$AQ$4&Лист3!$B$5:$AQ$5,0)),0) -> 0 | H57: =IFERROR(SUMPRODUCT(Лист1!$B$3:$AF$10*(Лист1!$B$1:$AF$1=Лист2!$D57)*(Лист2!$C57=Лист1!$A$3:$A$10))*INDEX(Лист3!$B$7:$AQ$96,MATCH(Лист2!$C57,Лист3!$A$7:$A$96,0),MATCH(Лист2!H$1&H$2,Лист3!$B$4:$AQ$4&Лист3!$B$5:$AQ$5,0)),0) -> 0 | I57: =IFERROR(SUMPRODUCT(Лист1!$B$3:$AF$10*(Лист1!$B$1:$AF$1=Лист2!$D57)*(Лист2!$C57=Лист1!$A$3:$A$10))*INDEX(Лист3!$B$7:$AQ$96,MATCH(Лист2!$C57,Лист3!$A$7:$A$96,0),MATCH(Лист2!I$1&I$2,Лист3!$B$4:$AQ$4&Лист3!$B$5:$AQ$5,0)),0) -> 0 | J57: =IFERROR(SUMPRODUCT(Лист1!$B$3:$AF$10*(Лист1!$B$1:$AF$1=Лист2!$D57)*(Лист2!$C57=Лист1!$A$3:$A$10))*INDEX(Лист3!$B$7:$AQ$96,MATCH(Лист2!$C57,Лист3!$A$7:$A$96,0),MATCH(Лист2!J$1&J$2,Лист3!$B$4:$AQ$4&Лист3!$B$5:$AQ$5,0)),0) -> 0 | K57: =IFERROR(SUMPRODUCT(Лист1!$B$3:$AF$10*(Лист1!$B$1:$AF$1=Лист2!$D57)*(Лист2!$C57=Лист1!$A$3:$A$10))*INDEX(Лист3!$B$7:$AQ$96,MATCH(Лист2!$C57,Лист3!$A$7:$A$96,0),MATCH(Лист2!K$1&K$2,Лист3!$B$4:$AQ$4&Лист3!$B$5:$AQ$5,0)),0) -> 0 | L57: =IFERROR(SUMPRODUCT(Лист1!$B$3:$AF$10*(Лист1!$B$1:$AF$1=Лист2!$D57)*(Лист2!$C57=Лист1!$A$3:$A$10))*INDEX(Лист3!$B$7:$AQ$96,MATCH(Лист2!$C57,Лист3!$A$7:$A$96,0),MATCH(Лист2!L$1&L$2,Лист3!$B$4:$AQ$4&Лист3!$B$5:$AQ$5,0)),0) -> 0 | M57: =IFERROR(SUMPRODUCT(Лист1!$B$3:$AF$10*(Лист1!$B$1:$AF$1=Лист2!$D57)*(Лист2!$C57=Лист1!$A$3:$A$10))*INDEX(Лист3!$B$7:$AQ$96,MATCH(Лист2!$C57,Лист3!$A$7:$A$96,0),MATCH(Лист2!M$1&M$2,Лист3!$B$4:$AQ$4&Лист3!$B$5:$AQ$5,0)),0) -> 0 | N57: =IFERROR(SUMPRODUCT(Лист1!$B$3:$AF$10*(Лист1!$B$1:$AF$1=Лист2!$D57)*(Лист2!$C57=Лист1!$A$3:$A$10))*INDEX(Лист3!$B$7:$AQ$96,MATCH(Лист2!$C57,Лист3!$A$7:$A$96,0),MATCH(Лист2!N$1&N$2,Лист3!$B$4:$AQ$4&Лист3!$B$5:$AQ$5,0)),0) -> 0 | O57: =IFERROR(SUMPRODUCT(Лист1!$B$3:$AF$10*(Лист1!$B$1:$AF$1=Лист2!$D57)*(Лист2!$C57=Лист1!$A$3:$A$10))*INDEX(Лист3!$B$7:$AQ$96,MATCH(Лист2!$C57,Лист3!$A$7:$A$96,0),MATCH(Лист2!O$1&O$2,Лист3!$B$4:$AQ$4&Лист3!$B$5:$AQ$5,0)),0) -> 0 | P57: =IFERROR(SUMPRODUCT(Лист1!$B$3:$AF$10*(Лист1!$B$1:$AF$1=Лист2!$D57)*(Лист2!$C57=Лист1!$A$3:$A$10))*INDEX(Лист3!$B$7:$AQ$96,MATCH(Лист2!$C57,Лист3!$A$7:$A$96,0),MATCH(Лист2!P$1&P$2,Лист3!$B$4:$AQ$4&Лист3!$B$5:$AQ$5,0)),0) -> 0 | Q57: =IFERROR(SUMPRODUCT(Лист1!$B$3:$AF$10*(Лист1!$B$1:$AF$1=Лист2!$D57)*(Лист2!$C57=Лист1!$A$3:$A$10))*INDEX(Лист3!$B$7:$AQ$96,MATCH(Лист2!$C57,Лист3!$A$7:$A$96,0),MATCH(Лист2!Q$1&Q$2,Лист3!$B$4:$AQ$4&Лист3!$B$5:$AQ$5,0)),0) -> 0 | R57: =IFERROR(SUMPRODUCT(Лист1!$B$3:$AF$10*(Лист1!$B$1:$AF$1=Лист2!$D57)*(Лист2!$C57=Лист1!$A$3:$A$10))*INDEX(Лист3!$B$7:$AQ$96,MATCH(Лист2!$C57,Лист3!$A$7:$A$96,0),MATCH(Лист2!R$1&R$2,Лист3!$B$4:$AQ$4&Лист3!$B$5:$AQ$5,0)),0) -> 0 | S57: =IFERROR(SUMPRODUCT(Лист1!$B$3:$AF$10*(Лист1!$B$1:$AF$1=Лист2!$D57)*(Лист2!$C57=Лист1!$A$3:$A$10))*INDEX(Лист3!$B$7:$AQ$96,MATCH(Лист2!$C57,Лист3!$A$7:$A$96,0),MATCH(Лист2!S$1&S$2,Лист3!$B$4:$AQ$4&Лист3!$B$5:$AQ$5,0)),0) -> 0 | T57: =IFERROR(SUMPRODUCT(Лист1!$B$3:$AF$10*(Лист1!$B$1:$AF$1=Лист2!$D57)*(Лист2!$C57=Лист1!$A$3:$A$10))*INDEX(Лист3!$B$7:$AQ$96,MATCH(Лист2!$C57,Лист3!$A$7:$A$96,0),MATCH(Лист2!T$1&T$2,Лист3!$B$4:$AQ$4&Лист3!$B$5:$AQ$5,0)),0) -> 0 | U57: =IFERROR(SUMPRODUCT(Лист1!$B$3:$AF$10*(Лист1!$B$1:$AF$1=Лист2!$D57)*(Лист2!$C57=Лист1!$A$3:$A$10))*INDEX(Лист3!$B$7:$AQ$96,MATCH(Лист2!$C57,Лист3!$A$7:$A$96,0),MATCH(Лист2!U$1&U$2,Лист3!$B$4:$AQ$4&Лист3!$B$5:$AQ$5,0)),0) -> 0 | V57: =IFERROR(SUMPRODUCT(Лист1!$B$3:$AF$10*(Лист1!$B$1:$AF$1=Лист2!$D57)*(Лист2!$C57=Лист1!$A$3:$A$10))*INDEX(Лист3!$B$7:$AQ$96,MATCH(Лист2!$C57,Лист3!$A$7:$A$96,0),MATCH(Лист2!V$1&V$2,Лист3!$B$4:$AQ$4&Лист3!$B$5:$AQ$5,0)),0) -> 0 | W57: =IFERROR(SUMPRODUCT(Лист1!$B$3:$AF$10*(Лист1!$B$1:$AF$1=Лист2!$D57)*(Лист2!$C57=Лист1!$A$3:$A$10))*INDEX(Лист3!$B$7:$AQ$96,MATCH(Лист2!$C57,Лист3!$A$7:$A$96,0),MATCH(Лист2!W$1&W$2,Лист3!$B$4:$AQ$4&Лист3!$B$5:$AQ$5,0)),0) -> 0 | X57: =IFERROR(SUMPRODUCT(Лист1!$B$3:$AF$10*(Лист1!$B$1:$AF$1=Лист2!$D57)*(Лист2!$C57=Лист1!$A$3:$A$10))*INDEX(Лист3!$B$7:$AQ$96,MATCH(Лист2!$C57,Лист3!$A$7:$A$96,0),MATCH(Лист2!X$1&X$2,Лист3!$B$4:$AQ$4&Лист3!$B$5:$AQ$5,0)),0) -> 0 | Y57: =IFERROR(SUMPRODUCT(Лист1!$B$3:$AF$10*(Лист1!$B$1:$AF$1=Лист2!$D57)*(Лист2!$C57=Лист1!$A$3:$A$10))*INDEX(Лист3!$B$7:$AQ$96,MATCH(Лист2!$C57,Лист3!$A$7:$A$96,0),MATCH(Лист2!Y$1&Y$2,Лист3!$B$4:$AQ$4&Лист3!$B$5:$AQ$5,0)),0) -> 0 | Z57: =IFERROR(SUMPRODUCT(Лист1!$B$3:$AF$10*(Лист1!$B$1:$AF$1=Лист2!$D57)*(Лист2!$C57=Лист1!$A$3:$A$10))*INDEX(Лист3!$B$7:$AQ$96,MATCH(Лист2!$C57,Лист3!$A$7:$A$96,0),MATCH(Лист2!Z$1&Z$2,Лист3!$B$4:$AQ$4&Лист3!$B$5:$AQ$5,0)),0) -> 0 | AA57: =IFERROR(SUMPRODUCT(Лист1!$B$3:$AF$10*(Лист1!$B$1:$AF$1=Лист2!$D57)*(Лист2!$C57=Лист1!$A$3:$A$10))*INDEX(Лист3!$B$7:$AQ$96,MATCH(Лист2!$C57,Лист3!$A$7:$A$96,0),MATCH(Лист2!AA$1&AA$2,Лист3!$B$4:$AQ$4&Лист3!$B$5:$AQ$5,0)),0) -> 0
C58: =IFERROR(INDEX(Лист1!$A$3:$A$10,SMALL(IF(ISNUMBER(INDEX(Лист1!$B$3:$AF$10,,MATCH(Лист2!$D58,Лист1!$B$1:$AF$1,0))),ROW(Лист1!$A$3:$A$10)-2),COUNTIF($D$7:D58,D58))),"") ->  | D58: 13 | E58: =IFERROR(SUMPRODUCT(Лист1!$B$3:$AF$10*(Лист1!$B$1:$AF$1=Лист2!$D58)*(Лист2!$C58=Лист1!$A$3:$A$10))*INDEX(Лист3!$B$7:$AQ$96,MATCH(Лист2!$C58,Лист3!$A$7:$A$96,0),MATCH(Лист2!E$1&E$2,Лист3!$B$4:$AQ$4&Лист3!$B$5:$AQ$5,0)),0) -> 0 | F58: =IFERROR(SUMPRODUCT(Лист1!$B$3:$AF$10*(Лист1!$B$1:$AF$1=Лист2!$D58)*(Лист2!$C58=Лист1!$A$3:$A$10))*INDEX(Лист3!$B$7:$AQ$96,MATCH(Лист2!$C58,Лист3!$A$7:$A$96,0),MATCH(Лист2!F$1&F$2,Лист3!$B$4:$AQ$4&Лист3!$B$5:$AQ$5,0)),0) -> 0 | G58: =IFERROR(SUMPRODUCT(Лист1!$B$3:$AF$10*(Лист1!$B$1:$AF$1=Лист2!$D58)*(Лист2!$C58=Лист1!$A$3:$A$10))*INDEX(Лист3!$B$7:$AQ$96,MATCH(Лист2!$C58,Лист3!$A$7:$A$96,0),MATCH(Лист2!G$1&G$2,Лист3!$B$4:$AQ$4&Лист3!$B$5:$AQ$5,0)),0) -> 0 | H58: =IFERROR(SUMPRODUCT(Лист1!$B$3:$AF$10*(Лист1!$B$1:$AF$1=Лист2!$D58)*(Лист2!$C58=Лист1!$A$3:$A$10))*INDEX(Лист3!$B$7:$AQ$96,MATCH(Лист2!$C58,Лист3!$A$7:$A$96,0),MATCH(Лист2!H$1&H$2,Лист3!$B$4:$AQ$4&Лист3!$B$5:$AQ$5,0)),0) -> 0 | I58: =IFERROR(SUMPRODUCT(Лист1!$B$3:$AF$10*(Лист1!$B$1:$AF$1=Лист2!$D58)*(Лист2!$C58=Лист1!$A$3:$A$10))*INDEX(Лист3!$B$7:$AQ$96,MATCH(Лист2!$C58,Лист3!$A$7:$A$96,0),MATCH(Лист2!I$1&I$2,Лист3!$B$4:$AQ$4&Лист3!$B$5:$AQ$5,0)),0) -> 0 | J58: =IFERROR(SUMPRODUCT(Лист1!$B$3:$AF$10*(Лист1!$B$1:$AF$1=Лист2!$D58)*(Лист2!$C58=Лист1!$A$3:$A$10))*INDEX(Лист3!$B$7:$AQ$96,MATCH(Лист2!$C58,Лист3!$A$7:$A$96,0),MATCH(Лист2!J$1&J$2,Лист3!$B$4:$AQ$4&Лист3!$B$5:$AQ$5,0)),0) -> 0 | K58: =IFERROR(SUMPRODUCT(Лист1!$B$3:$AF$10*(Лист1!$B$1:$AF$1=Лист2!$D58)*(Лист2!$C58=Лист1!$A$3:$A$10))*INDEX(Лист3!$B$7:$AQ$96,MATCH(Лист2!$C58,Лист3!$A$7:$A$96,0),MATCH(Лист2!K$1&K$2,Лист3!$B$4:$AQ$4&Лист3!$B$5:$AQ$5,0)),0) -> 0 | L58: =IFERROR(SUMPRODUCT(Лист1!$B$3:$AF$10*(Лист1!$B$1:$AF$1=Лист2!$D58)*(Лист2!$C58=Лист1!$A$3:$A$10))*INDEX(Лист3!$B$7:$AQ$96,MATCH(Лист2!$C58,Лист3!$A$7:$A$96,0),MATCH(Лист2!L$1&L$2,Лист3!$B$4:$AQ$4&Лист3!$B$5:$AQ$5,0)),0) -> 0 | M58: =IFERROR(SUMPRODUCT(Лист1!$B$3:$AF$10*(Лист1!$B$1:$AF$1=Лист2!$D58)*(Лист2!$C58=Лист1!$A$3:$A$10))*INDEX(Лист3!$B$7:$AQ$96,MATCH(Лист2!$C58,Лист3!$A$7:$A$96,0),MATCH(Лист2!M$1&M$2,Лист3!$B$4:$AQ$4&Лист3!$B$5:$AQ$5,0)),0) -> 0 | N58: =IFERROR(SUMPRODUCT(Лист1!$B$3:$AF$10*(Лист1!$B$1:$AF$1=Лист2!$D58)*(Лист2!$C58=Лист1!$A$3:$A$10))*INDEX(Лист3!$B$7:$AQ$96,MATCH(Лист2!$C58,Лист3!$A$7:$A$96,0),MATCH(Лист2!N$1&N$2,Лист3!$B$4:$AQ$4&Лист3!$B$5:$AQ$5,0)),0) -> 0 | O58: =IFERROR(SUMPRODUCT(Лист1!$B$3:$AF$10*(Лист1!$B$1:$AF$1=Лист2!$D58)*(Лист2!$C58=Лист1!$A$3:$A$10))*INDEX(Лист3!$B$7:$AQ$96,MATCH(Лист2!$C58,Лист3!$A$7:$A$96,0),MATCH(Лист2!O$1&O$2,Лист3!$B$4:$AQ$4&Лист3!$B$5:$AQ$5,0)),0) -> 0 | P58: =IFERROR(SUMPRODUCT(Лист1!$B$3:$AF$10*(Лист1!$B$1:$AF$1=Лист2!$D58)*(Лист2!$C58=Лист1!$A$3:$A$10))*INDEX(Лист3!$B$7:$AQ$96,MATCH(Лист2!$C58,Лист3!$A$7:$A$96,0),MATCH(Лист2!P$1&P$2,Лист3!$B$4:$AQ$4&Лист3!$B$5:$AQ$5,0)),0) -> 0 | Q58: =IFERROR(SUMPRODUCT(Лист1!$B$3:$AF$10*(Лист1!$B$1:$AF$1=Лист2!$D58)*(Лист2!$C58=Лист1!$A$3:$A$10))*INDEX(Лист3!$B$7:$AQ$96,MATCH(Лист2!$C58,Лист3!$A$7:$A$96,0),MATCH(Лист2!Q$1&Q$2,Лист3!$B$4:$AQ$4&Лист3!$B$5:$AQ$5,0)),0) -> 0 | R58: =IFERROR(SUMPRODUCT(Лист1!$B$3:$AF$10*(Лист1!$B$1:$AF$1=Лист2!$D58)*(Лист2!$C58=Лист1!$A$3:$A$10))*INDEX(Лист3!$B$7:$AQ$96,MATCH(Лист2!$C58,Лист3!$A$7:$A$96,0),MATCH(Лист2!R$1&R$2,Лист3!$B$4:$AQ$4&Лист3!$B$5:$AQ$5,0)),0) -> 0 | S58: =IFERROR(SUMPRODUCT(Лист1!$B$3:$AF$10*(Лист1!$B$1:$AF$1=Лист2!$D58)*(Лист2!$C58=Лист1!$A$3:$A$10))*INDEX(Лист3!$B$7:$AQ$96,MATCH(Лист2!$C58,Лист3!$A$7:$A$96,0),MATCH(Лист2!S$1&S$2,Лист3!$B$4:$AQ$4&Лист3!$B$5:$AQ$5,0)),0) -> 0 | T58: =IFERROR(SUMPRODUCT(Лист1!$B$3:$AF$10*(Лист1!$B$1:$AF$1=Лист2!$D58)*(Лист2!$C58=Лист1!$A$3:$A$10))*INDEX(Лист3!$B$7:$AQ$96,MATCH(Лист2!$C58,Лист3!$A$7:$A$96,0),MATCH(Лист2!T$1&T$2,Лист3!$B$4:$AQ$4&Лист3!$B$5:$AQ$5,0)),0) -> 0 | U58: =IFERROR(SUMPRODUCT(Лист1!$B$3:$AF$10*(Лист1!$B$1:$AF$1=Лист2!$D58)*(Лист2!$C58=Лист1!$A$3:$A$10))*INDEX(Лист3!$B$7:$AQ$96,MATCH(Лист2!$C58,Лист3!$A$7:$A$96,0),MATCH(Лист2!U$1&U$2,Лист3!$B$4:$AQ$4&Лист3!$B$5:$AQ$5,0)),0) -> 0 | V58: =IFERROR(SUMPRODUCT(Лист1!$B$3:$AF$10*(Лист1!$B$1:$AF$1=Лист2!$D58)*(Лист2!$C58=Лист1!$A$3:$A$10))*INDEX(Лист3!$B$7:$AQ$96,MATCH(Лист2!$C58,Лист3!$A$7:$A$96,0),MATCH(Лист2!V$1&V$2,Лист3!$B$4:$AQ$4&Лист3!$B$5:$AQ$5,0)),0) -> 0 | W58: =IFERROR(SUMPRODUCT(Лист1!$B$3:$AF$10*(Лист1!$B$1:$AF$1=Лист2!$D58)*(Лист2!$C58=Лист1!$A$3:$A$10))*INDEX(Лист3!$B$7:$AQ$96,MATCH(Лист2!$C58,Лист3!$A$7:$A$96,0),MATCH(Лист2!W$1&W$2,Лист3!$B$4:$AQ$4&Лист3!$B$5:$AQ$5,0)),0) -> 0 | X58: =IFERROR(SUMPRODUCT(Лист1!$B$3:$AF$10*(Лист1!$B$1:$AF$1=Лист2!$D58)*(Лист2!$C58=Лист1!$A$3:$A$10))*INDEX(Лист3!$B$7:$AQ$96,MATCH(Лист2!$C58,Лист3!$A$7:$A$96,0),MATCH(Лист2!X$1&X$2,Лист3!$B$4:$AQ$4&Лист3!$B$5:$AQ$5,0)),0) -> 0 | Y58: =IFERROR(SUMPRODUCT(Лист1!$B$3:$AF$10*(Лист1!$B$1:$AF$1=Лист2!$D58)*(Лист2!$C58=Лист1!$A$3:$A$10))*INDEX(Лист3!$B$7:$AQ$96,MATCH(Лист2!$C58,Лист3!$A$7:$A$96,0),MATCH(Лист2!Y$1&Y$2,Лист3!$B$4:$AQ$4&Лист3!$B$5:$AQ$5,0)),0) -> 0 | Z58: =IFERROR(SUMPRODUCT(Лист1!$B$3:$AF$10*(Лист1!$B$1:$AF$1=Лист2!$D58)*(Лист2!$C58=Лист1!$A$3:$A$10))*INDEX(Лист3!$B$7:$AQ$96,MATCH(Лист2!$C58,Лист3!$A$7:$A$96,0),MATCH(Лист2!Z$1&Z$2,Лист3!$B$4:$AQ$4&Лист3!$B$5:$AQ$5,0)),0) -> 0 | AA58: =IFERROR(SUMPRODUCT(Лист1!$B$3:$AF$10*(Лист1!$B$1:$AF$1=Лист2!$D58)*(Лист2!$C58=Лист1!$A$3:$A$10))*INDEX(Лист3!$B$7:$AQ$96,MATCH(Лист2!$C58,Лист3!$A$7:$A$96,0),MATCH(Лист2!AA$1&AA$2,Лист3!$B$4:$AQ$4&Лист3!$B$5:$AQ$5,0)),0) -> 0
